{"text_format":"3","workbook":"xlsx","n_sheets":9,"sheets":["CENNIK","CORTROL | oprogramowanie VMS","GANZ | Rozwiązania CCTV","Arkusz2","AI BOX","COMPUTAR | Obiektywy","PELCO - Video Security ","Usługi Techniczne","WARUNKI HANDLOWE"],"not_rendered":{"images":90,"macros":1,"defined_names":25},"read":"whole","date_system":"1900"}

{"sheet":"CENNIK","index":0,"n_rows":39,"n_cols":9,"rows_kept":39,"merged":[[3,1,3,5],[5,1,7,1],[5,5,7,5],[34,1,34,5],[36,1,38,1],[36,5,38,5]]}
[]
[]
[]
[null,"CENNIK PRODUKTÓW CCTV"]
[]
[null,{"$error":"#VALUE!"},"Obowiązuje od 1 lipca 2024r.",null,null,{"$error":"#VALUE!"}]
[null,null,"Podane ceny są cenami netto."]
[null,null,"Zamówienia: tel. 22 633 90 90  | zamowienia@cbcpoland.pl"]
[]
[]
[]
[]
[]
[null,"Kliknij wybraną grupę produktową (czarne pole) poniżej, aby przejść do cennika z wybranym asortymentem CCTV"]
[]
[]
[null," KAMERY"," Kamery GANZ",null," VMS GANZ CORTROL","Oprogramowanie GANZ CORTROL oraz dedykowany hardware i akcesoria"]
[]
[null," REJESTRATORY"," Rejestratory cyfrowe GANZ",null," OBIEKTYWY","Obiektywy COMPUTAR do zastosowań w systemach SECURITY, MACHINE VISION, ITS"]
[]
[null," AI BOX"," Nadajniki wideo GANZ AI",null," PELCO Video Security","Szeroka gama specjalistycznych kamer i obudów do zadań specjalnych"]
[]
[null," KAMERY TERMOWIZYJNE","Kamery termowizyjne GANZ",null," USŁUGI TECHNICZNE","Cennik usług technicznych oraz serwisowych",null,null," "]
[]
[null," WARUNKI HANDLOWE","Szczegółowe warunki handlowe i gwarancyjne"]
{"$rows_empty":11}
[null,{"$error":"#VALUE!"},{"$nulls":3},{"$error":"#VALUE!"}]
[null,null,"CBC (Poland) Sp. z o.o.  |  ul. Rydygiera 8, bud.17 |  01-793 Warszawa"]
[null,null,"tel. 22 633 90 90  | zamowienia@cbcpoland.pl"]

{"sheet":"CORTROL | oprogramowanie VMS","index":1,"n_rows":110,"n_cols":7,"rows_kept":110,"merged":[[2,1,4,1],[2,2,4,2],[2,3,4,4],[9,1,9,5],[107,1,107,3],[108,1,108,2]]}
[]
[]
[null,{"$error":"#VALUE!"},"CENNIK PRODUKTÓW CCTV",{"$error":"#VALUE!"}]
[]
[]
[]
[{"$nulls":3},"RABAT: ",{"v":0,"d":"0%"}]
[null,"Model (kod) towaru","Opis","Cena PLN detal","Cena PLN z rabatem","Dostępność "]
[]
[null,"Rejestratory GANZ CORTROL-NVR "]
[]
[null,"CORTROL-REC-R04","Serwer XEON, obsługa do 128 kanałów wideo i audio, do 3840kl/s w rozdzielczości 8MP, 2x Ethernet 1Gbit, OS WIN 10 PRO na dysku SSD. Obudowa RACK 1U,  4x HDD 3,5\" SATA, Hot-Swap. Zasilacz 350W.",{"v":16900,"d":"16,900"},{"$f":"D12-(D12*E$7)","v":{"v":16900,"d":"16,900"}},"ZAM"]
[null,"CORTROL-REC-R04-RP","Serwer XEON, obsługa do 128 kanałów wideo i audio, do 3840kl/s w rozdzielczości 8MP, 2x Ethernet 1Gbit, OS WIN 10 PRO na dysku SSD. Obudowa RACK 1U, 4x HDD 3,5\" SATA, Hot-Swap. Zasilacz redundantny 400W.",{"v":19900,"d":"19,900"},{"$f":"D13-(D13*E$7)","v":{"v":19900,"d":"19,900"}},"ZAM"]
[null,"CORTROL-REC-R08","Serwer XEON, obsługa do 180 kanałów wideo i audio, do 5400kl/s w rozdzielczości 8MP, 2x Ethernet 1Gbit, OS WIN 10 PRO na dysku SSD. Obudowa RACK 2U, 8x HDD 3,5\" SATA, RAID 5/6, Hot-Swap. Zasilacz 600W.",{"v":28900,"d":"28,900"},{"$f":"D14-(D14*E$7)","v":{"v":28900,"d":"28,900"}},"ZAM"]
[null,"CORTROL-REC-R08-RP","Serwer XEON, obsługa do 180 kanałów wideo i audio, do 5400kl/s w rozdzielczości 8MP, 2x Ethernet 1Gbit, OS WIN 10 PRO na dysku SSD. Obudowa RACK 2U, 8x HDD 3,5\" SATA, RAID 5/6, Hot-Swap. Zasilacz redundantny 800W.",{"v":32900,"d":"32,900"},{"$f":"D15-(D15*E$7)","v":{"v":32900,"d":"32,900"}},"ZAM"]
[null,"CORTROL-REC-R12-RP","Serwer XEON, obsługa do 180 kanałów wideo i audio, do 5400kl/s w rozdzielczości 8MP, 2x Ethernet 1Gbit, OS WIN 10 PRO na dysku SSD. Obudowa RACK 2U, 12x HDD 3,5\" SATA, RAID 5/6, Hot-Swap. Zasilacz redundantny 800W.",{"v":37900,"d":"37,900"},{"$f":"D16-(D16*E$7)","v":{"v":37900,"d":"37,900"}},"ZAM"]
[null,"CORTROL-REC-R16*","Serwer XEON, obsługa do 240 kanałów wideo i audio, do 7200kl/s w rozdzielczości 8MP, 2x Ethernet 1Gbit, OS WIN 10 PRO na dysku SSD. Obudowa RACK 3U, 16x HDD 3,5\" SATA/SAS, RAID 1/5/6, Hot-Swap. Zasilacz redundantny 720W.","44 900\n(cena orientacyjna)","44 900\n(cena orientacyjna)","ZAM"]
[null,"CORTROL-REC-R24*","Serwer XEON, obsługa do 240 kanałów wideo i audio, do 7200kl/s w rozdzielczości 8MP, 2x Ethernet 1Gbit, OS WIN 10 PRO na dysku SSD. Obudowa RACK 4U, 24x HDD 3,5\" SATA/SAS, RAID 1/5/6, Hot-Swap. Zasilacz redundantny 720W.","51 900\n(cena orientacyjna)","51 900\n(cena orientacyjna)","ZAM"]
[null,"*dla systemów z więcej niż 8 dyskami HDD w RAID zalecamy modele HDD Enterprise - WD Ultrastar DC lub Seagate Exos"]
[null,"Gotowy serwer, preinstalowane oprogramowanie, bez dysków archiwalnych! Przybliżony czas realizacji zamówienia 21-45 dni roboczych."]
[]
[null,"Archive disc HDDs"]
[null,"HDD SATA","Dysk twardy SATA wyceniany indywidualnie zgodnie z wymaganiami projektowymi. Cena zawiera montaż, konfigurację i alokację bazy danych ","na zapytanie ",{"$f":"D23","v":"na zapytanie "},"ZAM"]
[]
[null,"Karta graficzna "]
[null,"Karta graficzna ","Karta graficzna dobierana indywidualnie na podstawie ilości i typów analityk GANZ CORTROL wykorzystywanych w projekcie. ","na zapytanie ",{"$f":"D26","v":"na zapytanie "},"ZAM"]
[]
[null,"Stacje klienckie GANZ CORTROL"]
[null,"CORTROL-WS-MT-3mDP","Stacja kliencka wysokiej wydajności i7, 16GB RAM, 1x Ethernet 1Gbit, Karta graficzna NVIDIA - wyjścia monitorowe - 3x mini-DisplayPort. OS WIN 11 PRO na dysku SSD. Obudowa MT, 3x HDD 3,5\" SATA – 3 lata gwarancji OnSite NBD",{"v":13000,"d":"13,000"},{"$f":"D29-(D29*E$7)","v":{"v":13000,"d":"13,000"}},"ZAM",{"$error":"#VALUE!"}]
[null,"CORTROL-WS-MT-6mDP","Stacja kliencka wysokiej wydajności i7, 16GB RAM, 1x Ethernet 1Gbit, Dwie karty graficzne NVIDIA - wyjścia monitorowe - 6x mini-DisplayPort. OS WIN 11 PRO na dysku SSD. Obudowa MT, 3x HDD 3,5\" SATA – 3 lata gwarancji OnSite NBD",{"v":14000,"d":"14,000"},{"$f":"D30-(D30*E$7)","v":{"v":14000,"d":"14,000"}},"ZAM",{"$error":"#VALUE!"}]
[null,"UWAGA:  ceny elementów rozbudowy nie podlegają rabatom!"]
[]
[null,"Moduły WE/WY MOXA - IP Ethernet"]
[null,"MOXA ioLogik E1210","Moduł WE/WY do systemu CORTROL VMS. 16x Wejście cyfrowe. Komunikacja po sieci IP Ethernet 2x LAN 100Mbps, RJ45. Zasilanie 12-36VDC. Montaż na szynę DIN.",800,{"$f":"D34","v":800},"ZAM"]
[null,"MOXA ioLogik E1211","Moduł WE/WY do systemu CORTROL VMS. 16x Wyjście cyfrowe. Komunikacja po sieci IP Ethernet 2x LAN 100Mbps, RJ45. Zasilanie 12-36VDC. Montaż na szynę DIN.",900,{"$f":"D35","v":900},"ZAM"]
[null,"MOXA ioLogik E1212","Moduł WE/WY do systemu CORTROL VMS. 8x Wejście cyfrowe, 8x Wyjście cyfrowe. Komunikacja po sieci IP Ethernet 2x LAN 100Mbps, RJ45. Zasilanie 12-36VDC. Montaż na szynę DIN.",900,{"$f":"D36","v":900},"ZAM"]
[null,"MOXA ioLogik E1214","Moduł WE/WY do systemu CORTROL VMS. 6x Wejście cyfrowe, 6x Wyjście przekaźnikowe 2A @ 30VDC. Komunikacja po sieci IP Ethernet 2x LAN 100Mbps, RJ45. Zasilanie 12-36VDC. Montaż na szynę DIN.",900,{"$f":"D37","v":900},"ZAM"]
[null,"MDR-20-12","Zasilacz na szynę DIN do modułów WE/WY MOXA - 20W 12V 1.67A.",100,{"$f":"D38","v":100},"ZAM"]
[null,"UWAGA:  ceny elementów rozbudowy nie podlegają rabatom!"]
[]
[null,"Licencje GANZ CORTROL DEMO"]
[null,"Licencja CORTROL DEMO","Wersja demonstracyjna oprogramowania GANZ CORTROL VMS w edycji Premier/Global. Licencja ograniczona czasowo. ","na zapytanie  ","na zapytanie  ","ZAM"]
[null,"Licencje GANZ CORTROL PREMIER - 9 i 16 kanałowe "]
[null,"ZNS-Premier9","Licencja elektroniczna na oprogramowanie GANZ CORTROL VMS w edycji Premier. Umożliwia podłączenie 9 kanałów wideo do pojedynczego serwera. Zawiera pakiet subskrypcji na usługę utrzymania oraz aktualizacji oprogramowania w okresie 2 lat od daty pierwotnej aktywacji.",{"v":3400,"d":"3,400"},{"$f":"D44-(D44*E$7)","v":{"v":3400,"d":"3,400"}},"ZAM"]
[null,"ZNS-Premier16","Licencja elektroniczna na oprogramowanie GANZ CORTROL VMS w edycji Premier. Umożliwia podłączenie 16 kanałów wideo do pojedynczego serwera. Zawiera pakiet subskrypcji na usługę utrzymania oraz aktualizacji oprogramowania w okresie 2 lat od daty pierwotnej aktywacji.",{"v":5700,"d":"5,700"},{"$f":"D45-(D45*E$7)","v":{"v":5700,"d":"5,700"}},"ZAM"]
[null,"Licencje GANZ CORTROL PREMIER Contract Renewal (przedłużenie subskrypcji)"]
[null,"ZNS-2AC9","Przedłużenie subskrypcji dla licencji ZNS-Premier9 o dodatkowe 2 lata",760,{"$f":"D47-(D47*E$7)","v":760},"ZAM"]
[null,"ZNS-2AC16","Przedłużenie subskrypcji dla licencji ZNS-Premier16 o dodatkowe 2 lata",{"v":1400,"d":"1,400"},{"$f":"D48-(D48*E$7)","v":{"v":1400,"d":"1,400"}},"ZAM"]
[null,"ZNS-8AC9  ","Przedłużenie subskrypcji dla licencji ZNS-Premier9 o dodatkowe 8 lat",{"v":1600,"d":"1,600"},{"$f":"D49-(D49*E$7)","v":{"v":1600,"d":"1,600"}},"ZAM"]
[null,"ZNS-8AC16","Przedłużenie subskrypcji dla licencji ZNS-Premier16 o dodatkowe 8 lat",{"v":2800,"d":"2,800"},{"$f":"D50-(D50*E$7)","v":{"v":2800,"d":"2,800"}},"ZAM"]
[null,"Licencje GANZ CORTROL PREMIER"]
[null,"ZNS-Premier24","Licencja elektroniczna na oprogramowanie GANZ CORTROL VMS w edycji Premier. Umożliwia podłączenie 24 kanałów wideo do pojedynczego serwera. Zawiera pakiet subskrypcji na usługę utrzymania oraz aktualizacji oprogramowania w okresie 2 lat od daty pierwotnej aktywacji. Możliwość rozszerzenia licencji do 190 kanałów.",{"v":6800,"d":"6,800"},{"$f":"D52-(D52*E$7)","v":{"v":6800,"d":"6,800"}},"ZAM"]
[null,"GANZ CORTROL PREMIER 1 kanał"]
[null,"ZNS-Premier1Ch ","Rozszerzenie licencji elektronicznej na oprogramowanie GANZ CORTROL VMS w edycji Premier o pojedynczy kanał wideo (konieczny zakup minimum 6 kanałów w jednej transzy).\n!!! UWAGA - Nie dotyczy edycji GANZ CORTROL VMS w wersji Premier9 oraz Premier16 !!!",320,{"$f":"D54-(D54*E$7)","v":320},"ZAM"]
[null,"Licencje GANZ CORTROL PREMIER Contract Renewal (przedłużenie subskrypcji 1 kanał)"]
[null,"ZNS-1ACP1 ","Przedłużenie subskrypcji dla pojedynczego kanału oprogramowania GANZ CORTROL VMS w edycji Premier o 1 rok.",52,{"$f":"D56-(D56*E$7)","v":52},"ZAM"]
[null,"ZNS-2ACP1 ","Przedłużenie subskrypcji dla pojedynczego kanału oprogramowania GANZ CORTROL VMS w edycji Premier o 2 lata.",73,73,"ZAM"]
[null,"ZNS-3ACP1 ","Przedłużenie subskrypcji dla pojedynczego kanału oprogramowania GANZ CORTROL VMS w edycji Premier o 3 lata.",94,94,"ZAM"]
[null,"ZNS-4ACP1 ","Przedłużenie subskrypcji dla pojedynczego kanału oprogramowania GANZ CORTROL VMS w edycji Premier o 4 lata.",105,105,"ZAM"]
[null,"ZNS-5ACP1 ","Przedłużenie subskrypcji dla pojedynczego kanału oprogramowania GANZ CORTROL VMS w edycji Premier o 5 lat.",115,115,"ZAM"]
[null,"ZNS-6ACP1 ","Przedłużenie subskrypcji dla pojedynczego kanału oprogramowania GANZ CORTROL VMS w edycji Premier o 6 lat.",125,125,"ZAM"]
[null,"ZNS-7ACP1 ","Przedłużenie subskrypcji dla pojedynczego kanału oprogramowania GANZ CORTROL VMS w edycji Premier o 7 lat.",140,140,"ZAM"]
[null,"ZNS-8ACP1 ","Przedłużenie subskrypcji dla pojedynczego kanału oprogramowania GANZ CORTROL VMS w edycji Premier o 8 lat.",150,150,"ZAM"]
[null,"Licencje GANZ CORTROL GLOBAL (Produkt Projektowy)"]
[null,"ZNS-GStart50","Licencja elektroniczna na oprogramowanie GANZ CORTROL VMS w edycji Global. Pakiet startowy umożliwiający podłączenie 50 kanałów wideo w środowisku rozproszonym. Zawiera pakiet subskrypcji na usługę utrzymania oraz aktualizacji oprogramowania w okresie 2 lat od daty pierwotnej aktywacji.",{"v":33000,"d":"33,000"},{"$f":"D65-(D65*E$7)","v":{"v":33000,"d":"33,000"}},"ZAM"]
[null,"ZNS-GStart100","Licencja elektroniczna na oprogramowanie GANZ CORTROL VMS w edycji Global. Pakiet startowy umożliwiający podłączenie 100 kanałów wideo w środowisku rozproszonym. Zawiera pakiet subskrypcji na usługę utrzymania oraz aktualizacji oprogramowania w okresie 2 lat od daty pierwotnej aktywacji.",{"v":47000,"d":"47,000"},{"$f":"D66-(D66*E$7)","v":{"v":47000,"d":"47,000"}},"ZAM"]
[null,"Licencje GANZ CORTROL GLOBAL - 1 kanał "]
[null,"ZNS-GL-1CH ","Rozszerzenie licencji elektronicznej na oprogramowanie GANZ CORTROL VMS w edycji Global o pojedynczy kanał wideo (konieczny zakup minimum 6 kanałów w jednej transzy).",530,{"$f":"D68-(D68*E$7)","v":530},"ZAM"]
[null,"Licencje GANZ CORTROL GLOBAL Contract Renewal (przedłużenie subskrypcji)"]
[null,"ZNS-1ACG1 ","Przedłużenie subskrypcji dla pojedynczego kanału oprogramowania GANZ CORTROL VMS w edycji Global o 1 rok. (Tylko dla posiadaczy licencji na oprogramowanie GANZ CORTROL VMS w edycji Global).",145,{"$f":"D70-(D70*E$7)","v":145},"ZAM"]
[null,"ZNS-2ACG1 ","Przedłużenie subskrypcji dla pojedynczego kanału oprogramowania GANZ CORTROL VMS w edycji Global o 2 lata. (Tylko dla posiadaczy licencji na oprogramowanie GANZ CORTROL VMS w edycji Global).",255,255,"ZAM"]
[null,"ZNS-3ACG1 ","Przedłużenie subskrypcji dla pojedynczego kanału oprogramowania GANZ CORTROL VMS w edycji Global o 3 lata. (Tylko dla posiadaczy licencji na oprogramowanie GANZ CORTROL VMS w edycji Global).",350,350,"ZAM"]
[null,"ZNS-4ACG1 ","Przedłużenie subskrypcji dla pojedynczego kanału oprogramowania GANZ CORTROL VMS w edycji Global o 4 lata. (Tylko dla posiadaczy licencji na oprogramowanie GANZ CORTROL VMS w edycji Global).",450,450,"ZAM"]
[null,"ZNS-5ACG1 ","Przedłużenie subskrypcji dla pojedynczego kanału oprogramowania GANZ CORTROL VMS w edycji Global o 5 lat. (Tylko dla posiadaczy licencji na oprogramowanie GANZ CORTROL VMS w edycji Global).",520,520,"ZAM"]
[null,"ZNS-6ACG1 ","Przedłużenie subskrypcji dla pojedynczego kanału oprogramowania GANZ CORTROL VMS w edycji Global o 6 lat. (Tylko dla posiadaczy licencji na oprogramowanie GANZ CORTROL VMS w edycji Global).",590,590,"ZAM"]
[null,"ZNS-7ACG1 ","Przedłużenie subskrypcji dla pojedynczego kanału oprogramowania GANZ CORTROL VMS w edycji Global o 7 lat. (Tylko dla posiadaczy licencji na oprogramowanie GANZ CORTROL VMS w edycji Global).",620,620,"ZAM"]
[null,"ZNS-8ACG1 ","Przedłużenie subskrypcji dla pojedynczego kanału oprogramowania GANZ CORTROL VMS w edycji Global o 8 lat. (Tylko dla posiadaczy licencji na oprogramowanie GANZ CORTROL VMS w edycji Global).",650,650,"ZAM"]
[null,"Licencje GANZ CORTROL UPGRADE (rozszerzenia)"]
[null,"ZNS-UP1Ch-GL-1Ch ","Migracja pojedynczego kanału z edycji Premier do edycji Global (Tylko dla posiadaczy licencji na oprogramowanie GANZ CORTROL VMS w edycji Global i migrujących kanały z edycji Premier).",280,{"$f":"D79-(D79*E$7)","v":280},"ZAM"]
[null,"ZNS-U-P9/P16-P24 ","Rozszerzenie licencji na oprogramowanie GANZ CORTROL VMS w edycji Premier:  ZNS-Premier9/16 - > ZNS-Premier24",{"v":4300,"d":"4,300"},{"$f":"D80-(D80*E$7)","v":{"v":4300,"d":"4,300"}},"ZAM"]
[null,"Licencje analityczne GANZ CORTROL "]
[null,"ZNS-CVA-Base-1 ","Licencja elektroniczna na moduł analityki obrazu CVA dla oprogramowania GANZ CORTROL VMS. Licencja bazowa: wykrywa ludzi, pojazdy, zwierzęta oraz inne sklasyfikowane rodzaje obiektów. Metadane zawierają klasyfikację obiektów oraz informacje o przemieszczaniu się wykrytych obiektów w scenie. Reguły: Wykrycie obiektu, klasyfikacja obiektu, zliczanie obiektów, wykrycie w strefie, alarmy i wyszukiwanie obiektów w czasie rzeczywistym.",890,{"$f":"D82-(D82*E$7)","v":890},"ZAM"]
[null,"ZNS-CVA-PPE-1","Licencja elektroniczna na moduł analityki obrazu CVA dla oprogramowania GANZ CORTROL VMS. Umożliwia detekcję ubioru ochronnego w postaci kasków budowlanych oraz kamizelek bezpieczeństwa (żółte i pomarańczowne). Metadane zawierają klasyfikację obiektów oraz informacje o przemieszczaniu się wykrytych obiektów w scenie. Reguły: Wykrycie obiektu, klasyfikacja obiektu, wykrycie w strefie, alarmy i wyszukiwanie obiektów w czasie rzeczywistym.\n\n*Wymaga oprogramowania GANZ CORTROL VMS v.1.22.0 oraz nowszych*",{"v":1700,"d":"1,700"},{"v":1700,"d":"1,700"},"ZAM"]
[null,"ZNS-CVA-LPR-D-1","Licencja elektroniczna na moduł LPR dla oprogramowanie GANZ CORTROL VMS. Rozpoznawanie standardowych tablic rejestracyjnych dla prędkości do 80 km/h. Wsparcie dla procesowania CPU oraz GPU. Umożliwia podłączenie 1 kanału wideo do pojedynczego serwera. Możliwość aktywacji wielu licencji jednego typu na jednym serwerze.\n\n*Wymaga oprogramowania GANZ CORTROL LPR v.3.0.0 oraz nowszych*",{"v":3900,"d":"3,900"},{"v":3900,"d":"3,900"},"ZAM"]
[null,"ZNS-CVA-LPR-C-1","Licencja elektroniczna na moduł LPR dla oprogramowanie GANZ CORTROL VMS. Rozpoznawanie standardowych tablic rejestracyjnych dla prędkości do 250 km/h. Zaawansowana algorytm rozróżniający producenta, model, kolor, kierunek poruszania się oraz generujący metadane. Wsparcie dla procesowania GPU. Umożliwia podłączenie 1 kanału wideo do pojedynczego serwera. Możliwość aktywacji wielu licencji jednego typu na jednym serwerze.\n\n*Wymaga oprogramowania GANZ CORTROL LPR v.3.0.0 oraz nowszych*",{"v":7800,"d":"7,800"},{"v":7800,"d":"7,800"},"ZAM"]
[null,"ZNS-CVA-UICC-1","Licencja elektroniczna na moduł LPR dla oprogramowanie GANZ CORTROL VMS. Rozpoznawanie numerów międzynarodowych kontenerów transportowych oraz oznaczeń UIC taboru kolejowego. Wsparcie dla procesowania CPU oraz GPU. Umożliwia podłączenie 1 kanału wideo do pojedynczego serwera. Możliwość aktywacji wielu licencji jednego typu na jednym serwerze.\n\n*Wymaga oprogramowania GANZ CORTROL LPR v.3.0.0 oraz nowszych*",{"v":19000,"d":"19,000"},{"v":19000,"d":"19,000"},"ZAM"]
[null,"ZNS-CVA-FR-1","Licencja elektroniczna na moduł FR dla oprogramowanie GANZ CORTROL VMS. Rozpoznawanie twarzy w kadrze. Wsparcie dla procesowania GPU. Umożliwia podłączenie 1 kanału wideo do pojedynczego serwera. Możliwość aktywacji wielu licencji jednego typu na jednym serwerze.\n\n*Wymaga oprogramowania GANZ CORTROL FR v.3.2.0 oraz nowszych*",{"v":7800,"d":"7,800"},{"v":7800,"d":"7,800"},"ZAM"]
[null,"ZNS-UP-LPR-1","Migracja licencji \"ZNS-LPR-2\" do \"ZNS-CVA-LPR-D-1\" dla pojedynczego kanału. Aby dokonać migracji całego pakietu \"ZNS-LPR-2\" należy zakupić 2 licencje tego typu.",{"v":3200,"d":"3,200"},{"v":3200,"d":"3,200"},"ZAM"]
[null,"GANZ CORTROL CROSS LINK LICENCJE "]
[null,"ZNS-CL-Base-1","Licencja elektroniczna na moduł CrossLink dla oprogramowania GANZ CORTROL VMS - Poziom Basic. Interaktywne zewnętrzne źródła URL (przykładowo - strony WWW). Pakiet umożliwia integrację oraz nagrywanie dla 1 kanału wideo. Możliwość aktywacji wielu kanałów w jednym systemie GANZ CORTROL VMS.\n\n*Wymaga oprogramowania GANZ CORTROL VMS v.1.20.1 oraz nowszych*",{"v":2600,"d":"2,600"},{"$f":"D90-(D90*E$7)","v":{"v":2600,"d":"2,600"}},"ZAM"]
[null,"ZNS-CL-Advance-1","Licencja elektroniczna na moduł CrossLink dla oprogramowania GANZ CORTROL VMS - Poziom Advanced. Interaktywne zewnętrzne aplikacje (przykładowo - sesje RDP). Pakiet umożliwia integrację oraz nagrywanie dla 1 kanału wideo. Możliwość aktywacji wielu kanałów w jednym systemie GANZ CORTROL VMS.\n\n*Wymaga oprogramowania GANZ CORTROL VMS v.1.20.1 oraz nowszych*",{"v":4400,"d":"4,400"},{"$f":"D91-(D91*E$7)","v":{"v":4400,"d":"4,400"}},"ZAM"]
[null,"BLK247 Licencja"]
[null,"ZNS-BLK-UNL ","Licencja elektroniczna na obsługę sterownika urządzeń Leica BLK247 dla oprogramowania GANZ CORTROL VMS. Pakiet umożliwia obsługę wideo oraz zdarzeń z urządzeń BLK247. Możliwość aktywacji wielu kanałów dla pojedynczej licencji w jednym systemie GANZ CORTROL VMS.\n\n*Wymaga oprogramowania GANZ CORTROL VMS v.1.20.1 oraz nowszych*",{"v":6000,"d":"6,000"},{"$f":"D93-(D93*E$7)","v":{"v":6000,"d":"6,000"}},"ZAM"]
[null,"Usługa transferu licencji VCA  (analiza obrazu)"]
[null,"ZNS-VCA-SWAP","Opłata manipulacyjna związana z transferem pojedynczej aktywowanej licencji VCA z jednostki na której wykonywana była pierwotna aktywacja na inną po okresie 12msc od daty pierwotnej aktywacji za pomocą Tokena VCA. Stawka usługi nie podlega rabatom!",300,{"$f":"D95","v":300},"ZAM"]
[]
[null,"Licencje na oprogramowanie firm zewnętrznych (informacja poglądowa)"]
[null,"ZNS-NEDAP ","Licencja elektroniczna na integrację systemu kontroli dostępu NEDAP AEOS z GANZ CORTROL",{"v":16000,"d":"16,000"},{"$f":"D98","v":{"v":16000,"d":"16,000"}},"ZAM"]
[null,"LIC-VISO-ST-IS-CORT ( RACS 5 )","(Informacja poglądowa)\nLicencja elektroniczna dla oprogramowania VISO ST systemu Roger RACS 5 na obsługę połączeń z modułem integracji w GANZ CORTROL VMS. Licencja współpracuje z oprogramowaniem VISO ST. Szczegóły odnośnie licencji oraz konfiguracji dostępne są u producenta oprogramowania.","Informacja tel.","Informacja tel. ","ZAM"]
[]
[null,"USŁUGA WSPARCIA TECHNICZNEGO"]
[null,"Uruchomienie systemu\n GANZ CORTROL (Zdalne)","Usługa uruchomienia i konfiguracji systemu bazującego na aplikacji GANZ CORTROL Premier/Global. Usługa zawiera pakiet 6 godzin połączenia zdalnego w danym dniu + 4 godziny do wykorzystania na modyfikacje konfiguracji w okresie następnych 30 dni. Dalsze wsparcie naliczane będzie według cennika. Nie dotyczy modułów analityki VCA, AI, LPR, FR. Usługa realizowana poprzez dedykowane narzędzie pulpitu zdalnego TeamViewer w wersji CBC. Dla realizacji usługi wymagane jest wypełnienie oraz podpisanie przez zamawiającego oświadczenia o akceptacji zakresu oraz warunków asysty technicznej.",{"v":2800,"d":"2,800"},{"$f":"D102","v":{"v":2800,"d":"2,800"}},"ZAM"]
[null,"Uruchomienie systemu\n GANZ CORTROL (Lokalne)","Usługa uruchomienia i konfiguracji systemu bazującego na aplikacji GANZ CORTROL Premier/Global. Usługa zawiera pakiet 8 godzin wsparcia lokalnego na obiekcie danego dnia (dojazd wliczony w cenę) + 4 godziny do wykorzystania na modyfikacje konfiguracji w okresie następnych 30 dni (zdalny pulpit). Dalsze wsparcie naliczane będzie według cennika. Nie dotyczy modułów analityki VCA, AI, LPR, FR. Usługa realizowana poprzez dedykowane narzędzie pulpitu zdalnego TeamViewer w wersji CBC. Dla realizacji usługi wymagane jest wypełnienie oraz podpisanie przez zamawiającego oświadczenia o akceptacji zakresu oraz warunków asysty technicznej.",{"v":3800,"d":"3,800"},{"$f":"D103","v":{"v":3800,"d":"3,800"}},"ZAM"]
[null,"Zdalne wsparcie techniczne\n (opłata za każdą rozpoczętą godzinę)","Usługa zdalnego wsparcia dla produktów: CORTROL oraz VCA - opłata za każdą rozpoczętą godzinę dla klientów",300,{"$f":"D104","v":300},"ZAM"]
[null,"Wsparcie techniczne na obiekcie \n (opłata za każdą rozpoczętą godzinę)","Usługa lokalnego wsparcia na obiekcie dla produktów: CORTROL oraz VCA - opłata za każdą rozpoczętą godzinę dla klientów. \nWymagane podpisanie oświadczenia o spełnieniu warunków przygotowania systemu dla asysty lokalnej.",300,{"$f":"D105","v":300},"ZAM"]
[null,"Dojazd do obiektu","Dojazd specjalisty technicznego na obiekt",350,{"$f":"D106","v":350},"ZAM"]
[]
[null,"* Klientom, którzy odbyli szkolenie z zakresu rozwiązań CORTROL i/lub VCA przysługuje pakiet 5h zdalnego wsparcia technicznego."]
[null,"Zarejestruj się na bezpłatne szkolenie: szkolenia@cbcpoland.pl"]
[null,"Ceny są cenami detalicznymi PLN netto, do których należy doliczyć 23% VAT. UWAGA:  stawki usług nie podlegają rabatom!"]

{"sheet":"GANZ | Rozwiązania CCTV","index":2,"n_rows":157,"n_cols":8,"rows_kept":157,"merged":[[2,1,3,2],[2,3,4,3],[2,4,3,5],[9,1,9,6],[11,1,11,6],[14,1,14,6],[23,1,23,6],[32,1,32,6],[63,1,63,6],[67,1,67,6],[82,1,82,6],[85,1,85,6],[87,1,87,6],[97,1,97,6],[99,1,99,6],[105,1,105,6],[106,3,110,3],[113,3,117,3],[118,3,121,3],[122,3,124,3],[125,3,126,3],[127,3,131,3],[132,3,134,3],[135,3,136,3],[137,1,137,6],[138,3,142,3],[145,3,149,3],[151,1,151,6],[154,1,154,6]]}
[]
[]
[null,{"$error":"#VALUE!"},null,"CENNIK PRODUKTÓW CCTV",{"$error":"#VALUE!"}]
[]
[]
[{"$nulls":4},"RABAT: ",{"v":0,"d":"0%"}]
[]
[null,"Model (kod) towaru",null,"Opis","Cena PLN detal","Cena PLN z rabatem","Dostępność "]
[]
[null,"KAMERY IP"]
[]
[null,"KOMPAKTOWE"]
[null,"ZN8-80C4D",{"$error":"#VALUE!"},"Kamera IP GENSTAR kompaktowa 4MP (50FPS) | 1/2.8\" CMOS, 3 strumienie H.265/H.264/MJPEG, WDR, mechaniczny filtr IR-cut, Alarm 1x IN / 1x OUT, Audio 1x IN / 1x OUT, RS485, wyjście CVBS, wbudowany mikrofon, obsługa kart SD do 256GB, 3D-DNR, HLC, BLC, DC12V/ AC24V/ PoE(802.3af). Kamera bez obiektywu. Obiektywy do nabycia w CBC Poland. Wbudowane funkcje analityki obrazu GenSTAR IVS 2.0 (Analityka AI oparta na wzorcach). Kamera zgodna z NDAA",{"v":1600,"d":"1,600"},{"$f":"E13-(E13*F$6)","v":{"v":1600,"d":"1,600 "}},"MAG "]
[]
[null,"KOPUŁKOWE TYPU TURRET"]
[null,"ZN8-51E5F28NT",{"$error":"#VALUE!"},"Kamera IP GENSTAR Turret 5MP (20FPS) | 2.8mm Fixed | 1/3\" CMOS, 2 strumienie H.265/H.264/MJPEG, dWDR, mechaniczny filtr IR-cut, IR LED do 30 metrów, white LED 30m, wbudowany mikrofon, ONVIF S, obsługa kart SD do 256GB, 3D-DNR, HLC, BLC, ROI, DEFOG, tryb korytarzowy, IP66, DC12V / PoE(802.3af). Wbudowana analityka obrazu z funkcją detekcji człowieka. Kamera zgodna z NDAA. (2 lata gwarancji) ",600,{"$f":"E16-(E16*F$6)","v":{"v":600,"d":"600 "}},"MAG "]
[null,"ZA8-CBK646M",{"$error":"#VALUE!"},"Puszka natynkowa do kamer GENSTAR ZN8-51E5F28NT",190,{"$f":"E17-(E17*F$6)","v":{"v":190,"d":"190 "}},"MAG "]
[null,"ZN8-71E5M213D-M",{"$error":"#VALUE!"},"Kamera IP GENSTAR kopułkowa 5MP (25/30FPS) | 2.7-13.5mm MFZ | 1/2.7\" CMOS, 3 strumienie H.265/H.264/MJPEG, True WDR, mechaniczny filtr IR-cut, SMART-IR do 40 metrów, Alarm 1x IN / 1x OUT, Audio 1x IN / 1x OUT, mikrofon, ONVIF S, obsługa kart SD do 256GB, 3D-DNR, HLC, BLC, tryb korytarzowy 9:16, ROI, Defog. Obudowa metal+plastyk, IP66, DC12V / PoE (802.3af). Wbudowane funkcje analityki obrazu GenSTAR IVS 2.0 (Analityka AI oparta na wzorcach).Kamera zgodna z NDAA.",{"v":1100,"d":"1,100"},{"$f":"E18-(E18*F$6)","v":{"v":1100,"d":"1,100 "}},"MAG ",{"$error":"#VALUE!"}]
[null,"ZA8-CBK645D",{"$error":"#VALUE!"},"Puszka natynkowa do kamery GANZ ZN8-71E5M213D-M",170,{"$f":"E19-(E19*F$6)","v":{"v":170,"d":"170 "}},"MAG"]
[null,"ZA8-CBK501",{"$error":"#VALUE!"},"Wysięgnik naścienny do kamery GENSTAR ZN8-71E5M213D-M",150,{"v":150,"d":"150 "},"ZAM"]
[null,"ZA8-CBK102",{"$error":"#VALUE!"},"Mocowanie narożne do wysięgnika ZA8-CBK501",130,{"v":130,"d":"130 "},"ZAM"]
[null,"ZA8-CBK101",{"$error":"#VALUE!"},"Adapter do instalacji na słupie do wysięgnika ZA8-CBK501, zakres montażu opasek na uchwytach 130-152mm",115,{"v":115,"d":"115 "},"ZAM"]
[]
[null,"KOPUŁKOWE"]
[null,"ZN8-80DT5M213DL",{"$error":"#VALUE!"},"Kamera IP GENSTAR kopułkowa 5MP (25FPS) | 2.7-13.5mm MFZ | 1/2.8\" CMOS, 3 strumienie H.265/H.264/MJPEG, WDR>96dB, mechaniczny filtr IR-cut, SMART-IR do 30 metrów, Alarm 1x IN / 1x OUT, Audio 1x IN / 1x OUT, ONVIF S, obsługa kart SD do 256GB, 3D-DNR, HLC, BLC, tryb korytarzowy 9:16, ROI, Defog. Obudowa metalowa wandaloodporna IK10, IP67, DC12V / PoE (802.3af). Wbudowane funkcje analityki obrazu GenSTAR IVS 2.0 (Analityka AI oparta na wzorcach). Kamera zgodna z NDAA.",{"v":1300,"d":"1,300"},{"$f":"E25-(E25*F$6)","v":{"v":1300,"d":"1,300 "}},"MAG "]
[null,"ZN8-80DT8M213DL",{"$error":"#VALUE!"},"Kamera IP GENSTAR kopułkowa 8MP (25FPS) | 2.7-13.5mm MFZ | 1/2.8\" CMOS, 3 strumienie H.265/H.264/MJPEG, WDR>96dB, mechaniczny filtr IR-cut, SMART-IR do 30 metrów, Alarm 1x IN / 1x OUT, Audio 1x IN / 1x OUT, ONVIF S, obsługa kart SD do 256GB, 3D-DNR, HLC, BLC, tryb korytarzowy 9:16, ROI, Defog. Obudowa metalowa wandaloodporna IK10, IP67, DC12V / PoE (802.3af). Wbudowane funkcje analityki obrazu GenSTAR IVS 2.0 (Analityka AI oparta na wzorcach). Kamera zgodna z NDAA.",{"v":1800,"d":"1,800"},{"v":1800,"d":"1,800 "},"MAG "]
[null,"ZA8-JBMP-2",{"$error":"#VALUE!"},"Puszka natynkowa do kamer GENSTAR kopułowych wandaloodpornych (⌀120mm)",220,{"$f":"E27-(E27*F$6)","v":{"v":220,"d":"220 "}},"MAG "]
[null,"ZN8-71DT5F28NL",{"$error":"#VALUE!"},"Kamera IP GENSTAR kopułkowa 5MP (25/30FPS) | 2.8mm Fixed | 1/2.7\" CMOS, 3 strumienie H.265/H.264/MJPEG, True WDR, mechaniczny filtr IR-cut, SMART-IR do 30 metrów, ONVIF S, obsługa kart SD do 256GB, 3D-DNR, HLC, BLC, tryb korytarzowy 9:16, ROI, Defog. Obudowa metalowa wandaloodporna IK10, IP67, DC12V / PoE (802.3af). Wbudowane funkcje analityki obrazu GenSTAR IVS 2.0 (Analityka AI oparta na wzorcach). Kamera zgodna z NDAA.",850,{"v":850,"d":"850 "},"MAG ",{"$error":"#VALUE!"}]
[null,"ZA8-CBK656",{"$error":"#VALUE!"},"Adapter natynkowy do kamer GANZ ZN8-71DT5F28NL. (⌀110mm)",120,{"$f":"E29-(E29*F$6)","v":{"v":120,"d":"120 "}},"MAG "]
[null,"ZA8-CBK627B",{"$error":"#VALUE!"},"Adapter do instalacji na słupie puszki ZA8-JBMP, zakres montażu opasek na uchwytach 130-152mm",180,{"v":180,"d":"180 "},"MAG "]
[]
[]
[null,"BULLET"]
[null,"ZNP-MB5F28D-A",{"$error":"#VALUE!"},"Kamera IP PIXELPRO bullet 5MP (30fps) | 2.8mm F-IRIS | 1/2.8\" CMOS, 3 strumienie (H.265/H.264/MJPEG), technologia \"VBR+\", WDR>120dB, mechaniczny filtr IR-cut; SMART-IR do 30 metrów, ONVIF S, 3D-DNR, HLC, BLC, Auto-ROI, Defog. Obudowa metalowa, IP66, 12VDC/PoE(802.11af). Wbudowane funkcje analityki obrazu PixelPRO AI z możliwością aktywacji do 2 licencji AI (ograniczenie do procesowania 1 funkcji AI w czasie rzeczywistym).",{"v":1300,"d":"1,300"},{"$f":"E34-(E34*F$6)","v":{"v":1300,"d":"1,300 "}},"MAG"]
[null,"ZNP-B5M212DP-A",{"$error":"#VALUE!"},"Kamera IP PIXELPRO bullet 5MP (30fps) | 2.8-12mm MFZ P-IRIS | 1/2.8\" CMOS, 3 strumienie (H.265/H.264/MJPEG), technologia \"VBR+\", WDR>120dB, mechaniczny filtr IR-cut; SMART-IR do 50 metrów, Alarm 1x IN / 1x OUT, Audio 1x IN / 1x OUT, ONVIF S, obsługa kart SD do 128GB, 3D-DNR, HLC, BLC, Auto-ROI, Defog. Obudowa metalowa, IP67, IK09, 12VDC/24VAC/PoE(802.11af), DC12V OUT. Wbudowane funkcje analityki obrazu PixelPRO AI z możliwością aktywacji do 2 licencji AI (ograniczenie do procesowania 1 funkcji AI w czasie rzeczywistym).",{"v":2100,"d":"2,100"},{"v":2100,"d":"2,100 "},"MAG"]
[null,"ZNP-B5M550D-A",{"$error":"#VALUE!"},"Kamera IP PIXELPRO bullet 5MP (30fps) | 5-50mm MFZ DC-IRIS | 1/2.8\" CMOS, 3 strumienie (H.265/H.264/MJPEG), technologia \"VBR+\". WDR>120dB, mechaniczny filtr IR-cut; SMART-IR do 80 metrów, Alarm 1x IN / 1x OUT, Audio 1x IN / 1x OUT, Onvif profil S, obsługa kart SD do 128GB, 3D-DNR, HLC, BLC, Auto-ROI, Defog. Sprzętowy Watchdog. Obudowa metalowa, IP67, IK09, DC12V / AC24V / PoE(802.11af), DC12V OUT. Wbudowane funkcje analityki obrazu PixelPRO AI z możliwością aktywacji do 2 licencji AI  (ograniczenie do procesowania 1 funkcji AI w czasie rzeczywistym).",{"v":2900,"d":"2,900"},{"v":2900,"d":"2,900 "},"MAG"]
[null,"LCA-JB-S",null,"Puszka natynkowa do kamer GANZ ZNP-MB5F28D(-A)",120,{"v":120,"d":"120 "},"MAG"]
[null,"LCA-JB",null,"Puszka natynkowa do kamer GANZ ZNP-B5M212DP(-A) oraz ZNP-B5M550D(-A)",140,{"v":140,"d":"140 "},"MAG"]
[null,"LCA-PM",null,"Adapter do instalacji na słupie puszki LCA-JB oraz LCA-JB-S, zakres montażu opasek na uchwytach 103-127mm",140,{"v":140,"d":"140 "},"MAG"]
[null,"ZA8-JBMP-2",{"$error":"#VALUE!"},"Puszka natynkowa do kamer typu bullet z serii PixelPRO (ZN / ZNC / ZNP)",220,{"v":220,"d":"220 "},"MAG"]
[null,"ZA8-CBK627B",null,"Adapter do instalacji na słupie puszki ZA8-JBMP-2",180,{"v":180,"d":"180 "},"MAG"]
[null,"ZN8-51MB5F28NT",{"$error":"#VALUE!"},"Kamera IP GENSTAR bullet 5MP (20FPS) | 2.8mm Fixed | 1/3\" CMOS, 2 strumienie H.265/H.264/MJPEG, dWDR, mechaniczny filtr IR-cut, IR LED do 30 metrów, white LED 30m, wbudowany mikrofon i głośnik, ONVIF S, obsługa kart SD do 256GB, 3D-DNR, HLC, BLC, ROI, DEFOG, tryb korytarzowy, IP66, DC12V / PoE(802.3af). Wbudowana analityka obrazu z funkcją detekcji człowieka. Kamery zgodne z NDAA. (2 lata gwarancji) ",600,{"v":600,"d":"600 "},"MAG"]
[null,"LCA-JB-S",null,"Puszka natynkowa do kamer GANZ ZN8-51MB5F28NT",120,{"v":120,"d":"120 "},"MAG"]
[null,"ZN8-81MB4F28N",{"$error":"#VALUE!"},"Kamera IP GENSTAR bullet 4MP (25FPS) | 2.8mm Fixed | 1/2.7\" CMOS, 3 strumienie H.265/H.264/MJPEG, d-WDR, mechaniczny filtr IR-cut, SMART-IR do 30 metrów, ONVIF S, obsługa kart SD do 256GB, 3D-DNR, HLC, BLC, tryb korytarzowy 9:16, ROI, Defog. Obudowa metalowa IP67, DC12V / PoE (802.3af). Wbudowane funkcje analityki obrazu GenSTAR IVS 2.0 (Analityka AI oparta na wzorcach). Kamery zgodne z NDAA.",850,{"v":850,"d":"850 "},"MAG"]
[null,"ZN8-81MB4F4N",{"$error":"#VALUE!"},"Kamera IP GENSTAR bullet 4MP (25FPS) | 4mm Fixed | 1/2.7\" CMOS, 3 strumienie H.265/H.264/MJPEG, d-WDR, mechaniczny filtr IR-cut, SMART-IR do 35 metrów, ONVIF S, obsługa kart SD do 256GB, 3D-DNR, HLC, BLC, tryb korytarzowy 9:16, ROI, Defog. Obudowa metalowa IP67, DC12V / PoE (802.3af). Wbudowane funkcje analityki obrazu GenSTAR IVS 2.0 (Analityka AI oparta na wzorcach). Kamera zgodna z NDAA.",850,{"v":850,"d":"850 "},"MAG"]
[null,"ZA8-CBK656A",null,"Puszka natynkowa do kamer GANZ ZN8-81MB4F28N oraz ZN8-81MB4F4N.",170,{"v":170,"d":"170 "},"MAG"]
[null,"ZN8-80B5M213D",{"$error":"#VALUE!"},"Kamera IP GENSTAR bullet 5MP (25FPS) | 2.7-13.5mm MFZ | 1/2.8\" CMOS, 3 strumienie H.265/H.264/MJPEG, WDR>96dB, mechaniczny filtr IR-cut, SMART-IR do 50 metrów, Alarm 1x IN / 1x OUT, Audio 1x IN / 1x OUT, ONVIF S, obsługa kart SD do 256GB, 3D-DNR, HLC, BLC, tryb korytarzowy 9:16, ROI, Defog. Obudowa metalowa IP67, DC12V / PoE (802.3af). Wbudowane funkcje analityki obrazu GenSTAR IVS 2.0 (Analityka AI oparta na wzorcach). Kamera zgodna z NDAA",{"v":1300,"d":"1,300"},{"v":1300,"d":"1,300 "},"MAG"]
[null,"ZN8-71B5M213D",{"$error":"#VALUE!"},"Kamera IP GENSTAR bullet 5MP (25/30FPS) | 2.7-13.5mm MFZ | 1/2.7\" CMOS, 3 strumienie H.265/H.264/MJPEG, True WDR, mechaniczny filtr IR-cut, SMART-IR do 40 metrów, Alarm 1x IN / 1x OUT, Audio 1x IN / 1x OUT, ONVIF S, obsługa kart SD do 256GB, 3D-DNR, HLC, BLC, ROI, Defog. Obudowa metal, IP67, DC12V / PoE (802.3af). Wbudowane funkcje analityki obrazu GenSTAR IVS 2.0 (Analityka AI oparta na wzorcach).Kamera zgodna z NDAA.",{"v":1100,"d":"1,100"},{"v":1100,"d":"1,100 "},"MAG",{"$error":"#VALUE!"}]
[null,"ZN8-81B4M213N",{"$error":"#VALUE!"},"Kamera IP GENSTAR bullet 4MP (25FPS) | 2.7-13.5mm MFZ | 1/2.7\" CMOS, 3 strumienie H.265/H.264/MJPEG, d-WDR, mechaniczny filtr IR-cut, SMART-IR do 40 metrów, ONVIF S, obsługa kart SD do 256GB, 3D-DNR, HLC, BLC, tryb korytarzowy 9:16, ROI, Defog. Obudowa metalowa IP67, DC12V / PoE (802.3af). Wbudowane funkcje analityki obrazu GenSTAR IVS 2.0 (Analityka AI oparta na wzorcach). Kamera zgodna z NDAA.",{"v":1000,"d":"1,000"},{"v":1000,"d":"1,000 "},"MAG","Do wyczerpania zapasów "]
[null,"ZN8-80B8M213D",{"$error":"#VALUE!"},"Kamera IP GENSTAR bullet 8MP (25FPS) | 2.7-13.5mm MFZ | 1/2.8\" CMOS, 3 strumienie H.265/H.264/MJPEG, WDR>96dB, mechaniczny filtr IR-cut, SMART-IR do 40 metrów, Alarm 1x IN / 1x OUT, Audio 1x IN / 1x OUT, ONVIF S, obsługa kart SD do 256GB, 3D-DNR, HLC, BLC, tryb korytarzowy 9:16, ROI, Defog. Obudowa metalowa IP67, DC12V / PoE (802.3af). Wbudowane funkcje analityki obrazu GenSTAR IVS 2.0 (Analityka AI oparta na wzorcach). Kamera zgodna z NDAA.",{"v":1800,"d":"1,800"},{"v":1800,"d":"1,800 "},"MAG"]
[null,"ZA8-JBMP-2",{"$error":"#VALUE!"},"Puszka natynkowa do kamer GENSTAR w obudowie typu bullet ",220,{"v":220,"d":"220 "},"MAG"]
[null,"ZA8-CBK627B",{"$error":"#VALUE!"},"Adapter do instalacji na słupie puszki ZA8-JBMP, zakres montażu opasek na uchwytach 130-152mm",180,{"v":180,"d":"180 "},"MAG"]
[null,"ZN8-80BT4M213DL",{"$error":"#VALUE!"},"Kamera IP GENSTAR bullet 4MP (25/30FPS) | 3.6-11mm MFZ | 1/1.8\" CMOS, 3 strumienie H.265 / H.264 / MJPEG / WDR>96dB, mechaniczny filtr IR-cut, SMART-IR do 60 metrów, Alarm 1x IN / 1x OUT, Audio 1x IN / 1x OUT, ONVIF, obsługa kart SD do 256GB, 2D/3D-DNR, HLC, BLC, DEFOG, True WDR /  tryb korytarzowy 9:16, ROI, Defog. Obudowa metalowa wandaloodporna IK10, IP67, DC12V / PoE (802.3af). Wbudowane funkcje analityki obrazu GenSTAR IVS 2.0 (Analityka AI oparta na wzorcach). Kamera zgodna z NDAA.",{"v":2100,"d":"2,100"},{"v":2100,"d":"2,100 "},"MAG",{"$error":"#VALUE!"}]
[null,"ZA8-JBMP-2",{"$error":"#VALUE!"},"Puszka natynkowa do kamer GENSTAR w obudowie typu bullet ",220,{"v":220,"d":"220 "},"MAG"]
[null,"ZA8-CBK627B",{"$error":"#VALUE!"},"Adapter do instalacji na słupie puszki ZA8-JBMP, zakres montażu opasek na uchwytach 130-152mm",180,{"v":180,"d":"180 "},"MAG"]
[null,"ZN8-80B4F4D-J4",{"$error":"#VALUE!"},"Kamera IP GENSTAR bullet 4MP (30FPS) | 4mm MFZ | 1/1.8\" CMOS, 3 strumienie H.265/H.264/MJPEG, WDR>96dB, mechaniczny filtr IR-cut, SMART-IR do 35 metrów, Alarm 1x IN / 1x OUT, Audio 1x IN / 1x OUT, wbudowany głośnik oraz mikrofon, ONVIF S, obsługa kart SD do 256GB, 3D-DNR, HLC, BLC, tryb korytarzowy 9:16, ROI, Defog. Obudowa metalowa IP66, DC12V / PoE (802.3af). Wbudowane funkcje analityki obrazu GenSTAR IVS 2.0 (Analityka AI oparta na wzorcach). Wbudowany oświetlacz światła białego (barwa ciepła) aktywowany w przypadku wykrycia obiektu alarmowego. Kamera zgodna z NDAA.",{"v":1700,"d":"1,700"},{"v":1700,"d":"1,700 "},"MAG"]
[null,"ZNT8-25E0F36-B",{"$error":"#VALUE!"},"Kamera IP GENSTAR Turret 2-torowa | Termowizja: obiektyw 3.5mm; 256x192 (piksel: 12μm), 4CIF (30FPS) | Tor optyczny D/N: 4MP (30FPS), obiektyw 4mm, WDR>120dB | 3 strumienie H.265/H.264/MJPEG | Niechłodzony detektor mikrobolometryczny (tlenek wanadu), Czułość NETD: <50mK @ F1.0 (reakcja temp. 30ms), Zakres widma: 8-14μm | Pomiar: -40°C ... 150°C (+/-2°C) | 16 stref | 17 trybów koloru.\nSMART-IR do 35 metrów, Alarm 1x IN / 1x OUT, Audio 1x IN / 1x OUT, wbudowany głośnik i mikrofon, HDMI OUT, ONVIF S, obsługa kart SD do 256GB, 3D-DNR, HLC, BLC, ROI, Defog. Obudowa metalowa IP66, DC12V / DC24V / PoE (802.3af). Wbudowane funkcje analityki obrazu GenSTAR IVS 2.0 (Analityka AI oparta na wzorcach).\nOdległość rozpoznawania ludzi (1,8×0,5m) – 35m, Odległość rozpoznania pojazdu (4×1,5m) – 80m, Odległość wykrywania ognia (1m×1m) – 60m, Odległość pomiaru temperatury obiektu (1m×1m) – 40m. Kamera zgodna z NDAA.",{"v":7100,"d":"7,100"},{"v":7100,"d":"7,100 "},"MAG"]
[null,"ZNT8-25BQVF7-B",{"$error":"#VALUE!"},"Kamera IP GENSTAR bullet 2-torowa | Termowizja: obiektyw 7mm; 256x192 (piksel: 12μm), 4CIF (30FPS) | Tor optyczny D/N: 4MP (30FPS), obiektyw 8mm, WDR>120dB | 3 strumienie H.265/H.264/MJPEG | Niechłodzony detektor mikrobolometryczny (tlenek wanadu), Czułość NETD: <50mK @ F1.0 (reakcja temp. 30ms), Zakres widma: 8-14μm | Pomiar: -40°C ... 150°C (+/-2°C) | 16 stref | 17 trybów koloru.\nSMART-IR do 50 metrów, Alarm 2x IN / 2x OUT, Audio 1x IN / 1x OUT, wbudowany głośnik, ONVIF S, obsługa kart SD do 256GB, 3D-DNR, HLC, BLC, ROI, Defog. Obudowa metalowa IP66, DC12V / AC24V / PoE (802.3af). Wbudowane funkcje analityki obrazu GenSTAR IVS 2.0 (Analityka AI oparta na wzorcach).\nOdległość rozpoznawania ludzi (1,8×0,5m) – 70m, Odległość rozpoznania pojazdu (4×1,5m) – 120m, Odległość wykrywania ognia obiektu (1m×1m) – 100m, Odległość pomiaru temperatury obiektu (1m×1m) – 60m. Kamera zgodna z NDAA.",{"v":7500,"d":"7,500"},{"v":7500,"d":"7,500 "},"MAG"]
[null,"ZA8-CBK645D",{"$error":"#VALUE!"},"Puszka natynkowa do kamery GANZ ZNT8-25E0F36-B",170,{"v":170,"d":"170 "},"MAG"]
[null,"ZA8-JBMP-2",{"$error":"#VALUE!"},"Puszka natynkowa do kamer GENSTAR w obudowie typu bullet ",220,{"v":220,"d":"220 "},"MAG"]
[null,"ZA8-CBK627B",{"$error":"#VALUE!"},"Adapter do instalacji na słupie puszki ZA8-JBMP, zakres montażu opasek na uchwytach 130-152mm",180,{"v":180,"d":"180 "},"MAG"]
[]
[]
[null,"FISHEYE  (rybie oko)"]
[null,"ZN8-80F12F18NL",{"$error":"#VALUE!"},"Kamera IP GENSTAR fisheye 12MP (25fps) | obiektyw 1.8mm | 1/1.7\" CMOS, 2 strumienie (H.265/H.264/MJPEG). d-WDR, mechaniczny filtr IR-cut; SMART-IR do 15 metrów; Alarm 1x IN / 1x OUT, Audio 1x IN / 1x OUT; Wbudowany mikrofon; ONVIF S, obsługa kart SD do 1TB, 3D-DNR, HLC, BLC, ROI, Defog, sprzętowy dewraping obrazu, obudowa metalowa, IP66, 12VDC/PoE (802.3af). Wbudowane funkcje analityki obrazu GenSTAR IVS 2.0 bazujące na AI.  Kamera zgodna z NDAA.",{"v":3000,"d":"3,000"},{"$f":"E65-(E65*F$6)","v":{"v":3000,"d":"3,000 "}},"MAG",{"$error":"#VALUE!"}]
[null,"ZA8-CBK645E",{"$error":"#VALUE!"},"Puszka natynkowa do kamery GENSTAR Fisheye ",170,{"$f":"E66-(E66*F$6)","v":{"v":170,"d":"170 "}},"ZAM",{"$error":"#VALUE!"}]
[]
[null,"PTZ"]
[null,"ZN8-P4X37DL ",{"$error":"#VALUE!"},"Kamera IP GENSTAR PTZ 4MP (25/30fps) | 6.8 - 251mm  (37x) | 1/1.8\" CMOS, 3 strumienie (H.265/H.264/MJPEG). Z wycieraczką. WDR>120dB,mechaniczny filtr IR-cut, SMART-IR do 400 metrów, czułość: dzień 0.01 lux/noc 0 lux IR LED wł., Alarm 7x IN / 2x OUT, Audio 1x IN / 1x OUT, wyjście BNC, ONVIF S, obsługa kart microSD do 1TB, 3D-DNR, HLC, BLC, ROI, Defog,  pozycjonowanie 3D PTZ, wyświetlanie koordynatów PTZ w OSD, Obudowa metalowa, IP66, TVS4000V 24VAC/2.5A/HI-PoE. Wysoka prędkość obrotu 300°/s  Zasiłacz 36VDC (Hi-PoE++) oraz uchwyt naścienny w komplecie. Wbudowane funkcje analityki obrazu GenSTAR IVS + Auto-Tracking. RS-485. Anti-shake. Kamera zgodna z NDAA.",{"v":9500,"d":"9,500"},{"$f":"E69-(E69*F$6)","v":{"v":9500,"d":"9,500 "}},"ZAM",{"$error":"#VALUE!"}]
[null,"ZA8-CBK348",{"$error":"#VALUE!"},"Wysięgnik sufitowy do kamer GENSTAR PTZ ZN8-P4X37DL",150,{"v":150,"d":"150 "},"MAG"]
[null,"ZA8-CBK605",{"$error":"#VALUE!"},"Mocowania narożne do adaptera ZA8-CBK349 (fabrycznie - w komplecie z kamerą)",440,{"v":440,"d":"440 "},"MAG"]
[null,"ZA8-CBK604B",{"$error":"#VALUE!"},"Obejma do mocowania na słupie dla adaptera ZA8-CBK349 (w zestawie), zakres montażu opasek na uchwytach 46.3-205mm",570,{"v":570,"d":"570 "},"MAG"]
[null,"ZN8-MP5X5DL-J4 ",{"$error":"#VALUE!"},"Kamera IP GENSTAR PTZ 5MP (25/30fps) | 2.7-13.5mm (5x) | 1/2.7\" CMOS, 3 strumienie (H.265/H.264/MJPEG). WDR>120dB, mechaniczny filtr IR-cut, SMART-IR do 200 metrów, czułość: dzień 0.0001 lux/noc 0 lux IR LED 50m wł., Alarm 7x IN / 2x OUT, Audio 1x IN / 1x OUT,  ONVIF S, obsługa kart microSD do 256GB, 3D-DNR, HLC, BLC, ROI, Defog, pozycjonowanie 3D PTZ, wyświetlanie koordynatów PTZ w OSD, Obudowa metal+plastyk, IP66, TVS4000V DC12V/POE+. Zasiłacz 12VDC (PoE+) oraz uchwyt naścienny/sufitowy w komplecie. Wbudowane funkcje analityki obrazu GenSTAR IVS + Auto-Tracking. Wbudowane czerwone i niebieskie światło ostrzegawcze, ostrzeżenie dźwiękowo-świetlne. Anti-shake, mikrofon+głośnik. Kamera zgodna z NDAA.",{"v":1800,"d":"1,800"},{"$f":"E73-(E73*F$6)","v":{"v":1800,"d":"1,800 "}},"ZAM",{"$error":"#VALUE!"}]
[null,"ZA8-CBK102",{"$error":"#VALUE!"},"Mocowanie narożne do wysięgnika ZA8-CBK501",130,{"$f":"E74-(E74*F$6)","v":{"v":130,"d":"130 "}},"ZAM"]
[null,"ZA8-CBK101",{"$error":"#VALUE!"},"Adapter do instalacji na słupie do wysięgnika ZA8-CBK501, zakres montażu opasek na uchwytach 130-152mm",115,{"v":115,"d":"115 "},"ZAM"]
[null,"ZN8-P5X12DL",{"$error":"#VALUE!"},"Kamera IP GENSTAR mini-PTZ 5MP (30fps) | 4.7-56.4mm (12x) | 1/3\" CMOS, 3 strumienie (H.265/H.264/MJPEG), WDR>120dB, mechaniczny filtr IR-cut, SMART-IR do 100 metrów, czułość: dzień 0.01 lux/noc 0 lux IR LED wł., Alarm 2x IN / 1x OUT, Audio 1x IN / 1x OUT, ONVIF S, obsługa kart microSD do 128GB, 3D-DNR, HLC, BLC, ROI, Defog, 400 preset'ów, pozycjonowanie 3D PTZ, wyświetlanie koordynatów PTZ w OSD, Obudowa metalowa, IP66, TVS4000V 12VDC/2.5A / PoE+ (802.3at). Zasilacz 12VDC oraz uchwyt naścienny w komplecie. Wbudowane funkcje analityki obrazu GenSTAR IVS + Auto-Tracking.",{"v":4000,"d":"4,000"},{"v":4000,"d":"4,000 "},"MAG"]
[null,"ZA8-CBK402",{"$error":"#VALUE!"},"Wysięgnik sufitowy do kamer GENSTAR mini PTZ ",180,{"v":180,"d":"180 "},"ZAM"]
[null,"ZA8-CBK501",{"$error":"#VALUE!"},"Wysięgnik naścienny do kamer GENSTAR mini-PTZ (fabrycznie - w komplecie z kamerą) ",150,{"v":150,"d":"150 "},"ZAM"]
[null,"ZA8-CBK401",{"$error":"#VALUE!"},"Uchwyt sufitowy do kamer GENSTAR mini-PTZ",90,{"v":90,"d":"90 "},"ZAM"]
[null,"ZA8-CBK102",{"$error":"#VALUE!"},"Mocowanie narożne do wysięgnika ZA8-CBK501",130,{"v":130,"d":"130 "},"ZAM"]
[null,"ZA8-CBK101",{"$error":"#VALUE!"},"Adapter do instalacji na słupie do wysięgnika ZA8-CBK501, zakres montażu opasek na uchwytach 130-152mm",115,{"v":115,"d":"115 "},"ZAM"]
[]
[null,"INNE"]
[null,"ZN8-81V2F37D",{"$error":"#VALUE!"},"Kamera IP GENSTAR miniaturowa 2MP (30fps) | 3.7mm PINHOLE | 1/2.8\" CMOS, technologia STARVIS, 3 strumienie (H.265/H.264/MJPEG), WDR>120dB, mechaniczny filtr IR-cut; czułość: dzień 0.01 lux; Alarm 2x IN / 1x OUT, Audio 1x IN / 1x OUT; ONVIF S, obsługa kart SD do 256GB, 3D-DNR, HLC, BLC, tryb korytarzowy 9:16, DIS, ROI, Defog, obudowa metalowa, 12VDC. Kamera zgodna z NDAA.",950,{"$f":"E84-(E84*F$6)","v":{"v":950,"d":"950 "}},"MAG"]
[]
[null,"REJESTRATORY CYFROWE"]
[]
[null,"GENSTAR  -  rejestratory sieciowe NVR"]
[null,"NR8-3804H1-III ",{"$error":"#VALUE!"},"Rejestrator IP 4ch, 12MP @ 30FPS, H.264/H.265, 1x HDD 12TB, 1x VGA / 1x HDMI do 4K (2 zależne wyjścia), P2P/Chmura, 2x LAN 100Mbps, 2x USB 2.0, Alarm 4x IN / 1x OUT, Audio 1x IN / 1x OUT, obudowa Smart 1U, Zasilanie DC12V (zasilacz w komplecie). Obsługa funkcji analityki obrazu GenSTAR IVS z kamer ZN8 GenSTAR. Rejestrator zgodny z NDAA.",{"v":1200,"d":"1,200"},{"$f":"E89-(E89*F$6)","v":{"v":1200,"d":"1,200 "}},"MAG",{"$error":"#VALUE!"}]
[null,"NR8-3808H1-III ",{"$error":"#VALUE!"},"Rejestrator IP 8ch, 12MP @ 30FPS, H.264/H.265, 1x HDD 12TB, 1x VGA / 1x HDMI do 4K (2 zależne wyjścia), P2P/Chmura, 2x LAN 100Mbps, 2x USB 2.0, Alarm 8x IN / 1x OUT, Audio 1x IN / 1x OUT, obudowa Smart 1U, Zasilanie DC12V (zasilacz w komplecie). Obsługa funkcji analityki obrazu GenSTAR IVS z kamer ZN8 GenSTAR. Rejestrator zgodny z NDAA.",{"v":1400,"d":"1,400"},{"v":1400,"d":"1,400 "},"MAG",{"$error":"#VALUE!"}]
[null,"NR8-3816H2-III ",{"$error":"#VALUE!"},"Rejestrator IP 16ch, 12MP @ 30FPS, H.264/H.265, 2x HDD 12TB, 1x VGA / 1x HDMI do 4K (2 zależne wyjścia), P2P/Chmura, 2x LAN 100Mbps, 2x USB 2.0, Alarm 8x IN / 1x OUT, Audio 1x IN / 1x OUT, obudowa Smart 1U, Zasilanie DC12V (zasilacz w komplecie). Obsługa funkcji analityki obrazu GenSTAR IVS z kamer ZN8 GenSTAR. Rejestrator zgodny z NDAA.",{"v":1600,"d":"1,600"},{"v":1600,"d":"1,600 "},"MAG",{"$error":"#VALUE!"}]
[null,"NR8-3804H1",{"$error":"#VALUE!"},"Rejestrator IP 4ch, 8MP @ 30FPS, H.264/H.265, 1x HDD 8TB, 1x VGA / 1x HDMI do 4K (2 zależne wyjścia), P2P/Chmura, 2x LAN 100Mbps, 2x USB 2.0, Alarm 4x IN / 1x OUT, Audio 1x IN / 1x OUT, obudowa Smart 1U, Zasilanie DC12V (zasilacz w komplecie). Obsługa funkcji analityki obrazu GenSTAR IVS z kamer ZN8 GenSTAR. Rejestrator zgodny z NDAA.",{"v":1100,"d":"1,100"},{"v":1100,"d":"1,100 "},"MAG","Do wyczerpania zapasów"]
[null,"NR8-3808H1",{"$error":"#VALUE!"},"Rejestrator IP 8ch, 8MP @ 30FPS, H.264/H.265, 1x HDD 8TB, 1x VGA / 1x HDMI do 4K (2 zależne wyjścia), P2P/Chmura, 2x LAN 100Mbps, 2x USB 2.0, Alarm 4x IN / 1x OUT, Audio 1x IN / 1x OUT, obudowa Smart 1U, Zasilanie DC12V (zasilacz w komplecie). Obsługa funkcji analityki obrazu GenSTAR IVS z kamer ZN8 GenSTAR. Rejestrator zgodny z NDAA.",{"v":1300,"d":"1,300"},{"v":1300,"d":"1,300 "},"MAG","Do wyczerpania zapasów"]
[null,"NR8-8F81-8P-V2",{"$error":"#VALUE!"},"Rejestrator IP 8ch, 8MP @ 30FPS, H.264/H.265, 1x HDD 8TB, 1x VGA / 1x HDMI do 4K (2 niezależne wyjścia), P2P/Chmura, 1x LAN 100Mbps, 2x USB 2.0, Alarm 8x IN / 1x OUT, Audio 1x IN / 1x OUT, obudowa Smart 1U, Zasilanie DC48V (zasilacz w komplecie), 8x PoE (802.3af). Obsługa funkcji analityki obrazu GenSTAR IVS z kamer ZN8 GenSTAR.",{"v":1200,"d":"1,200"},{"v":1200,"d":"1,200 "},"MAG","Do wyczerpania zapasów"]
[null,"NR8-3932H4 ",{"$error":"#VALUE!"},"Rejestrator IP 32ch, 12MP @ 30FPS, H.264/H.265, 4x HDD 16TB, 1x VGA / 2x HDMI do 4K (2 zależne wyjścia), P2P/Chmura, 2x LAN 100Mbps, 2x USB 2.0, 1x USB 3.0,  Alarm 16x IN /4x OUT, Audio 1x IN / 1x OUT, 1 eSATA, RS-232/485, obudowa Smart 1U, Zasilanie DC12V (zasilacz w komplecie). Obsługa funkcji analityki obrazu GenSTAR IVS z kamer ZN8 GenSTAR. Rejestrator zgodny z NDAA.",{"v":4500,"d":"4,500"},{"v":4500,"d":"4,500 "},null,{"$error":"#VALUE!"}]
[null,"NR8-64F88",{"$error":"#VALUE!"},"Rejestrator IP 64ch, 12MP @ 30FPS, H.264/H.265, 8x HDD 8TB (RAID 5/6/10 + grupowanie HDD), 1x VGA / 2x HDMI do 4K (2 niezależne wyjścia), P2P/Chmura, 2x LAN 1Gbps, 2x USB 2.0, 1x USB 3.0, Alarm 16x IN / 4x OUT, Audio 1x IN / 1x OUT, 1x eSATA, obudowa 2U, Zasilanie AC230V, obsługa funkcji analityki obrazu GenSTAR IVS z kamer ZN8 GenSTAR.",{"v":5600,"d":"5,600"},{"v":5600,"d":"5,600 "},"MAG"]
[]
[null,"GENSTAR Kamery termowizyjne"]
[]
[null,"Seria GenSTAR 2-torowa 256x192"]
[null,"ZNT8-25E0F36-B",{"$error":"#VALUE!"},"Kamera IP GENSTAR Eyeball 2-torowa | Termowizja: obiektyw 3.6mm; 256x192 (piksel: 12μm), 4CIF (30FPS) | Tor optyczny D/N: 4MP (30FPS), obiektyw 4mm, WDR>120dB | 3 strumienie H.265/H.264/MJPEG | Niechłodzony detektor mikrobolometryczny (tlenek wanadu), Czułość NETD: <50mK @ F1.0 (reakcja temp. 30ms), Zakres widma: 8-14μm | Pomiar: -40°C ... 150°C (+/-2°C) | 16 stref | 17 trybów koloru.\nSMART-IR do 35 metrów, Alarm 1x IN / 1x OUT, Audio 1x IN / 1x OUT, wbudowany głośnik i mikrofon, HDMI OUT, ONVIF S, obsługa kart SD do 256GB, 3D-DNR, HLC, BLC, ROI, Defog. Obudowa metalowa IP66, DC12V / DC24V / PoE (802.3af). Wbudowane funkcje analityki obrazu GenSTAR IVS 2.0 (Analityka AI oparta na wzorcach).\nOdległość rozpoznawania ludzi (1,8×0,5m) – 35m, Odległość rozpoznania pojazdu (4×1,5m) – 80m, Odległość wykrywania ognia (1m×1m) – 60m, Odległość pomiaru temperatury obiektu (1m×1m) – 40m.",{"v":7100,"d":"7,100"},{"$f":"E101-(E101*F$6)","v":{"v":7100,"d":"7,100 "}},"MAG"]
[null,"ZA8-CBK645D",null,"Puszka natynkowa do kamery GANZ ZNT8-25E0F36-B",170,{"$f":"E102-(E102*F$6)","v":{"v":170,"d":"170 "}},"MAG"]
[null,"ZNT8-25BQVF7-B",{"$error":"#VALUE!"},"Kamera IP GENSTAR bullet 2-torowa | Termowizja: obiektyw 7mm; 256x192 (piksel: 12μm), 4CIF (30FPS) | Tor optyczny D/N: 4MP (30FPS), obiektyw 8mm, WDR>120dB | 3 strumienie H.265/H.264/MJPEG | Niechłodzony detektor mikrobolometryczny (tlenek wanadu), Czułość NETD: <50mK @ F1.0 (reakcja temp. 30ms), Zakres widma: 8-14μm | Pomiar: -40°C ... 150°C (+/-2°C) | 16 stref | 17 trybów koloru.\nSMART-IR do 50 metrów, Alarm 2x IN / 2x OUT, Audio 1x IN / 1x OUT, wbudowany głośnik, ONVIF S, obsługa kart SD do 256GB, 3D-DNR, HLC, BLC, ROI, Defog. Obudowa metalowa IP66, DC12V / AC24V / PoE (802.3af). Wbudowane funkcje analityki obrazu GenSTAR IVS 2.0 (Analityka AI oparta na wzorcach).\nOdległość rozpoznawania ludzi (1,8×0,5m) – 70m, Odległość rozpoznania pojazdu (4×1,5m) – 120m, Odległość wykrywania ognia obiektu (1m×1m) – 100m, Odległość pomiaru temperatury obiektu (1m×1m) – 60m.",{"v":7500,"d":"7,500"},{"$f":"E103-(E103*F$6)","v":{"v":7500,"d":"7,500 "}},"MAG"]
[null,"ZA8-JBMP-2",{"$error":"#VALUE!"},"Puszka natynkowa do kamer GENSTAR w obudowie typu bullet ",220,{"$f":"E104-(E104*F$6)","v":{"v":220,"d":"220 "}},"MAG"]
[null,"ZA8-CBK627B",null,"Adapter do instalacji na słupie puszki ZA8-JBMP, zakres montażu opasek na uchwytach 130-152mm",180,{"$f":"E105-(E105*F$6)","v":{"v":180,"d":"180 "}},"MAG"]
[null,"Seria GenSTAR 400x300"]
[null,"ZNT8-42B0F8-T  (8mm)","8 mm","Kamera IP GENSTAR termowizyjna bullet | Obiektyw 8mm | 400x300, D1 (25fps) | Niechłodzony detektor mikrobolometryczny (tlenek wanadu), Czułość NETD: 40mK @ F1.0 (reakcja temp. 30ms), Zakres widma: 8-14μm. Pomiar: -10°C ... 200°C (dokładność +/-2°C | 16 stref | 17 trybów koloru).\n2 niezależne strumienie (H.265/H.264/MJPEG). Alarm 2xIN/2xOUT, Audio 1xIN/1xOUT, 1xVideo OUT CVBS; ONVIF S, obsługa kart SD do 128GB, 3D-DNR, DVE, ROI, RS-485; obudowa metalowa IP66, 12VDC. Wbudowane funkcje analityki GenSTAR IVS.",{"v":26000,"d":"26,000"},{"$f":"E107-(E107*F$6)","v":{"v":26000,"d":"26,000 "}},"ZAM"]
[null,"ZNT8-42B0F15-T  (15mm)","15 mm",null,{"v":27000,"d":"27,000"},{"v":27000,"d":"27,000 "},"ZAM"]
[null,"ZNT8-42B0F25-T  (25mm)","25 mm",null,{"v":28000,"d":"28,000"},{"v":28000,"d":"28,000 "},"ZAM"]
[null,"ZNT8-42B0F35-T  (35mm)","35 mm",null,{"v":40000,"d":"40,000"},{"v":40000,"d":"40,000 "},"ZAM"]
[null,"ZNT8-42B0F50-T  (50mm)","50 mm",null,{"v":44000,"d":"44,000"},{"v":44000,"d":"44,000 "},"ZAM"]
[null,"ZA8-JBMP-2",null,"Puszka natynkowa do kamer w obudowie typu bullet ",220,{"v":220,"d":"220 "},"MAG"]
[null,"ZA8-CBK627B",null,"Adapter do instalacji na słupie puszki ZA8-JBMP-2, zakres montażu opasek na uchwytach 130-152mm",180,{"v":180,"d":"180 "},"MAG"]
[null,"ZNT8-42C0F8-T  (8mm)","8 mm","Kamera IP GENSTAR termowizyjna kompaktowa | Obiektyw stałoogniskowy | 400x300, D1 (25fps) | Niechłodzony detektor mikrobolometryczny (tlenek wanadu), Czułość NETD: 40mK @ F1.0 (reakcja temp. 30ms), Zakres widma: 8-14μm. Pomiar: -10°C ... 200°C (dokładność +/-2°C | 16 stref | 17 trybów koloru).\n2 niezależne strumienie (H.265/H.264/MJPEG). Alarm 2xIN/2xOUT, Audio 1xIN/1xOUT, 1xVideo OUT CVBS; ONVIF S, obsługa kart SD do 128GB, 3D-DNR, DVE, ROI, RS-485; obudowa metalowa, 12VDC. Wbudowane funkcje analityki GenSTAR IVS.",{"v":26000,"d":"26,000"},{"v":26000,"d":"26,000 "},"ZAM"]
[null,"ZNT8-42C0F15-T  (15mm)","15 mm",null,{"v":26500,"d":"26,500"},{"v":26500,"d":"26,500 "},"ZAM"]
[null,"ZNT8-42C0F25-T  (25mm)","25 mm",null,{"v":27000,"d":"27,000"},{"v":27000,"d":"27,000 "},"ZAM"]
[null,"ZNT8-42C0F35-T  (35mm)","35 mm",null,{"v":40000,"d":"40,000"},{"v":40000,"d":"40,000 "},"ZAM"]
[null,"ZNT8-42C0F50-T  (50mm)","50 mm",null,{"v":45000,"d":"45,000"},{"v":45000,"d":"45,000 "},"ZAM"]
[null,"ZNT8-42C0M25-T  (25mm)","25 mm","Kamera IP GENSTAR termowizyjna kompaktowa | Obiektyw MF (motorized focus) | 400x300, D1 (25fps) | Niechłodzony detektor mikrobolometryczny (tlenek wanadu), Czułość NETD: 40mK @ F1.0 (reakcja temp. 30ms), Zakres widma: 8-14μm. Pomiar: -10°C ... 200°C (dokładność +/-2°C | 16 stref | 17 trybów koloru).\n2 niezależne strumienie (H.265/H.264/MJPEG). Alarm 2xIN/2xOUT, Audio 1xIN/1xOUT, 1xVideo OUT CVBS; ONVIF S, obsługa kart SD do 128GB, 3D-DNR, DVE, ROI, RS-485; obudowa metalowa, 12VDC. Wbudowane funkcje analityki GenSTAR IVS.",{"v":42000,"d":"42,000"},{"v":42000,"d":"42,000 "},"ZAM"]
[null,"ZNT8-42C0M25-T  (50mm)","50 mm",null,{"v":52000,"d":"52,000"},{"v":52000,"d":"52,000 "},"ZAM"]
[null,"ZNT8-42C0M25-T  (75mm)","75 mm",null,{"v":62000,"d":"62,000"},{"v":62000,"d":"62,000 "},"ZAM"]
[null,"ZNT8-42C0M25-T  (100mm)","100 mm",null,{"v":78000,"d":"78,000"},{"v":78000,"d":"78,000 "},"ZAM"]
[null,"ZNT8-P0F8-TX30-QF  (8mm)","8 mm","Kamera IP GENSTAR PTZ 2-torowa | Termowizja: obiektyw stałoogniskowy; 400x300 (piksel: 17μm), D1 (25fps) | Tor optyczny D/N: 3MP (30fps), obiektyw 4.5-135mm (30x) | Niechłodzony detektor mikrobolometryczny (tlenek wanadu), Czułość NETD: 40mK @ F1.0 (reakcja temp. 30ms), Zakres widma: 8-14μm | Pomiar: -10°C ... 200°C (+/-2°C) | 16 stref | 17 trybów koloru.\nAlarm 1xOUT, ONVIF S, RS-485. Wyświetlanie koordynatów PTZ w OSD, obudowa metalowa IP66 (5kg), 24VDC 3A - zasilacz w komplecie. Wbudowane funkcje analityki GenSTAR IVS.",{"v":66000,"d":"66,000"},{"v":66000,"d":"66,000 "},"ZAM"]
[null,"ZNT8-P0F15-TX30-QF  (15mm)","15 mm",null,{"v":64000,"d":"64,000"},{"v":64000,"d":"64,000 "},"ZAM"]
[null,"ZNT8-P0F25-TX30-QF  (25mm)","25 mm",null,{"v":65000,"d":"65,000"},{"v":65000,"d":"65,000 "},"ZAM"]
[null,"ZNT8-P0M8-TX30-QF  (8mm)","8 mm","Kamera IP GENSTAR PTZ 2-torowa | Termowizja: obiektyw MF (motorized focus); 400x300 (piksel: 17μm), D1 (25fps) | Tor optyczny D/N: 3MP (30fps), obiektyw 4.5-135mm (30x) | Niechłodzony detektor mikrobolometryczny (tlenek wanadu), Czułość NETD: 40mK @ F1.0 (reakcja temp. 30ms), Zakres widma: 8-14μm | Pomiar: -10°C ... 200°C (+/-2°C) | 16 stref | 17 trybów koloru.\nAlarm 1xOUT, ONVIF S, RS-485. Wyświetlanie koordynatów PTZ w OSD, obudowa metalowa IP66 (5kg), 24VDC 3A - zasilacz w komplecie. Wbudowane funkcje analityki GenSTAR IVS.",{"v":62000,"d":"62,000"},{"v":62000,"d":"62,000 "},"ZAM"]
[null,"ZNT8-P0M25-TX30-QF  (25mm)","25 mm",null,{"v":73000,"d":"73,000"},{"v":73000,"d":"73,000 "},"ZAM"]
[null,"ZNT8-P0F8-TAX30  (8mm)","8 mm","Kamera IP GENSTAR PTZ 2-torowa | Termowizja: obiektyw stałoogniskowy; 400x300, D1 (25fps) | Tor optyczny D/N Starlight: 2MP (30fps), obiektyw 6-180mm (30x) | Niechłodzony detektor mikrobolometryczny (tlenek wanadu), Czułość NETD: 40mK @ F1.0 (reakcja temp. 30ms), Zakres widma: 8-14μm | Pomiar: -10°C ... 200°C (+/-2°C) | 16 stref | 17 trybów koloru.\nAlarm 2xIN/1xOUT, Audio 1xIN/1xOUT, ONVIF S, RS-485. Wyświetlanie koordynatów PTZ w OSD, obudowa metalowa IP66, 36VDC 3A - zasilacz w komplecie. Wbudowane funkcje analityki GenSTAR IVS.",{"v":54000,"d":"54,000"},{"v":54000,"d":"54,000 "},"ZAM"]
[null,"ZNT8-P0F15-TAX30  (15mm)","15 mm",null,{"v":55000,"d":"55,000"},{"v":55000,"d":"55,000 "},"ZAM"]
[null,"ZNT8-P0F25-TAX30  (25mm)","25 mm",null,{"v":54000,"d":"54,000"},{"v":54000,"d":"54,000 "},"ZAM"]
[null,"ZNT8-P0F35-TAX30  (35mm)","35 mm",null,{"v":66000,"d":"66,000"},{"v":66000,"d":"66,000 "},"ZAM"]
[null,"ZNT8-P0F50-TAX30  (50mm)","50 mm",null,{"v":72000,"d":"72,000"},{"v":72000,"d":"72,000 "},"ZAM"]
[null,"ZNT8-P0M8-TAX30  (8mm)","8 mm","Kamera IP GENSTAR PTZ 2-torowa | Termowizja: obiektyw MF (motorized focus); 400x300, D1 (25fps) | Tor optyczny D/N Starlight: 2MP (30fps), obiektyw 6-180mm (30x) | Niechłodzony detektor mikrobolometryczny (tlenek wanadu), Czułość NETD: 40mK @ F1.0 (reakcja temp. 30ms), Zakres widma: 8-14μm | Pomiar: -10°C ... 200°C (+/-2°C) | 16 stref | 17 trybów koloru | Alarm 2xIN/1xOUT (termo) i 7xIN/2xOUT (optyczny) | Audio 1xIN/1xOUT (termo) i 1xIN/1xOUT (optyczny) | ONVIF S, RS-485. Wyświetlanie koordynatów PTZ w OSD, obudowa metalowa IP66, 36VDC 3A - zasilacz w komplecie. Wbudowane funkcje analityki GenSTAR IVS.",{"v":56000,"d":"56,000"},{"v":56000,"d":"56,000 "},"ZAM"]
[null,"ZNT8-P0M25-TAX30  (25mm)","25 mm",null,{"v":67000,"d":"67,000"},{"v":67000,"d":"67,000 "},"ZAM"]
[null,"ZNT8-P0M50-TAX30  (50mm)","50 mm",null,{"v":85000,"d":"85,000"},{"v":85000,"d":"85,000 "},"ZAM"]
[null,"ZNT8-P0M75-TAX32  (75mm)","75 mm","Kamera IP GENSTAR PTZ 2-torowa | Termowizja: obiektyw MF (motorized focus); 400x300, D1 (25fps) | Tor optyczny D/N Starlight: 2MP (30fps), obiektyw 12.5-400mm (32x) | Niechłodzony detektor mikrobolometryczny (tlenek wanadu), Czułość NETD: 40mK @ F1.0 (reakcja temp. 30ms), Zakres widma: 8-14μm | Pomiar: -10°C ... 200°C (+/-2°C) | 16 stref | 17 trybów koloru | Alarm 2xIN/1xOUT (termo) i 7xIN/2xOUT (optyczny) | Audio 1xIN/1xOUT (termo) i 1xIN/1xOUT (optyczny) | ONVIF S, RS-485. Wyświetlanie koordynatów PTZ w OSD, obudowa metalowa IP66, 36VDC 3A - zasilacz w komplecie. Wbudowane funkcje analityki GenSTAR IVS.","na zapytanie","na zapytanie ","ZAM"]
[null,"ZNT8-P0M100-TAX32  (100mm)","100 mm",null,"na zapytanie","na zapytanie ","ZAM"]
[null,"Seria GenSTAR - 640x512"]
[null,"ZNT8-BVF9-TAS  (9mm)","9 mm","Kamera IP GENSTAR termowizyjna bullet | obiektyw stałoogniskowy | 640x512, D1 (25fps) | Niechłodzony detektor mikrobolometryczny (tlenek wanadu), Czułość NETD: 40mK @ F1.0 (reakcja temp. 30ms), Zakres widma: 8-14μm | Pomiar: -20°C ... 150°C (+/-2°C) | 16 stref | 17 trybów koloru | Alarm 2xIN/2xOUT | Audio 1xIN/1xOUT | ONVIF S, RS-485, obsługa kart SD do 128GB. Obudowa metalowa IP66, 12VDC/PoE(802.11af). Wbudowane funkcje analityki GenSTAR IVS.",{"v":34000,"d":"34,000"},{"$f":"E139-(E139*F$6)","v":{"v":34000,"d":"34,000 "}},"ZAM"]
[null,"ZNT8-BVF15-TAS  (15mm)","15 mm",null,{"v":35000,"d":"35,000"},{"v":35000,"d":"35,000 "},"ZAM"]
[null,"ZNT8-BVF25-TAS  (25mm)","25 mm",null,{"v":38000,"d":"38,000"},{"v":38000,"d":"38,000 "},"ZAM"]
[null,"ZNT8-BVF35-TAS  (35mm)","35 mm",null,{"v":48000,"d":"48,000"},{"v":48000,"d":"48,000 "},"ZAM"]
[null,"ZNT8-BVF50-TAS  (50mm)","50 mm",null,{"v":61000,"d":"61,000"},{"v":61000,"d":"61,000 "},"ZAM"]
[null,"ZA8-JBMP-2",null,"Puszka natynkowa do kamer w obudowie typu bullet ",220,{"v":220,"d":"220 "},"MAG"]
[null,"ZA8-CBK627B",null,"Adapter do instalacji na słupie puszki ZA8-JBMP-2, zakres montażu opasek na uchwytach 130-152mm",180,{"v":180,"d":"180 "},"MAG"]
[null,"ZNT8-CVF9-TAS  (9mm)","9 mm","Kamera IP GENSTAR termowizyjna kompaktowa | obiektyw stałoogniskowy | 640x512, D1 (25fps) | Niechłodzony detektor mikrobolometryczny (tlenek wanadu), Czułość NETD: 40mK @ F1.0 (reakcja temp. 30ms), Zakres widma: 8-14μm | Pomiar: -20°C ... 150°C (+/-2°C) | 16 stref | 17 trybów koloru | Alarm 2xIN/2xOUT | Audio 1xIN/1xOUT | ONVIF S, RS-485, obsługa kart SD do 128GB. Obudowa metalowa, 12VDC.  Wbudowane funkcje analityki GenSTAR IVS.",{"v":33000,"d":"33,000"},{"v":33000,"d":"33,000 "},"ZAM"]
[null,"ZNT8-CVF15-TAS  (15mm)","15 mm",null,{"v":34000,"d":"34,000"},{"v":34000,"d":"34,000 "},"ZAM"]
[null,"ZNT8-CVF25-TAS  (25mm)","25 mm",null,{"v":35500,"d":"35,500"},{"v":35500,"d":"35,500 "},"ZAM"]
[null,"ZNT8-CVF35-TAS  (35mm)","35 mm",null,{"v":46000,"d":"46,000"},{"v":46000,"d":"46,000 "},"ZAM"]
[null,"ZNT8-CVF50-TAS  (50mm)","50 mm",null,{"v":58000,"d":"58,000"},{"v":58000,"d":"58,000 "},"ZAM"]
[]
[null,"Terminal komunikacyjny wideo Interkom SIP"]
[null,"ZN9-DP06AP",{"$error":"#VALUE!"},"Interkom IP GANZ ZN9 1.3MP (25fps) | 3.7mm F-Iris (80°) | 1/3\" CMOS Sony Exmor, 2 strumienie (H.264/MJPEG), d-WDR, mechaniczny filtr IR-cut; SMART-IR do 10 metrów, Wbudowany przycisk wywołania, Alarm 3x OUT (OC), Wbudowany mikrofon oraz głośnik, ONVIF S, obsługa kart SD do 32GB (fabrycznie zainstalowana karta microSD 8GB), 3D-DNR, HLC, BLC, Defog. Obudowa metalowa, IP54, IK10, 12VDC/PoE(802.11af). Wbudowane funkcje analityki obrazu w postaci detekcji twarzy w kadrze. Kompatybilne z oprogramowaniem GANZ CORTROL VMS oraz protokołem SIP.",{"v":2400,"d":"2,400"},{"$f":"E153-(E153*F$6)","v":{"v":2400,"d":"2,400"}},"MAG"]
[]
[null,"PARK LPR  |  system do zarządzania parkingami"]
[null,"LPR-16GT ",null,"Jednostka centralna LPR do zarządzająca systemem parkingowym. Obsługuje maks. 16 kamer LPR (wjazdy/wyjazdy).",{"v":7500,"d":"7,500"},{"$f":"E156-(E156*F$6)","v":{"v":7500,"d":"7,500 "}},"MAG"]
[null,"LPR-02GT ",null,"Jednostka centralna LPR do zarządzająca systemem parkingowym. Obsługuje maks. 2 kamery LPR (wjazdy/wyjazdy).",{"v":4800,"d":"4,800"},{"$f":"E157-(E157*F$6)","v":{"v":4800,"d":"4,800 "}},"MAG"]

{"sheet":"Arkusz2","index":3,"n_rows":0,"n_cols":0,"rows_kept":0,"hidden":true}

{"sheet":"AI BOX","index":4,"n_rows":94,"n_cols":12,"rows_kept":94,"merged":[[2,1,3,2],[2,3,4,3],[2,4,3,5],[9,1,9,3],[9,4,9,6],[10,1,10,2],[11,1,11,6],[12,2,12,3],[13,2,13,3],[14,2,14,3],[17,1,17,3],[18,2,18,3],[19,2,19,3],[20,2,20,3],[21,2,21,3],[22,2,22,3],[23,2,23,3],[24,2,24,3],[25,2,25,3],[26,2,26,3],[27,2,27,3],[28,2,28,3],[29,2,29,3],[30,2,30,3],[31,2,31,3],[33,1,33,6],[34,2,34,3],[35,2,35,3],[36,2,36,3],[37,2,37,3],[38,2,38,3],[39,2,39,3],[40,2,40,3],[41,2,41,3],[42,2,42,3],[43,2,43,3],[44,2,44,3],[47,2,47,3],[48,2,48,3],[50,1,50,6],[50,7,51,7],[50,8,50,10],[51,1,51,3],[52,2,52,3],[53,2,53,3],[54,2,54,3],[55,2,55,3],[56,2,56,3],[57,2,57,3],[58,2,58,3],[59,2,59,3],[60,2,60,3],[61,2,61,3],[62,2,62,3],[63,2,63,3],[64,2,64,3],[65,2,65,3],[66,2,66,3],[67,2,67,3],[68,2,68,3],[69,2,69,3],[70,2,70,3],[71,2,71,3],[72,2,72,3],[73,2,73,3],[74,2,74,3],[75,2,75,3],[76,2,76,3],[77,2,77,3],[78,2,78,3],[79,2,79,3],[80,2,80,3],[81,2,81,3],[82,2,82,3],[83,2,83,3],[84,2,84,3],[85,2,85,3],[86,2,86,3],[87,1,87,6],[89,1,89,6],[89,8,89,10],[90,2,90,3],[91,2,91,3],[92,2,92,3],[93,1,93,6]]}
[]
[]
[null,{"$error":"#VALUE!"},null,"CENNIK PRODUKTÓW CCTV",{"$error":"#VALUE!"}]
[]
[]
[{"$nulls":4},"RABAT: ",{"v":0,"d":"0%"}]
[]
[null,"Model (kod) towaru",null,"Opis","Cena PLN detal","Cena PLN z rabatem","Dostępność "]
[]
[null,"AI BOX  |  Nadajniki wideo-alarmów",null,null,{"$error":"#VALUE!"}]
[null,{"$error":"#VALUE!"},null," - Łatwe w konfiguracji i intuicyjne aplikacje do analizy wideo AI\n - Łatwa budowa systemu AI z wykorzystaniem istniejących kamer CCTV\n - Wielopoziomowa redukcja fałszywych alarmów oparta na sztucznej inteligencji\n - Dokładne wykrywanie zdarzeń poprzez zrozumienie sceny\n - Możliwość uruchamiania wielu aplikacji AI na każdym kanale wideo\n - Łatwa integracja z innymi systemami\n - Konfiguracja oparta na przeglądarce internetowej\n - Ulepszone opcje bezpieczeństwa\n - Wbudowany dysk SSD 1TB pozwalający na nagrywanie zdarzeń lub ciągłe\n - Obsługa sieci 4G (LTE) oraz GPS (opcjonalnie)\n - Zgodność z NDAA"]
[null,"GANZ AI BOX 2.1 (PRO)"]
[null,"ZN-AIBOX-PRO","Nadajnik wideo-alarmów 8 lub 16-kanałowy (w zależności od trybu pracy) | H.264/H.265, budżet 4000 punktów AI, 2x LAN 1Gbps, 1x USB 3.0, RS-232/485, Alarm 4x IN / 4x OUT, 1x microSIM. Wbudowany dysk SSD 1TB. Procesor Automotive TI, Obudowa przemysłowa fanless. Zasilanie 9-36VDC (zasilacz w komplecie). Wbudowane algorytmy analityki AI do wykrywania predefiniowanych zdarzeń, nakładanie metadanych na strumienie wejściowe RTSP. Fabrycznie zawiera podstawową paczkę analityk (pakiet BASIC), w tym: detekcja wtargnięcia, szwendania, zatrzymania, wejścia/wyjścia ze strefy, wirtualna linia perymetryczna, zliczanie osób/pojazdów, zliczanie w strefie, sumaryczna kombinacja danych z wielu liczników. Możliwość aktywacji licencji dodatkowych, licencji z pakietu Advanced lub całego pakietu Advanced. Nadajnik zgodny z NDAA. ",null,{"v":14300,"d":"14,300"},{"$f":"E13-(E13*F$6)","v":{"v":14300,"d":"14,300 "}},"MAG",{"$error":"#VALUE!"}]
[null,"ZN-AIBOX-SSD","Dysk twardy SSD NVMe przeznaczony do pracy ciągłej w urządzeniu ZN-AIBOX-PRO o pojemności 1TB. Średni pobór mocy: 6,2 W. Temperatura pracy: 0 - 70 ℃. Odporność na wstrząsy: 1500 G & 0,5 ms.",null,{"v":1000,"d":"1,000"},{"v":1000,"d":"1,000 "},"MAG"]
[null,"ZN-AIBOX-LTE-KIT","Zestaw: 2x antena LTE (wys.: 88mm, przewód 1m, IP67, magnetyczna podstawa o średnicy 33mm, złącze SMA), 1x antena GPS (wym.: 38.6mm × 50.9mm × 17mm, przewód 3m, mocowana na taśmę dwustronną, złącze SMA), moduł LTE/GPS (standard mini PCIe, 150/50Mbps, wsteczna kompatybilność z sieciami EDGE i GSM/GPRS).",null,{"v":1800,"d":"1,800"},{"$f":"E15-(E15*F$6)","v":{"v":1800,"d":"1,800 "}},"MAG"]
[]
[null,"Licencje z pakietu ADVANCED"]
[null,"Aplikacje z pakietu ADVANCED oraz z licencji dodatkowych można uruchomić wyłącznie w trybie 8-kanałowym.\nKażdą licencję można rozszerzyć do 8 kanałów, z wyłączeniem funkcji PTZ-Tracking (tylko jeden kanał).\nW celu aktywacji płatnych licencji AI na urządzeniu ZN-AIBOX-STD niezbędne jest podanie adresu MAC urządzenia."]
[null,"ZNS-AI2-ADV","Pakiet licencji ADVANCED na 8 kanałów - obejmuje wszystkie licencje wyszczególnione poniżej.",null,{"v":6000,"d":"6,000"},{"$f":"E19-(E19*F$6)","v":{"v":6000,"d":"6,000 "}},"ZAM"]
[null,"ZNS-AI2-VISADV","Advanced Visitor Analysis | Zaawansowana analiza klientów - zliczanie osób według płci (licencja na 1 kanał).",null,700,{"v":700,"d":"700 "},"ZAM"]
[null,"ZNS-AI2-HAFO","Detection of Hand & Foot Intrusion | Detekcja natarcia dłoni/stóp do strefy detekcji (licencja na 1 kanał).",null,700,{"v":700,"d":"700 "},"ZAM"]
[null,"ZNS-AI2-INBGD","Intentional Body Gaze Detector | Detekcja celowego przyglądania się (licencja na 1 kanał).",null,700,{"v":700,"d":"700 "},"ZAM"]
[null,"ZNS-AI2-FAL","Fallen Person Detection | Detekcja upadku osoby (licencja na 1 kanał).",null,700,{"v":700,"d":"700 "},"ZAM"]
[null,"ZNS-AI2-VEHC","Vehicle Type Counting | Liczenie typów pojazdów: samochód, autobus, ciężarówka, rower, motocykl (licencja na 1 kanał).",null,700,{"v":700,"d":"700 "},"ZAM"]
[null,"ZNS-AI2-VEHT","Vehicle Type Detection | Detekcja typu pojazdu: samochód, autobus, ciężarówka, rower, motocykl (licencja na 1 kanał).",null,700,{"v":700,"d":"700 "},"ZAM"]
[null,"ZNS-AI2-ATADV","Advanced Attribute | Zaawanowane atrybuty (kolor i typ górnej i dolnej części ubioru, płeć, wiek, akcesoria, zwierzę)",null,700,{"v":700,"d":"700 "},"ZAM",{"$error":"#VALUE!"}]
[null,"ZNS-AI2-ANIM","Animal Detection | Detekcja zwierząt (licencja na 1 kanał).",null,700,{"v":700,"d":"700 "},"ZAM"]
[null,"ZNS-AI2-CROW","Crowd Detection | Detekcja i pomiar tłumu (licencja na 1 kanał).",null,{"v":1400,"d":"1,400"},{"v":1400,"d":"1,400 "},"ZAM"]
[null,"ZNS-AI2-IMMTH","Imminent threat Detection | Detekcja bezpośredniego zagrożenia (licencja na 1 kanał).",null,{"v":1400,"d":"1,400"},{"v":1400,"d":"1,400 "},"ZAM"]
[null,"ZNS-AI2-FIRESM","Fire & Smoke Detection | Detekcja dymu i ognia (licencja na 1 kanał).",null,{"v":1400,"d":"1,400"},{"v":1400,"d":"1,400 "},"ZAM"]
[null,"ZNS-AI2-THERM","Thermal Intrusion Detection | Detekcja wtargnięcia na termowizji (licencja na 1 kanał).",null,{"v":1400,"d":"1,400"},{"v":1400,"d":"1,400 "},"ZAM"]
[null,"ZNS-Ai2-FISHEY","Fisheye Camera Support | Wsparcie dla analityki AI dla obrazu z kamer fisheye (licencja na 8 kanałów).",null,{"v":1400,"d":"1,400"},{"v":1400,"d":"1,400 "},"ZAM"]
[]
[null,"Licencje dodatkowe (pojedynczy kanał)"]
[null,"ZNS-AI2-LPR","Number Plate Recognition | Rozpoznawanie numerów tablic rejestracyjnych (kraje UE/JP/USA/KR).",null,{"v":2000,"d":"2,000"},{"$f":"E35-(E35*F$6)","v":{"v":2000,"d":"2,000 "}},"ZAM"]
[null,"ZNS-AI2-REC8","Record 8CH | Licencja pozwalająca na nagrywanie wideo (ciągłe lub ze zdarzeń) (licencja na 8 kanałów).",null,900,{"v":900,"d":"900 "},"ZAM",{"$error":"#VALUE!"}]
[null,"ZNS-AI2-DRIHEL","Forklift No Helmet | Detekcja braku kasku osoby na wózku widłowym",null,{"v":2000,"d":"2,000"},{"v":2000,"d":"2,000 "},"ZAM",{"$error":"#VALUE!"}]
[null,"ZNS-AI2-BULLY","Bullying Detection | Detekcja zastraszania",null,{"v":2000,"d":"2,000"},{"v":2000,"d":"2,000 "},"ZAM",{"$error":"#VALUE!"}]
[null,"ZNS-AI2-SEPC","Staff Exclusion People Counting | Zliczanie osób z wykluczeniem pracowników (posiadających widoczny identyfikator)",null,700,{"v":700,"d":"700 "},"ZAM",{"$error":"#VALUE!"}]
[null,"ZNS-AI2-FRKLFT","Forklift Detection | Detekcja wózków widłowych",null,{"v":1400,"d":"1,400"},{"v":1400,"d":"1,400 "},"ZAM",{"$error":"#VALUE!"}]
[null,"ZNS-AI2-HMADV","Advanced heatmap | Zaawansowane mapy ciepła z uwzglednieniem zachowania osób (np. wyciągnięcie ręki w określonym kierunku)",null,{"v":2000,"d":"2,000"},{"v":2000,"d":"2,000 "},"ZAM"]
[null,"ZNS-AI2-PPE","Detection of non-weared helmet / safety vest | Detekcja braku osobistej ochrony BHP",null,{"v":2000,"d":"2,000"},{"v":2000,"d":"2,000 "},"ZAM"]
[null,"ZNS-AI2-ILDUMP","Detection of illegal dumping | Detekcja zabronionego porzucenia",null,{"v":2000,"d":"2,000"},{"v":2000,"d":"2,000 "},"ZAM"]
[null,"ZNS-AI2-VIOL","Detection of violence | Detekcja aktów przemocy",null,{"v":2000,"d":"2,000"},{"v":2000,"d":"2,000 "},"ZAM"]
[null,"ZNS-AI2-PTZTR","Auto tracking for PTZ camera | Śledzenie PTZ",null,{"v":2000,"d":"2,000"},{"v":2000,"d":"2,000 "},"ZAM"]
[]
[null,"GANZ AI BOX"]
[null,"ZN-AIBOX04","Nadajnik wideo-alarmów AIBOX 4-kanałowy | 8MP (30fps) / 2MP (120FPS) - sumarycznie, H.264 / H.265, budżet 1000 punktów AI, 1x HDMI (SPOT-OUT), 1x LAN 1Gbps, 2x USB 3.0, RS-485, Alarm 4x IN / 1x OUT. Obudowa Smart 1U. Zasilanie 12VDC (zasilacz w komplecie). Wbudowane nakładanie analityki AI na strumienie wejściowe RTSP i wykonywanie predefiniowanych akcji. Pozwala na aktywację do 2 programowych licencji AI.",null,{"v":5500,"d":"5,500"},{"$f":"E48-(E48*F$6)","v":{"v":5500,"d":"5,500 "}},"MAG"]
[null,"ZA-RM1U-AIBOX","Uchwyt 1U do montażu nadajników IP AI-BOX 4/8/16ch szafie RACK 19\" (max 2x Enkoder IP AI-BOX instalowane obok siebie)",null,400,{"$f":"E49-(E49*F$6)","v":{"v":400,"d":"400 "}},"MAG"]
[]
[null,"Licencje programowe AI do urządzeń AI BOX i kamer PIXEL PRO",{"$nulls":5},"Zużycie pkt AI\nna 1 kanał wideo","AIBOX",null,null,"KAMERA"]
[null,"W celu aktywacji licencji AI w urządzeniach AIBOX lub kamerach PixelPRO (serie ZNP/ZNU) niezbędne są: numer seryjny urządzenia, adres MAC, wersja FW oraz indeks katalogowy licencji. UWAGA: Na jednym urządzeniu można aktywować TYLKO jedną licencję danego typu, niezależnie od ilości kanałów!",{"$nulls":6},"4-kan.\n(1000 pkt AI)","8-kan.\n(2000 pkt AI)","16-kan.\n(2000 pkt AI)","ZNP 5MP"]
[null,"ZNS-AI-A00","Informacja poglądowa o dostępności modułu Detekcji i Rozpoznania Obiektów (Człowiek, Pojazd, Rower) w kadrze obrazu z kamery dla urządzenia ZN-AIBOX lub kamery PixelPRO z serii ZNC/ZNP/ZNU.",null,0,{"$f":"E53-(E53*F$6)","v":{"v":0,"d":"0 "}},"MAG","120  (Normal)\n480  (Far / Fast)","Domyślna","Domyślna","Domyślna","Domyślna"]
[null,"ZNS-AI-A01","Informacja poglądowa o dostępności modułu Śledzenia Obiektów w kadrze obrazu z kamery dla urządzenia ZN-AIBOX lub kamery PixelPRO z serii ZNP/ZNU.",null,0,{"$f":"E54-(E54*F$6)","v":{"v":0,"d":"0 "}},"MAG","-","Domyślna","Domyślna","Domyślna","Domyślna"]
[null,"ZNS-AI-B00","Informacja poglądowa o dostępności modułu Reguł i Akcji (Rule Engine/ Event Server) dla urządzenia ZN-AIBOX lub kamery PixelPRO z serii ZNP/ZNU.",null,0,{"v":0,"d":"0 "},"MAG","-","Domyślna","Domyślna","Domyślna","Domyślna"]
[null,"ZNS-AI-A03-1","Licencja 1-kanałowa AI | detekcja kasku ochronnego na głowie u osób w kadrze. Możliwa jest aktywacja tylko jednej licencji A03-1 w urządzenia ZN-AIBOX.",null,380,{"$f":"E56-(E56*F$6)","v":{"v":380,"d":"380 "}},"ZAM",480,"+","+","+","-"]
[null,"ZNS-AI-A03-2","Licencja 2-kanałowa AI | detekcja kasku ochronnego na głowie u osób w kadrze. Możliwa jest aktywacja tylko jednej licencji A03 w urządzenia ZN-AIBOX.",null,750,{"v":750,"d":"750 "},"ZAM",480,"+","+","+","-"]
[null,"ZNS-AI-A03-4","Licencja 4-kanałowa AI | detekcja kasku ochronnego na głowie u osób w kadrze. Możliwa jest aktywacja tylko jednej licencji A03 w urządzenia ZN-AIBOX.",null,{"v":1500,"d":"1,500"},{"v":1500,"d":"1,500 "},"ZAM",480,"-","+","+","-"]
[null,"ZNS-AI-A04-1","Licencja 1-kanałowa AI | detekcja maski i okularów słonecznych na twarzy u osób w kadrze. Możliwa jest aktywacja tylko jednej licencji A04-1 w urządzenia ZN-AIBOX. UWAGA: wymaga modułu ZN-AIBOX-FR1/4/8.",null,380,{"v":380,"d":"380 "},"ZAM",240,"+","+","+","-"]
[null,"ZNS-AI-A04-4","Licencja 4-kanałowa AI | detekcja maski i okularów słonecznych na twarzy u osób w kadrze. Możliwa jest aktywacja tylko jednej licencji A04-4 w urządzenia ZN-AIBOX. UWAGA: wymaga modułu ZN-AIBOX-FR4/8.",null,{"v":1500,"d":"1,500"},{"v":1500,"d":"1,500 "},"ZAM",240,"+","+","+","-"]
[null,"ZNS-AI-A04-8","Licencja 8-kanałowa AI | detekcja maski i okularów słonecznych na twarzy u osób w kadrze. Możliwa jest aktywacja tylko jednej licencji A04-8 w urządzenia ZN-AIBOX. UWAGA: wymaga modułu ZN-AIBOX-FR8.",null,{"v":3000,"d":"3,000"},{"v":3000,"d":"3,000 "},"ZAM",240,"-","+","+","-"]
[null,"ZNS-AI-A05-1","Licencja 1-kanałowa AI | detekcja z rozszerzonym zakresem klasyfikacji pojazdów (Motocykl, Autobus, Ciężarówka) przy zachowaniu klasyfikacji domyślnych (Człowiek, Samochód, Rower). Możliwa jest aktywacja tylko jednej licencji A05 w urządzenia ZN-AIBOX lub w kamerze PixelPRO z serii ZNP/ZNU.",null,380,{"v":380,"d":"380 "},"ZAM",480,"+","+","+","+"]
[null,"ZNS-AI-A05-2","Licencja 2-kanałowa AI | detekcja z rozszerzonym zakresem klasyfikacji pojazdów (Motocykl, Autobus, Ciężarówka) przy zachowaniu klasyfikacji domyślnych (Człowiek, Samochód, Rower). Możliwa jest aktywacja tylko jednej licencji A05 w urządzenia ZN-AIBOX.",null,750,{"v":750,"d":"750 "},"ZAM",480,"+","+","+","-"]
[null,"ZNS-AI-A05-4","Licencja 4-kanałowa AI | detekcja z rozszerzonym zakresem klasyfikacji pojazdów (Motocykl, Autobus, Ciężarówka) przy zachowaniu klasyfikacji domyślnych (Człowiek, Samochód, Rower). Możliwa jest aktywacja tylko jednej licencji A05 w urządzenia ZN-AIBOX.",null,{"v":1500,"d":"1,500"},{"v":1500,"d":"1,500 "},"ZAM",480,"-","+","+","-"]
[null,"ZNS-AI-A07-1","Licencja 1-kanałowa AI | detekcja i klasyfikacja obiektów z kamery FishEye. Możliwa jest aktywacja tylko jednej licencji A07 w urządzeniu ZN-AIBOX.",null,750,{"v":750,"d":"750 "},"ZAM",480,"+","+","+","-"]
[null,"ZNS-AI-A07-2","Licencja 2-kanałowa AI | detekcja i klasyfikacja obiektów z kamery FishEye. Możliwa jest aktywacja tylko jednej licencji A07 w urządzeniu ZN-AIBOX.",null,{"v":1500,"d":"1,500"},{"v":1500,"d":"1,500 "},"ZAM",480,"+","+","+","-"]
[null,"ZNS-AI-A07-4","Licencja 4-kanałowa AI | detekcja i klasyfikacja obiektów z kamery FishEye. Możliwa jest aktywacja tylko jednej licencji A07 w urządzeniu ZN-AIBOX.",null,{"v":3000,"d":"3,000"},{"v":3000,"d":"3,000 "},"ZAM",480,"-","+","+","-"]
[null,"ZNS-AI-A09-1","Licencja 1-kanałowa AI | detekcja płomienia. Możliwa jest aktywacja tylko jednej licencji A09 w urządzeniu ZN-AIBOX.",null,750,{"v":750,"d":"750 "},"ZAM",480,"+","+","+","-"]
[null,"ZNS-AI-A09-2","Licencja 2-kanałowa AI | detekcja płomienia. Możliwa jest aktywacja tylko jednej licencji A09 w urządzeniu ZN-AIBOX.",null,{"v":1500,"d":"1,500"},{"v":1500,"d":"1,500 "},"ZAM",480,"+","+","+","-"]
[null,"ZNS-AI-A09-4","Licencja 4-kanałowa AI | detekcja płomienia. Możliwa jest aktywacja tylko jednej licencji A09 w urządzeniu ZN-AIBOX.",null,{"v":3000,"d":"3,000"},{"v":3000,"d":"3,000 "},"ZAM",480,"-","+","+","-"]
[null,"ZNS-AI-A11-1","Licencja 1-kanałowa AI | detekcja braku kamizelki odblaskowej. Możliwa jest aktywacja tylko jednej licencji A11 w urządzeniu ZN-AIBOX.",null,750,{"v":750,"d":"750 "},"ZAM",480,"+","+","+","-"]
[null,"ZNS-AI-A11-2","Licencja 2-kanałowa AI | detekcja braku kamizelki odblaskowej. Możliwa jest aktywacja tylko jednej licencji A11 w urządzeniu ZN-AIBOX.",null,{"v":1500,"d":"1,500"},{"v":1500,"d":"1,500 "},"ZAM",480,"+","+","+","-"]
[null,"ZNS-AI-A11-4","Licencja 4-kanałowa AI | detekcja braku kamizelki odblaskowej. Możliwa jest aktywacja tylko jednej licencji A11 w urządzeniu ZN-AIBOX.",null,{"v":3000,"d":"3,000"},{"v":3000,"d":"3,000 "},"ZAM",480,"-","+","+","-"]
[null,"ZNS-AI-B01-1","Licencja 1-kanałowa AI | maskowanie wizerunku osób w kadrze. Możliwa jest aktywacja tylko jednej licencji B01 w urządzeniu ZN-AIBOX.",null,750,{"v":750,"d":"750 "},"ZAM",240,"+","+","+","-"]
[null,"ZNS-AI-B01-4","Licencja 4-kanałowa AI | maskowanie wizerunku osób w kadrze. Możliwa jest aktywacja tylko jednej licencji B01 w urządzeniu ZN-AIBOX.",null,{"v":3000,"d":"3,000"},{"v":3000,"d":"3,000 "},"ZAM",240,"+","+","+","-"]
[null,"ZNS-AI-B01-8","Licencja 8-kanałowa AI | maskowanie wizerunku osób w kadrze. Możliwa jest aktywacja tylko jednej licencji B01 w urządzeniu ZN-AIBOX.",null,{"v":6000,"d":"6,000"},{"v":6000,"d":"6,000 "},"ZAM",240,"-","+","+","-"]
[null,"ZNS-AI-C00-1-EU","Licencja 1-kanałowa AI | LPR - odczyt tablic rejestracyjnych (License Plate Recognition). Możliwa jest aktywacja tylko jednej licencji C00 w urządzeniu ZN-AIBOX lub w kamerze PixelPRO z serii ZNP/ZNU.",null,{"v":2300,"d":"2,300"},{"v":2300,"d":"2,300 "},"ZAM","120  (Slow)\n240  (Normal)\n480  (Fast)","+","+","+","+"]
[null,"ZNS-AI-C00-4-EU","Licencja 4-kanałowa AI | LPR - odczyt tablic rejestracyjnych (License Plate Recognition). Możliwa jest aktywacja tylko jednej licencji C00 w urządzeniu ZN-AIBOX.",null,{"v":9000,"d":"9,000"},{"v":9000,"d":"9,000 "},"ZAM","120  (Slow)\n240  (Normal)\n480  (Fast)","+","+","+","-"]
[null,"ZNS-AI-C00-8-EU","Licencja 8-kanałowa AI | LPR - odczyt tablic rejestracyjnych (License Plate Recognition). Możliwa jest aktywacja tylko jednej licencji C00 w urządzeniu ZN-AIBOX.",null,{"v":18000,"d":"18,000"},{"v":18000,"d":"18,000 "},"ZAM","120  (Slow)\n240  (Normal)\n480  (Fast)","-","+","+","-"]
[null,"ZNS-AI-C01","Informacja poglądowa o wykorzystaniu punktów AI dla kanałów z aktywnym modułem FR (Face Recognition) dla licencji sprzętowej ZN-AIBOX-FR1 / FR4 / FR8",null,0,{"v":0,"d":"0 "},"ZAM",240,"-","+","+","-"]
[null,"ZNS-AI-D00-1","Licencja 1-kanałowa AI | detekcja leżącej/przewróconej osoby. Możliwa jest aktywacja tylko jednej licencji D00 w urządzeniu ZN-AIBOX lub w kamerze PixelPRO z serii ZNP/ZNU.",null,380,{"v":380,"d":"380 "},"ZAM",120,"+","+","+","+"]
[null,"ZNS-AI-D00-4","Licencja 4-kanałowa AI | detekcja leżącej/przewróconej osoby. Możliwa jest aktywacja tylko jednej licencji D00 w urządzeniu ZN-AIBOX.",null,{"v":1500,"d":"1,500"},{"v":1500,"d":"1,500 "},"ZAM",120,"+","+","+","-"]
[null,"ZNS-AI-D00-8","Licencja 8-kanałowa AI | detekcja leżącej/przewróconej osoby. Możliwa jest aktywacja tylko jednej licencji D00 w urządzeniu ZN-AIBOX.",null,{"v":3000,"d":"3,000"},{"v":3000,"d":"3,000 "},"ZAM",120,"-","+","+","-"]
[null,"ZNS-AI-W01-1","Licencja 1-kanałowa AI | detekcja dystansu społecznego pomiędzy osobami. Możliwa jest aktywacja tylko jednej licencji W01 w urządzeniu ZN-AIBOX (zasięg do 20m dla obiektywu  <= 2.8mm). Stosowanie tej funkcji z wykorzystaniem kamer fisheye wymaga dodatkowo licencji ZNS-AI-A07.",null,{"v":1500,"d":"1,500"},{"v":1500,"d":"1,500 "},"ZAM","120  (Bullet/Dome)\n480  (FishEye)","+","+","+","-"]
[null,"ZNS-AI-W01-4","Licencja 4-kanałowa AI | detekcja dystansu społecznego pomiędzy osobami. Możliwa jest aktywacja tylko jednej licencji W01 w urządzeniu ZN-AIBOX (zasięg do 20m dla obiektywu  <= 2.8mm). Stosowanie tej funkcji z wykorzystaniem kamer fisheye wymaga dodatkowo licencji ZNS-AI-A07.",null,{"v":6000,"d":"6,000"},{"v":6000,"d":"6,000 "},"ZAM","120  (Bullet/Dome)\n480  (FishEye)","+","+","+","-"]
[null,"ZNS-AI-W01-8","Licencja 8-kanałowa AI | detekcja dystansu społecznego pomiędzy osobami. Możliwa jest aktywacja tylko jednej licencji W01 w urządzeniu ZN-AIBOX (zasięg do 20m dla obiektywu  <= 2.8mm). Stosowanie tej funkcji z wykorzystaniem kamer fisheye wymaga dodatkowo licencji ZNS-AI-A07.",null,{"v":12000,"d":"12,000"},{"v":12000,"d":"12,000 "},"ZAM","120  (Bullet/Dome)\n480  (FishEye)","+","+","+","-"]
[null,"ZNS-AI-X00","Licencja AI | generowanie zdarzeń na podstawie wyniku kombinacji wartości liczników (suma/różnica). Możliwa jest aktywacja tylko jednej licencji AI-X00 w urządzeniu ZN-AIBOX.",null,750,{"v":750,"d":"750 "},"ZAM","-","+","+","+","-"]
[null,"Funkcje analityki AI są dostępne dla urządzeń ZN-AIBOX oraz kamer PixelPRO z serii ZNP/ZNU zgodnie z powyższą tabelą.\nZamówienie licencji skutkuje jednorazowym przypisaniem dodatkowych funkcjonalności do urządzenia na podstawie wskazanego w zamówieniu fizycznego adresu MAC. Szczegółowe informacje są dostępne w ogólnych warunkach handlowych niniejszego cennika."]
[]
[null,"Licencje sprzętowe AI do urządzeń AI BOX"]
[null,"ZN-AIBOX-FR1","Licencja 1-kanałowa AI | FR - identyfikacja twarzy (Face Recognition) do urządzeń ZN-AIBOX w formie fizycznego modułu instalowanego w dedykowanym złączu wewnątrz urządzenia ZN-AIBOX (uwaga: dostępne jest tylko jedno złącze w urządzeniu). Kompatybilne wyłącznie z modelem ZN-AIBOX16.",null,{"v":1300,"d":"1,300"},{"$f":"E91-(E91*F$6)","v":{"v":1300,"d":"1,300 "}},"ZAM"]
[null,"ZN-AIBOX-FR4","Licencja 4-kanałowa AI | FR - identyfikacja twarzy (Face Recognition) do urządzeń ZN-AIBOX w formie fizycznego modułu instalowanego w dedykowanym złączu wewnątrz urządzenia ZN-AIBOX (uwaga: dostępne jest tylko jedno złącze w urządzeniu). Kompatybilne wyłącznie z modelem ZN-AIBOX16.",null,{"v":5300,"d":"5,300"},{"$f":"E92-(E92*F$6)","v":{"v":5300,"d":"5,300 "}},"ZAM"]
[null,"ZN-AIBOX-FR8","Licencja 8-kanałowa AI | FR - identyfikacja twarzy (Face Recognition) do urządzeń ZN-AIBOX w formie fizycznego modułu instalowanego w dedykowanym złączu wewnątrz urządzenia ZN-AIBOX (uwaga: dostępne jest tylko jedno złącze w urządzeniu). Kompatybilne wyłącznie z modelem ZN-AIBOX16.",null,{"v":10500,"d":"10,500"},{"$f":"E93-(E93*F$6)","v":{"v":10500,"d":"10,500 "}},"ZAM"]
[null,"Licencje FR (Face Recognition  - rozpoznawania twarzy) są fizycznymi modułami instalowanymi wewnątrz urządzenia ZN-AIBOX.\nZamówienie licencji FR skutkuje dostarczeniem sprzętowego modułu licencji przeznaczonego do instalacji wewnątrz obudowy urządzenia ZN-AIBOX. Ważne - w urządzeniu AIBOX jest dostępne tylko jedno złącze do modułu FR. Szczegółowe informacje są dostępne w ogólnych warunkach handlowych niniejszego cennika."]

{"sheet":"COMPUTAR | Obiektywy","index":5,"n_rows":155,"n_cols":7,"rows_kept":155,"merged":[[2,1,4,1],[2,2,4,2],[2,3,4,5],[137,3,137,4],[145,3,145,4]]}
[]
[]
[null,{"$error":"#VALUE!"},"CENNIK PRODUKTÓW CCTV",{"$error":"#VALUE!"}]
[]
[]
[]
[{"$nulls":3},"RABAT: ",{"v":0,"d":"0%"}]
[null,"Model (kod) towaru","Opis","Cena PLN detal","Cena PLN z rabatem","Dostępność "]
[]
[null,{"$error":"#VALUE!"},"Obiektywy CCTV  |  MegaPixel  | Zmienna ogniskowa"]
[null,"A4Z2812CS-MPIR","Obiektyw 3MP 1/2.7\" CS,  2.8 - 10 mm F1.2, przysłona ręczna, korekcja IR. ",510,{"$f":"D11-(D11*E$7)","v":{"v":510,"d":"510 "}},"ZAM"]
[null,"AG4Z2812FCS-MPIR-31","Obiektyw 3MP 1/2.7\" CS,  2.8 - 10 mm F1.2, przysłona typu DC, korekcja IR. ",470,{"v":470,"d":"470 "},"ZAM"]
[null,"A4Z1214CS-MPIR","Obiektyw 3MP 1/2.7\" CS, 12.5 - 50mm, F1.4, przysłona DC, korekcja IR. ",{"v":1080,"d":"1,080"},{"v":1080,"d":"1,080 "},"ZAM"]
[null,"AG4Z1214FCS-MPIR-31","Obiektyw 3MP 1/2.7\" CS, 12.5 - 50mm, F1.4, przysłona DC, korekcja IR. ",{"v":1150,"d":"1,150"},{"v":1150,"d":"1,150 "},"ZAM"]
[null,"E3Z3915CS-MPWIR","Obiektyw 8MP  1/1.8\" CS, 3.9 - 10mm, F1.5, przysłona ręczna. ",700,{"v":700,"d":"700 "},"ZAM"]
[null,"EG3Z3915FCS-MPWIR-31","Obiektyw 8MP  1/1.8\" CS, 3.9 - 10mm, F1.5, przysłona DC, korekcja IR. ",760,{"v":760,"d":"760 "},"ZAM"]
[null,"EG6Z0915FCS-MPWIR","Obiektyw 8MP  1/1.8\" CS, 9.0 - 50mm, F1.5, przysłona DC, korekcja IR. ",{"v":1550,"d":"1,550"},{"v":1550,"d":"1,550 "},"ZAM"]
[null,"EG3Z0409FCS-MPWIR","Obiektyw 8MP  1/1.8\" CS, 4.0 - 10mm, F0.9, przysłona DC, korekcja IR. ",{"v":2700,"d":"2,700"},{"v":2700,"d":"2,700 "},"ZAM"]
[null,"Obiektywy CCTV  |  Manual Zoom"]
[null,"M6Z1212-3S","Obiektyw 2/3\" C,  12.5 – 75.0 mm,  F1.2-16, przysłona ręczna.","na zapytanie ","na zapytanie ","ZAM"]
[null,"Obiektywy CCTV  |  Motorized  |  MegaPixel "]
[null,"H62Z1235PDC-MP2","Obiektyw 2MP 1/2\" 12.5-775mm F3.5, przysłona DC, preset.","na zapytanie ","na zapytanie ","ZAM"]
[null,"H62Z1235PDC-MPIR","Obiektyw 2MP 1/2\" 12.5-775mm F3.5, przysłona DC, preset, korekcja IR.","na zapytanie ","na zapytanie ","ZAM"]
[null,"H62Z1235PDC-MPIR-EX","Obiektyw 2MP 1/2\" 12.5-775mm F3.5, przysłona DC, preset, korekcja IR, Extender. ","na zapytanie ","na zapytanie ","ZAM"]
[null,"E24Z1018PDC-MP","Obiektyw 3MP 1/1.8\" 10-240mm F1.8, filtr SPOT, przysłona DC, preset.","na zapytanie ","na zapytanie ","ZAM"]
[null,"E24Z1018PDC-MPIR","Obiektyw 3MP 1/1.8\" 10-240mm F1.8, filtr SPOT, przysłona DC, korekcja IR, preset.","na zapytanie ","na zapytanie ","ZAM"]
[null,"E66Z1635PDC-MP","Obiektyw 2MP 1/1.8\" 16.7-1100.0mm F3.5, przysłona DC, preset.","na zapytanie ","na zapytanie ","ZAM"]
[null,"E66Z1635PDC-MPIR","Obiektyw 2MP 1/1.8\" 16.7-1100.0mm F3.5, przysłona DC, preset, korekcja IR.","na zapytanie ","na zapytanie ","ZAM"]
[null,"M24Z1527PDC-MP","Obiektyw 2MP 2/3\" 15.0-360mm F2.7, przysłona DC, preset.","na zapytanie ","na zapytanie ","ZAM"]
[null,"M24Z2138PDC-MP","Obiektyw 2MP 2/3\" 21-500mm F3.8, przysłona DC, preset.","na zapytanie ","na zapytanie ","ZAM"]
[null,{"$error":"#VALUE!"},"Obiektywy Machine Vision"]
[null,"M3Z1228C-MP","Obiektyw MEGAPIXEL 2/3\" C, 12–36 mm, F2.8, przysłona ręczna.",{"v":1600,"d":"1,600"},{"$f":"D32-(D32*E$7)","v":{"v":1600,"d":"1,600 "}},"ZAM"]
[null,"H0514-MP2","Obiektyw MEGAPIXEL 1/2’’ C 5mm, F1,4, przysłona ręczna. ",{"v":1350,"d":"1,350"},{"v":1350,"d":"1,350 "},"ZAM"]
[null,"M0814-MP2","Obiektyw MEGAPIXEL 2/3\" C, 8mm, F1.4, przysłona ręczna.",{"v":1000,"d":"1,000"},{"v":1000,"d":"1,000 "},"ZAM"]
[null,"M1214-MP2","Obiektyw MEGAPIXEL 2/3\" C, 12mm, F1.4, przysłona ręczna.",950,{"v":950,"d":"950 "},"ZAM"]
[null,"M1614-MP2","Obiektyw MEGAPIXEL 2/3\" C, 16mm, F1.4, przysłona ręczna.",850,{"v":850,"d":"850 "},"ZAM"]
[null,"M2514-MP2","Obiektyw MEGAPIXEL 2/3\" C, 25mm, F1.4, przysłona ręczna.",900,{"v":900,"d":"900 "},"ZAM"]
[null,"M3514-MP","Obiektyw MEGAPIXEL 2/3\" C, 35mm, F1.4-16, przysłona ręczna.",{"v":1100,"d":"1,100"},{"v":1100,"d":"1,100 "},"ZAM"]
[null,"M5018-MP2","Obiektyw MEGAPIXEL 2/3\" C, 50mm, F1.8-16, przysłona ręczna.",{"v":1000,"d":"1,000"},{"v":1000,"d":"1,000 "},"ZAM"]
[null,"M7528-MP","Obiektyw MEGAPIXEL 2/3\" C, 75mm, F1.4-16, przysłona ręczna. ",{"v":1500,"d":"1,500"},{"v":1500,"d":"1,500 "},"ZAM"]
[null,"M0824-MPW2-R series","Obiektyw 5MP Ruggedized, 2/3\" C, 8mm, F2.4, przysłona ręczna.","na zapytanie ","na zapytanie ","ZAM"]
[null,"M1224-MPW2-R series","Obiektyw 5MP Ruggedized, 2/3\" C, 12mm, F2.4, przysłona ręczna.","na zapytanie ","na zapytanie ","ZAM"]
[null,"M1620-MPW2-R series","Obiektyw 5MP Ruggedized, 2/3\" C, 16mm, F2.0, przysłona ręczna.","na zapytanie ","na zapytanie ","ZAM"]
[null,"M2518-MPW2-R series","Obiektyw 5MP Ruggedized, 2/3\" C, 25mm, F1.8, przysłona ręczna.","na zapytanie ","na zapytanie ","ZAM"]
[null,"M3520-MPW2-R series","Obiektyw 5MP Ruggedized, 2/3\" C, 35mm, F2.0, przysłona ręczna.","na zapytanie ","na zapytanie ","ZAM"]
[null,"M5028-MPW2-R series","Obiektyw 5MP Ruggedized, 2/3\" C, 50mm, F2.8, przysłona ręczna.","na zapytanie ","na zapytanie ","ZAM"]
[null,"M0528-MPW3","Obiektyw 6MP 2/3\" C, 5mm, F2.8 przysłona ręczna.",{"v":2600,"d":"2,600"},{"$f":"D47-(D47*E$7)","v":{"v":2600,"d":"2,600 "}},"ZAM"]
[null,"M0828-MPW3","Obiektyw 6MP 2/3\" C, 8mm, F2.8 przysłona ręczna.",{"v":1600,"d":"1,600"},{"v":1600,"d":"1,600 "},"ZAM"]
[null,"M1228-MPW3","Obiektyw 6MP 2/3\" C, 12mm, F2.8 przysłona ręczna.",{"v":1400,"d":"1,400"},{"v":1400,"d":"1,400 "},"ZAM"]
[null,"M1628-MPW3","Obiektyw 6MP 2/3\" C, 16mm, F2.8 przysłona ręczna.",{"v":1300,"d":"1,300"},{"v":1300,"d":"1,300 "},"ZAM"]
[null,"M2528-MPW3","Obiektyw 6MP 2/3\" C, 25mm, F2.8 przysłona ręczna.",{"v":1300,"d":"1,300"},{"v":1300,"d":"1,300 "},"ZAM"]
[null,"M3528-MPW3","Obiektyw 6MP 2/3\" C, 35mm, F2.8 przysłona ręczna.",{"v":1300,"d":"1,300"},{"v":1300,"d":"1,300 "},"ZAM"]
[null,"M5028-MPW3","Obiektyw 6MP 2/3\" C, 50mm, F2.8 przysłona ręczna.",{"v":1300,"d":"1,300"},{"v":1300,"d":"1,300 "},"ZAM"]
[null,"M7528-MPW3","Obiektyw 6MP 2/3\" C, 75mm, F2.8 przysłona ręczna.",{"v":1800,"d":"1,800"},{"v":1800,"d":"1,800 "},"ZAM"]
[null,"V0826-MPZ","Obiektyw 1\" C, 8mm, F2.6, kompatybilny z przetwornikami  IMX183, IMX255, IMX267/305, EV2S12M, XGS12000, CMV4000 do 20MP, przysłona ręczna. ",{"v":4000,"d":"4,000"},{"v":4000,"d":"4,000 "},"ZAM"]
[null,"V1226-MPZ","Obiektyw 1\" C, 12mm, F2.6, kompatybilny z przetwornikami  IMX183, IMX255, IMX267/305, EV2S12M, XGS12000, CMV4000 do 20MP, przysłona ręczna. ",{"v":3500,"d":"3,500"},{"v":3500,"d":"3,500 "},"ZAM"]
[null,"V1624-MPZ","Obiektyw 1\" C, 16mm, F2.4, kompatybilny z przetwornikami  IMX183, IMX255, IMX267/305, EV2S12M, XGS12000, CMV4000 do 20MP, przysłona ręczna. ",{"v":3300,"d":"3,300"},{"v":3300,"d":"3,300 "},"ZAM"]
[null,"V2520-MPZ","Obiektyw 1\" C, 25mm, F2.0, kompatybilny z przetwornikami  IMX183, IMX255, IMX267/305, EV2S12M, XGS12000, CMV4000 do 20MP, przysłona ręczna. ",{"v":3300,"d":"3,300"},{"v":3300,"d":"3,300 "},"ZAM"]
[null,"V3522-MPZ","Obiektyw 1\" C, 35mm, F2.2, kompatybilny z przetwornikami  IMX183, IMX255, IMX267/305, EV2S12M, XGS12000, CMV4000 do 20MP, przysłona ręczna. ",{"v":3300,"d":"3,300"},{"v":3300,"d":"3,300 "},"ZAM"]
[null,"V5024-MPZ","Obiektyw 1\" C, 50mm, F2.4, kompatybilny z przetwornikami  IMX183, IMX255, IMX267/305, EV2S12M, XGS12000, CMV4000 do 20MP, przysłona ręczna. ",{"v":3300,"d":"3,300"},{"v":3300,"d":"3,300 "},"ZAM"]
[null,"V7531-MPZ","Obiektyw 1\" C, 75mm, F3.1, kompatybilny z przetwornikami  IMX183, IMX255, IMX267/305, EV2S12M, XGS12000, CMV4000 do 20MP, przysłona ręczna. ",{"v":3700,"d":"3,700"},{"v":3700,"d":"3,700 "},"ZAM"]
[null,"V0828-MPY2","Obiektyw 12MP, 1.1\" C, 8mm, F2.8, przysłona ręczna. ",{"v":3900,"d":"3,900"},{"v":3900,"d":"3,900 "},"ZAM"]
[null,"V1228-MPY2","Obiektyw 12MP, 1.1\" C, 12mm, F2.8, przysłona ręczna. ",{"v":3600,"d":"3,600"},{"v":3600,"d":"3,600 "},"ZAM"]
[null,"V1628-MPY2","Obiektyw 12MP, 1.1\" C, 16mm, F2.8, przysłona ręczna. ",{"v":3500,"d":"3,500"},{"v":3500,"d":"3,500 "},"ZAM"]
[null,"V2528-MPY","Obiektyw 12MP, 1.1\" C, 25mm, F2.8, przysłona ręczna. ",{"v":3500,"d":"3,500"},{"v":3500,"d":"3,500 "},"ZAM"]
[null,"V3528-MPY","Obiektyw 12MP, 1.1\" C, 35mm, F2.8, przysłona ręczna. ",{"v":3500,"d":"3,500"},{"v":3500,"d":"3,500 "},"ZAM"]
[null,"V5028-MPY","Obiektyw 12MP, 1.1\" C, 50mm, F2.8, przysłona ręczna. ",{"v":3500,"d":"3,500"},{"v":3500,"d":"3,500 "},"ZAM"]
[null,"F1228-MPT","Obiektyw 45MP, 1.4\", C, 12mm, F2.8, przysłona ręczna. ",{"v":6300,"d":"6,300"},{"v":6300,"d":"6,300 "},"ZAM"]
[null,"F1628-MPT","Obiektyw 45MP, 1.4\", C, 16mm, F2.8, przysłona ręczna. ",{"v":6300,"d":"6,300"},{"v":6300,"d":"6,300 "},"ZAM"]
[null,"F2524-MPT","Obiektyw 45MP, 1.4\", C, 25mm, F2.4, przysłona ręczna. ",{"v":5900,"d":"5,900"},{"v":5900,"d":"5,900 "},"ZAM"]
[null,"F3536-MPT","Obiektyw 45MP, 1.4\", C, 35mm, F2.6, przysłona ręczna. ",{"v":5900,"d":"5,900"},{"v":5900,"d":"5,900 "},"ZAM"]
[null,"F5026-MPT","Obiektyw 45MP, 1.4\", C, 50mm, F2.6, przysłona ręczna. ",{"v":5900,"d":"5,900"},{"v":5900,"d":"5,900 "},"ZAM"]
[null,{"$error":"#VALUE!"},"Obiektywy CCTV  |  ITS MegaPixel"]
[null,"M2514FIC-MPIR","Obiektyw 5MP  2/3\" C 25mm  F1.4  przysłona ręczna, korekcja IR.",{"v":2900,"d":"2,900"},{"$f":"D74-(D74*E$7)","v":{"v":2900,"d":"2,900 "}},"ZAM"]
[null,"MG2514FC-MPIR","Obiektyw 5MP  2/3\" C 25mm  F1.4  przysłona DC korekcja IR.",{"v":3000,"d":"3,000"},{"v":3000,"d":"3,000 "},"ZAM"]
[null,"M3518FIC-MPIR","Obiektyw 5MP  2/3\" C 35mm  F1.8  przysłona ręczna, korekcja IR.",{"v":3100,"d":"3,100"},{"v":3100,"d":"3,100 "},"ZAM"]
[null,"MG3518FC-MPIR","Obiektyw 5MP  2/3\" C 35mm  F1.8  przysłona DC korekcja IR.",{"v":3200,"d":"3,200"},{"v":3200,"d":"3,200 "},"ZAM"]
[null,"M5020FIC-MPIR","Obiektyw 5MP  2/3\" C 50mm  F2.0  przysłona ręczna, korekcja IR.",{"v":3900,"d":"3,900"},{"v":3900,"d":"3,900 "},"ZAM"]
[null,"MG5020FC-MPIR","Obiektyw 5MP 2/3\" C 50mm  F2.0  przysłona DC korekcja IR.",{"v":4000,"d":"4,000"},{"v":4000,"d":"4,000 "},"ZAM"]
[null,"V2518FIC-MPYIR","Obiektyw 12MP, 1.1\", C, 25mm, F1.8, przysłona ręczna. ",{"v":4400,"d":"4,400"},{"v":4400,"d":"4,400 "},"ZAM"]
[null,"V3518FIC-MPYIR","Obiektyw 12MP, 1.1\", C, 35mm, F1.8, przysłona ręczna. ",{"v":4400,"d":"4,400"},{"v":4400,"d":"4,400 "},"ZAM"]
[null,"V5020FIC-MPYIR","Obiektyw 12MP, 1.1\", C, 50mm, F2.0, przysłona ręczna. ",{"v":4400,"d":"4,400"},{"v":4400,"d":"4,400 "},"ZAM"]
[null,{"$error":"#VALUE!"},"Obiektywy CCTV  |  Specjalistyczne"]
[null,"TEC-M55","Obiektyw  2/3\" C,  55mm  F2.8-32   TELECENTRYCZNY.",{"v":2900,"d":"2,900"},{"$f":"D84-(D84*E$7)","v":{"v":2900,"d":"2,900 "}},"ZAM"]
[null,"TEC-M55-75","Ekstender ogniskowej dla TECM55, 0.75x.",900,{"v":900,"d":"900 "},"ZAM"]
[null,"TEC-M55-20","Ekstender ogniskowej dla TECM55, 2x.",950,{"v":950,"d":"950 "},"ZAM"]
[null,"TEC-M55MPW","Obiektyw  5MP 2/3\" C,  55mm  F2.8-32   TELECENTRYCZNY.",{"v":4100,"d":"4,100"},{"v":4100,"d":"4,100 "},"ZAM"]
[null,"TEC-M0565MPC ","Obiektyw telecentryczny 2MP 2/3\" typu coax - oświetlenie boczne, powiększenie 0.5x, dystans do obiektu: 65,5mm, efektywny F9.0, maks. format obrazu fi 11mm, głębia pola 2,87mm, mocowanie C, NA=0,028, dystorsje TV (2/3): 0,012%. ",{"v":3200,"d":"3,200"},{"v":3200,"d":"3,200 "},"ZAM"]
[null,"TEC-M0565MP ","Obiektyw telecentryczny 2MP 2/3\" typu coax - oświetlenie na wprost, powiększenie 0.5x, dystans do obiektu: 65,5mm, efektywny F9.0, maks. format obrazu fi 11mm, głębia pola 2,87mm, mocowanie C, NA=0,028, dystorsje TV (2/3): 0,012%. ",{"v":2700,"d":"2,700"},{"v":2700,"d":"2,700 "},"ZAM"]
[null,"TEC-M0865MPC","Obiektyw telecentryczny 2MP 2/3\" typu coax - oświetlenie boczne, powiększenie 0.8x, dystans do obiektu: 66mm, efektywny F9.4, maks. format obrazu fi 11mm, głębia pola 1,18mm, mocowanie C, NA=0,042, dystorsje TV (2/3): 0,008%.",{"v":2900,"d":"2,900"},{"v":2900,"d":"2,900 "},"ZAM"]
[null,"TEC-M0865MP","Obiektyw telecentryczny 2MP 2/3\" typu coax - oświetlenie na wprost, powiększenie 0.8x, dystans do obiektu: 66mm, efektywny F9.4, maks. format obrazu fi 11mm, głębia pola 1,18mm, mocowanie C, NA=0,042, dystorsje TV (2/3): 0,008%.",{"v":2400,"d":"2,400"},{"v":2400,"d":"2,400 "},"ZAM"]
[null,"TEC-M1065MPC","Obiektyw telecentryczny 2MP 2/3\" typu coax - oświetlenie boczne, powiększenie 1.0x, dystans do obiektu: 65,5mm, efektywny F9.8, maks. format obrazu fi 11mm, głębia pola 0,79mm, mocowanie C, NA=0,05, dystorsje TV (2/3): 0,022%.",{"v":2900,"d":"2,900"},{"v":2900,"d":"2,900 "},"ZAM"]
[null,"TEC-M1065MP","Obiektyw telecentryczny 2MP 2/3\" typu coax - oświetlenie na wprost, powiększenie 1.0x, dystans do obiektu: 65,5mm, efektywny F9.8, maks. format obrazu fi 11mm, głębia pola 0,79mm, mocowanie C, NA=0,05, dystorsje TV (2/3): 0,022%.",{"v":2200,"d":"2,200"},{"v":2200,"d":"2,200 "},"ZAM"]
[null,"TEC-M2065MPC","Obiektyw telecentryczny 2MP 2/3\" typu coax - oświetlenie boczne, powiększenie 2.0x, dystans do obiektu: 65,4mm, efektywny F12.8, maks. format obrazu fi 11mm, głębia pola 0,26mm, mocowanie C, NA=0,076, dystorsje TV (2/3): 0,02%.",{"v":2900,"d":"2,900"},{"v":2900,"d":"2,900 "},"ZAM"]
[null,"TEC-M2065MP","Obiektyw telecentryczny 2MP 2/3\" typu coax - oświetlenie na wprost, powiększenie 2.0x, dystans do obiektu: 65,4mm, efektywny F12.8, maks. format obrazu fi 11mm, głębia pola 0,26mm, mocowanie C, NA=0,076, dystorsje TV (2/3): 0,02%.",{"v":2600,"d":"2,600"},{"v":2600,"d":"2,600 "},"ZAM"]
[null,"TEC-M03110MPC","Obiektyw telecentryczny 2MP 2/3\" typu coax - oświetlenie boczne, powiększenie 0.3x, dystans do obiektu: 111mm, efektywny F6.5, maks. format obrazu fi 12,8mm, głębia pola 5,75mm, mocowanie C, NA=0,023, dystorsje TV (2/3): 0,026%.",{"v":4100,"d":"4,100"},{"v":4100,"d":"4,100 "},"ZAM"]
[null,"TEC-M03110MP","Obiektyw telecentryczny 2MP 2/3\" typu coax - oświetlenie na wprost, powiększenie 0.3x, dystans do obiektu: 111mm, efektywny F6.5, maks. format obrazu fi 12,8mm, głębia pola 5,75mm, mocowanie C, NA=0,023, dystorsje TV (2/3): 0,026%.",{"v":3600,"d":"3,600"},{"v":3600,"d":"3,600 "},"ZAM"]
[null,"TEC-M05110MPC","Obiektyw telecentryczny 2MP 2/3\" typu coax - oświetlenie boczne, powiększenie 0.5x, dystans do obiektu: 111,8mm, efektywny F9.4, maks. format obrazu fi 11mm, głębia pola 3,03mm, mocowanie C, NA=0,026, dystorsje TV (2/3): 0,009%.",{"v":3900,"d":"3,900"},{"v":3900,"d":"3,900 "},"ZAM"]
[null,"TEC-M05110MP ","Obiektyw telecentryczny 2MP 2/3\" typu coax - oświetlenie na wprost, powiększenie 0.5x, dystans do obiektu: 111,8mm, efektywny F9.4, maks. format obrazu fi 11mm, głębia pola 3,03mm, mocowanie C, NA=0,026, dystorsje TV (2/3): 0,009%.",{"v":2800,"d":"2,800"},{"v":2800,"d":"2,800 "},"ZAM"]
[null,"TEC-M08110MPC","Obiektyw telecentryczny 2MP 2/3\" typu coax - oświetlenie boczne, powiększenie 0.8x, dystans do obiektu: 111mm, efektywny F10.2, maks. format obrazu fi 11mm, głębia pola 1,31mm, mocowanie C, NA=0,038, dystorsje TV (2/3): 0,027%.",{"v":2900,"d":"2,900"},{"v":2900,"d":"2,900 "},"ZAM"]
[null,"TEC-M08110MP","Obiektyw telecentryczny 2MP 2/3\" typu coax - oświetlenie na wprost, powiększenie 0.8x, dystans do obiektu: 111mm, efektywny F10.2, maks. format obrazu fi 11mm, głębia pola 1,31mm, mocowanie C, NA=0,038, dystorsje TV (2/3): 0,027%.",{"v":2400,"d":"2,400"},{"v":2400,"d":"2,400 "},"ZAM"]
[null,"TEC-M10110MPC","Obiektyw telecentryczny 2MP 2/3\" typu coax - oświetlenie boczne, powiększenie 1.0x, dystans do obiektu: 111,5mm, efektywny F10.1, maks. format obrazu fi 11mm, głębia pola 0,82mm, mocowanie C, NA=0,049, dystorsje TV (2/3): 0,003%.",{"v":2900,"d":"2,900"},{"v":2900,"d":"2,900 "},"ZAM"]
[null,"TEC-M10110MP","Obiektyw telecentryczny 2MP 2/3\" typu coax - oświetlenie na wprost, powiększenie 1.0x, dystans do obiektu: 111,5mm, efektywny F10.1, maks. format obrazu fi 11mm, głębia pola 0,82mm, mocowanie C, NA=0,049, dystorsje TV (2/3): 0,003%.",{"v":2800,"d":"2,800"},{"v":2800,"d":"2,800 "},"ZAM"]
[null,"TEC-M15110MPC","Obiektyw telecentryczny 2MP 2/3\" typu coax - oświetlenie boczne, powiększenie 1.5x, dystans do obiektu: 110,7mm, efektywny F11.5, maks. format obrazu fi 11mm, głębia pola 0,42mm, mocowanie C, NA=0,064, dystorsje TV (2/3): 0,031%.",{"v":3900,"d":"3,900"},{"v":3900,"d":"3,900 "},"ZAM"]
[null,"TEC-M15110MP","Obiektyw telecentryczny 2MP 2/3\" typu coax - oświetlenie na wprost, powiększenie 1.5x, dystans do obiektu: 110,7mm, efektywny F11.5, maks. format obrazu fi 11mm, głębia pola 0,42mm, mocowanie C, NA=0,064, dystorsje TV (2/3): 0,031%.",{"v":2800,"d":"2,800"},{"v":2800,"d":"2,800 "},"ZAM"]
[null,"TEC-M20110MPC","Obiektyw telecentryczny 2MP 2/3\" typu coax - oświetlenie boczne, powiększenie 2.0x, dystans do obiektu: 110,9mm, efektywny F13.0, maks. format obrazu fi 11mm, głębia pola 0,27mm, mocowanie C, NA=0,075, dystorsje TV (2/3): 0,019%.",{"v":3900,"d":"3,900"},{"v":3900,"d":"3,900 "},"ZAM"]
[null,"TEC-M20110MP","Obiektyw telecentryczny 2MP 2/3\" typu coax - oświetlenie na wprost, powiększenie 2.0x, dystans do obiektu: 110,9mm, efektywny F13.0, maks. format obrazu fi 11mm, głębia pola 0,27mm, mocowanie C, NA=0,075, dystorsje TV (2/3): 0,019%.",{"v":2800,"d":"2,800"},{"v":2800,"d":"2,800 "},"ZAM"]
[null,"MLH10X","Obiektyw 1/2” C, 18.0 – 180.0 mm  F5.6-32   MAKRO-ZOOM.",{"v":2100,"d":"2,100"},{"v":2100,"d":"2,100 "},"ZAM"]
[null,"MLM-3XMP","Obiektyw MEGAPIXEL 2/3\" C, 12 – 36 mm, F4.5-22, MAKRO MEGAPIXEL.",{"v":2600,"d":"2,600"},{"v":2600,"d":"2,600 "},"ZAM"]
[null,"TEC-V7X","Obiektyw 5MP  1.1\" C 182mm-577.2mm, F4.3-F32,  TELECENTRYCZNY.",{"v":11500,"d":"11,500"},{"v":11500,"d":"11,500 "},"ZAM"]
[null,"Akcesoria"]
[null,"VM100","Zestaw tub przedłużających wkręcanych pomiędzy obiektyw i kamerę (0.5, 1, 5, 10, 20, 40 mm), umożliwia uzyskanie ostrości w bliskich odległościach do obiektu.",230,{"$f":"D112-(D112*E$7)","v":{"v":230,"d":"230 "}},"ZAM"]
[null,"VM400","5-milimetrowy pierścień do podłączenia obiektywów o mocowaniu C do kamer z mocowaniem CS.",45,{"$f":"D113-(D113*E$7)","v":{"v":45,"d":"45 "}},"ZAM"]
[null,"EX1.5C","Ekstender ogniskowej 1.5x montowany między obiektywem a kamerą.",440,{"$f":"D114-(D114*E$7)","v":{"v":440,"d":"440 "}},"ZAM"]
[null,"EX2.0C","Ekstender ogniskowej 2x montowany między obiektywem a kamerą.",540,{"$f":"D115-(D115*E$7)","v":{"v":540,"d":"540 "}},"ZAM"]
[null,"Obiektywy SWIR"]
[null,"M1614-SW","Obiektyw SWIR 2/3\" C,16mm, F1.4, przysłona ręczna. ",{"v":3500,"d":"3,500"},{"$f":"D117-(D117*E$7)","v":{"v":3500,"d":"3,500 "}},"ZAM"]
[null,"M2514-SW","Obiektyw SWIR 2/3\" C,25mm, F1.4, przysłona ręczna. ",{"v":3500,"d":"3,500"},{"$f":"D118-(D118*E$7)","v":{"v":3500,"d":"3,500 "}},"ZAM"]
[null,"M3514-SW","Obiektyw SWIR 2/3\" C,35mm, F1.4, przysłona ręczna. ",{"v":3500,"d":"3,500"},{"$f":"D119-(D119*E$7)","v":{"v":3500,"d":"3,500 "}},"ZAM"]
[null,"M5018-SW","Obiektyw SWIR 2/3\" C,50mm, F1.8, przysłona ręczna. ",{"v":3500,"d":"3,500"},{"$f":"D120-(D120*E$7)","v":{"v":3500,"d":"3,500 "}},"ZAM"]
[null,{"$error":"#VALUE!"},"Obiektywy ViSWIR LITE"]
[null,"H0514-VSW","Obiektyw ViSWIR LITE2/3\",C 5mm, F1.4, 400 - 1700nm, przysłona ręczna.",{"v":5000,"d":"5,000"},{"$f":"D122-(D122*E$7)","v":{"v":5000,"d":"5,000 "}},"ZAM"]
[null,"M0814-VSW","Obiektyw ViSWIR LITE2/3\",C 8mm, F1.4, 400 - 1700nm, przysłona ręczna.",{"v":5000,"d":"5,000"},{"v":5000,"d":"5,000 "},"ZAM"]
[null,"M1214-VSW","Obiektyw ViSWIR LITE2/3\",C 12mm, F1.4, 400 - 1700nm, przysłona ręczna.",{"v":5000,"d":"5,000"},{"v":5000,"d":"5,000 "},"ZAM"]
[null,"M1614-VSW","Obiektyw ViSWIR LITE2/3\",C 16mm, F1.4, 400 - 1700nm, przysłona ręczna.",{"v":5000,"d":"5,000"},{"v":5000,"d":"5,000 "},"ZAM"]
[null,"M2514-VSW","Obiektyw ViSWIR LITE2/3\",C 25mm, F1.4, 400 - 1700nm, przysłona ręczna.",{"v":5000,"d":"5,000"},{"v":5000,"d":"5,000 "},"ZAM"]
[null,"M3514-VSW","Obiektyw ViSWIR LITE2/3\",C 35mm, F1.4, 400 - 1700nm, przysłona ręczna.",{"v":5000,"d":"5,000"},{"v":5000,"d":"5,000 "},"ZAM"]
[null,"M5018-VSW","Obiektyw ViSWIR LITE2/3\",C 50mm, F1.8, 400 - 1700nm, przysłona ręczna.",{"v":5000,"d":"5,000"},{"v":5000,"d":"5,000 "},"ZAM"]
[null,{"$error":"#VALUE!"},"Obiektywy ViSWIR Hyper-APO"]
[null,"M0818-APVSW","Obiektyw ViSWIR Hyper-APO 2/3\", C 8mm, F1.8, 400 - 1700nm, przysłona ręczna. ",{"v":28000,"d":"28,000"},{"$f":"D130-(D130*E$7)","v":{"v":28000,"d":"28,000 "}},"ZAM"]
[null,"M1218-APVSW","Obiektyw ViSWIR Hyper-APO 2/3\", C 12mm, F1.8, 400 - 1700nm, przysłona ręczna. ",{"v":28000,"d":"28,000"},{"$f":"D131-(D131*E$7)","v":{"v":28000,"d":"28,000 "}},"ZAM"]
[null,"M1618-APVSW","Obiektyw ViSWIR Hyper-APO 2/3\", C 16mm, F1.8, 400 - 1700nm, przysłona ręczna. ",{"v":28000,"d":"28,000"},{"$f":"D132-(D132*E$7)","v":{"v":28000,"d":"28,000 "}},"ZAM"]
[null,"M2518-APVSW","Obiektyw ViSWIR Hyper-APO 2/3\", C 25mm, F1.8, 400 - 1700nm, przysłona ręczna. ",{"v":28000,"d":"28,000"},{"$f":"D133-(D133*E$7)","v":{"v":28000,"d":"28,000 "}},"ZAM"]
[null,"M3518-APVSW","Obiektyw ViSWIR Hyper-APO 2/3\", C 35mm, F1.8, 400 - 1700nm, przysłona ręczna. ","na zapytanie ","na zapytanie ","ZAM"]
[null,"M5018-APVSW","Obiektyw ViSWIR Hyper-APO 2/3\", C 50mm, F1.8, 400 - 1700nm, przysłona ręczna. ","na zapytanie ","na zapytanie ","ZAM"]
[null,{"$error":"#VALUE!"},"ViSWIR Mirror Reflex Zoom Lens"]
[null,"E3Z5247P-MPSW","Obiektyw Zoom 1.3MP 1/1.8\", C 520-1300mm, F4.7, przysłona FIX, Defog, Focus, ViSWIR.",{"v":420000,"d":"420,000"},{"$f":"D137-(D137*E$7)","v":{"v":420000,"d":"420,000 "}},"ZAM"]
[null,{"$error":"#VALUE!"},"LensConnect RF Series",{"$error":"#VALUE!"},null,null,{"$error":"#VALUE!"}]
[null,"VL0826U-MPZ","Obiektyw 20MP 1\", C 8mm, F2.6 przysłona LensConnect, sterowanie poprzez USB.",{"v":7000,"d":"7,000"},{"$f":"D139-(D139*E$7)","v":{"v":7000,"d":"7,000 "}},"ZAM"]
[null,"VL1226U-MPZ","Obiektyw 20MP 1\", C 12mm, F2.6 przysłona LensConnect, sterowanie poprzez USB.",{"v":6500,"d":"6,500"},{"v":6500,"d":"6,500 "},"ZAM"]
[null,"VL1624U-MPZ","Obiektyw 20MP 1\", C 16mm, F2.6 przysłona LensConnect, sterowanie poprzez USB.",{"v":6500,"d":"6,500"},{"v":6500,"d":"6,500 "},"ZAM"]
[null,"VL2520U-MPZ","Obiektyw 20MP 1\", C 25mm, F2.6 przysłona LensConnect, sterowanie poprzez USB.",{"v":6500,"d":"6,500"},{"v":6500,"d":"6,500 "},"ZAM"]
[null,"VL3522U-MPZ","Obiektyw 20MP 1\", C 35mm, F2.2 przysłona LensConnect, sterowanie poprzez USB.",{"v":6500,"d":"6,500"},{"v":6500,"d":"6,500 "},"ZAM"]
[null,"VL5024U-MPZ","Obiektyw 20MP 1\", C 50mm, F2.4 przysłona LensConnect, sterowanie poprzez USB.",{"v":6500,"d":"6,500"},{"v":6500,"d":"6,500 "},"ZAM"]
[null,"VL7531U-MPZ","Obiektyw 20MP 1\", C 75mm, F3.1 przysłona LensConnect, sterowanie poprzez USB.",{"v":7000,"d":"7,000"},{"v":7000,"d":"7,000 "},"ZAM"]
[null,{"$error":"#VALUE!"},"LensConnect BH Series",{"$error":"#VALUE!"},null,null,{"$error":"#VALUE!"}]
[null,"DL0828UC-MPY","Obiektyw 12MP 1/1.1\", C 8mm, F2.8 przysłona LensConnect, sterowanie poprzez USB.",{"v":5200,"d":"5,200"},{"$f":"D147-(D147*E$7)","v":{"v":5200,"d":"5,200 "}},"ZAM"]
[null,"DL1224UC-MPY","Obiektyw 12MP 1/1.1\", C 12mm, F2.8 przysłona LensConnect, sterowanie poprzez USB.",{"v":5200,"d":"5,200"},{"v":5200,"d":"5,200 "},"ZAM"]
[null,"DL1623UC-MPY","Obiektyw 12MP 1/1.1\", C 16mm, F2.8 przysłona LensConnect, sterowanie poprzez USB.",{"v":5200,"d":"5,200"},{"v":5200,"d":"5,200 "},"ZAM"]
[null,"DL2523UC-MPY","Obiektyw 12MP 1/1.1\", C 25mm, F2.8 przysłona LensConnect, sterowanie poprzez USB.",{"v":5200,"d":"5,200"},{"v":5200,"d":"5,200 "},"ZAM"]
[null,"DL3525UC-MPY","Obiektyw 12MP 1/1.1\", C 35mm, F2.8 przysłona LensConnect, sterowanie poprzez USB.",{"v":5200,"d":"5,200"},{"v":5200,"d":"5,200 "},"ZAM"]
[null,"DL5026UC-MPY","Obiektyw 12MP 1/1.1\", C 50mm, F2.8 przysłona LensConnect, sterowanie poprzez USB.",{"v":5200,"d":"5,200"},{"v":5200,"d":"5,200 "},"ZAM"]
[null,"EL3Z0416UCS-MPWIR","Obiektyw 5MP 1/1.1.8\", CS 4-10mm, F1.6 przysłona LensConnect, sterowanie poprzez USB.",{"v":3100,"d":"3,100"},{"v":3100,"d":"3,100 "},"ZAM"]
[null,"EL6Z0915UCS-MPWIR","Obiektyw 5MP 1/1.1.8\", CS 9-50mm, F1.5 przysłona LensConnect, sterowanie poprzez USB.",{"v":4600,"d":"4,600"},{"v":4600,"d":"4,600 "},"ZAM"]
[null,"VL6Z1626UC-MPYIR","Obiektyw 12MP 1/1.1\", C 16-96mm, F2.6 przysłona LensConnect, sterowanie poprzez USB.",{"v":7600,"d":"7,600"},{"v":7600,"d":"7,600 "},"ZAM"]

{"sheet":"PELCO - Video Security ","index":6,"n_rows":1579,"n_cols":8,"rows_kept":1579,"merged":[[2,1,3,2],[2,3,3,4]]}
[]
[]
[null,{"$error":"#VALUE!"},null,"CENNIK PRODUKTÓW CCTV",null,"PELCO VIDEO SECURITY "]
[]
[]
[{"$nulls":5},"RABAT: ",{"v":0,"d":"0%"}]
[null," Subcategory "," Model No."," Name"," Description (for prices starting on February 02 2023)","  MSRP (EUR)","Cena z rabatem (EUR)","Dostępność "]
[null,"Camera","UEWBTA","Parapet or ceiling mounting bracket UK","Parapet or ceiling mounting bracket UK",{"v":249.46,"d":"249"},{"$f":"F8-(F8*G$6)","v":{"v":249.46,"d":"249 "}},"ZAM"]
[null,"Camera","WASEX2T4KC","WASEX2T4KC","ExP Tank 10l KC pipe 20m IN 24Vac dc",{"v":2175.92,"d":"2,176"},{"v":2175.92,"d":"2,176 "},"ZAM"]
[null,"Camera","WASEX2T4UL","WASEX2T4UL","ExP Tank 10l cULus pipe 20m IN 24Vac dc",{"v":2175.92,"d":"2,176"},{"v":2175.92,"d":"2,176 "},"ZAM"]
[null,"Encoder","NET6504-AU","Rack Mount Encoder 4-CH; AU Power Cord","Rack Mount Encoder 4-CH; AU Power Cord",{"v":433.5,"d":"434"},{"v":433.5,"d":"434 "},"ZAM"]
[null,"Encoder","NET6504-EU","Rack Mount Encoder 4-CH; EU Power Cord","Rack Mount Encoder 4-CH; EU Power Cord",{"v":433.5,"d":"434"},{"v":433.5,"d":"434 "},"ZAM"]
[null,"Encoder","NET6504-UK","Rack Mount Encoder 4-CH; UK Power Cord","Rack Mount Encoder 4-CH; UK Power Cord",{"v":433.5,"d":"434"},{"v":433.5,"d":"434 "},"ZAM"]
[null,"Encoder","NET6504-US","Rack Mount Encoder 4-CH; US Power Cord","Rack Mount Encoder 4-CH; US Power Cord",{"v":433.5,"d":"434"},{"v":433.5,"d":"434 "},"ZAM"]
[null,"Encoder","NET6516-AU","Rack Mount Encoder16-CH; AU Power Cord","Rack Mount Encoder16-CH; AU Power Cord",{"v":1410.15,"d":"1,410"},{"v":1410.15,"d":"1,410 "},"ZAM"]
[null,"Encoder","NET6516-EU","Rack Mount Encoder16-CH; EU Power Cord","Rack Mount Encoder16-CH; EU Power Cord",{"v":1410.15,"d":"1,410"},{"v":1410.15,"d":"1,410 "},"ZAM"]
[null,"Encoder","NET6516-UK","Rack Mount Encoder16-CH; UK Power Cord","Rack Mount Encoder16-CH; UK Power Cord",{"v":1410.15,"d":"1,410"},{"v":1410.15,"d":"1,410 "},"ZAM"]
[null,"Encoder","NET6516-US","Rack Mount Encoder16-CH; US Power Cord","Rack Mount Encoder16-CH; US Power Cord",{"v":1410.15,"d":"1,410"},{"v":1410.15,"d":"1,410 "},"ZAM"]
[null,"Camera Accessories","BRKTMD-1001","DIN Rail Mount for Modular Camera Main Unit","DIN Rail Mount for Modular Camera Main Unit",{"v":37.74,"d":"38"},{"v":37.74,"d":"38 "},"ZAM"]
[null,"Camera Accessories","BRKTMD-1011","Replacement L Bracket for Modular Camera Microbullet Sensor Head","Replacement L Bracket for Modular Camera Microbullet Sensor Head",{"v":32.16,"d":"32"},{"v":32.16,"d":"32 "},"ZAM"]
[null,"Camera Accessories","BRKTMD-1021","Replacement Flat Bracket for Modular CameraRight Angle Sensor Head","Replacement Flat Bracket for Modular CameraRight Angle Sensor Head",{"v":28.22,"d":"28"},{"v":28.22,"d":"28 "},"ZAM"]
[null,"Camera Accessories","BRKTMD-1031","Replacement Trimring Bracket for Modular Camera Microbullet Sensor head","Replacement Trimring Bracket for Modular Camera Microbullet Sensor head",{"v":26.01,"d":"26"},{"v":26.01,"d":"26 "},"ZAM"]
[null,"Camera Accessories","CAM-FIPS","FIPS Camera license","FIPS Camera license",{"v":9.28,"d":"9"},{"v":9.28,"d":"9 "},"ZAM"]
[null,"Camera Accessories","CBL2M-1001","2m (6 ft) HD BNC Cable for Modular Camera","2m (6 ft) HD BNC Cable for Modular Camera",{"v":49.56,"d":"50"},{"v":49.56,"d":"50 "},"ZAM"]
[null,"Camera Accessories","CBL5M-1001","5m (16 ft) HD BNC Cable for Modular Camera","5m (16 ft) HD BNC Cable for Modular Camera",{"v":72.08,"d":"72"},{"v":72.08,"d":"72 "},"ZAM"]
[null,"Camera Accessories","CBLKT-1001","Cable kit replacement for for Multi sensor Multi directional cameras","Cable kit replacement for for Multi sensor Multi directional cameras",{"v":65.28,"d":"65"},{"v":65.28,"d":"65 "},"ZAM"]
[null,"Camera Accessories","CLPNL-1001","Ceiling panel metal white 2 ft X 2 ft for Multi Sensor Multi directional camera","Ceiling panel metal white 2 ft X 2 ft to replace exisiting ceiling tile for Multi Sensor Multi directional camera",{"v":93.67,"d":"94"},{"v":93.67,"d":"94 "},"ZAM"]
[null,"Camera Accessories","CNBX-1001","Conduit entry gang box vandal resistant white for corner camera","Conduit entry gang box vandal resistant white for corner camera accepts 1/2 and 3/4 inch conduit",{"v":114.73,"d":"115"},{"v":114.73,"d":"115 "},"ZAM"]
[null,"Camera Accessories","COMB100A","COMB100A","Comm box polycarbonate 220-230Vac",{"v":1299,"d":"1,299"},{"v":1299,"d":"1,299 "},"ZAM"]
[null,"Camera Accessories","COMB200A","COMB200A","Comm box polycarbonate 24Vac",{"v":1299,"d":"1,299"},{"v":1299,"d":"1,299 "},"ZAM"]
[null,"Camera Accessories","COMB300A","COMB300A","Comm box polycarbonate 120-127Vac",{"v":1299,"d":"1,299"},{"v":1299,"d":"1,299 "},"ZAM"]
[null,"Camera Accessories","COMBMP","COMBMP","Pole or corner mount adapter for COMB",{"v":215.45,"d":"215"},{"v":215.45,"d":"215 "},"ZAM"]
[null,"Camera Accessories","CRNMT-1001","Corner Mount for large pendant wall mount WLMT-1001","Corner Mount for large pendant wall mount WLMT-1001",{"v":93.67,"d":"94"},{"v":93.67,"d":"94 "},"ZAM"]
[null,"Camera Accessories","DBHWGC","DBHWGC","Pole adapter 210 to 225mm",{"v":95.37,"d":"95"},{"v":95.37,"d":"95 "},"ZAM"]
[null,"Camera Accessories","DCZ","DCZ","USB keyboard",{"v":687.14,"d":"687"},{"v":687.14,"d":"687 "},"ZAM"]
[null,"Camera Accessories","DTWRX","DTWRX","Housing washer control RS485 For WASPT",{"v":50.46,"d":"50"},{"v":50.46,"d":"50 "},"ZAM"]
[null,"Camera Accessories","EXBJ000","EXBJ000","Ball joint for EXH RAL9002",{"v":429.76,"d":"430"},{"v":429.76,"d":"430 "},"ZAM"]
[null,"Camera Accessories","EXHC003G","EXHC003G","ExP housing thermal 3 heater 24Vac",{"v":19231,"d":"19,231"},{"v":19231,"d":"19,231 "},"ZAM"]
[null,"Camera Accessories","EXHC003R","EXHC003R","Housing thermal 3 heater 24Vac",{"v":1915,"d":"1,915"},{"v":1915,"d":"1,915 "},"ZAM"]
[null,"Camera Accessories","EXHC203R","EXHC203R","Housing thermal 3 heater 230Vac",{"v":1915,"d":"1,915"},{"v":1915,"d":"1,915 "},"ZAM"]
[null,"Camera Accessories","EXHS000","EXHS000","Sunshield 640mm for EXHC housings",{"v":121.78,"d":"122"},{"v":121.78,"d":"122 "},"ZAM"]
[null,"Camera Accessories","FERR-1001","Ferrite clamp for Multi directional cameras to meet EN-50121-4 5 pack","Ferrite clamp for use with Multi sensor Multi directional cameras aux power cable to meet EN-50121-4 5 pack",{"v":27.44,"d":"27"},{"v":27.44,"d":"27 "},"ZAM"]
[null,"Camera Accessories","FM1010","FM1010","EMC Filter for Marine Certification",{"v":49.56,"d":"50"},{"v":49.56,"d":"50 "},"ZAM"]
[null,"Camera Accessories","HEB32D0A000B","HEB32D0A000B","HEB housing 320mm",{"v":108.97,"d":"109"},{"v":108.97,"d":"109 "},"ZAM"]
[null,"Camera Accessories","HEB32K0A000B","HEB32K0A000B","HEB housing 320mm sunshield",{"v":139.13,"d":"139"},{"v":139.13,"d":"139 "},"ZAM"]
[null,"Camera Accessories","HEB32K1A000B","HEB32K1A000B","HEB house 320 shield heat IN 120 230Vac",{"v":168.96,"d":"169"},{"v":168.96,"d":"169 "},"ZAM"]
[null,"Camera Accessories","HEB32K2A000B","HEB32K2A000B","HEB house 320 shld heat IN 12Vdc 24Vac",{"v":168.96,"d":"169"},{"v":168.96,"d":"169 "},"ZAM"]
[null,"Camera Accessories","HEG37K0A000","HEG37K0A000","HEG housing 365mm sunshield",{"v":210.91,"d":"211"},{"v":210.91,"d":"211 "},"ZAM"]
[null,"Camera Accessories","HEG37K1A000","HEG37K1A000","HEG house 365 shield heat IN 120 230Vac",{"v":238.12,"d":"238"},{"v":238.12,"d":"238 "},"ZAM"]
[null,"Camera Accessories","HEG37K1A074","HEG37K1A074","HEG house 365 shld 2 heat IN 120 230Vac",{"v":285.75,"d":"286"},{"v":285.75,"d":"286 "},"ZAM"]
[null,"Camera Accessories","HEG37K1A143","HEG37K1A143","HEG 365 sld fan 3 heat IN 120 230Vac",{"v":351.51,"d":"352"},{"v":351.51,"d":"352 "},"ZAM"]
[null,"Camera Accessories","HEG37K2A000","HEG37K2A000","HEG house 365 shld heat IN 12Vdc 24Vac",{"v":238.12,"d":"238"},{"v":238.12,"d":"238 "},"ZAM"]
[null,"Camera Accessories","HEG47K1A000","HEG47K1A000","HEG house 450 shield heat IN 120 230Vac",{"v":252.86,"d":"253"},{"v":252.86,"d":"253 "},"ZAM"]
[null,"Camera Accessories","HEG47K1A018","HEG47K1A018","HEG house 450 shld heat blow 120 230Vac",{"v":393.47,"d":"393"},{"v":393.47,"d":"393 "},"ZAM"]
[null,"Camera Accessories","HEG47K2A000","HEG47K2A000","HEG house 450 shld heat IN 12Vdc 24Vac",{"v":252.86,"d":"253"},{"v":252.86,"d":"253 "},"ZAM"]
[null,"Camera Accessories","HEG47K2A016","HEG47K2A016","HEG house 450 shld heat blow 24Vac",{"v":346.97,"d":"347"},{"v":346.97,"d":"347 "},"ZAM"]
[null,"Camera Accessories","HGV52K1A100","HGV52K1A100","HGV 520 shld 3 fan heat wipe 100 240VAC",{"v":1578,"d":"1,578"},{"v":1578,"d":"1,578 "},"ZAM"]
[null,"Camera Accessories","HGV52K2A200","HGV52K2A200","HGV house 520 sld 3 fan heat wipe 24Vac",{"v":1578,"d":"1,578"},{"v":1578,"d":"1,578 "},"ZAM"]
[null,"Camera Accessories","HOT39D0A000","HOT39D0A000","PUNTO housing",{"v":55.45,"d":"55"},{"v":55.45,"d":"55 "},"ZAM"]
[null,"Camera Accessories","HOT39D1A000","HOT39D1A000","PUNTO housing with heater IN 120 230Vac",{"v":68.95,"d":"69"},{"v":68.95,"d":"69 "},"ZAM"]
[null,"Camera Accessories","HOT39D1A085","HOT39D1A085","PUNTO house heat IN 120 230Vac WBOVA2",{"v":97.41,"d":"97"},{"v":97.41,"d":"97 "},"ZAM"]
[null,"Camera Accessories","HOT39D2A000","HOT39D2A000","PUNTO house heater IN 12Vdc 24Vac",{"v":68.95,"d":"69"},{"v":68.95,"d":"69 "},"ZAM"]
[null,"Camera Accessories","HOT39D2A085","HOT39D2A085","PUNTO house heater IN 12Vdc 24Vac BOV2A",{"v":97.41,"d":"97"},{"v":97.41,"d":"97 "},"ZAM"]
[null,"Camera Accessories","HOT39K1A000","HOT39K1A000","PUNTO house shield heat IN 120 230Vac",{"v":82.44,"d":"82"},{"v":82.44,"d":"82 "},"ZAM"]
[null,"Camera Accessories","HOT39K2A000","HOT39K2A000","PUNTO house shield heat IN 12Vdc 24Vac",{"v":82.44,"d":"82"},{"v":82.44,"d":"82 "},"ZAM"]
[null,"Camera Accessories","HOT39K2A700","HOT39K2A700","PUNTO Hi-PoE housing",{"v":196.17,"d":"196"},{"v":196.17,"d":"196 "},"ZAM"]
[null,"Camera Accessories","HOV32K1A000","HOV32K1A000","HOV house 300mm shld heat IN 120 230Vac",{"v":167.6,"d":"168"},{"v":167.6,"d":"168 "},"ZAM"]
[null,"Camera Accessories","HOV32K1A018","HOV32K1A018","HOV house 300 shld heat blow 120 230Vac",{"v":302.76,"d":"303"},{"v":302.76,"d":"303 "},"ZAM"]
[null,"Camera Accessories","HOV32K1A100","HOV32K1A100","HOV hous 300 sld heat IN 120 230Vac wipe",{"v":507.99,"d":"508"},{"v":507.99,"d":"508 "},"ZAM"]
[null,"Camera Accessories","HOV32K2A000","HOV32K2A000","HOV house 300 sld heat IN 12 24 Vac dc",{"v":167.6,"d":"168"},{"v":167.6,"d":"168 "},"ZAM"]
[null,"Camera Accessories","HOV32K2A016","HOV32K2A016","HOV house 300mm shield heat blow 24Vac",{"v":260.8,"d":"261"},{"v":260.8,"d":"261 "},"ZAM"]
[null,"Camera Accessories","HOV32K2A017","HOV32K2A017","HOV house 300mm shield heat blow 12Vdc",{"v":260.8,"d":"261"},{"$f":"F72-(F72*G$6)","v":{"v":260.8,"d":"261 "}},"ZAM"]
[null,"Camera Accessories","HOV32K2A147","HOV32K2A147","HOV house 300mm shield heat blow 24Vac",{"v":594.17,"d":"594"},{"v":594.17,"d":"594 "},"ZAM"]
[null,"Camera Accessories","HOV32K2A200","HOV32K2A200","HOV hous 300 sld heat IN 12 24 Vac dc wp",{"v":507.99,"d":"508"},{"v":507.99,"d":"508 "},"ZAM"]
[null,"Camera Accessories","HOV32K2A700","HOV32K2A700","HOV house for PoE cameras IPM",{"v":353.78,"d":"354"},{"v":353.78,"d":"354 "},"ZAM"]
[null,"Camera Accessories","HOV32K2A716","HOV32K2A716","HOV house for PoE cameras IPM blower",{"v":395.74,"d":"396"},{"v":395.74,"d":"396 "},"ZAM"]
[null,"Camera Accessories","HOV32K2A720","HOV32K2A720","HOV house for PoE cameras IPM heater",{"v":495.52,"d":"496"},{"v":495.52,"d":"496 "},"ZAM"]
[null,"Camera Accessories","HPV36D0A000B","HPV36D0A000B","VERSO COMPACT housing 360mm",{"v":75.18,"d":"75"},{"v":75.18,"d":"75 "},"ZAM"]
[null,"Camera Accessories","HPV36K0A000B","HPV36K0A000B","VERSO CPT house 360mm shield",{"v":87.54,"d":"88"},{"v":87.54,"d":"88 "},"ZAM"]
[null,"Camera Accessories","HPV36K1A000B","HPV36K1A000B","VERSO CPT 360mm shld heat IN 120 230Vac",{"v":106.93,"d":"107"},{"v":106.93,"d":"107 "},"ZAM"]
[null,"Camera Accessories","HPV36K2A000B","HPV36K2A000B","VERSO CPT 360 shld heat IN 12Vdc 24Vac",{"v":106.93,"d":"107"},{"v":106.93,"d":"107 "},"ZAM"]
[null,"Camera Accessories","HPV36K2A015B","HPV36K2A015B","VERSO CPT house 360 sld fan heat 24Vac",{"v":137.66,"d":"138"},{"v":137.66,"d":"138 "},"ZAM"]
[null,"Camera Accessories","HPV42K0A000","HPV42K0A000","VERSO house 420mm shield",116,{"v":116,"d":"116 "},"ZAM"]
[null,"Camera Accessories","HPV42K1A000","HPV42K1A000","VERSO house 420 sld heat IN 120 230Vac",{"v":137.43,"d":"137"},{"v":137.43,"d":"137 "},"ZAM"]
[null,"Camera Accessories","HPV42K1A160","HPV42K1A160","VERSO POLAR 420mm shld IN 120 230Vac",{"v":205.24,"d":"205"},{"v":205.24,"d":"205 "},"ZAM"]
[null,"Camera Accessories","HPV42K2A000","HPV42K2A000","VERSO hous 420 sld heat IN 12Vdc 24Vac",{"v":137.43,"d":"137"},{"v":137.43,"d":"137 "},"ZAM"]
[null,"Camera Accessories","HPV42K2A016","HPV42K2A016","VERSO house 420mm shield heat blow 24Vac",{"v":243.79,"d":"244"},{"v":243.79,"d":"244 "},"ZAM"]
[null,"Camera Accessories","HPV42K2A017","HPV42K2A017","VERSO house 420mm shield heat blow 12Vdc",{"v":243.79,"d":"244"},{"v":243.79,"d":"244 "},"ZAM"]
[null,"Camera Accessories","HPV42K2A160","HPV42K2A160","VERSO POLAR 420 shld heat IN 12Vdc 24Vac",{"v":205.24,"d":"205"},{"v":205.24,"d":"205 "},"ZAM"]
[null,"Camera Accessories","HPV42K2A700","HPV42K2A700","VERSO house for PoE cameras IPM",{"v":311.83,"d":"312"},{"v":311.83,"d":"312 "},"ZAM"]
[null,"Camera Accessories","HPV42K2A716","HPV42K2A716","VERSO house for PoE cameras IPM blow",{"v":351.51,"d":"352"},{"v":351.51,"d":"352 "},"ZAM"]
[null,"Camera Accessories","HTG37K1A000","HTG37K1A000","HTG house 365mm shld heat IN 120 230Vac",{"v":1325,"d":"1,325"},{"v":1325,"d":"1,325 "},"ZAM"]
[null,"Camera Accessories","HTG37K2A000","HTG37K2A000","HTG house 365mm shld heat IN 12Vdc 24Vac",{"v":1325,"d":"1,325"},{"v":1325,"d":"1,325 "},"ZAM"]
[null,"Camera Accessories","HTV32K1A000","HTV32K1A000","HTV house 300mm shld heat IN 120 230Vac",{"v":1250,"d":"1,250"},{"v":1250,"d":"1,250 "},"ZAM"]
[null,"Camera Accessories","HTV32K2A000","HTV32K2A000","HTV house 300mm sld heat IN 12Vdc 24Vac",{"v":1250,"d":"1,250"},{"v":1250,"d":"1,250 "},"ZAM"]
[null,"Camera Accessories","IBD3-FP","Replacement front plate kit for IBD3 High Security Corner Camera Pantone 427C","Replacement front plate kit for IBD Series 3 High Security Corner Camera Rolled Steel Pantone 427C",{"v":233.36,"d":"233"},{"v":233.36,"d":"233 "},"ZAM"]
[null,"Camera Accessories","IBD3-FPSS","Replacement front plate kit for IBD3 High Security Corner Camera Stainless Steel","Replacement front plate kit for IBD Series 3 High Security Corner Camera Stainless Steel",{"v":287.42,"d":"287"},{"v":287.42,"d":"287 "},"ZAM"]
[null,"Camera Accessories","IMD1-INC","Inceiling mount adapter for Sarix Multi cameras","Inceiling mount adapter for Sarix Multi cameras",{"v":132.68,"d":"133"},{"v":132.68,"d":"133 "},"ZAM"]
[null,"Camera Accessories","IMD1-INCLD0","Lower dome smoked for inceiling mounted Sarix Multi camera","Lower dome smoked for inceiling mounted Sarix Multi cameras",{"v":65.92,"d":"66"},{"v":65.92,"d":"66 "},"ZAM"]
[null,"Camera Accessories","IMD1-INCLD1","Lower dome clear for inceiling mounted Sarix Multi camera","Lower dome clear for inceiling mounted Sarix Multi cameras",{"v":65.92,"d":"66"},{"v":65.92,"d":"66 "},"ZAM"]
[null,"Camera Accessories","IMD1-IR","IR illuminator ring for Sarix Multi camera","IR illuminator ring for Sarix Multi cameras",{"v":330.18,"d":"330"},{"v":330.18,"d":"330 "},"ZAM"]
[null,"Camera Accessories","IMD1-PMT","Pendant mount adapter for Sarix Multi cameras","Pendant mount adapter for Sarix Multi cameras",{"v":149.37,"d":"149"},{"v":149.37,"d":"149 "},"ZAM"]
[null,"Camera Accessories","IMD1-SMT","Surface mount adapter for Sarix Multi cameras","Surface mount adapter for Sarix Multi cameras",{"v":149.37,"d":"149"},{"v":149.37,"d":"149 "},"ZAM"]
[null,"Camera Accessories","IMD1-SPLD0","Lower dome smoked for Surface or Pendant mounted Sarix Multi camera","Lower dome smoked for Surface or Pendant mounted Sarix Multi cameras",{"v":149.37,"d":"149"},{"v":149.37,"d":"149 "},"ZAM"]
[null,"Camera Accessories","IMD1-SPLD1","Lower dome clear for Surface or Pendant mounted IMD Series","Lower dome clear for Surface or Pendant mounted Sarix Multi cameras",{"v":149.37,"d":"149"},{"v":149.37,"d":"149 "},"ZAM"]
[null,"Camera Accessories","IMM-CM","Corner Mount for WMVE-SR; Telegrey","Corner Mount for WMVE-SR; Telegrey",{"v":122.99,"d":"123"},{"v":122.99,"d":"123 "},"ZAM"]
[null,"Camera Accessories","IMM-CMAW","Corner Mount for WMVE-AW Pantone 427C","Corner Mount for WMVE-AW Pantone 427C",{"v":65.28,"d":"65"},{"v":65.28,"d":"65 "},"ZAM"]
[null,"Camera Accessories","IMM-PNL","Ceiling Panel for Optera Inceiling Mount 2Ftx2Ft White","Ceiling Panel for Optera Inceiling Mount 2Ftx2Ft White",{"v":211.65,"d":"212"},{"v":211.65,"d":"212 "},"ZAM"]
[null,"Camera Accessories","IMM12018-1EI","Optera 12MP 180 Environmental Inceiling dome camera telegrey","Optera Panomersive 12MP 180 degree Environmental Inceiling dome camera telegrey Advanced Analytics Camera Link",{"v":2209,"d":"2,209"},{"v":2209,"d":"2,209 "},"ZAM"]
[null,"Camera Accessories","IMM12018-1EP","Optera 12MP 180 Environmental Pendant dome camera telegrey","Optera Panomersive 12MP 180 degree Environmental Pendant dome camera telegrey Advanced Analytics Camera Link",{"v":2209,"d":"2,209"},{"v":2209,"d":"2,209 "},"ZAM"]
[null,"Camera Accessories","IMM12018-1ES","Optera 12MP 180 Environmental Surface mount dome camera telegrey","Optera Panomersive 12MP 180 degree Environmental Surface mount dome camera telegrey Advanced Analytics Camera Link",{"v":2209,"d":"2,209"},{"v":2209,"d":"2,209 "},"ZAM"]
[null,"Camera Accessories","IMM12018-1I","Optera 12MP 180 Indoor vandal Inceiling dome camera White","Optera Panomersive 12MP 180 degree Indoor vandal Inceiling dome camera White Advanced Analytics Camera Link",{"v":2049,"d":"2,049"},{"v":2049,"d":"2,049 "},"ZAM"]
[null,"Camera Accessories","IMM12018-1P","HPV42K2A700","VERSO house for PoE cameras IPM",{"v":2049,"d":"2,049"},{"v":2049,"d":"2,049 "},"ZAM"]
[null,"Camera Accessories","IMM12018-1S","HTG37K1A000","HTG house 365mm shld heat IN 120 230Vac",{"v":2049,"d":"2,049"},{"v":2049,"d":"2,049 "},"ZAM"]
[null,"Camera Accessories","IMM12018-B1I","HTV32K1A000","HTV house 300mm shld heat IN 120 230Vac",{"v":2049,"d":"2,049"},{"v":2049,"d":"2,049 "},"ZAM"]
[null,"Camera Accessories","IMM12018-B1P","IRH10H8A","IR LED 10d Hi 850nm 12 24Vdc 24Vac 140m",{"v":2049,"d":"2,049"},{"v":2049,"d":"2,049 "},"ZAM"]
[null,"Camera Accessories","IMM12018-B1S","IRH10L8A","IR LED 10d Lo 850nm 12 24Vdc-24Vac 100m",{"v":2049,"d":"2,049"},{"v":2049,"d":"2,049 "},"ZAM"]
[null,"Camera Accessories","IMM12027-1EI","IRH30H9A","IR LED 30d Hi 940nm 12 24Vdc-24Vac 60m",{"v":2209,"d":"2,209"},{"v":2209,"d":"2,209 "},"ZAM"]
[null,"Camera Accessories","IMM12027-1EP","IRH30L8A","IR LED 30d Low 850nm 12 24Vdc-24Vac 60m",{"v":2209,"d":"2,209"},{"v":2209,"d":"2,209 "},"ZAM"]
[null,"Camera Accessories","IMM12027-1ES","IRH60H9A","IR LED 60d Hi 940nm 12 24Vdc-24Vac 40m",{"v":2209,"d":"2,209"},{"v":2209,"d":"2,209 "},"ZAM"]
[null,"Camera Accessories","IMM12027-1I","IRH60L8A","IR LED 60d Lo 850nm 12 24Vdc 24Vac 40m",{"v":2049,"d":"2,049"},{"v":2049,"d":"2,049 "},"ZAM"]
[null,"Camera Accessories","IMM12027-1P","IRHPS230","Power IN 230Vac 50 60Hz OUT 24Vac 30W",{"v":2049,"d":"2,049"},{"v":2049,"d":"2,049 "},"ZAM"]
[null,"Camera Accessories","IMM12027-1S","IRN10A9AS00","IR LED 10d 940nm 100 240Vac 140m",{"v":2049,"d":"2,049"},{"v":2049,"d":"2,049 "},"ZAM"]
[null,"Camera Accessories","IMM12027-B1I","IRN10B9AS00","IR LED 10d 940nm 24Vac-12 24Vdc 140m",{"v":2049,"d":"2,049"},{"v":2049,"d":"2,049 "},"ZAM"]
[null,"Camera Accessories","IMM12027-B1P","IRN30A9AS00","IR LED 30d 940nm 100 240Vac 80m",{"v":2049,"d":"2,049"},{"v":2049,"d":"2,049 "},"ZAM"]
[null,"Camera Accessories","IMM12027-B1S","IRN30B8AS00","IR LED 30d 850nm 24Vac 12 24Vdc 130m",{"v":2049,"d":"2,049"},{"v":2049,"d":"2,049 "},"ZAM"]
[null,"Camera Accessories","IMM12036-1EI","IRN30BWAS00","LED white light 30d 24Vac 12 24Vdc 120m",{"v":2209,"d":"2,209"},{"v":2209,"d":"2,209 "},"ZAM"]
[null,"Camera Accessories","IMM12036-1EP","IRN60A9AS00","IR LED 60d 940nm 100 240Vac 60m",{"v":2209,"d":"2,209"},{"v":2209,"d":"2,209 "},"ZAM"]
[null,"Camera Accessories","IMM12036-1ES","IRN60B8AS00","IR LED 60d 850nm 24Vac 12 24Vdc 80m",{"v":2209,"d":"2,209"},{"v":2209,"d":"2,209 "},"ZAM"]
[null,"Camera Accessories","IMM12036-1I","IRN60BWAS00","LED white light 60d 24Vac 12 24Vdc 90m",{"v":2049,"d":"2,049"},{"v":2049,"d":"2,049 "},"ZAM"]
[null,"Camera Accessories","IMM12036-1P","MBA2S5A","ExP Comm box in aluminium 24Vac",{"v":2049,"d":"2,049"},{"v":2049,"d":"2,049 "},"ZAM"]
[null,"Camera Accessories","IMM12036-1S","MBX1MAA","ExP Comm box SS IN 230Vac OUT 24Vac",{"v":2049,"d":"2,049"},{"v":2049,"d":"2,049 "},"ZAM"]
[null,"Camera Accessories","IMM12036-B1I","MBX3MAA","ExP Comm box SS IN 120Vac OUT 24Vac",{"v":2049,"d":"2,049"},{"v":2049,"d":"2,049 "},"ZAM"]
[null,"Camera Accessories","IMM12036-B1P","MBXWRE","Key for opening and closing MAXIMUS MBX",{"v":2049,"d":"2,049"},{"v":2049,"d":"2,049 "},"ZAM"]
[null,"Camera Accessories","IMM12036-B1S","MHX1CW000A","MHX SS housing 230Vac wiper sunshield",{"v":2049,"d":"2,049"},{"v":2049,"d":"2,049 "},"ZAM"]
[null,"Camera Accessories","IMMBB0-BP","Backbox for Optera Indoor Vandal Pendant Mount Black","Backbox for Optera Indoor Vandal Pendant Mount Black",{"v":64.33,"d":"64"},{"$f":"F136-(F136*G$6)","v":{"v":64.33,"d":"64 "}},"ZAM"]
[null,"Camera Accessories","IMMBB0-BS","Backbox for Optera Indoor Vandal Surface Mount Black","Backbox for Optera Indoor Vandal Surface Mount Black",{"v":64.33,"d":"64"},{"v":64.33,"d":"64 "},"ZAM"]
[null,"Camera Accessories","IMMBB0-EI","Backbox for Optera Environmental Vandal Inceiling Mount Telegrey Plenum Rated","Backbox for Optera Environmental Vandal Inceiling Mount Telegrey Plenum Rated",{"v":64.33,"d":"64"},{"v":64.33,"d":"64 "},"ZAM"]
[null,"Camera Accessories","IMMBB0-EP","Backbox for Optera Environmental Vandal Pendant Mount Telegrey","Backbox for Optera Environmental Vandal Pendant Mount Telegrey",{"v":64.33,"d":"64"},{"v":64.33,"d":"64 "},"ZAM"]
[null,"Camera Accessories","IMMBB0-ES","Backbox for Optera Environmental Vandal Surface Mount Telegrey","Backbox for Optera Environmental Vandal Surface Mount Telegrey",{"v":64.33,"d":"64"},{"v":64.33,"d":"64 "},"ZAM"]
[null,"Camera Accessories","IMMBB0-I","Backbox for Optera Indoor Vandal Inceiling Mount White Plenum Rated","Backbox for Optera Indoor Vandal Inceiling Mount White Plenum Rated",{"v":64.33,"d":"64"},{"v":64.33,"d":"64 "},"ZAM"]
[null,"Camera Accessories","IMMBB0-P","Backbox for Optera Indoor Vandal Pendant Mount White","Backbox for Optera Indoor Vandal Pendant Mount White",{"v":64.33,"d":"64"},{"v":64.33,"d":"64 "},"ZAM"]
[null,"Camera Accessories","IMMBB0-S","Backbox for Optera Indoor Vandal Surface Mount White","Backbox for Optera Indoor Vandal Surface Mount White",{"v":64.33,"d":"64"},{"v":64.33,"d":"64 "},"ZAM"]
[null,"Camera Accessories","IRH10H8A","IRH10H8A","IR LED 10d Hi 850nm 12 24Vdc 24Vac 140m",{"v":276.68,"d":"277"},{"v":276.68,"d":"277 "},"ZAM"]
[null,"Camera Accessories","IRH10H9A","IRH10H9A","IR LED 10d Hi 940nm 12 24Vdc-24Vac 100m",{"v":468.3,"d":"468"},{"v":468.3,"d":"468 "},"ZAM"]
[null,"Camera Accessories","IRH10L8A","IRH10L8A","IR LED 10d Lo 850nm 12 24Vdc-24Vac 100m",{"v":216.58,"d":"217"},{"v":216.58,"d":"217 "},"ZAM"]
[null,"Camera Accessories","IRH30H8A","IRH30H8A","IR LED 30d Hi 850nm 12 24Vdc-24Vac 84m",{"v":276.68,"d":"277"},{"v":276.68,"d":"277 "},"ZAM"]
[null,"Camera Accessories","IRH30H9A","IRH30H9A","IR LED 30d Hi 940nm 12 24Vdc-24Vac 60m",{"v":468.3,"d":"468"},{"v":468.3,"d":"468 "},"ZAM"]
[null,"Camera Accessories","IRH30HWA","IRH30HWA","LED whitelight 30d 24Vac 12 24Vdc 60m",{"v":348.11,"d":"348"},{"v":348.11,"d":"348 "},"ZAM"]
[null,"Camera Accessories","IRH30L8A","IRH30L8A","IR LED 30d Low 850nm 12 24Vdc-24Vac 60m",{"v":216.58,"d":"217"},{"v":216.58,"d":"217 "},"ZAM"]
[null,"Camera Accessories","IRH60H8A","IRH60H8A","IR LED 60d Hi 850nm 12 24Vdc-24Vac 56m",{"v":276.68,"d":"277"},{"v":276.68,"d":"277 "},"ZAM"]
[null,"Camera Accessories","IRH60H9A","IRH60H9A","IR LED 60d Hi 940nm 12 24Vdc-24Vac 40m",{"v":468.3,"d":"468"},{"v":468.3,"d":"468 "},"ZAM"]
[null,"Camera Accessories","IRH60HWA","IRH60HWA","LED white light 60d 24Vac 12 24Vdc 40m",{"v":348.11,"d":"348"},{"v":348.11,"d":"348 "},"ZAM"]
[null,"Camera Accessories","IRH60L8A","IRH60L8A","IR LED 60d Lo 850nm 12 24Vdc 24Vac 40m",{"v":216.58,"d":"217"},{"v":216.58,"d":"217 "},"ZAM"]
[null,"Camera Accessories","IRHPS120","IRHPS120","Power IN 120Vac 50 60Hz OUT 24Vac 30W",{"v":111.47,"d":"111"},{"v":111.47,"d":"111 "},"ZAM"]
[null,"Camera Accessories","IRHPS230","IRHPS230","Power IN 230Vac 50 60Hz OUT 24Vac 30W",{"v":111.47,"d":"111"},{"v":111.47,"d":"111 "},"ZAM"]
[null,"Camera Accessories","IRN10A8AS00","IRN10A8AS00","IR LED 10d 850nm 100 240Vac 240m",{"v":588.5,"d":"589"},{"v":588.5,"d":"589 "},"ZAM"]
[null,"Camera Accessories","IRN10A9AS00","IRN10A9AS00","IR LED 10d 940nm 100 240Vac 140m",986,{"v":986,"d":"986 "},"ZAM"]
[null,"Camera Accessories","IRN10B8AS00","IRN10B8AS00","IR LED 10d 850nm 24Vac-12 24Vdc 240m",{"v":480.78,"d":"481"},{"v":480.78,"d":"481 "},"ZAM"]
[null,"Camera Accessories","IRN10B9AS00","IRN10B9AS00","IR LED 10d 940nm 24Vac-12 24Vdc 140m",854,{"v":854,"d":"854 "},"ZAM"]
[null,"Camera Accessories","IRN30A8AS00","IRN30A8AS00","IR LED 30d 850nm 100 240Vac 130m",{"v":588.5,"d":"589"},{"v":588.5,"d":"589 "},"ZAM"]
[null,"Camera Accessories","IRN30A9AS00","IRN30A9AS00","IR LED 30d 940nm 100 240Vac 80m",986,{"v":986,"d":"986 "},"ZAM"]
[null,"Camera Accessories","IRN30AWAS00","IRN30AWAS00","LED white light 30d 100 240Vac 120m",{"v":637.26,"d":"637"},{"v":637.26,"d":"637 "},"ZAM"]
[null,"Camera Accessories","IRN30B8AS00","IRN30B8AS00","IR LED 30d 850nm 24Vac 12 24Vdc 130m",{"v":480.78,"d":"481"},{"v":480.78,"d":"481 "},"ZAM"]
[null,"Camera Accessories","IRN30B9AS00","IRN30B9AS00","IR LED 30d 940nm 24Vac 12 24Vdc 80m",854,{"v":854,"d":"854 "},"ZAM"]
[null,"Camera Accessories","IRN30BWAS00","IRN30BWAS00","LED white light 30d 24Vac 12 24Vdc 120m",{"v":528.4,"d":"528"},{"v":528.4,"d":"528 "},"ZAM"]
[null,"Camera Accessories","IRN60A8AS00","IRN60A8AS00","IR LED 60d 850nm 100 240Vac 80m",{"v":588.5,"d":"589"},{"v":588.5,"d":"589 "},"ZAM"]
[null,"Camera Accessories","IRN60A9AS00","IRN60A9AS00","IR LED 60d 940nm 100 240Vac 60m",986,{"v":986,"d":"986 "},"ZAM"]
[null,"Camera Accessories","IRN60AWAS00","IRN60AWAS00","LED white light 60d 100 240Vac 90m",{"v":637.26,"d":"637"},{"v":637.26,"d":"637 "},"ZAM"]
[null,"Camera Accessories","IRN60B8AS00","IRN60B8AS00","IR LED 60d 850nm 24Vac 12 24Vdc 80m",{"v":480.78,"d":"481"},{"v":480.78,"d":"481 "},"ZAM"]
[null,"Camera Accessories","IRN60B9AS00","IRN60B9AS00","IR LED 60d 940nm 24Vac 12 24Vdc 60m",854,{"v":854,"d":"854 "},"ZAM"]
[null,"Camera Accessories","IRN60BWAS00","IRN60BWAS00","LED white light 60d 24Vac 12 24Vdc 90m",{"v":528.4,"d":"528"},{"v":528.4,"d":"528 "},"ZAM"]
[null,"Camera Accessories","MBA1S5A","MBA1S5A","ExP comm box in aluminium 230Vac",{"v":1817,"d":"1,817"},{"v":1817,"d":"1,817 "},"ZAM"]
[null,"Camera Accessories","MBA2S5A","MBA2S5A","ExP Comm box in aluminium 24Vac",{"v":1817,"d":"1,817"},{"v":1817,"d":"1,817 "},"ZAM"]
[null,"Camera Accessories","MBA3S5A","MBA3S5A","ExP Comm box in aluminium 120Vac",{"v":1817,"d":"1,817"},{"v":1817,"d":"1,817 "},"ZAM"]
[null,"Camera Accessories","MBX1MAA","MBX1MAA","ExP Comm box SS IN 230Vac OUT 24Vac",{"v":2155,"d":"2,155"},{"v":2155,"d":"2,155 "},"ZAM"]
[null,"Camera Accessories","MBX2MAA","MBX2MAA","ExP Comm box SS IN 24Vac OUT 24Vac",{"v":2155,"d":"2,155"},{"v":2155,"d":"2,155 "},"ZAM"]
[null,"Camera Accessories","MBX3MAA","MBX3MAA","ExP Comm box SS IN 120Vac OUT 24Vac",{"v":2155,"d":"2,155"},{"v":2155,"d":"2,155 "},"ZAM"]
[null,"Camera Accessories","MBXMP","MBXMP","Plate for MBX with MPXCOL or MPXCW",{"v":362.85,"d":"363"},{"v":362.85,"d":"363 "},"ZAM"]
[null,"Camera Accessories","MBXWRE","MBXWRE","Key for opening and closing MAXIMUS MBX",{"v":69.32,"d":"69"},{"v":69.32,"d":"69 "},"ZAM"]
[null,"Camera Accessories","MHX1CS000A","MHX1CS000A","MHX SS housing 230Vac sunshield",{"v":4212,"d":"4,212"},{"v":4212,"d":"4,212 "},"ZAM"]
[null,"Camera Accessories","MHX1CW000A","MHX1CW000A","MHX SS housing 230Vac wiper sunshield",{"v":5100,"d":"5,100"},{"v":5100,"d":"5,100 "},"ZAM"]
[null,"Camera Accessories","MHX2CS000A","MHX2CS000A","MHX SS housing 24Vac sunshield.",{"v":4212,"d":"4,212"},{"v":4212,"d":"4,212 "},"ZAM"]
[null,"Camera Accessories","MHX2CW000A","MHX2CW000A","MHX SS housing 24Vac wiper sunshield.",{"v":5100,"d":"5,100"},{"v":5100,"d":"5,100 "},"ZAM"]
[null,"Camera Accessories","MHX3CS000A","MHX3CS000A","MHX SS housing 120Vac sunshield.",{"v":4212,"d":"4,212"},{"v":4212,"d":"4,212 "},"ZAM"]
[null,"Camera Accessories","MHX3CW000A","MHX3CW000A","MHX SS housing 120Vac wiper sunshield.",{"v":5100,"d":"5,100"},{"v":5100,"d":"5,100 "},"ZAM"]
[null,"Camera Accessories","MHXT1C000B","MHXT1C000B","MHXT housing 230Vac thermal sunshield",{"v":7725,"d":"7,725"},{"v":7725,"d":"7,725 "},"ZAM"]
[null,"Camera Accessories","MHXT2C000B","MHXT2C000B","MHXT housing 24Vac thermal sunshield",{"v":7725,"d":"7,725"},{"v":7725,"d":"7,725 "},"ZAM"]
[null,"Camera Accessories","MHXT3C000B","MHXT3C000B","MHXT housing 120Vac thermal sunshield",{"v":7725,"d":"7,725"},{"v":7725,"d":"7,725 "},"ZAM"]
[null,"Camera Accessories","MHXWBS","MHXWBS","Wall bracket for housing MHX MHXT NX",{"v":519.33,"d":"519"},{"v":519.33,"d":"519 "},"ZAM"]
[null,"Camera Accessories","MHXWFWCA","MHXWFWCA","Parapet bracket house MHX MVX and NX",{"v":287.92,"d":"288"},{"v":287.92,"d":"288 "},"ZAM"]
[null,"Camera Accessories","MLX2830AA","MLX2830AA","MLX ExP SS IR 850nm 70d 24Vdc 24Vac PoE",{"v":2224,"d":"2,224"},{"v":2224,"d":"2,224 "},"ZAM"]
[null,"Camera Accessories","MLX2W30AA","MLX2W30AA","MLX ExP SS whitelite 70d 24Vdc 24Vac PoE",{"v":2044,"d":"2,044"},{"v":2044,"d":"2,044 "},"ZAM"]
[null,"Camera Accessories","MMXCWCOL","MMXCWCOL","MMX corner and pole adapter",{"v":116.91,"d":"117"},{"v":116.91,"d":"117 "},"ZAM"]
[null,"Camera Accessories","MPX2CABL101","MPX2CABL101","MPX2 10m unarm cable barrier gland",{"v":1286,"d":"1,286"},{"v":1286,"d":"1,286 "},"ZAM"]
[null,"Camera Accessories","MPX2CABL41","MPX2CABL41","MPX2 4m unarm cable barrier gland",859,{"v":859,"d":"859 "},"ZAM"]
[null,"Camera Accessories","MPX2CABLARM101","MPX2CABLARM101","MPX2 10m armoured cable barrier gland",{"v":1286,"d":"1,286"},{"v":1286,"d":"1,286 "},"ZAM"]
[null,"Camera Accessories","MPX2CABLARM41","MPX2CABLARM41","MPX2 4m armoured cable barrier gland",859,{"v":859,"d":"859 "},"ZAM"]
[null,"Camera Accessories","MPXCOL","MPXCOL","Pole mount adaptor",{"v":427.49,"d":"427"},{"v":427.49,"d":"427 "},"ZAM"]
[null,"Camera Accessories","MPXCW","MPXCW","Corner mount adaptor",{"v":311.83,"d":"312"},{"$f":"F200-(F200*G$6)","v":{"v":311.83,"d":"312 "}},"ZAM"]
[null,"Camera Accessories","MPXWBA","MPXWBA","Wall bracket",{"v":578.29,"d":"578"},{"v":578.29,"d":"578 "},"ZAM"]
[null,"Camera Accessories","MPXWBTA","MPXWBTA","Parapet or ceiling mounting bracket",{"v":249.46,"d":"249"},{"v":249.46,"d":"249 "},"ZAM"]
[null,"Camera Accessories","NPTA-1001","1.5 inch NPT Adapter for Large Pendant Mount Camera","1.5 inch NPT Adapter for Large Pendant Mount Camera",{"v":55.82,"d":"56"},{"v":55.82,"d":"56 "},"ZAM"]
[null,"Camera Accessories","NTM36K1000","NTM36K1000","SS therm house shld heater IN 120 230Vac",{"v":1956,"d":"1,956"},{"v":1956,"d":"1,956 "},"ZAM"]
[null,"Camera Accessories","NTM36K2000","NTM36K2000","SS therm house shld heat IN 12Vdc 24Vac",{"v":1956,"d":"1,956"},{"v":1956,"d":"1,956 "},"ZAM"]
[null,"Camera Accessories","NTW0K2000","NTW0K2000","LiqCool SS house Zinc Selenide glass",{"v":6438,"d":"6,438"},{"v":6438,"d":"6,438 "},"ZAM"]
[null,"Camera Accessories","NTW0K3000","NTW0K3000","LiqCool SS house Zinc Sapphire glass",{"v":3467,"d":"3,467"},{"v":3467,"d":"3,467 "},"ZAM"]
[null,"Camera Accessories","NVXIRBKT","NVXIRBKT","Mounting bracket for IRH illuminator",{"v":74.05,"d":"74"},{"v":74.05,"d":"74 "},"ZAM"]
[null,"Camera Accessories","NVXTUB","NVXTUB","Dust protection frontal shield",{"v":234.72,"d":"235"},{"v":234.72,"d":"235 "},"ZAM"]
[null,"Camera Accessories","NXCOL","NXCOL","Pole mount adpt for NXWBS1 NXWBPT NXWBL",{"v":311.83,"d":"312"},{"v":311.83,"d":"312 "},"ZAM"]
[null,"Camera Accessories","NXCTPG13SS","NXCTPG13SS","2xPG 13.5 SS cable glands IP68 housings",{"v":189.37,"d":"189"},{"v":189.37,"d":"189 "},"ZAM"]
[null,"Camera Accessories","NXCW","NXCW","Corner mount adpt NXWBS1 NXWBPTH1 NXWBL",{"v":155.69,"d":"156"},{"v":155.69,"d":"156 "},"ZAM"]
[null,"Camera Accessories","NXFIGRU2","NXFIGRU2","Filtering group compressed air cleaning",{"v":433.16,"d":"433"},{"v":433.16,"d":"433 "},"ZAM"]
[null,"Camera Accessories","NXFWBT","NXFWBT","Extension bracket for parapet mounting",{"v":241.52,"d":"242"},{"v":241.52,"d":"242 "},"ZAM"]
[null,"Camera Accessories","NXM36D0000","NXM36D0000","SS house 360mm",{"v":733.64,"d":"734"},{"v":733.64,"d":"734 "},"ZAM"]
[null,"Camera Accessories","NXM36K1000","NXM36K1000","SS house 360mm shield heat IN 120 230Vac",{"v":802.8,"d":"803"},{"v":802.8,"d":"803 "},"ZAM"]
[null,"Camera Accessories","NXM36K1050","NXM36K1050","SS house 360mm shld 2heat IN 120 230Vac",{"v":841.36,"d":"841"},{"v":841.36,"d":"841 "},"ZAM"]
[null,"Camera Accessories","NXM36K2000","NXM36K2000","SS house 360mm shld heat IN 12Vdc 24Vac",{"v":802.8,"d":"803"},{"v":802.8,"d":"803 "},"ZAM"]
[null,"Camera Accessories","NXM36K2700","NXM36K2700","SS Hi-PoE house shield PoE cameras",943,{"v":943,"d":"943 "},"ZAM"]
[null,"Camera Accessories","NXPTZCOL","NXPTZCOL","Pole mount adaptor",{"v":384.4,"d":"384"},{"v":384.4,"d":"384 "},"ZAM"]
[null,"Camera Accessories","NXPTZCW","NXPTZCW","Corner mount adaptor",{"v":281.21,"d":"281"},{"v":281.21,"d":"281 "},"ZAM"]
[null,"Camera Accessories","NXPTZSFP","NXPTZSFP","Adapter optical fiber for NXPTZ SERIES2",{"v":572.62,"d":"573"},{"v":572.62,"d":"573 "},"ZAM"]
[null,"Camera Accessories","NXPTZTW","NXPTZTW","Bracket for ceiling or parapet mounting",{"v":223.38,"d":"223"},{"v":223.38,"d":"223 "},"ZAM"]
[null,"Camera Accessories","NXPTZWB","NXPTZWB","Wall bracket",{"v":519.33,"d":"519"},{"v":519.33,"d":"519 "},"ZAM"]
[null,"Camera Accessories","NXW0K1000","NXW0K1000","LiqCool SS house air barrier no glass",{"v":1631,"d":"1,631"},{"v":1631,"d":"1,631 "},"ZAM"]
[null,"Camera Accessories","NXW0K1025","NXW0K1025","LiqCool SS house barrier IR-proof glass",{"v":2293,"d":"2,293"},{"v":2293,"d":"2,293 "},"ZAM"]
[null,"Camera Accessories","NXWBL","NXWBL","SS wall bracket for NXL housing",{"v":540.88,"d":"541"},{"v":540.88,"d":"541 "},"ZAM"]
[null,"Camera Accessories","NXWBS1","NXWBS1","Wall bracket for SS housings",{"v":299.36,"d":"299"},{"v":299.36,"d":"299 "},"ZAM"]
[null,"Camera Accessories","NXWTU","NXWTU","Adpt wall mnt NXWBS1 WBJA WBMA WBOVA2",{"v":494.38,"d":"494"},{"v":494.38,"d":"494 "},"ZAM"]
[null,"Camera Accessories","OBJA","OBJA","Ball joint for housing",{"v":17.12,"d":"17"},{"v":17.12,"d":"17 "},"ZAM"]
[null,"Camera Accessories","OCTEX1/2-3/4P","OCTEX1/2-3/4P","Cable gland reduction NPB 3q half NPT",{"v":42.53,"d":"43"},{"v":42.53,"d":"43 "},"ZAM"]
[null,"Camera Accessories","OCTEX1/2C","OCTEX1/2C","Gland NPB half NPT nAC IECEX-ATEX-EAC",{"v":33.79,"d":"34"},{"v":33.79,"d":"34 "},"ZAM"]
[null,"Camera Accessories","OCTEX3/4","OCTEX3/4","Gland NPB 3q NPT nAC ATEX",{"v":56.25,"d":"56"},{"v":56.25,"d":"56 "},"ZAM"]
[null,"Camera Accessories","OCTEX3/4C","OCTEX3/4C","Gland NPB 3q NPT nAC IECEX-ATEX-EAC",{"v":58.77,"d":"59"},{"v":58.77,"d":"59 "},"ZAM"]
[null,"Camera Accessories","OCTEXA1/2C","OCTEXA1/2C","Gland NPB half NPT AC IECEX-ATEX-EAC",{"v":61.35,"d":"61"},{"v":61.35,"d":"61 "},"ZAM"]
[null,"Camera Accessories","OCTEXA3/4","OCTEXA3/4","Gland NPB 3q NPT AC ATEX",{"v":61.35,"d":"61"},{"v":61.35,"d":"61 "},"ZAM"]
[null,"Camera Accessories","OCTEXA3/4C","OCTEXA3/4C","Gland NPB 3q NPT AC IECEX-ATEX-EAC Ex",{"v":123.94,"d":"124"},{"v":123.94,"d":"124 "},"ZAM"]
[null,"Camera Accessories","OCTEXB1/2P","OCTEXB1/2P","BarrierGland NPB half NPT nAC IECEX-ATEX",{"v":78.29,"d":"78"},{"v":78.29,"d":"78 "},"ZAM"]
[null,"Camera Accessories","OCTEXB3/4P","OCTEXB3/4P","Barrier Gland NPB 3q NPT nAC IECEX-ATEX",{"v":198.19,"d":"198"},{"v":198.19,"d":"198 "},"ZAM"]
[null,"Camera Accessories","OCTEXBA1/2P","OCTEXBA1/2P","Barrier Gland NPB half NPT AC IECEX-ATEX",{"v":126.02,"d":"126"},{"v":126.02,"d":"126 "},"ZAM"]
[null,"Camera Accessories","OCTEXBA3/4P","OCTEXBA3/4P","Barrier Gland NPB 3q NPT AC IECEX-ATEX",{"v":237.63,"d":"238"},{"v":237.63,"d":"238 "},"ZAM"]
[null,"Camera Accessories","OCTEXP3/4C","OCTEXP3/4C","Conduit Gland NPB 3q NPT IECEX-ATEX-EAC",{"v":386.66,"d":"387"},{"v":386.66,"d":"387 "},"ZAM"]
[null,"Camera Accessories","OCTEXS1/2C","OCTEXS1/2C","Gland NPB half NPT not AC IECEX-ATEX-EAC",{"v":24.95,"d":"25"},{"v":24.95,"d":"25 "},"ZAM"]
[null,"Camera Accessories","OEXPLUG1/2P","OEXPLUG1/2P","Plug EX half NPT IECEC ATEX -100 +400dC",{"v":19.04,"d":"19"},{"v":19.04,"d":"19 "},"ZAM"]
[null,"Camera Accessories","OEXPLUG3/4P","OEXPLUG3/4P","Plug EX 3Q NPT IECEX ATEX -100 +400dC",{"v":20.91,"d":"21"},{"v":20.91,"d":"21 "},"ZAM"]
[null,"Camera Accessories","OHEBVF1","OHEBVF1","Blower kit thermo filter IN 12Vdc",{"v":34.59,"d":"35"},{"v":34.59,"d":"35 "},"ZAM"]
[null,"Camera Accessories","OHEBVF2","OHEBVF2","Blower kit thermo filter IN 24Vac",{"v":34.59,"d":"35"},{"v":34.59,"d":"35 "},"ZAM"]
[null,"Camera Accessories","OHEBVF3","OHEBVF3","Blower kit thermo filter IN 230Vac",{"v":64.41,"d":"64"},{"v":64.41,"d":"64 "},"ZAM"]
[null,"Camera Accessories","OHEGBB","OHEGBB","Weatherproof junction box IP55",{"v":55.79,"d":"56"},{"v":55.79,"d":"56 "},"ZAM"]
[null,"Camera Accessories","OHEGBPS1B","OHEGBPS1B","Power IN 100 240Vac OUT 12Vdc wthrproof",{"v":91.63,"d":"92"},{"v":91.63,"d":"92 "},"ZAM"]
[null,"Camera Accessories","OHEGBPS2B","OHEGBPS2B","Power IN 230Vac OUT 24Vac weatherproof",{"v":91.63,"d":"92"},{"v":91.63,"d":"92 "},"ZAM"]
[null,"Camera Accessories","OHEH01B","OHEH01B","Heater IN 12Vdc 24Vac",{"v":20.41,"d":"20"},{"v":20.41,"d":"20 "},"ZAM"]
[null,"Camera Accessories","OHEH02B","OHEH02B","Heater IN 120 230Vac",{"v":39.12,"d":"39"},{"v":39.12,"d":"39 "},"ZAM"]
[null,"Camera Accessories","OHEH05B","OHEH05B","Heater IN 12Vdc 24Vac",{"v":23.25,"d":"23"},{"v":23.25,"d":"23 "},"ZAM"]
[null,"Camera Accessories","OHEH06B","OHEH06B","Heater IN 120 230Vac",{"v":23.25,"d":"23"},{"v":23.25,"d":"23 "},"ZAM"]
[null,"Camera Accessories","OHEH24B","OHEH24B","Heater IN 120 230Vac",{"v":22.23,"d":"22"},{"v":22.23,"d":"22 "},"ZAM"]
[null,"Camera Accessories","OHEH25B","OHEH25B","Heater IN 12Vdc 24Vac",{"v":22.23,"d":"22"},{"v":22.23,"d":"22 "},"ZAM"]
[null,"Camera Accessories","OHEH26","OHEH26","Heater IN 120 230Vac",{"v":17.35,"d":"17"},{"v":17.35,"d":"17 "},"ZAM"]
[null,"Camera Accessories","OHEH27","OHEH27","Heater IN 12Vdc 24Vac",{"v":17.35,"d":"17"},{"v":17.35,"d":"17 "},"ZAM"]
[null,"Camera Accessories","OHEP90INJ","OHEP90INJ","Power Injector PoE 90W 1 channel indoor",{"v":532.94,"d":"533"},{"v":532.94,"d":"533 "},"ZAM"]
[null,"Camera Accessories","OHEP90INJO","OHEP90INJO","Power Injector PoE 90W 1 channel outdoor",{"v":1040,"d":"1,040"},{"v":1040,"d":"1,040 "},"ZAM"]
[null,"Camera Accessories","OHEPOWINJ","OHEPOWINJ","Hi-PoE Power Injector 1 channel",{"v":111.47,"d":"111"},{"v":111.47,"d":"111 "},"ZAM"]
[null,"Camera Accessories","OHEPS01B","OHEPS01B","Power IN 100-240Vac OUT 12Vdc",{"v":55.23,"d":"55"},{"v":55.23,"d":"55 "},"ZAM"]
[null,"Camera Accessories","OHEPS02B","OHEPS02B","Power IN 230Vac OUT 24Vac",{"v":48.54,"d":"49"},{"$f":"F264-(F264*G$6)","v":{"v":48.54,"d":"49 "}},"ZAM"]
[null,"Camera Accessories","OHEPS19B","OHEPS19B","Power IN 100-240Vac OUT 12Vdc",{"v":41.96,"d":"42"},{"v":41.96,"d":"42 "},"ZAM"]
[null,"Camera Accessories","OHEPS20","OHEPS20","Power IN 230Vac OUT 24Vac",{"v":30.16,"d":"30"},{"v":30.16,"d":"30 "},"ZAM"]
[null,"Camera Accessories","OHEPS25","OHEPS25","Power IN 230Vac OUT 24Vac 400mA",{"v":42.64,"d":"43"},{"v":42.64,"d":"43 "},"ZAM"]
[null,"Camera Accessories","OHOTPS1","OHOTPS1","Power IN 100-240Vac OUT 12Vdc 1A",{"v":38.1,"d":"38"},{"v":38.1,"d":"38 "},"ZAM"]
[null,"Camera Accessories","OHOTPS2","OHOTPS2","Power IN 230Vac OUT 24Vac 400mA",{"v":30.16,"d":"30"},{"v":30.16,"d":"30 "},"ZAM"]
[null,"Camera Accessories","OHOTS","OHOTS","Sunshield",{"v":9.64,"d":"10"},{"v":9.64,"d":"10 "},"ZAM"]
[null,"Camera Accessories","OHOVPOEIPM","OHOVPOEIPM","Kit retrofit IPM tech HOV housings",{"v":189.37,"d":"189"},{"v":189.37,"d":"189 "},"ZAM"]
[null,"Camera Accessories","OHOVPS1B","OHOVPS1B","Power IN 100-240Vac OUT 12Vdc",{"v":38.1,"d":"38"},{"v":38.1,"d":"38 "},"ZAM"]
[null,"Camera Accessories","OHOVPS2B","OHOVPS2B","Camera power supply IN 230Vac OUT 24Vac",{"v":30.16,"d":"30"},{"v":30.16,"d":"30 "},"ZAM"]
[null,"Camera Accessories","OHOVTA1","OHOVTA1","Tamper switch onboard tamper screws key",{"v":44.57,"d":"45"},{"v":44.57,"d":"45 "},"ZAM"]
[null,"Camera Accessories","OHOVV1","OHOVV1","Heater fan continuous duty IN 12Vdc",{"v":27.33,"d":"27"},{"v":27.33,"d":"27 "},"ZAM"]
[null,"Camera Accessories","OHOVV2","OHOVV2","Heater fan continuous duty IN 24Vac",{"v":27.33,"d":"27"},{"v":27.33,"d":"27 "},"ZAM"]
[null,"Camera Accessories","OHOVV3","OHOVV3","Heater fan cont duty IN 100 240Vac",{"v":54.43,"d":"54"},{"v":54.43,"d":"54 "},"ZAM"]
[null,"Camera Accessories","OHPVCF3","OHPVCF3","Blower kit thermo filter IN 110 240Vac",{"v":60.67,"d":"61"},{"v":60.67,"d":"61 "},"ZAM"]
[null,"Camera Accessories","OHPVPOEIPM","OHPVPOEIPM","Kit retrofit IPM technology VERSO",{"v":189.37,"d":"189"},{"v":189.37,"d":"189 "},"ZAM"]
[null,"Camera Accessories","OHPVTA1","OHPVTA1","Tamper switch tamper proof screws key",{"v":30.96,"d":"31"},{"v":30.96,"d":"31 "},"ZAM"]
[null,"Camera Accessories","OHPVV1","OHPVV1","Heater fan continuous duty IN 12Vdc",{"v":27.33,"d":"27"},{"v":27.33,"d":"27 "},"ZAM"]
[null,"Camera Accessories","OHPVV2","OHPVV2","Heater fan continuous duty IN 24Vac",{"v":27.33,"d":"27"},{"v":27.33,"d":"27 "},"ZAM"]
[null,"Camera Accessories","OHPVV3","OHPVV3","Heater fan cont duty IN 100-240Vac",{"v":54.43,"d":"54"},{"v":54.43,"d":"54 "},"ZAM"]
[null,"Camera Accessories","OMPXCRWRENCH","OMPXCRWRENCH","MPX opening wrench accessory",{"v":198.44,"d":"198"},{"v":198.44,"d":"198 "},"ZAM"]
[null,"Camera Accessories","ONXAB1025B","ONXAB1025B","Air barrier with IR-proof glass",923,{"v":923,"d":"923 "},"ZAM"]
[null,"Camera Accessories","ONXAB2","ONXAB2","Air barrier with tempered glass for NXW",{"v":417.28,"d":"417"},{"v":417.28,"d":"417 "},"ZAM"]
[null,"Camera Accessories","ONXMAIRB","ONXMAIRB","Ant flange air barrier temp glass NXM36",{"v":512.53,"d":"513"},{"v":512.53,"d":"513 "},"ZAM"]
[null,"Camera Accessories","ONXMAIRBIR","ONXMAIRBIR","Ant flange air barrier IR-proof NXM36",{"v":1019,"d":"1,019"},{"v":1019,"d":"1,019 "},"ZAM"]
[null,"Camera Accessories","ONXPS1B","ONXPS1B","Power IN 100-240Vac OUT 12Vdc",{"v":46.27,"d":"46"},{"v":46.27,"d":"46 "},"ZAM"]
[null,"Camera Accessories","ONXPS2B","ONXPS2B","Camera power supply IN 230Vac OUT 24Vac",{"v":39.24,"d":"39"},{"v":39.24,"d":"39 "},"ZAM"]
[null,"Camera Accessories","ONXWPS1B","ONXWPS1B","Pow IN 100 240Vac OUT 12Vdc for NXW NTW",{"v":46.61,"d":"47"},{"v":46.61,"d":"47 "},"ZAM"]
[null,"Camera Accessories","ONXWQG","ONXWQG","Quartz Glass",{"v":359.45,"d":"359"},{"v":359.45,"d":"359 "},"ZAM"]
[null,"Camera Accessories","ONXWTG","ONXWTG","Tempered glass",{"v":25.97,"d":"26"},{"v":25.97,"d":"26 "},"ZAM"]
[null,"Camera Accessories","OSUPPIR","OSUPPIR","Bracket 1 GEKO IRH illuminator housing",{"v":23.59,"d":"24"},{"v":23.59,"d":"24 "},"ZAM"]
[null,"Camera Accessories","OWBIP2","OWBIP2","IP66 gaskets for WBOVA2 WCM4A2 brackets",{"v":9.07,"d":"9"},{"v":9.07,"d":"9 "},"ZAM"]
[null,"Camera Accessories","OWBIP3","OWBIP3","IP66 gaskets for WBOVA2 WCM4A2 brackets",{"v":9.07,"d":"9"},{"v":9.07,"d":"9 "},"ZAM"]
[null,"Camera Accessories","PEC-COMB100A","Comm. box; w PS & Switch; 220-230Vac","Communication box with power supply and switch; 220-230VAC; polycarbonate; compatible with H5A Rugged PTZ",{"v":1260.26,"d":"1,260"},{"v":1260.26,"d":"1,260 "},"ZAM"]
[null,"Camera Accessories","PEC-COMB200A","Comm. box; w PS & Switch; 24Vac","Communication box with power supply and switch; 24VAC; polycarbonate; compatible with H5A Rugged PTZ",{"v":1260.26,"d":"1,260"},{"v":1260.26,"d":"1,260 "},"ZAM"]
[null,"Camera Accessories","PEC-COMB300A","Comm. box; w PS & Switch; 120-127Vac","Communication box with power supply and switch; 120-127VAC; polycarbonate; compatible with H5A Rugged PTZ",{"v":1260.26,"d":"1,260"},{"v":1260.26,"d":"1,260 "},"ZAM"]
[null,"Camera Accessories","PEC-OUEMAN","UEA - Maintenance Kit","Camera maintenance kit (includes 1 x power connector; 1 x I/O connector; 1 x safety chain coupling plate; 2 x M16 cable glands; 1 x M20 cable gland; 1 x reduction gasket for M20 cable gland; 1 x reduction gasket for M16 cable gland; 1 x base gasket; 1 x Allen wrench; 1 x 2.5A fuse)",{"v":63.26,"d":"63"},{"v":63.26,"d":"63 "},"ZAM"]
[null,"Camera Accessories","PEC-OUEWIPER","UEA - Spare wiper blade","UEA - Spare wiper blade",{"v":30.17,"d":"30"},{"v":30.17,"d":"30 "},"ZAM"]
[null,"Camera Accessories","PEC-SURGEPR","Lightning surge prot. for Ethernet line","Surge protector for the Ethernet line",{"v":193.67,"d":"194"},{"v":193.67,"d":"194 "},"ZAM"]
[null,"Camera Accessories","PEC-UEAC","Corner adaptor ;SS AISI 316L","Corner mount adapter; stainless steel AISI 316L; compatible with wall arm mount",{"v":135.27,"d":"135"},{"v":135.27,"d":"135 "},"ZAM"]
[null,"Camera Accessories","PEC-UEAP","Pole adaptor; stainless steel AISI 316L","Pole mount adapter; stainless steel AISI 316L; compatible with wall arm mount",{"v":106.08,"d":"106"},{"v":106.08,"d":"106 "},"ZAM"]
[null,"Camera Accessories","PEC-UEAW","Counter-plate; stainless steel AISI 316L","Parapet plate mount adapter; stainless steel AISI 316L; compatible with parapet mounting brackets",{"v":145.01,"d":"145"},{"v":145.01,"d":"145 "},"ZAM"]
[null,"Camera Accessories","PEC-UEBP0AA","Parapet bracket for Esprit Compact PTZ","Parapet mounting bracket; internal cable channel; compatible with H5A Rugged PTZ; close to RAL9002",{"v":86.62,"d":"87"},{"v":86.62,"d":"87 "},"ZAM"]
[null,"Camera Accessories","PEC-UEBP4AA","PEC-UEBP4AA","Parapet brkt w quick con. RJ45 + 4 poles",{"v":164.47,"d":"164"},{"v":164.47,"d":"164 "},"ZAM"]
[null,"Camera Accessories","PEC-UEBP7AA","Parapet brkt w quick con. RJ45 + 7 poles","Parapet mounting bracket with quick connectors; RJ45 (Ethernet & PoE) and 7 poles to weld (power & I/O); compatible with H5A Rugged PTZ; close to RAL9002",{"v":189.78,"d":"190"},{"v":189.78,"d":"190 "},"ZAM"]
[null,"Camera Accessories","PEC-UEBWAA","Wall bracket for Esprit Compact PTZ","Wall arm mount; compatible with H5A Rugged PTZ; close to RAL9002",{"v":86.62,"d":"87"},{"v":86.62,"d":"87 "},"ZAM"]
[null,"Camera Accessories","PEC-UEI8AA","IR illuminator 850nm; Esprit Compact PTZ","IR illuminator; 850nm; compatible with H5A Rugged PTZ; close to RAL9002",{"v":296.82,"d":"297"},{"v":296.82,"d":"297 "},"ZAM"]
[null,"Camera Accessories","PEC-UEI8AAP","Long dist. IR 850nm; Esprit Compact PTZ","Long distance IR illuminator; 850nm; compatible with H5A Rugged PTZ; close to RAL9002",{"v":296.82,"d":"297"},{"v":296.82,"d":"297 "},"ZAM"]
[null,"Camera Accessories","PEC-UEI9AA","IR Illuminator 940nm; Esprit Compact PTZ","IR illuminator; 940nm; compatible with H5A Rugged PTZ; close to RAL9002",{"v":339.64,"d":"340"},{"v":339.64,"d":"340 "},"ZAM"]
[null,"Camera Accessories","PEC-UEIWAA","White light illum; Esprit Compact PTZ","White light illuminator; compatible with H5A Rugged PTZ; close to RAL9002",{"v":296.82,"d":"297"},{"v":296.82,"d":"297 "},"ZAM"]
[null,"Camera Accessories","PEC-UEIWAAP","Long Dist White Illum; Esprit Compact","Long distance white light illuminator; compatible with H5A Rugged PTZ; close to RAL9002",{"v":296.82,"d":"297"},{"v":296.82,"d":"297 "},"ZAM"]
[null,"Camera Accessories","PEC-WASPT0V23L11M00","Washer 23l; 11m; 230Vac-24Vac-120Vac","Washer pump; 23 L water tank; pump up to 11m (36 ft); 230VAC / 24VAC / 120VAC input; compatible with H5A Rugged PTZ",{"v":861.26,"d":"861"},{"v":861.26,"d":"861 "},"ZAM"]
[null,"Camera Accessories","PEC-WASPT0V5L5M00","Washer 5l; 5m; 230Vac-24Vac-120Vac","Washer pump; 5 L water tank; pump up to 5m (16.4 ft); 230VAC / 24VAC / 120VAC input; compatible with H5A Rugged PTZ",{"v":466.15,"d":"466"},{"v":466.15,"d":"466 "},"ZAM"]
[null,"Camera Accessories","PEC-WASPT1V23L30M00","Washer 23l; 30m; water float; 230Vac","Washer pump; 23 L water tank; pump up to 30m (98 ft); 230VAC input; compatible with H5A Rugged PTZ",{"v":1493.81,"d":"1,494"},{"v":1493.81,"d":"1,494 "},"ZAM"]
[null,"Camera Accessories","PEC-WASPT3V23L30M00","Washer 23l; 30m; water float; 120Vac","Washer pump; 23 L water tank; pump up to 30m (98 ft); 120VAC input; compatible with H5A Rugged PTZ",{"v":1493.81,"d":"1,494"},{"v":1493.81,"d":"1,494 "},"ZAM"]
[null,"Camera Accessories","PLMT-1001","Pole Mount for large pendant wall mount WLMT-1001","Pole Mount for large pendant WLMT-1001",{"v":93.67,"d":"94"},{"v":93.67,"d":"94 "},"ZAM"]
[null,"Camera Accessories","PTCC1","PTCC1","Pole mount adaptor 80 to 150mm",{"v":119.63,"d":"120"},{"v":119.63,"d":"120 "},"ZAM"]
[null,"Camera Accessories","SURGEPR","SURGEPR","Lightning surge protection device",{"v":284.61,"d":"285"},{"v":284.61,"d":"285 "},"ZAM"]
[null,"Camera Accessories","UEAC","UEAC","Corner adaptor stainless AISI 316L",{"v":151.61,"d":"152"},{"v":151.61,"d":"152 "},"ZAM"]
[null,"Camera Accessories","UEAP","UEAP","Pole adaptor stainless steel AISI 316L",{"v":117.25,"d":"117"},{"v":117.25,"d":"117 "},"ZAM"]
[null,"Camera Accessories","UEAW","UEAW","Counter-plate  stainless AISI 316L",{"v":165.67,"d":"166"},{"v":165.67,"d":"166 "},"ZAM"]
[null,"Camera Accessories","UEBP0AA","UEBP0AA","Parapet bracket with internal cable channel for Esprit Compact & ULISSE EVO grey-white colour (RAL9002)",{"v":76.43,"d":"76"},{"v":76.43,"d":"76 "},"ZAM"]
[null,"Camera Accessories","UEBP0FA","UEBP0FA","Parapet bracket internal cable RAL9005",{"v":76.43,"d":"76"},{"v":76.43,"d":"76 "},"ZAM"]
[null,"Camera Accessories","UEBP4AA","UEBP4AA","Parapet bracket with quick connectors for ethernets and 4 pins for power supply and I/O with screw terminals for Esprit Compact and EVO Ulisses; grey-white colour (RAL9002)",{"v":176.89,"d":"177"},{"v":176.89,"d":"177 "},"ZAM"]
[null,"Camera Accessories","UEBP4FA","UEBP4FA","Parapet bracket RJ45-PoE4PWR- IO RAL9005",{"v":176.89,"d":"177"},{"$f":"F328-(F328*G$6)","v":{"v":176.89,"d":"177 "}},"ZAM"]
[null,"Camera Accessories","UEBP7AA","UEBP7AA","Parapet bracket with quick connectors for ethernet and 7 pins for power supply and I/O. This requires welding the pins to the connectors for Esprit Compact and EVO Ulisses; grey-white colour (RAL9002)",{"v":202.98,"d":"203"},{"v":202.98,"d":"203 "},"ZAM"]
[null,"Camera Accessories","UEBP7FA","UEBP7FA","Parapet bracket RJ45-PoE7PWR- IO RAL9005",{"v":202.98,"d":"203"},{"v":202.98,"d":"203 "},"ZAM"]
[null,"Camera Accessories","UEBWAA","UEBWAA","Wall bracket for ULISSE EVO (RAL9002)",{"v":76.43,"d":"76"},{"v":76.43,"d":"76 "},"ZAM"]
[null,"Camera Accessories","UEBWFA","UEBWFA","Wall bracket for ULISSE EVO (RAL9005)",{"v":76.43,"d":"76"},{"v":76.43,"d":"76 "},"ZAM"]
[null,"Camera Accessories","UEI8AA","UEI8AA","850nm IR 175m (574ft) for EVO RAL9002",{"v":324.3,"d":"324"},{"v":324.3,"d":"324 "},"ZAM"]
[null,"Camera Accessories","UEI8AAP","UEI8AAP","850nm IR 270m (885ft) for EVO RAL9002",{"v":324.3,"d":"324"},{"v":324.3,"d":"324 "},"ZAM"]
[null,"Camera Accessories","UEI8FA","UEI8FA","850nm IR 175m (574ft) for EVO RAL9005",{"v":324.3,"d":"324"},{"v":324.3,"d":"324 "},"ZAM"]
[null,"Camera Accessories","UEI8FAP","UEI8FAP","850nm IR 270m (885ft) for EVO RAL9005",{"v":324.3,"d":"324"},{"v":324.3,"d":"324 "},"ZAM"]
[null,"Camera Accessories","UEI9AA","UEI9AA","940nm IR 100m (328ft) for EVO RAL9002",{"v":375.32,"d":"375"},{"v":375.32,"d":"375 "},"ZAM"]
[null,"Camera Accessories","UEI9FA","UEI9FA","940nm IR 100m (328ft) for EVO RAL9005",{"v":375.32,"d":"375"},{"v":375.32,"d":"375 "},"ZAM"]
[null,"Camera Accessories","UEIWAA","UEIWAA","White light 175m (574ft) for EVO RAL9002",{"v":324.3,"d":"324"},{"v":324.3,"d":"324 "},"ZAM"]
[null,"Camera Accessories","UEIWAAP","UEIWAAP","White light 270m (885ft) for EVO RAL9002",{"v":324.3,"d":"324"},{"v":324.3,"d":"324 "},"ZAM"]
[null,"Camera Accessories","UEIWFA","UEIWFA","White light 175m (574ft) for EVO RAL9005",{"v":324.3,"d":"324"},{"v":324.3,"d":"324 "},"ZAM"]
[null,"Camera Accessories","UEIWFAP","UEIWFAP","White light 270m (885ft) for EVO RAL9005",{"v":324.3,"d":"324"},{"v":324.3,"d":"324 "},"ZAM"]
[null,"Camera Accessories","UPT1SLGAN00E","UPT1SLGAN00E","ULISSE MAXI thermal 230Vac wiper",{"v":10741,"d":"10,741"},{"v":10741,"d":"10,741 "},"ZAM"]
[null,"Camera Accessories","UPT1SLWAN00E","UPT1SLWAN00E","ULISSE MAXI 230Vac wiper",{"v":7132,"d":"7,132"},{"v":7132,"d":"7,132 "},"ZAM"]
[null,"Camera Accessories","UPT2SLGAN00E","UPT2SLGAN00E","ULISSE MAXI thermal 24Vac wiper",{"v":10741,"d":"10,741"},{"v":10741,"d":"10,741 "},"ZAM"]
[null,"Camera Accessories","UPT2SLJAN00E","UPT2SLJAN00E","ULISSE MAXI 24Vac wipe bracket for illum",{"v":7132,"d":"7,132"},{"v":7132,"d":"7,132 "},"ZAM"]
[null,"Camera Accessories","UPT3SLGAN00E","UPT3SLGAN00E","ULISSE MAXI thermal 120Vac wiper",{"v":10741,"d":"10,741"},{"v":10741,"d":"10,741 "},"ZAM"]
[null,"Camera Accessories","UPT3SLWAN00E","UPT3SLWAN00E","ULISSE MAXI 120Vac wiper",{"v":7132,"d":"7,132"},{"v":7132,"d":"7,132 "},"ZAM"]
[null,"Camera Accessories","UPTBKITVB770","UPTBKITVB770","ULISSE2 adpt SONY camera and lens",{"v":737.04,"d":"737"},{"v":737.04,"d":"737 "},"ZAM"]
[null,"Camera Accessories","UPTBVTR","UPTBVTR","ULISSE2 house upper body de-icing wiper",{"v":473.97,"d":"474"},{"v":473.97,"d":"474 "},"ZAM"]
[null,"Camera Accessories","UPTHT1","UPTHT1","Reinforced heater for ULISSE generic",{"v":151.49,"d":"151"},{"v":151.49,"d":"151 "},"ZAM"]
[null,"Camera Accessories","UPTHT2","UPTHT2","Reinforced heater for ULISSE block",{"v":151.49,"d":"151"},{"v":151.49,"d":"151 "},"ZAM"]
[null,"Camera Accessories","UPTIRN108A00","UPTIRN108A00","ULISSE IR Ilum 10d 850nm 24Vac 12 24Vdc",{"v":528.4,"d":"528"},{"v":528.4,"d":"528 "},"ZAM"]
[null,"Camera Accessories","UPTIRN109A00","UPTIRN109A00","ULISSE IR Ilum 10d 940nm 24Vac 12 24Vdc",854,{"v":854,"d":"854 "},"ZAM"]
[null,"Camera Accessories","UPTIRN10WA00","UPTIRN10WA00","ULISSE white light 10d 24Vac-12 24Vdc",{"v":528.4,"d":"528"},{"v":528.4,"d":"528 "},"ZAM"]
[null,"Camera Accessories","UPTIRN308A00","UPTIRN308A00","ULISSE IR Ilum 30d 850nm 24Vac 12 24Vdc",{"v":528.4,"d":"528"},{"v":528.4,"d":"528 "},"ZAM"]
[null,"Camera Accessories","UPTIRN309A00","UPTIRN309A00","ULISSE  IR Ilm 30d 940nm 24Vac 12 24Vdc",854,{"v":854,"d":"854 "},"ZAM"]
[null,"Camera Accessories","UPTIRN30WA00","UPTIRN30WA00","ULISSE white light 30d 24Vac-12 24Vdc",{"v":528.4,"d":"528"},{"v":528.4,"d":"528 "},"ZAM"]
[null,"Camera Accessories","UPTIRN608A00","UPTIRN608A00","ULISSE  IR Ilm 60d 850nm 24Vac 12 24Vdc",{"v":528.4,"d":"528"},{"v":528.4,"d":"528 "},"ZAM"]
[null,"Camera Accessories","UPTIRN60WA00","UPTIRN60WA00","ULISSE white light 60d 24Vac-12 24Vdc",{"v":528.4,"d":"528"},{"v":528.4,"d":"528 "},"ZAM"]
[null,"Camera Accessories","UPTIRNBKT","UPTIRNBKT","Bracket mount LED illuminators UPTIRN",{"v":235.85,"d":"236"},{"v":235.85,"d":"236 "},"ZAM"]
[null,"Camera Accessories","UPTIRPS100N","UPTIRPS100N","Power ULISSE illum IN 100Vac WP metal",{"v":434.29,"d":"434"},{"v":434.29,"d":"434 "},"ZAM"]
[null,"Camera Accessories","UPTIRPS120UL","UPTIRPS120UL","Power ULISSE illum IN 120Vac WP metal UL",{"v":544.28,"d":"544"},{"v":544.28,"d":"544 "},"ZAM"]
[null,"Camera Accessories","UPTIRPS230N","UPTIRPS230N","Power ULISSE illum IN 230Vac WP metal",{"v":434.29,"d":"434"},{"v":434.29,"d":"434 "},"ZAM"]
[null,"Camera Accessories","UPTJBUL","UPTJBUL","UL junction weatherproof box",{"v":234.72,"d":"235"},{"v":234.72,"d":"235 "},"ZAM"]
[null,"Camera Accessories","UPTWBA","UPTWBA","Wall bracket with internal cable chan",{"v":119.29,"d":"119"},{"v":119.29,"d":"119 "},"ZAM"]
[null,"Camera Accessories","UPTWBTAB","UPTWBTAB","Parapet bracket with internal cable chan",{"v":119.29,"d":"119"},{"v":119.29,"d":"119 "},"ZAM"]
[null,"Camera Accessories","VIP6A1","VIP6A1","Wiper kit 230Vac",{"v":468.3,"d":"468"},{"v":468.3,"d":"468 "},"ZAM"]
[null,"Camera Accessories","VIP6A2","VIP6A2","Wiper kit 24Vac",{"v":468.3,"d":"468"},{"v":468.3,"d":"468 "},"ZAM"]
[null,"Camera Accessories","VIPNX1C","VIPNX1C","Stainless steel wiper 230Vac",872,{"v":872,"d":"872 "},"ZAM"]
[null,"Camera Accessories","VIPNX2C","VIPNX2C","Stainless steel wiper 24Vac",872,{"v":872,"d":"872 "},"ZAM"]
[null,"Camera Accessories","WAS0V23L11M00","WAS0V23L11M00","Tank 23l IN 230 24 120Vac wash pump 11m",{"v":695.08,"d":"695"},{"v":695.08,"d":"695 "},"ZAM"]
[null,"Camera Accessories","WAS0V23L5M00","WAS0V23L5M00","Tank 23l IN 230 24 120Vac wash pump 5m",{"v":479.64,"d":"480"},{"v":479.64,"d":"480 "},"ZAM"]
[null,"Camera Accessories","WAS0V5L5M00","WAS0V5L5M00","Tank 5l IN 230 24 120Vac wash pump 5m",{"v":428.62,"d":"429"},{"v":428.62,"d":"429 "},"ZAM"]
[null,"Camera Accessories","WAS1V23L30M00","WAS1V23L30M00","Tank 23l IN 230Vac wash pump 30m float",{"v":1314,"d":"1,314"},{"v":1314,"d":"1,314 "},"ZAM"]
[null,"Camera Accessories","WAS3V23L30M00","WAS3V23L30M00","Tank 23l IN 120Vac wash pump 30m float",{"v":1314,"d":"1,314"},{"v":1314,"d":"1,314 "},"ZAM"]
[null,"Camera Accessories","WASCAB","WASCAB","Wash SS Cabinet WAS and WASPT 5 11m",{"v":1063,"d":"1,063"},{"v":1063,"d":"1,063 "},"ZAM"]
[null,"Camera Accessories","WASEX2T4AT","WASEX2T4AT","ExP Tank 10l ATEX pipe 20m IN 24Vac dc",{"v":2176,"d":"2,176"},{"v":2176,"d":"2,176 "},"ZAM"]
[null,"Camera Accessories","WASEX2T4ATPR","WASEX2T4ATPR","ExP tank 10l ATEX 20m IN 24Vac dc SW",{"v":2833,"d":"2,833"},{"v":2833,"d":"2,833 "},"ZAM"]
[null,"Camera Accessories","WASEX2T4GOR","WASEX2T4GOR","ExP tank 10l EAC pipe 20m IN 24Vac dc",{"v":2176,"d":"2,176"},{"v":2176,"d":"2,176 "},"ZAM"]
[null,"Camera Accessories","WASEX2T4IN","WASEX2T4IN","ExP tank 10l INMETRO 20m IN 24Vac dc",{"v":2176,"d":"2,176"},{"v":2176,"d":"2,176 "},"ZAM"]
[null,"Camera Accessories","WASNX1V10L20M00","WASNX1V10L20M00","Tank 10l solenoid 230Vac man pump 30m",{"v":1919,"d":"1,919"},{"v":1919,"d":"1,919 "},"ZAM"]
[null,"Camera Accessories","WASNX2V10L20M00","WASNX2V10L20M00","Tank 10l solenoid 24Vac man pump 30m",{"v":1919,"d":"1,919"},{"v":1919,"d":"1,919 "},"ZAM"]
[null,"Camera Accessories","WASNX3V10L20M00","WASNX3V10L20M00","Tank 10l solenoid 120Vac man pump 30m",{"v":1919,"d":"1,919"},{"v":1919,"d":"1,919 "},"ZAM"]
[null,"Camera Accessories","WASPT0V23L11M00","WASPT0V23L11M00","Tank 23l IN 230 24 120Vac wash 11m float",935,{"v":935,"d":"935 "},"ZAM"]
[null,"Camera Accessories","WASPT0V23L5M00","WASPT0V23L5M00","Tank 23l IN 230 24 120Vac wash pump 5m",{"v":605.51,"d":"606"},{"v":605.51,"d":"606 "},"ZAM"]
[null,"Camera Accessories","WASPT0V5L5M00","WASPT0V5L5M00","Tank 5l IN 230 24 120Vac wash pump 5m",{"v":568.09,"d":"568"},{"v":568.09,"d":"568 "},"ZAM"]
[null,"Camera Accessories","WASPT1V23L30M00","WASPT1V23L30M00","Tank 23l IN 230Vac wash pump 30m float",{"v":1616,"d":"1,616"},{"v":1616,"d":"1,616 "},"ZAM"]
[null,"Camera Accessories","WASPT3V23L30M00","WASPT3V23L30M00","Tank 23l IN 120Vac wash pump 30m float",{"v":1616,"d":"1,616"},{"v":1616,"d":"1,616 "},"ZAM"]
[null,"Camera Accessories","WBJA","WBJA","Housing wall bracket with ball joint",{"v":22.11,"d":"22"},{"v":22.11,"d":"22 "},"ZAM"]
[null,"Camera Accessories","WBLA","WBLA","Wall bracket with ball joint for housing",{"v":675.81,"d":"676"},{"v":675.81,"d":"676 "},"ZAM"]
[null,"Camera Accessories","WBMA","WBMA","Housing wall bracket with ball joint",{"v":22.11,"d":"22"},{"$f":"F392-(F392*G$6)","v":{"v":22.11,"d":"22 "}},"ZAM"]
[null,"Camera Accessories","WBOV3A2","WBOV3A2","WBOVA2 wall bracket junction box",{"v":184.83,"d":"185"},{"v":184.83,"d":"185 "},"ZAM"]
[null,"Camera Accessories","WBOVA2","WBOVA2","Wall bracket with internal cable chan",{"v":32.77,"d":"33"},{"v":32.77,"d":"33 "},"ZAM"]
[null,"Camera Accessories","WCM3A","WCM3A","Ceiling bracket with ball joint",{"v":74.39,"d":"74"},{"v":74.39,"d":"74 "},"ZAM"]
[null,"Camera Accessories","WCM4A2","WCM4A2","Ceiling bracket with internal cable chan",{"v":106.71,"d":"107"},{"v":106.71,"d":"107 "},"ZAM"]
[null,"Camera Accessories","WCM5A","WCM5A","Ceiling bracket with ball joint",{"v":119.4,"d":"119"},{"v":119.4,"d":"119 "},"ZAM"]
[null,"Camera Accessories","WCMPA","WCMPA","Extension for WCM4A2 WCM5A bracket 500",{"v":30.05,"d":"30"},{"v":30.05,"d":"30 "},"ZAM"]
[null,"Camera Accessories","WCPA","WCPA","Wall bracket adaptor plate",{"v":34.47,"d":"34"},{"v":34.47,"d":"34 "},"ZAM"]
[null,"Camera Accessories","WCWA","WCWA","Corner mount adaptor",{"v":54.32,"d":"54"},{"v":54.32,"d":"54 "},"ZAM"]
[null,"Camera Accessories","WCWGC","WCWGC","Corner adaptor",{"v":90.15,"d":"90"},{"v":90.15,"d":"90 "},"ZAM"]
[null,"Camera Accessories","WEXTUB30","WEXTUB30","Antistatic water pipe delivery 30m",{"v":221.12,"d":"221"},{"v":221.12,"d":"221 "},"ZAM"]
[null,"Camera Accessories","WFWCA","WFWCA","Column mount ball joint for housing",{"v":92.76,"d":"93"},{"v":92.76,"d":"93 "},"ZAM"]
[null,"Camera Accessories","WLMT-1001","Wall Mount for large pendant camera","Wall Mount for large pendant camera",{"v":103.13,"d":"103"},{"v":103.13,"d":"103 "},"ZAM"]
[null,"Camera Accessories","WSFPA","WSFPA","Pole mount adaptor 65mm to 140mm",{"v":62.26,"d":"62"},{"v":62.26,"d":"62 "},"ZAM"]
[null,"Monitors","MRCA","Ceiling adapter for domes and MR3000; MR3050; MR4000 and MRU monitor mounts.","Ceiling adapter for domes and MR3000; MR3050; MR4000 and MRU monitor mounts.",{"v":37.85,"d":"38"},{"v":37.85,"d":"38 "},"ZAM"]
[null,"Monitors","PMCL2-CM","Monitor Mount; Celing Mount And VESA Head For LCD Monitors","Monitor Mount; Celing Mount And VESA Head For LCD Monitors",{"v":402.08,"d":"402"},{"v":402.08,"d":"402 "},"ZAM"]
[null,"Monitors","PMCL2-CMPL","Ceiling Mount And Telescoping Pole for 34-56\" monitors","Ceiling Mount And Telescoping Pole for 34-56\" monitors",{"v":700.08,"d":"700"},{"v":700.08,"d":"700 "},"ZAM"]
[null,"Monitors","PMCL2-CMPS","Ceiling Mount And Telescoping Pole for 23-31\" monitors","Ceiling Mount And Telescoping Pole for 23-31\" monitors",{"v":662.24,"d":"662"},{"v":662.24,"d":"662 "},"ZAM"]
[null,"Monitors","PMCL2-WM","VESA Wall Mount For LCD Monitor up to 50 lb","VESA Wall Mount For LCD Monitor up to 50 lb",{"v":113.53,"d":"114"},{"v":113.53,"d":"114 "},"ZAM"]
[null,"Monitors","PMCL2-WM1A","1 Arm Wall Mount with Tilt/Swivel Head","1 Arm Wall Mount with Tilt/Swivel Head",{"v":298.01,"d":"298"},{"v":298.01,"d":"298 "},"ZAM"]
[null,"Monitors","PMCL2-WMT","Wall Mount With Tilt/Swivel Head","Wall Mount With Tilt/Swivel Head",{"v":179.75,"d":"180"},{"v":179.75,"d":"180 "},"ZAM"]
[null,"Monitors","PMCL622","21.5\" LED Backlit 1080p Resolution Security Display","21.5\" LED Backlit 1080p Resolution Security Display",{"v":492.89,"d":"493"},{"v":492.89,"d":"493 "},"ZAM"]
[null,"Monitors","PMCL624","24\" LED Backlit 1080p Resolution Security Display","24\" LED Backlit 1080p Resolution Security Display",{"v":577.1,"d":"577"},{"v":577.1,"d":"577 "},"ZAM"]
[null,"Monitors","PMCL632","32\" LED Backlit 1080p Resolution Security Display","32\" LED Backlit 1080p Resolution Security Display",{"v":833.47,"d":"833"},{"v":833.47,"d":"833 "},"ZAM"]
[null,"Monitors","PMCL643K","43\" LED Backlit 4K Monitor","43\" LED Backlit 4K Monitor",{"v":1854,"d":"1,854"},{"v":1854,"d":"1,854 "},"ZAM"]
[null,"Monitors","PMCL649K","49\" LED Backlit 4K Monitor","49\" LED Backlit 4K Monitor",{"v":2185,"d":"2,185"},{"v":2185,"d":"2,185 "},"ZAM"]
[null,"Monitors","PMCL655K","55\" LED Backlit 4k Resolution Security Display","55\" LED Backlit 4k Resolution Security Display",{"v":2398,"d":"2,398"},{"v":2398,"d":"2,398 "},"ZAM"]
[null,"Monitors","PMCL665K","65\" LED Backlit 4K Monitor","65\" LED Backlit 4K Monitor",{"v":2637,"d":"2,637"},{"v":2637,"d":"2,637 "},"ZAM"]
[null,"Monitors","PMCLNBWMF","Flat wall mount for Narrow Bezel LCD monitors for PMCL542NB PMCL546NB PMCL555NB","Flat wall mount for Narrow Bezel LCD monitors compatible with PMCL542NB PMCL546NB PMCL555NB",{"v":189.21,"d":"189"},{"v":189.21,"d":"189 "},"ZAM"]
[null,"Monitors","PMCLNBWMS","LCD Swing out arm wall mount for PMCL542NB PMCL546NB PMCL555NB","Swing out arm wall mount for Narrow Bezel LCD monitors compatible with PMCL542NB PMCL546NB PMCL555NB",{"v":625.34,"d":"625"},{"v":625.34,"d":"625 "},"ZAM"]
[null,"Monitors","PMCLNBWMT","LCD Tilt wall mount for PMCL542NB PMCL546NB PMCL555NB","Tilt wall mount for Narrow Bezel LCD monitors compatible with PMCL542NB PMCL546NB PMCL555NB",{"v":227.06,"d":"227"},{"v":227.06,"d":"227 "},"ZAM"]
[null,"Power","MCS4-2B","4 outputs; each 2Amp self-resetting; No master; UL Listed. 120 VAC in 24 VAC out","Allows 4 outputs with total capacity of 2Amp. Each output has a self-resetting circuit breaker. No master power switch. UL Listed. 120 VAC input; 24 VAC output.",{"v":312.2,"d":"312"},{"v":312.2,"d":"312 "},"ZAM"]
[null,"Power","POE1236-ATEU","12 Port 36W per Port PoE AT Midspan AC DC Input EU Cord PD-9012G/ACDC","12 Port 36W per Port PoE AT Midspan 10 100 1000 Base T AC DC Input European Power Cord PD-9012G/ACDC",{"v":1544,"d":"1,544"},{"v":1544,"d":"1,544 "},"ZAM"]
[null,"Power","POE1236-ATUS","12 Port 36W per Port PoE AT Midspan AC DC Input US Cord PD-9012G/ACDC","12 Port 36W per Port PoE AT Midspan 10 100 1000 Base T AC DC Input US Power Cord PD-9012G/ACDC",{"v":1544,"d":"1,544"},{"v":1544,"d":"1,544 "},"ZAM"]
[null,"Power","POE130-ATEU","Single Port PoE Plus 30W Midspan AC Input European Powercord PD-9001GC/AC","Single Port PoE Plus 30W Midspan AC Input European Powercord PD-9001GC/AC",{"v":115.43,"d":"115"},{"v":115.43,"d":"115 "},"ZAM"]
[null,"Power","POE130-ATUS","Single Port PoE Plus 30W Midspan AC Input US Powercord PD-9001GC/AC","Single Port PoE Plus 30W Midspan AC Input US Powercord PD-9001GC/AC",{"v":115.43,"d":"115"},{"v":115.43,"d":"115 "},"ZAM"]
[null,"Power","POE130-XT","Single Port 802.3AF 802.3AT Extender 100M PD-POE Extender","Single Port 802.3AF 802.3AT Extender 100M PD-POE Extender",{"v":270.58,"d":"271"},{"v":270.58,"d":"271 "},"ZAM"]
[null,"Power","POE190-BT","HPOE 802.3BT Single Port Injector - US; EU; UK power cords PD-9601GC/AC-LNG","HPOE 802.3BT Single Port Injector - US; European; UK power cords PD-9601GC/AC-LNG",{"v":243.14,"d":"243"},{"v":243.14,"d":"243 "},"ZAM"]
[null,"Power","POE2436-ATEU","24 Port 36W per Port PoE AT Midspan AC DC Input EU Cord PD-9024G/ACDC","24 Port 36W Per Port PoE AT Midspan 10 100 1000 Base T AC DC Input European Power Cord PD-9024G/ACDC",{"v":2008,"d":"2,008"},{"v":2008,"d":"2,008 "},"ZAM"]
[null,"Power","POE2436-ATUS","24 Port 36W per Port PoE AT Midspan AC DC Input US Cord PD-9024G/ACDC","24 Port 36W Per Port PoE AT Midspan 10 100 1000 Base T AC DC Input US Power Cord PD-9024G/ACDC",{"v":2008,"d":"2,008"},{"v":2008,"d":"2,008 "},"ZAM"]
[null,"Power","POE430-ATEU","4 Port 30W per Port PoE AT Midspan AC Input EU Cord PD-9004G/AC","4 Port 30W Per Port PoE AT Midspan 10 100 1000 Base T AC Input European Power Cord PD-9004G/AC",{"v":501.41,"d":"501"},{"v":501.41,"d":"501 "},"ZAM"]
[null,"Power","POE430-ATUS","4 Port 30W per Port PoE AT Midspan AC Input US Power Cord PD-9004G/AC","4 Port 30W Per Port PoE AT Midspan 10 100 1000 Base T AC Input US Power Cord PD-9004G/AC",{"v":501.41,"d":"501"},{"v":501.41,"d":"501 "},"ZAM"]
[null,"Power","PWRCRD-R-AR","Power Cord Round for Argentina","Power Cord Round for Argentina",{"v":24.6,"d":"25"},{"v":24.6,"d":"25 "},"ZAM"]
[null,"Power","PWRCRD-R-AU","Power Cord Round for Australia","Power Cord Round for Australia",{"v":24.6,"d":"25"},{"v":24.6,"d":"25 "},"ZAM"]
[null,"Power","PWRCRD-R-EU","Power Cord Round for Europe","Power Cord Round for Europe",{"v":24.6,"d":"25"},{"v":24.6,"d":"25 "},"ZAM"]
[null,"Power","PWRCRD-R-UK","Power Cord Round for United Kingdom","Power Cord Round for United Kingdom",{"v":24.6,"d":"25"},{"v":24.6,"d":"25 "},"ZAM"]
[null,"Power","PWRCRD-R-US","Power Cord Round for United States","Power Cord Round for United States",{"v":24.6,"d":"25"},{"v":24.6,"d":"25 "},"ZAM"]
[null,"Power","PWRCRD-S-AR","Power Cord Standard for Argentina","Power Cord Standard for Argentina",{"v":24.6,"d":"25"},{"v":24.6,"d":"25 "},"ZAM"]
[null,"Power","PWRCRD-S-AU","Power Cord Standard for Australia","Power Cord Standard for Australia",{"v":24.6,"d":"25"},{"v":24.6,"d":"25 "},"ZAM"]
[null,"Power","PWRCRD-S-EU","Power Cord Standard for Europe","Power Cord Standard for Europe",{"v":24.6,"d":"25"},{"v":24.6,"d":"25 "},"ZAM"]
[null,"Power","PWRCRD-S-UK","Power Cord Standard for United Kingdom","Power Cord Standard for United Kingdom",{"v":24.6,"d":"25"},{"v":24.6,"d":"25 "},"ZAM"]
[null,"Power","PWRCRD-S-US","Power Cord Standard for United States","Power Cord Standard for United States",{"v":24.6,"d":"25"},{"v":24.6,"d":"25 "},"ZAM"]
[null,"Power","TF2000","Camera power supply for 24 VAC cameras; 120 VAC to 24 VAC (Class 2); 20 vA.","Camera power supply for 24 VAC cameras; 120 VAC to 24 VAC (Class 2); 20 vA.",{"v":30.28,"d":"30"},{"v":30.28,"d":"30 "},"ZAM"]
[null,"Power","TF9000","Camera power supply for 24 VAC cameras; 120 VAC to 24 VAC (Class 2); 50 vA.","Camera power supply for 24 VAC cameras; 120 VAC to 24 VAC (Class 2); 50 vA.",{"v":39.74,"d":"40"},{"v":39.74,"d":"40 "},"ZAM"]
[null,"Power","WCS1-4","1 fused output total capacity of 4Amp. 120/240 VAC input; 24/26/28 VAC output.","Allows 1 fused output with a total capacity of 4Amp. 120/240 VAC input; 24/26/28 VAC output.",{"v":212.87,"d":"213"},{"v":212.87,"d":"213 "},"ZAM"]
[null,"Transmission","EC-1501C-M","EConnect Local or Remote Single Port Coax Mini Case 12VDC/24VAC","EthernetConnect Local or Remote Single Port Extender Coax with Pass Through PoE to 15 Watts Mini Case 12VDC/24VAC",{"v":305.58,"d":"306"},{"v":305.58,"d":"306 "},"ZAM"]
[null,"Transmission","EC-1501U-M","EConnect Local or Remote Single Port Cat5 Mini Case 12VDC/24VAC","EthernetConnect Local or Remote Single Port Extender Cat5 with Pass Through PoE to 15 Watts Mini Case 12VDC/24VAC",{"v":296.12,"d":"296"},{"v":296.12,"d":"296 "},"ZAM"]
[null,"Transmission","EC-1504C-W","EConnect Local or Remote 4Port Coax with Pass Through PoE to 15 Watts Wall Mount","EthernetConnect Local or Remote Four Port Extender Coax with Pass Through PoE to 15 Watts Wall Mount",{"v":1123,"d":"1,123"},{"v":1123,"d":"1,123 "},"ZAM"]
[null,"Transmission","EC-1504U-W","EConnect Local or Remote 4Port Cat5 with Pass Through PoE to 15 Watts Wall Mount","EthernetConnect Local or Remote Four Port Extender Cat5 with Pass Through PoE to 15 Watts Wall Mount",{"v":1146,"d":"1,146"},{"v":1146,"d":"1,146 "},"ZAM"]
[null,"Transmission","EC-1508CL-R","EConnect Local Eight Port Coax with Pass Through PoE to 15 Watts 1 RU","EthernetConnect Local Eight Port Extender Coax with Pass Through PoE to 15 Watts 1 RU Rack Mount",{"v":1723,"d":"1,723"},{"v":1723,"d":"1,723 "},"ZAM"]
[null,"Transmission","EC-1508UL-R","EConnect Local Eight Port Cat5 with Pass Through PoE to 15 Watts 1 RU","EthernetConnect Local Eight Port Extender Cat5 with Pass Through PoE to 15 Watts 1 RU Rack Mount",{"v":1723,"d":"1,723"},{"v":1723,"d":"1,723 "},"ZAM"]
[null,"Transmission","EC-1516CL-R","EConnect Local Sixteen Port Coax with Pass Through PoE to 15 Watts 1 RU","EthernetConnect Local Sixteen Port Extender Coax with Pass Through PoE to 15 Watts 1 RU Rack Mount",{"v":4034,"d":"4,034"},{"v":4034,"d":"4,034 "},"ZAM"]
[null,"Transmission","EC-1516UL-R","EConnect Local Sixteen Port Cat5 with Pass Through PoE to 15 Watts 1 RU","EthernetConnect Local Sixteen Port Extender Cat5 with Pass Through PoE to 15 Watts 1 RU Rack Mount",{"v":3541,"d":"3,541"},{"v":3541,"d":"3,541 "},"ZAM"]
[null,"Transmission","EC-3001CLPOE-M","EConnect Local Single Port Coax with True PoE to 30 Watts Mini Case 12VDC/24VAC","EthernetConnect Local Single Port Extender Coax with True PoE to 30 Watts Mini Case 12VDC/24VAC",{"v":442.75,"d":"443"},{"v":442.75,"d":"443 "},"ZAM"]
[null,"Transmission","EC-3001CRPOE-M","EConnect Remote Single Port Coax with True PoE to 30 Watts Mini Case 12VDC/24VAC","EthernetConnect Remote Single Port Extender Coax with True PoE to 30 Watts Mini Case 12VDC/24VAC",{"v":442.75,"d":"443"},{"$f":"F456-(F456*G$6)","v":{"v":442.75,"d":"443 "}},"ZAM"]
[null,"Transmission","EC-3001ULPOE-M","EConnect Local Single Port Cat5 with True PoE to 30 Watts Mini Case 12VDC/24VAC","EthernetConnect Local Single Port Extender Cat5 with True PoE to 30 Watts Mini Case 12VDC/24VAC",{"v":465.46,"d":"465"},{"v":465.46,"d":"465 "},"ZAM"]
[null,"Transmission","EC-3001URPOE-M","EConnect Remote Single Port Cat5 with True PoE to 30 Watts Mini Case 12VDC/24VAC","EthernetConnect Remote Single Port Extender Cat5 with True PoE to 30 Watts Mini Case 12VDC/24VAC",{"v":465.46,"d":"465"},{"v":465.46,"d":"465 "},"ZAM"]
[null,"Transmission","EC-3004CLPOE-W","EConnect Local Four Port Coax withTrue PoE to 30 Watts Wall Mount","EthernetConnect Local Four Port Extender Coax withTrue PoE to 30 Watts Wall Mount",{"v":1674,"d":"1,674"},{"v":1674,"d":"1,674 "},"ZAM"]
[null,"Transmission","EC-3004CRPOE-W","EConnect Remote Four Port Coax with True PoE to 30 Watts Wall Mount","EthernetConnect Remote Four Port Extender Coax with True PoE to 30 Watts Wall Mount",{"v":1674,"d":"1,674"},{"v":1674,"d":"1,674 "},"ZAM"]
[null,"Transmission","EC-3004ULPOE-W","EConnect Local Four Port Cat5 withTrue PoE to 30 Watts Wall Mount","EthernetConnect Local Four Port Extender Cat5 withTrue PoE to 30 Watts Wall Mount",{"v":1727,"d":"1,727"},{"v":1727,"d":"1,727 "},"ZAM"]
[null,"Transmission","EC-3004URPOE-W","EConnect Remote Four Port Cat5 with True PoE to 30 Watts Wall Mount","EthernetConnect Remote Four Port Extender Cat5 with True PoE to 30 Watts Wall Mount",{"v":1727,"d":"1,727"},{"v":1727,"d":"1,727 "},"ZAM"]
[null,"Transmission","EC-3008CLPOE-R","EConnect Local Eight Port Coax with True PoE to 30 Watts 1 RU","EthernetConnect Local Eight Port Extender Coax with True PoE to 30 Watts 1 RU Rack Mount",{"v":2653,"d":"2,653"},{"v":2653,"d":"2,653 "},"ZAM"]
[null,"Transmission","EC-3008ULPOE-R","EConnect Local Eight Port Cat5 with True PoE to 30 Watts 1 RU","EthernetConnect Local Eight Port Extender Cat5 with True PoE to 30 Watts 1 RU Rack Mount",{"v":2678,"d":"2,678"},{"v":2678,"d":"2,678 "},"ZAM"]
[null,"Transmission","EC-3016CLPOE-R","EConnect Local Sixteen Port Coax with True PoE to 30 Watts 1 RU","EthernetConnect Local Sixteen Port Extender Coax with True PoE to 30 Watts 1 RU Rack Mount",{"v":5591,"d":"5,591"},{"v":5591,"d":"5,591 "},"ZAM"]
[null,"Transmission","EC-3016ULPOE-R","EConnect Local Sixteen Port Cat5 with True PoE to 30 Watts 1 RU","EthernetConnect Local Sixteen Port Extender Cat5 with True PoE to 30 Watts 1 RU Rack Mount",{"v":5604,"d":"5,604"},{"v":5604,"d":"5,604 "},"ZAM"]
[null,"Transmission","EC-4BY1SWCPOE-W","EConnect 4-Port Self Managed PoE Switch with Extended Coax Uplink Wall Mount","EthernetConnect 4-Port Self Managed PoE Switch 30 Watts Per Port with Extended Coax Uplink Wall Mount",{"v":1383,"d":"1,383"},{"v":1383,"d":"1,383 "},"ZAM"]
[null,"Transmission","EC-4BY1SWUPOE-W","EConnect 4-Port Self Managed PoE Switch Extended Cat5 Uplink Wall Mount","EthernetConnect 4-Port Self Managed PoE Switch 30 Watts Per Port with Extended Cat5 Uplink Wall Mount",{"v":1427,"d":"1,427"},{"v":1427,"d":"1,427 "},"ZAM"]
[null,"Transmission","ECPS-48VDC-10A","EthernetConnect 48VDC 10A Power Supply for 8 or 16 Channel PoE Applications","EthernetConnect 48VDC 10A Power Supply for 8 or 16 Channel PoE Applications",{"v":1089,"d":"1,089"},{"v":1089,"d":"1,089 "},"ZAM"]
[null,"Transmission","ECPS-48VDC-5A","EthernetConnect 48VDC 5A Power Supply for 4 Channel PoE applications","EthernetConnect 48VDC 5A Power Supply for 4 Channel PoE applications",{"v":378.42,"d":"378"},{"v":378.42,"d":"378 "},"ZAM"]
[null,"Transmission","ECPS07-12VDC-3A","EthernetConnect 12VDC 3A 8 or 16 Channel non PoE applications","EthernetConnect 12VDC 3A 8 or 16 Channel non PoE applications",{"v":77.58,"d":"78"},{"v":77.58,"d":"78 "},"ZAM"]
[null,"Transmission","EUPS","Power Supply For Analog Fiber Card Cage European power cord","Power Supply For Analog Fiber Card Cage European power cord",{"v":591.29,"d":"591"},{"v":591.29,"d":"591 "},"ZAM"]
[null,"Transmission","EURACK","Card Cage For Europe; Austraila; UK","Card Cage For Europe; Austraila; UK",{"v":879.83,"d":"880"},{"v":879.83,"d":"880 "},"ZAM"]
[null,"Transmission","FEXTPS","Fiber External Power Supply 100- 240VAC 9V 2Amp EU US UK Australian power cords","Fiber External Power Supply 100- 240VAC 9V 2Amp European US UK Australian power cords",{"v":59.61,"d":"60"},{"v":59.61,"d":"60 "},"ZAM"]
[null,"Transmission","FEXTPS-48V","Power supply for Fiber accessories 48VDC 1.36A output 100VAC-240VAC input","External power supply for Fiber accessories 48VDC 1.36A output 100VAC-240VAC input",{"v":146.65,"d":"147"},{"v":146.65,"d":"147 "},"ZAM"]
[null,"Transmission","FMCI-AF1MM1ST","100Mbps Media Converter (A); ST Connector; mm; 1 fiber","100Mbps Media Converter (A); ST Connector; mm; 1 fiber",{"v":525.07,"d":"525"},{"v":525.07,"d":"525 "},"ZAM"]
[null,"Transmission","FMCI-AF1MM1STM","Small Size 100Mbps Media Converter (A); ST Connector; AC/DC Power; mm; 1 fiber","Small Size 100Mbps Media Converter (A); ST Connector; AC/DC Power; mm; 1 fiber",{"v":452.21,"d":"452"},{"v":452.21,"d":"452 "},"ZAM"]
[null,"Transmission","FMCI-AF1SM1ST","100Mbps Media Converter (A); ST Connector; sm; 1 fiber","100Mbps Media Converter (A); ST Connector; sm; 1 fiber",{"v":522.23,"d":"522"},{"v":522.23,"d":"522 "},"ZAM"]
[null,"Transmission","FMCI-AF1SM1STM","Small Size 100Mbps Media Converter (A); ST Connector; AC/DC Power; sm; 1 fiber","Small Size 100Mbps Media Converter (A); ST Connector; AC/DC Power; sm; 1 fiber",{"v":628.18,"d":"628"},{"v":628.18,"d":"628 "},"ZAM"]
[null,"Transmission","FMCI-BF1MM1ST","100Mbps Media Converter (B); ST Connector; mm; 1 fiber","100Mbps Media Converter (B); ST Connector; mm; 1 fiber",{"v":525.07,"d":"525"},{"v":525.07,"d":"525 "},"ZAM"]
[null,"Transmission","FMCI-BF1MM1STM","Small Size 100Mbps Media Converter (B); ST Connector; AC/DC Power; mm; 1 fiber","Small Size 100Mbps Media Converter (B); ST Connector; AC/DC Power; mm; 1 fiber",{"v":452.21,"d":"452"},{"v":452.21,"d":"452 "},"ZAM"]
[null,"Transmission","FMCI-BF1SM1ST","100Mbps Media Converter (B); ST Connector; sm; 1 fiber","100Mbps Media Converter (B); ST Connector; sm; 1 fiber",{"v":522.23,"d":"522"},{"v":522.23,"d":"522 "},"ZAM"]
[null,"Transmission","FMCI-BF1SM1STM","Small Size 100Mbps Media Converter (B); ST Connector; AC/DC Power; sm; 1 fiber","Small Size 100Mbps Media Converter (B); ST Connector; AC/DC Power; sm; 1 fiber",{"v":628.18,"d":"628"},{"v":628.18,"d":"628 "},"ZAM"]
[null,"Transmission","FMCI-PF1","100Mbps Media Converter","100Mbps Media Converter",{"v":525.07,"d":"525"},{"v":525.07,"d":"525 "},"ZAM"]
[null,"Transmission","FMCI-PF1M","Small Size 100Mbps Media Converter","Small Size 100Mbps Media Converter",{"v":525.07,"d":"525"},{"v":525.07,"d":"525 "},"ZAM"]
[null,"Transmission","FMCI-PF1POE","100Mbps Media Converter; Power Over Ethernet","100Mbps Media Converter; Power Over Ethernet",{"v":628.18,"d":"628"},{"v":628.18,"d":"628 "},"ZAM"]
[null,"Transmission","FMCI-PF2","Dual 2 Port 100Mbps Media Converter","Dual 2 Port 100Mbps Media Converter",{"v":739.82,"d":"740"},{"v":739.82,"d":"740 "},"ZAM"]
[null,"Transmission","FMCI-PG1","1000Mbps Media Converter","1000Mbps Media Converter",{"v":840.09,"d":"840"},{"v":840.09,"d":"840 "},"ZAM"]
[null,"Transmission","FMCI-PG1M","Small Size 1000 Mbps Media Converter","Small Size 1000 Mbps Media Converter",{"v":840.09,"d":"840"},{"v":840.09,"d":"840 "},"ZAM"]
[null,"Transmission","FMCI-PG1POE","1000Mbps Media Converter; Power Over Ethernet","1000Mbps Media Converter; Power Over Ethernet",{"v":1010,"d":"1,010"},{"v":1010,"d":"1,010 "},"ZAM"]
[null,"Transmission","FMCI-PG2","Dual 1000Mbps Media Converter","Dual 1000Mbps Media Converter",{"v":1224,"d":"1,224"},{"v":1224,"d":"1,224 "},"ZAM"]
[null,"Transmission","FRD1M1ST","RS232/RS422/RS485 data transceiver RX multimode ST connector","RS232/RS422/RS485 data transceiver RX multimode ST connector",{"v":667.92,"d":"668"},{"v":667.92,"d":"668 "},"ZAM"]
[null,"Transmission","FRD1S1FC","RS232/RS422/RS485 data transceiver RX single mode FC connector","RS232/RS422/RS485 data transceiver RX single mode FC connector",{"v":847.67,"d":"848"},{"v":847.67,"d":"848 "},"ZAM"]
[null,"Transmission","FRD1S1ST","RS232/RS422/RS485 data transceiver RX single mode ST connector","RS232/RS422/RS485 data transceiver RX single mode ST connector",{"v":847.67,"d":"848"},{"v":847.67,"d":"848 "},"ZAM"]
[null,"Transmission","FRD4M1ST","4ch bi-dir RS2322/RS422/RS485 data mux RX multimode ST","4 channel bi-directional RS2322/RS422/RS485 data multiplexer RX multimode ST connector",{"v":923.35,"d":"923"},{"v":923.35,"d":"923 "},"ZAM"]
[null,"Transmission","FRD4S1FC","4ch bi-dir RS2322/rs422/Rs485 data mux RX singlemode FC","4 channel bi-directional RS2322/rs422/Rs485 data multiplexer RX singlemode FC connector",{"v":1300,"d":"1,300"},{"v":1300,"d":"1,300 "},"ZAM"]
[null,"Transmission","FRD4S1ST","4ch bi-dir RS2322/RS422/RS485 data mux RX singlemode ST","4 channel bi-directional RS2322/RS422/RS485 data multiplexer RX singlemode ST connector",{"v":1300,"d":"1,300"},{"v":1300,"d":"1,300 "},"ZAM"]
[null,"Transmission","FRV10D1A2M1ST","1ch 10-bit video with 1 data 1 contact closure & 2 audio bi-dir RX multimode ST","1 channel 10-bit digital video with 1 data 1 contact closure & 2 audio bi-directional RX multimode ST connector",{"v":1815,"d":"1,815"},{"v":1815,"d":"1,815 "},"ZAM"]
[null,"Transmission","FRV10D1A2S1FC","1ch 10-bit video with 1 data 1 contact closure & 2 audio bi-dir RX singlemode FC","1 channel 10-bit digital video with 1 data 1 contact closure & 2 audio bi-directional RX singlemode FC connector",{"v":2054,"d":"2,054"},{"v":2054,"d":"2,054 "},"ZAM"]
[null,"Transmission","FRV10D1A2S1ST","1ch 10-bit video with 1 data 1 contact closure & 2 audio bi-dir RX singlemode ST","1 channel 10-bit digital video with 1 data 1 contact closure & 2 audio bi-directional RX singlemode ST connector",{"v":2054,"d":"2,054"},{"v":2054,"d":"2,054 "},"ZAM"]
[null,"Transmission","FRV10D1M1ST","1ch 10-bit video 1ch bi-dir data receiver multimode ST","1 channel 10-bit digital video 1 channel bi-directional data receiver multimode ST connector",{"v":745.49,"d":"745"},{"v":745.49,"d":"745 "},"ZAM"]
[null,"Transmission","FRV10D1S1FC","1ch 10-bit video 1ch bi-dir data receiver singlemode FC","1 channel 10-bit digital video 1 channel bi-directional data receiver singlemode FC connector",{"v":1232,"d":"1,232"},{"v":1232,"d":"1,232 "},"ZAM"]
[null,"Transmission","FRV10D1S1ST","1ch 10-bit video 1ch bi-dir data receiver singlemode ST","1 channel 10-bit digital video 1 channel bi-directional data receiver singlemode ST connector",{"v":1232,"d":"1,232"},{"v":1232,"d":"1,232 "},"ZAM"]
[null,"Transmission","FRV160S1FC","16 channel 10-bit digital video multiplexer RX singlemode FC connector","16 channel 10-bit digital video multiplexer RX singlemode FC connector",{"v":9409,"d":"9,409"},{"v":9409,"d":"9,409 "},"ZAM"]
[null,"Transmission","FRV160S1ST","16 channel 10-bit digital video multiplexer RX singlemode ST connector","16 channel 10-bit digital video multiplexer RX singlemode ST connector",{"v":9409,"d":"9,409"},{"v":9409,"d":"9,409 "},"ZAM"]
[null,"Transmission","FRV20M2ST","2 channel 10-bit digital video 2 fiber receiver multimode ST connector","2 channel 10-bit digital video 2 fiber receiver multimode ST connector",{"v":530.74,"d":"531"},{"v":530.74,"d":"531 "},"ZAM"]
[null,"Transmission","FRV20S2FC","2 channel 10-bit digital video 2 fiber receiver singlemode FC connector","2 channel 10-bit digital video 2 fiber receiver singlemode FC connector",{"v":1329,"d":"1,329"},{"v":1329,"d":"1,329 "},"ZAM"]
[null,"Transmission","FRV20S2ST","2 channel 10-bit digital video 2 fiber receiver singlemode ST connector","2 channel 10-bit digital video 2 fiber receiver singlemode ST connector",{"v":1329,"d":"1,329"},{"v":1329,"d":"1,329 "},"ZAM"]
[null,"Transmission","FRV320S1FC","32 channel 10-bit digital video multiplexer RX singlemode FC connector","32 channel 10-bit digital video multiplexer RX singlemode FC connector",{"v":22810,"d":"22,810"},{"v":22810,"d":"22,810 "},"ZAM"]
[null,"Transmission","FRV320S1ST","32 channel 10-bit digital video multiplexer RX singlemode ST connector","32 channel 10-bit digital video multiplexer RX singlemode ST connector",{"v":22810,"d":"22,810"},{"v":22810,"d":"22,810 "},"ZAM"]
[null,"Transmission","FRV40D2M1ST","4ch 10-bit video mux 2 data bi-dir & 1 contact closure bi-dir RX multimode ST","4 channel 10-bit digital video multiplexer 2 data bi-directional & 1 contact closure bi-directional RX multimode ST connector",{"v":2359,"d":"2,359"},{"v":2359,"d":"2,359 "},"ZAM"]
[null,"Transmission","FRV40D2S1FC","4ch 10-bit video mux 2 data bi-dir & 1 contact closure bi-dir RX singlemode FC","4 channel 10-bit digital video multiplexer 2 data bi-directional & 1 contact closure bi-directional RX singlemode FC connector",{"v":2868,"d":"2,868"},{"v":2868,"d":"2,868 "},"ZAM"]
[null,"Transmission","FRV40D2S1ST","4ch 10-bit video mux 2 data bi-dir & 1 contact closure bi-dir RX singlemode ST","4 channel 10-bit digital video multiplexer 2 data bi-directional & 1 contact closure bi-directional RX singlemode ST connector",{"v":2868,"d":"2,868"},{"v":2868,"d":"2,868 "},"ZAM"]
[null,"Transmission","FRV40M1ST","4 channel 10-bit digital video multiplexer RX multimode ST connector","4 channel 10-bit digital video multiplexer RX multimode ST connector",{"v":1233,"d":"1,233"},{"v":1233,"d":"1,233 "},"ZAM"]
[null,"Transmission","FRV40S1FC","4 channel 10-bit digital video multiplexer RX singlemode FC connector","4 channel 10-bit digital video multiplexer RX singlemode FC connector",{"v":2054,"d":"2,054"},{"v":2054,"d":"2,054 "},"ZAM"]
[null,"Transmission","FRV40S1ST","4 channel 10-bit digital video multiplexer RX singlemode ST connector","4 channel 10-bit digital video multiplexer RX singlemode ST connector",{"v":2054,"d":"2,054"},{"v":2054,"d":"2,054 "},"ZAM"]
[null,"Transmission","FRV80D2M1ST","8ch 10-bit video mux 2 data bi-dir & 1 contact closure bi-dir RX multimode ST","8 channel 10-bit digital video multiplexer 2 data bi-directional & 1 contact closure bi-directional RX multimode ST connector",{"v":3420,"d":"3,420"},{"v":3420,"d":"3,420 "},"ZAM"]
[null,"Transmission","FRV80D2S1FC","8ch 10-bit video mux 2 data bi-dir & 1 contact closure bi-dir RX singlemode FC","8 channel 10-bit digital video multiplexer 2 data bi-directional & 1 contact closure bi-directional RX singlemode FC connector",{"v":4353,"d":"4,353"},{"v":4353,"d":"4,353 "},"ZAM"]
[null,"Transmission","FRV80D2S1ST","8ch 10-bit video mux 2 data bi-dir & 1 contact closure bi-dir RX singlemode ST","8 channel 10-bit digital video multiplexer 2 data bi-directional & 1 contact closure bi-directional RX singlemode ST connector",{"v":4353,"d":"4,353"},{"v":4353,"d":"4,353 "},"ZAM"]
[null,"Transmission","FRV80M1ST","8 channel 10-bit digital video multiplexer RX multimode ST connector","8 channel 10-bit digital video multiplexer RX multimode ST connector",{"v":2848,"d":"2,848"},{"$f":"F520-(F520*G$6)","v":{"v":2848,"d":"2,848 "}},"ZAM"]
[null,"Transmission","FRV80S1FC","8 channel 10-bit digital video multiplexer RX singlemode FC connector","8 channel 10-bit digital video multiplexer RX singlemode FC connector",{"v":3458,"d":"3,458"},{"v":3458,"d":"3,458 "},"ZAM"]
[null,"Transmission","FRV80S1ST","8 channel 10-bit digital video multiplexer RX singlemode ST connector","8 channel 10-bit digital video multiplexer RX singlemode ST connector",{"v":3458,"d":"3,458"},{"v":3458,"d":"3,458 "},"ZAM"]
[null,"Transmission","FSFP-AFMM1SC2","100fx; 1310nm; 2km; SC; 1 Fiber; Pair with SFP-26B; MSA Compliant","100fx; 1310nm; 2km; SC; 1 Fiber; Pair with SFP-26B; MSA Compliant",{"v":160.83,"d":"161"},{"v":160.83,"d":"161 "},"ZAM"]
[null,"Transmission","FSFP-AFSM1LC20","100fx; 1310nm; 20km LC; 1 Fiber; Pair with SFP-10B; MSA Compliant","100fx; 1310nm; 20km LC; 1 Fiber; Pair with SFP-10B; MSA Compliant",{"v":174.08,"d":"174"},{"v":174.08,"d":"174 "},"ZAM"]
[null,"Transmission","FSFP-AFSM1LC60","100fx; 1310nm; 60km; LC; 1 Fiber; Pair with SFP-20B; MSA Compliant","100fx; 1310nm; 60km; LC; 1 Fiber; Pair with SFP-20B; MSA Compliant",{"v":455.05,"d":"455"},{"v":455.05,"d":"455 "},"ZAM"]
[null,"Transmission","FSFP-AFSM1SC20","100fx; 1310nm; 20km; SC; 1 Fiber; Pair with SFP-36B; MSA Compliant","100fx; 1310nm; 20km; SC; 1 Fiber; Pair with SFP-36B; MSA Compliant",{"v":236.52,"d":"237"},{"v":236.52,"d":"237 "},"ZAM"]
[null,"Transmission","FSFP-AFSM1SC60","100fx; 1310nm; 60km; SC; 1 Fiber; Pair with SFP-24B; MSA Compliant","100fx; 1310nm; 60km; SC; 1 Fiber; Pair with SFP-24B; MSA Compliant",{"v":463.57,"d":"464"},{"v":463.57,"d":"464 "},"ZAM"]
[null,"Transmission","FSFP-AGSM1LC20","1000fx; 1310nm; 20km; LC; 1 Fiber; Pair with SFP-12B; MSA Compliant","1000fx; 1310nm; 20km; LC; 1 Fiber; Pair with SFP-12B; MSA Compliant",{"v":270.58,"d":"271"},{"v":270.58,"d":"271 "},"ZAM"]
[null,"Transmission","FSFP-AGSM1LC60","1000fx; 1310nm; 60km; LC; 1 Fiber; Pair with SFP-18B; MSA Compliant","1000fx; 1310nm; 60km; LC; 1 Fiber; Pair with SFP-18B; MSA Compliant",{"v":455.05,"d":"455"},{"v":455.05,"d":"455 "},"ZAM"]
[null,"Transmission","FSFP-AGSM1SC20","1000fx; 1310nm; 20km; SC; 1 Fiber; Pair with SFP-14B; MSA Compliant","1000fx; 1310nm; 20km; SC; 1 Fiber; Pair with SFP-14B; MSA Compliant",{"v":270.58,"d":"271"},{"v":270.58,"d":"271 "},"ZAM"]
[null,"Transmission","FSFP-AGSM1SC60","1000fx; 1310nm; 60km; SC; 1 Fiber; Pair with SFP-22B; MSA Compliant","1000fx; 1310nm; 60km; SC; 1 Fiber; Pair with SFP-22B; MSA Compliant",{"v":455.05,"d":"455"},{"v":455.05,"d":"455 "},"ZAM"]
[null,"Transmission","FSFP-BFMM1SC2","100fx; 1550nm; 2km; SC; 1 Fiber; Pair with SFP-26A; MSA Compliant","100fx; 1550nm; 2km; SC; 1 Fiber; Pair with SFP-26A; MSA Compliant",{"v":160.83,"d":"161"},{"v":160.83,"d":"161 "},"ZAM"]
[null,"Transmission","FSFP-BFSM1LC20","100fx; 1550nm; 20km; LC; 1 Fiber; Pair with SFP-10A; MSA Compliant","100fx; 1550nm; 20km; LC; 1 Fiber; Pair with SFP-10A; MSA Compliant",{"v":174.08,"d":"174"},{"v":174.08,"d":"174 "},"ZAM"]
[null,"Transmission","FSFP-BFSM1LC60","100fx; 1550nm; 60km; LC; 1 Fiber; Pair with SFP-20A; MSA Compliant","100fx; 1550nm; 60km; LC; 1 Fiber; Pair with SFP-20A; MSA Compliant",{"v":463.57,"d":"464"},{"v":463.57,"d":"464 "},"ZAM"]
[null,"Transmission","FSFP-BFSM1SC20","100fx; 1550nm; 20km; SC; 1 Fiber; Pair with SFP-36A; MSA Compliant","100fx; 1550nm; 20km; SC; 1 Fiber; Pair with SFP-36A; MSA Compliant",{"v":236.52,"d":"237"},{"v":236.52,"d":"237 "},"ZAM"]
[null,"Transmission","FSFP-BFSM1SC60","100fx; 1550nm; 60km; SC; 1 Fiber; Pair with SFP-24A; MSA Compliant","100fx; 1550nm; 60km; SC; 1 Fiber; Pair with SFP-24A; MSA Compliant",{"v":463.57,"d":"464"},{"v":463.57,"d":"464 "},"ZAM"]
[null,"Transmission","FSFP-BGSM1LC20","1000fx; 1550nm; 20km; LC; 1 Fiber; Pair with SFP-12A; MSA Compliant","1000fx; 1550nm; 20km; LC; 1 Fiber; Pair with SFP-12A; MSA Compliant",{"v":270.58,"d":"271"},{"v":270.58,"d":"271 "},"ZAM"]
[null,"Transmission","FSFP-BGSM1LC60","1000fx; 1550nm; 60km; LC; 1 Fiber; Pair with SFP-18A; MSA Compliant","1000fx; 1550nm; 60km; LC; 1 Fiber; Pair with SFP-18A; MSA Compliant",{"v":455.05,"d":"455"},{"v":455.05,"d":"455 "},"ZAM"]
[null,"Transmission","FSFP-BGSM1SC20","1000fx; 1550nm; 20km; SC; 1 Fiber; Pair with SFP-14A; MSA Compliant","1000fx; 1550nm; 20km; SC; 1 Fiber; Pair with SFP-14A; MSA Compliant",{"v":329.23,"d":"329"},{"v":329.23,"d":"329 "},"ZAM"]
[null,"Transmission","FSFP-BGSM1SC60","1000fx;1550nm;60km; SC; 1 Fiber; Pair with SFP-22A; MSA Compliant","1000fx;1550nm;60km; SC; 1 Fiber; Pair with SFP-22A; MSA Compliant",{"v":455.05,"d":"455"},{"v":455.05,"d":"455 "},"ZAM"]
[null,"Transmission","FSFP-EFMM2LC2","100fx; 1310nm; 2km; LC; 2 Fiber; MSA Compliant","100fx; 1310nm; 2km; LC; 2 Fiber; MSA Compliant",{"v":107.85,"d":"108"},{"v":107.85,"d":"108 "},"ZAM"]
[null,"Transmission","FSFP-EFSM2LC20","100fx; 1310nm; 20km; LC; 2 Fiber; MSA Compliant","100fx; 1310nm; 20km; LC; 2 Fiber; MSA Compliant",{"v":113.53,"d":"114"},{"v":113.53,"d":"114 "},"ZAM"]
[null,"Transmission","FSFP-EFSM2LC40","100fx; 1310nm; 40km; LC; 2 Fiber; MSA Compliant","100fx; 1310nm; 40km; LC; 2 Fiber; MSA Compliant",{"v":314.1,"d":"314"},{"v":314.1,"d":"314 "},"ZAM"]
[null,"Transmission","FSFP-EFSM2LC80","100fx; 1550nm; 80km; LC; 2 Fiber; MSA Compliant","100fx; 1550nm; 80km; LC; 2 Fiber; MSA Compliant",{"v":404.91,"d":"405"},{"v":404.91,"d":"405 "},"ZAM"]
[null,"Transmission","FSFP-EGMM2LC.55","10/100/1000Mbps; 850nm; 550m; LC; 2 Fiber","10/100/1000Mbps; 850nm; 550m; LC; 2 Fiber",{"v":107.85,"d":"108"},{"v":107.85,"d":"108 "},"ZAM"]
[null,"Transmission","FSFP-EGRJ45","Copper 10/100/1000Mbps RJ45; MSA Compliant","Copper 10/100/1000Mbps RJ45; MSA Compliant",{"v":142.86,"d":"143"},{"v":142.86,"d":"143 "},"ZAM"]
[null,"Transmission","FSFP-EGSM2LC120","1000fx; 1550nm; 120km; LC; 2 Fiber; MSA Compliant","1000fx; 1550nm; 120km; LC; 2 Fiber; MSA Compliant",{"v":862.81,"d":"863"},{"v":862.81,"d":"863 "},"ZAM"]
[null,"Transmission","FSFP-EGSM2LC15","1000fx; 1310nm; 15km; LC; 2 Fiber; MSA Compliant","1000fx; 1310nm; 15km; LC; 2 Fiber; MSA Compliant",{"v":118.27,"d":"118"},{"v":118.27,"d":"118 "},"ZAM"]
[null,"Transmission","FSFP-EGSM2LC40","1000fx; 1310nm; 40km; LC; 2 Fiber; MSA Compliant","1000fx; 1310nm; 40km; LC; 2 Fiber; MSA Compliant",{"v":314.1,"d":"314"},{"v":314.1,"d":"314 "},"ZAM"]
[null,"Transmission","FSFP-EGSM2LC70","1000fx; 1550nm; 70km; LC; 2 Fiber; MSA Compliant","1000fx; 1550nm; 70km; LC; 2 Fiber; MSA Compliant",{"v":404.91,"d":"405"},{"v":404.91,"d":"405 "},"ZAM"]
[null,"Transmission","FSV10D1M1ST","1ch 10-bit video 1ch bi-dir data transmitter for Spectra multimode ST","1 channel 10-bit digital video 1 channel bi-directional data transmitter for Spectra multimode ST connector",{"v":662.24,"d":"662"},{"v":662.24,"d":"662 "},"ZAM"]
[null,"Transmission","FSV10D1S1FC","1ch 10-bit video 1ch bi-dir data transmitter for Spectra singlemode FC","1 channel 10-bit digital video 1 channel bi-directional data transmitter for Spectra singlemode FC connector",{"v":1211,"d":"1,211"},{"v":1211,"d":"1,211 "},"ZAM"]
[null,"Transmission","FSV10D1S1ST","1ch 10-bit video 1ch bi-dir data transmitter for Spectra singlemode ST","1 channel 10-bit digital video 1 channel bi-directional data transmitter for Spectra singlemode ST connector",{"v":1211,"d":"1,211"},{"v":1211,"d":"1,211 "},"ZAM"]
[null,"Transmission","FTD1M1ST","RS232/RS422/RS485 data transceiver TX multimode ST connector","RS232/RS422/RS485 data transceiver TX multimode ST connector",{"v":667.92,"d":"668"},{"v":667.92,"d":"668 "},"ZAM"]
[null,"Transmission","FTD1S1FC","RS232/RS422/RS485 data transceiver TX single mode FC connector","RS232/RS422/RS485 data transceiver TX single mode FC connector",{"v":1663,"d":"1,663"},{"v":1663,"d":"1,663 "},"ZAM"]
[null,"Transmission","FTD1S1ST","RS232/RS422/RS485 data transceiver TX single mode ST connector","RS232/RS422/RS485 data transceiver TX single mode ST connector",{"v":1663,"d":"1,663"},{"v":1663,"d":"1,663 "},"ZAM"]
[null,"Transmission","FTD4M1ST","4ch bi-dir RS2322/RS422/RS485 data mux TX multimode ST","4 channel bi-directional RS2322/RS422/RS485 data multiplexer TX multimode ST connector",{"v":923.35,"d":"923"},{"v":923.35,"d":"923 "},"ZAM"]
[null,"Transmission","FTD4S1FC","4ch bi-dir RS2322/rs422/Rs485 data mux TX singlemode FC","4 channel bi-directional RS2322/rs422/Rs485 data multiplexer TX singlemode FC connector",{"v":1266,"d":"1,266"},{"v":1266,"d":"1,266 "},"ZAM"]
[null,"Transmission","FTD4S1ST","4ch bi-dir RS2322/RS422/RS485 data mux TX singlemode ST","4 channel bi-directional RS2322/RS422/RS485 data multiplexer TX singlemode ST connector",{"v":1266,"d":"1,266"},{"v":1266,"d":"1,266 "},"ZAM"]
[null,"Transmission","FTV10D1A2M1ST","1ch 10-bit video with 1 data 1 contact closure & 2 audio bi-dir TX multimode ST","1 channel 10-bit digital video with 1 data 1 contact closure & 2 audio bi-directional TX multimode ST connector",{"v":1832,"d":"1,832"},{"v":1832,"d":"1,832 "},"ZAM"]
[null,"Transmission","FTV10D1A2S1FC","1ch 10-bit video with 1 data 1 contact closure & 2 audio bi-dir TX singlemode FC","1 channel 10-bit digital video with 1 data 1 contact closure & 2 audio bi-directional TX singlemode FC connector",{"v":2035,"d":"2,035"},{"v":2035,"d":"2,035 "},"ZAM"]
[null,"Transmission","FTV10D1A2S1ST","1ch 10-bit video with 1 data 1 contact closure & 2 audio bi-dir TX singlemode ST","1 channel 10-bit digital video with 1 data 1 contact closure & 2 audio bi-directional TX singlemode ST connector",{"v":2035,"d":"2,035"},{"v":2035,"d":"2,035 "},"ZAM"]
[null,"Transmission","FTV10D1M1ST","1ch 10-bit video 1ch bi-dir data transmitter multimode ST","1 channel 10-bit digital video 1 channel bi-directional data transmitter multimode ST connector",{"v":745.49,"d":"745"},{"v":745.49,"d":"745 "},"ZAM"]
[null,"Transmission","FTV10D1S1FC","1ch 10-bit video 1ch bi-dir data transmitter singlemode FC","1 channel 10-bit digital video 1 channel bi-directional data transmitter singlemode FC connector",{"v":1232,"d":"1,232"},{"v":1232,"d":"1,232 "},"ZAM"]
[null,"Transmission","FTV10D1S1ST","1ch 10-bit video 1ch bi-dir data transmitter singlemode ST","1 channel 10-bit digital video 1 channel bi-directional data transmitter singlemode ST connector",{"v":1232,"d":"1,232"},{"v":1232,"d":"1,232 "},"ZAM"]
[null,"Transmission","FTV10M1ST","Single 10-bit digital video transmitter multimode ST connector","Single 10-bit digital video transmitter multimode ST connector",{"v":310.31,"d":"310"},{"v":310.31,"d":"310 "},"ZAM"]
[null,"Transmission","FTV10M1STM","Mini single 10-bit digital video transmitter multimode ST connector","Mini single 10-bit digital video transmitter multimode ST connector",{"v":378.42,"d":"378"},{"v":378.42,"d":"378 "},"ZAM"]
[null,"Transmission","FTV10S1FC","Single 10-bit digital video transmitter multimode FC connector","Single 10-bit digital video transmitter multimode FC connector",{"v":669.8,"d":"670"},{"v":669.8,"d":"670 "},"ZAM"]
[null,"Transmission","FTV10S1FCM","Mini single 10-bit digital video transmitter singlemode FC connector","Mini single 10-bit digital video transmitter singlemode FC connector",{"v":669.8,"d":"670"},{"v":669.8,"d":"670 "},"ZAM"]
[null,"Transmission","FTV10S1ST","Single 10-bit digital video transmitter singlemode ST connector","Single 10-bit digital video transmitter singlemode ST connector",{"v":669.8,"d":"670"},{"v":669.8,"d":"670 "},"ZAM"]
[null,"Transmission","FTV10S1STM","Mini single 10-bit digital video transmitter singlemode ST connector","Mini single 10-bit digital video transmitter singlemode ST connector",{"v":669.8,"d":"670"},{"v":669.8,"d":"670 "},"ZAM"]
[null,"Transmission","FTV160S1FC","16 channel 10-bit digital video multiplexer TX singlemode FC connector","16 channel 10-bit digital video multiplexer TX singlemode FC connector",{"v":9409,"d":"9,409"},{"v":9409,"d":"9,409 "},"ZAM"]
[null,"Transmission","FTV160S1ST","16 channel 10-bit digital video multiplexer TX singlemode ST connector","16 channel 10-bit digital video multiplexer TX singlemode ST connector",{"v":9409,"d":"9,409"},{"v":9409,"d":"9,409 "},"ZAM"]
[null,"Transmission","FTV320S1FC","32 channel 10-bit digital video multiplexer TX singlemode FC connector","32 channel 10-bit digital video multiplexer TX singlemode FC connector",{"v":22810,"d":"22,810"},{"v":22810,"d":"22,810 "},"ZAM"]
[null,"Transmission","FTV320S1ST","32 channel 10-bit digital video multiplexer TX singlemode ST connector","32 channel 10-bit digital video multiplexer TX singlemode ST connector",{"v":22810,"d":"22,810"},{"v":22810,"d":"22,810 "},"ZAM"]
[null,"Transmission","FTV40D2M1ST","4ch 10-bit video mux 2 data bi-dir & 1 contact closure bi-dir TX multimode ST","4 channel 10-bit digital video multiplexer 2 data bi-directional & 1 contact closure bi-directional TX multimode ST connector",{"v":2359,"d":"2,359"},{"v":2359,"d":"2,359 "},"ZAM"]
[null,"Transmission","FTV40D2S1FC","4ch 10-bit video mux 2 data bi-dir & 1 contact closure bi-dir TX singlemode FC","4 channel 10-bit digital video multiplexer 2 data bi-directional & 1 contact closure bi-directional TX singlemode FC connector",{"v":2868,"d":"2,868"},{"v":2868,"d":"2,868 "},"ZAM"]
[null,"Transmission","FTV40D2S1ST","4ch 10-bit video mux 2 data bi-dir & 1 contact closure bi-dir TX singlemode ST","4 channel 10-bit digital video multiplexer 2 data bi-directional & 1 contact closure bi-directional TX singlemode ST connector",{"v":2868,"d":"2,868"},{"v":2868,"d":"2,868 "},"ZAM"]
[null,"Transmission","FTV40M1ST","4 channel 10-bit digital video multiplexer TX multimode ST connector","4 channel 10-bit digital video multiplexer TX multimode ST connector",{"v":1245,"d":"1,245"},{"v":1245,"d":"1,245 "},"ZAM"]
[null,"Transmission","FTV40S1FC","4 channel 10-bit digital video multiplexer TX singlemode FC connector","4 channel 10-bit digital video multiplexer TX singlemode FC connector",{"v":2035,"d":"2,035"},{"v":2035,"d":"2,035 "},"ZAM"]
[null,"Transmission","FTV40S1ST","4 channel 10-bit digital video multiplexer TX singlemode ST connector","4 channel 10-bit digital video multiplexer TX singlemode ST connector",{"v":2035,"d":"2,035"},{"v":2035,"d":"2,035 "},"ZAM"]
[null,"Transmission","FTV80D2M1ST","8ch 10-bit video mux 2 data bi-dir & 1 contact closure bi-dir TX multimode ST","8 channel 10-bit digital video multiplexer 2 data bi-directional & 1 contact closure bi-directional TX multimode ST connector",{"v":3420,"d":"3,420"},{"v":3420,"d":"3,420 "},"ZAM"]
[null,"Transmission","FTV80D2S1FC","8ch 10-bit video mux 2 data bi-dir & 1 contact closure bi-dir TX singlemode FC","8 channel 10-bit digital video multiplexer 2 data bi-directional & 1 contact closure bi-directional TX singlemode FC connector",{"v":4353,"d":"4,353"},{"v":4353,"d":"4,353 "},"ZAM"]
[null,"Transmission","FTV80D2S1ST","8ch 10-bit video mux 2 data bi-dir & 1 contact closure bi-dir TX singlemode ST","8 channel 10-bit digital video multiplexer 2 data bi-directional & 1 contact closure bi-directional TX singlemode ST connector",{"v":4353,"d":"4,353"},{"$f":"F584-(F584*G$6)","v":{"v":4353,"d":"4,353 "}},"ZAM"]
[null,"Transmission","FTV80M1ST","8 channel 10-bit digital video multiplexer TX multimode ST connector","8 channel 10-bit digital video multiplexer TX multimode ST connector",{"v":2848,"d":"2,848"},{"v":2848,"d":"2,848 "},"ZAM"]
[null,"Transmission","FTV80S1FC","8 channel 10-bit digital video multiplexer TX singlemode FC connector","8 channel 10-bit digital video multiplexer TX singlemode FC connector",{"v":3458,"d":"3,458"},{"v":3458,"d":"3,458 "},"ZAM"]
[null,"Transmission","FTV80S1ST","8 channel 10-bit digital video multiplexer TX singlemode ST connector","8 channel 10-bit digital video multiplexer TX singlemode ST connector",{"v":3458,"d":"3,458"},{"v":3458,"d":"3,458 "},"ZAM"]
[null,"Transmission","FUMS-FFX2TX2","Unmanaged Switch; 4 Port; 100Mbps; 2 Fiber; 2 Copper; SFP Sold Separately","Unmanaged Switch; 4 Port; 100Mbps; 2 Fiber; 2 Copper; SFP Sold Separately",{"v":577.1,"d":"577"},{"v":577.1,"d":"577 "},"ZAM"]
[null,"Transmission","FUMS-FFX4TX4","Unmanaged Switch; 8 Port;100Mbps; 4 Fiber; 4 Copper; SFP Sold Separately","Unmanaged Switch; 8 Port;100Mbps; 4 Fiber; 4 Copper; SFP Sold Separately",{"v":842.93,"d":"843"},{"v":842.93,"d":"843 "},"ZAM"]
[null,"Transmission","FUMS-FFX8","Unmanaged Switch; 8 Port; 100Mbps; 8 Fiber; SFP Sold Separately","Unmanaged Switch; 8 Port; 100Mbps; 8 Fiber; SFP Sold Separately",987,{"v":987,"d":"987 "},"ZAM"]
[null,"Transmission","FUMS-FTX8","Unmanaged Switch; 8 Port; 100Mbps; 8 Copper; SFP Sold Separately","Unmanaged Switch; 8 Port; 100Mbps; 8 Copper; SFP Sold Separately",977,{"v":977,"d":"977 "},"ZAM"]
[null,"Transmission","FUMS-GFX4","Unmanaged Switch; 4 Port; 1000Mbps; SFP Sold Separately","Unmanaged Switch; 4 Port; 1000Mbps; SFP Sold Separately",{"v":753.06,"d":"753"},{"v":753.06,"d":"753 "},"ZAM"]
[null,"Transmission","FUMS-GFX8","Unmanaged Switch; 8 Port; 1000Mbps; SFP Sold Separately","Unmanaged Switch; 8 Port; 1000Mbps; SFP Sold Separately",{"v":1047,"d":"1,047"},{"v":1047,"d":"1,047 "},"ZAM"]
[null,"Transmission","PDS-104GO/AC/M-CC-MSI","Managed Switch outdoor rated 4 port PoE+ 30W per port or 60W/2 ports + 1 SFP","Managed Switch outdoor rated 4 port PoE+ 30W per port or 60W on 2 ports + 1 SFP uplink",{"v":1655,"d":"1,655"},{"v":1655,"d":"1,655 "},"ZAM"]
[null,"Transmission","RACK1B","1 Slot Blank Filler Plate","1 Slot Blank Filler Plate",{"v":27.44,"d":"27"},{"v":27.44,"d":"27 "},"ZAM"]
[null,"Transmission","USRACK","Card Cage For US","Card Cage For US",{"v":879.83,"d":"880"},{"v":879.83,"d":"880 "},"ZAM"]
[null,"Lenses","13M2.8-8","Lens; 1/3-inch format 3 megapixel varifocal 2.8-8mm F/1.2-1.9 auto iris CS-mount","Lens; 1/3-inch format 3 megapixel varifocal 2.8-8mm F/1.2-1.9 auto iris CS-mount",{"v":148.53,"d":"149"},{"v":148.53,"d":"149 "},"ZAM"]
[null,"Lenses","13VA5-50","CS Lens; 1/3-inch varifocal zoom; 5-50mm manual iris; f1.4-closed","Lens; 1/3-inch format varifocal zoom; 5-50mm manual iris; manual focus and zoom; f1.4-closed; CS-mount.",{"v":156.11,"d":"156"},{"v":156.11,"d":"156 "},"ZAM"]
[null,"Lenses","M1.8-3","Megapixel CS 1.8-3mm F1.8 Lens For Sarix Box IP Cameras SL183A","Megapixel CS 1.8-3mm F1.8 Lens For Sarix Box IP Cameras SL183A",{"v":308.42,"d":"308"},{"v":308.42,"d":"308 "},"ZAM"]
[null,"Lenses","M2.7-13","Megapixel CS 1/2.7Inch 2.7-13mm F1.4 Lens DC Iris M13VG2713IR","Megapixel CS 1/2.7Inch 2.7-13mm F1.4 Lens DC Iris for Sarix Box IP Cameras M13VG2713IR",{"v":211.92,"d":"212"},{"v":211.92,"d":"212 "},"ZAM"]
[null,"Lenses","M2.8-8.5P","Megapixel CS 1/2.7Inch 2.8-8.5mm F1.2 P-iris Lens AG3Z2812KCS-MPWIR","Megapixel CS 1/2.7Inch 2.8-8.5mm F1.2 P-iris Lens for Sarix Box IP Cameras AG3Z2812KCS-MPWIR",{"v":231.79,"d":"232"},{"v":231.79,"d":"232 "},"ZAM"]
[null,"Lenses","M8-80","Megapixel CS 8-80mm for Sarix Box IP Cameras DV10X8SRA-SA1L","Megapixel CS 8-80mm for Sarix Box IP Cameras DV10X8SRA-SA1L",{"v":482.49,"d":"482"},{"v":482.49,"d":"482 "},"ZAM"]
[null,"Lenses","M9-40P","Megapixel CS 1/2.5Inch 9-40mm F1.5 P-iris Lens for Sarix Box IP Cameras SL940P","Megapixel CS 1/2.5Inch 9-40mm F1.5 P-iris Lens for Sarix Box IP Cameras SL940P",{"v":308.42,"d":"308"},{"v":308.42,"d":"308 "},"ZAM"]
[null,"Lenses","MI2.8-8.5P","Megapixel I-CS Lens 2.8-8.5mm for Sarix box IP cameras AG3Z2812TCS-MPWIR","Megapixel I-CS Lens 2.8-8.5mm for Sarix box IP cameras AG3Z2812TCS-MPWIR",{"v":257.33,"d":"257"},{"v":257.33,"d":"257 "},"ZAM"]
[null,"Lenses","MI3.9-10P","Megapixel I-CS 3.9-10Mm F1.5 Lens For Sarix Box IP CamerasEG3Z3915TCS-MPWIR","Megapixel I-CS 3.9-10Mm F1.5 Lens For Sarix Box IP CamerasEG3Z3915TCS-MPWIR",{"v":342.48,"d":"342"},{"v":342.48,"d":"342 "},"ZAM"]
[null,"Lenses","MI9-50P","Megapixel I-CS 9-50mm F1.5 Lens for Sarix Box IP Cameras EG6Z0915TCS-MPWIR","Megapixel I-CS 9-50mm F1.5 Lens for Sarix Box IP Cameras EG6Z0915TCS-MPWIR",{"v":599.8,"d":"600"},{"v":599.8,"d":"600 "},"ZAM"]
[null,"Lenses","YV2.7X2.2SR4A","1/3\" or 1/2.7\" CS mount lens 2.2-6mm; DC auto iris; F1.3","1/3\" or 1/2.7\" CS mount lens 2.2-6mm; DC auto iris; F1.3",{"v":259.22,"d":"259"},{"v":259.22,"d":"259 "},"ZAM"]
[null,"Lenses","YV2.8X2.8SR4A","1/3\" or 1/2.7\" CS mount lens 2.8-8mm; DC auto iris; F1.3","1/3\" or 1/2.7\" CS mount lens 2.8-8mm; DC auto iris; F1.3",{"v":208.14,"d":"208"},{"v":208.14,"d":"208 "},"ZAM"]
[null,"Lenses","YV3.3X15SR4A","1/3\" or 1/2.7\" CS mount lens 15-50mm; DC auto iris; F1.5","1/3\" or 1/2.7\" CS mount lens 15-50mm; DC auto iris; F1.5",{"v":355.72,"d":"356"},{"v":355.72,"d":"356 "},"ZAM"]
[null,"Encoders","NET5500-XPWR-AU","Extended Temp Encoder AU Power Supply","Extended Temp Encoder AU Power Supply",{"v":29.33,"d":"29"},{"v":29.33,"d":"29 "},"ZAM"]
[null,"Encoders","NET5501-AR","Single channel rack mount Encoder AR power cord","Single channel rack mount Encoder AR power cord",{"v":510.87,"d":"511"},{"v":510.87,"d":"511 "},"ZAM"]
[null,"Encoders","NET5501-AU","Single channel rack mount Encoder AU power cord","Single channel rack mount Encoder AU power cord",{"v":506.15,"d":"506"},{"v":506.15,"d":"506 "},"ZAM"]
[null,"Encoders","NET5501-CN","Single channel rack mount Encoder No power cord","Single channel rack mount Encoder No power cord",{"v":510.87,"d":"511"},{"v":510.87,"d":"511 "},"ZAM"]
[null,"Encoders","NET5501-EU","Single channel rack mount Encoder EU power cord","Single channel rack mount Encoder EU power cord",{"v":520.33,"d":"520"},{"v":520.33,"d":"520 "},"ZAM"]
[null,"Encoders","NET5501-I","Single-channel Inline Encoder","Single-channel Inline Encoder",{"v":358.56,"d":"359"},{"v":358.56,"d":"359 "},"ZAM"]
[null,"Encoders","NET5501-UK","Single channel rack mount Encoder UK power cord","Single channel rack mount Encoder UK power cord",{"v":520.33,"d":"520"},{"v":520.33,"d":"520 "},"ZAM"]
[null,"Encoders","NET5501-XT","Single channel temperature-hardened encoder","Single channel temperature-hardened encoder",{"v":782.39,"d":"782"},{"v":782.39,"d":"782 "},"ZAM"]
[null,"Encoders","NET5501-XT-AU","Single channel temperature-hardened encoder AU power cord","Single channel temperature-hardened encoder AU power cord",{"v":790.9,"d":"791"},{"v":790.9,"d":"791 "},"ZAM"]
[null,"Encoders","NET5501-XT-EU","Single channel temperature-hardened encoder EU power cord","Single channel temperature-hardened encoder EU power cord",{"v":775.77,"d":"776"},{"v":775.77,"d":"776 "},"ZAM"]
[null,"Encoders","NET5501-XT-UK","Single channel temperature-hardened encoder UK power cord","Single channel temperature-hardened encoder UK power cord",{"v":775.77,"d":"776"},{"v":775.77,"d":"776 "},"ZAM"]
[null,"Encoders","NET5504-AU","4 channel rack mount Encoder AU power cord","4 channel rack mount Encoder AU power cord",{"v":637.64,"d":"638"},{"v":637.64,"d":"638 "},"ZAM"]
[null,"Encoders","NET5504-EU","4 channel rack mount Encoder EU power cord","4 channel rack mount Encoder EU power cord",{"v":609.26,"d":"609"},{"v":609.26,"d":"609 "},"ZAM"]
[null,"Encoders","NET5508-AR","8 channel rack mount Encoder AR power cord","8 channel rack mount Encoder AR power cord",{"v":1176,"d":"1,176"},{"v":1176,"d":"1,176 "},"ZAM"]
[null,"Encoders","NET5508-AU","8 channel rack mount Encoder AU power cord","8 channel rack mount Encoder AU power cord",{"v":1186,"d":"1,186"},{"v":1186,"d":"1,186 "},"ZAM"]
[null,"Encoders","NET5508-CN","8 channel rack mount Encoder No power cord","8 channel rack mount Encoder No power cord",{"v":1165,"d":"1,165"},{"v":1165,"d":"1,165 "},"ZAM"]
[null,"Encoders","NET5508-EU","8 channel rack mount Encoder EU power cord","8 channel rack mount Encoder EU power cord",{"v":1154,"d":"1,154"},{"v":1154,"d":"1,154 "},"ZAM"]
[null,"Encoders","NET5508-UK","8 channel rack mount Encoder UK power cord","8 channel rack mount Encoder UK power cord",{"v":1154,"d":"1,154"},{"v":1154,"d":"1,154 "},"ZAM"]
[null,"Encoders","NET5516-UK","16 channel rack mount Encoder UK power cord","16 channel rack mount Encoder UK power cord",{"v":1926,"d":"1,926"},{"v":1926,"d":"1,926 "},"ZAM"]
[null,"Controller / Keyboards","3DX-600-3DMOUSE","VideoXpert; Enhanced 3D Mouse with Joy and Jog Stick","VideoXpert; Enhanced 3D Mouse with Joy and Jog Stick",{"v":619.67,"d":"620"},{"v":619.67,"d":"620 "},"ZAM"]
[null,"Controller / Keyboards","KSC-3000U","Direct Mode Fixed/Variable Speed Controller; PTZ; Joystick","Direct Mode Fixed/Variable Speed Controller; PTZ; Joystick",{"v":560.07,"d":"560"},{"v":560.07,"d":"560 "},"ZAM"]
[null,"Controller / Keyboards","KSC-PSKIT","Power Adapter Kit (12VDC) for KSC-3000U Controller","Power Adapter Kit (12VDC) for KSC-3000U Controller",{"v":22.71,"d":"23"},{"v":22.71,"d":"23 "},"ZAM"]
[null,"Housings / Mounts","C11-UM","Universal camera mount for Sarix Box cameras","Universal camera mount for Sarix Box cameras",{"v":104.07,"d":"104"},{"v":104.07,"d":"104 "},"ZAM"]
[null,"Housings / Mounts","CM1751","Light Duty mount ceiling/pendant/wall","Light Duty mount ceiling/pendant/wall",{"v":52.04,"d":"52"},{"v":52.04,"d":"52 "},"ZAM"]
[null,"Housings / Mounts","CM400","Corner adapter for LWM41; IWM; IWM24; and DF5","Corner adapter for LWM41 Legacy; IWM; or IWM24 wall mounts for Legacy and Intercept series or Spectra and DF5 pendant series. Supports up to 75 lbs.",{"v":81.37,"d":"81"},{"v":81.37,"d":"81 "},"ZAM"]
[null,"Housings / Mounts","CM400-SW","Corner Mount Adaptor For IWM-SW for Spectra Enhanced 7 IP PTZ Cameras RAL 9003","Corner Mount Adaptor For IWM-SW for Spectra Enhanced 7 IP PTZ Cameras RAL 9003",{"v":81.37,"d":"81"},{"v":81.37,"d":"81 "},"ZAM"]
[null,"Housings / Mounts","EC20","Ceiling Mount For EH20 Enclosures","Ceiling Mount For EH20 Enclosures",{"v":263.96,"d":"264"},{"v":263.96,"d":"264 "},"ZAM"]
[null,"Housings / Mounts","EH14","Housing megapixel window IP66 CE and optional mounts and brackets","General purpose General purpose camera housing with megapixel window IP66 environmental protection CE certification and optional mounts and brackets",{"v":52.04,"d":"52"},{"v":52.04,"d":"52 "},"ZAM"]
[null,"Housings / Mounts","EH14-2","Housing megapixel window IP66 CE 24VAC power supply heater and blower","General purpose camera housing with megapixel window IP66 environmental protection CE certification 24VAC power supply heater and blower and optional",{"v":99.34,"d":"99"},{"v":99.34,"d":"99 "},"ZAM"]
[null,"Housings / Mounts","EH14-3","Housing megapixel window IP66 CE 230VAC power supply and heater and blower","General purpose camera housing with megapixel window IP66 environmental protection CE certification 230VAC power supply and heater and blower and optional mounts and brackets",{"v":136.23,"d":"136"},{"v":136.23,"d":"136 "},"ZAM"]
[null,"Housings / Mounts","EH16","Housing with megapixel window IP66 protection UL and CE certification","General purpose camera housing with megapixel window IP66 environmental protection UL and CE certification and optional mounts and brackets",{"v":106.91,"d":"107"},{"v":106.91,"d":"107 "},"ZAM"]
[null,"Housings / Mounts","EH16-MT","Housing with megapixel window IP66 protection UL and CE certification and mount","General purpose camera housing with megapixel window IP66 environmental protection UL and CE certification and mount",{"v":127.73,"d":"128"},{"v":127.73,"d":"128 "},"ZAM"]
[null,"Housings / Mounts","EH20","Housing IP66; No Heater/Blower; Sunshade; Without Feedthrough Mount","General purpose housing IP66; No Heater/Blower; Sunshade; Without Feedthrough Mount",{"v":135.29,"d":"135"},{"v":135.29,"d":"135 "},"ZAM"]
[null,"Housings / Mounts","EH20-2-H","Housing IP66; 24VAC with Heater/Blower; Sunshade and Feedthrough Mount","General purpose housing IP66; 24VAC with Heater/Blower; Sunshade and Feedthrough Mount",{"v":220.44,"d":"220"},{"v":220.44,"d":"220 "},"ZAM"]
[null,"Housings / Mounts","EH20-3-H","Housing IP66; 110-230VAC with Heater/Blower; Sunshade and Feedthrough Mount","General purpose housing IP66; 110-230VAC with Heater/Blower; Sunshade and Feedthrough Mount",{"v":290.44,"d":"290"},{"v":290.44,"d":"290 "},"ZAM"]
[null,"Housings / Mounts","EH20-M","General purpose housing IP66; No Heater/Blower; With Feedthrough Mount","General purpose housing IP66; No Heater/Blower; With Feedthrough Mount",{"v":167.45,"d":"167"},{"v":167.45,"d":"167 "},"ZAM"]
[null,"Housings / Mounts","EH20-P-H","Housing IP66; PoE+/HPoE with Heater/Blower; Sunshade and Feedthrough Mount","General purpose housing IP66; PoE+/HPoE with Heater/Blower; Sunshade and Feedthrough Mount",{"v":346.26,"d":"346"},{"v":346.26,"d":"346 "},"ZAM"]
[null,"Housings / Mounts","EH4718","Enclosure; indoor front hinged lid and rear link-lock latch. 18-inch length","Enclosure; indoor. Medium aluminum rectangular style with front hinged lid and rear link-lock latch. 18-inch length.",{"v":341.53,"d":"342"},{"v":341.53,"d":"342 "},"ZAM"]
[null,"Housings / Mounts","EHS8000-2-H","Stainless Steel Housing IP66; 24VAC with Heater/Blower","Stainless Steel Housing IP66; 24VAC with Heater/Blower",{"v":1691,"d":"1,691"},{"$f":"F648-(F648*G$6)","v":{"v":1691,"d":"1,691 "}},"ZAM"]
[null,"Housings / Mounts","EHS8000-3-H","Stainless Steel Housing IP66; 230VAC with Heater/Blower","Stainless Steel Housing IP66; 230VAC with Heater/Blower",{"v":2135,"d":"2,135"},{"v":2135,"d":"2,135 "},"ZAM"]
[null,"Housings / Mounts","EHS8000-P-H","Stainless Steel Housing IP66; HPoE with Heater/Blower","Stainless Steel Housing IP66; HPoE with Heater/Blower",{"v":1924,"d":"1,924"},{"v":1924,"d":"1,924 "},"ZAM"]
[null,"Housings / Mounts","EM14A","Light Duty Wall Mount For EH14 Enclosure Ral 9002","Light Duty Wall Mount For EH14 Enclosure Ral 9002",{"v":42.58,"d":"43"},{"v":42.58,"d":"43 "},"ZAM"]
[null,"Housings / Mounts","EM16","Feed through mount for EH16 Housing","Feed through mount for EH16 Housing",{"v":23.66,"d":"24"},{"v":23.66,"d":"24 "},"ZAM"]
[null,"Housings / Mounts","EM3512","Wall mount; feedthrough for EH3512 24V","Wall mount; feedthrough for EH3512 24V",{"v":157.05,"d":"157"},{"v":157.05,"d":"157 "},"ZAM"]
[null,"Housings / Mounts","EMS8000","Mount For EHS8000 Stainless Steel","Mount For EHS8000 Stainless Steel",{"v":234.62,"d":"235"},{"v":234.62,"d":"235 "},"ZAM"]
[null,"Housings / Mounts","EP20","Pole Mount For EH20 Enclosures","Pole Mount For EH20 Enclosures",{"v":87.99,"d":"88"},{"v":87.99,"d":"88 "},"ZAM"]
[null,"Housings / Mounts","EP21","Pole Mount For EM20 Enclosure Mount","Pole Mount For EM20 Enclosure Mount",{"v":65.28,"d":"65"},{"v":65.28,"d":"65 "},"ZAM"]
[null,"Housings / Mounts","EPS8000","Pole Mount For EHS8000 Enclosures","Pole Mount For EHS8000 Enclosures",{"v":87.99,"d":"88"},{"v":87.99,"d":"88 "},"ZAM"]
[null,"Housings / Mounts","PA101","Pole adapter for EM1400; PM14; MM1000 mounts. Minimum pole diameter 1.5-inches","Pole adapter for EM1400; PM14; MM1000 mounts. Minimum pole diameter 1.5-inches. Mounting straps included.",{"v":63.39,"d":"63"},{"v":63.39,"d":"63 "},"ZAM"]
[null,"Housings / Mounts","PA101-AW","Pole Mount Adapter for WMVE-AW min pole diameter 1.5 inches Pantone 427C","Pole Mount Adapter for WMVE-AW min pole diameter 1.5 inches Pantone 427C",{"v":65.28,"d":"65"},{"v":65.28,"d":"65 "},"ZAM"]
[null,"Housings / Mounts","PA101-SW","Pole mount adapter. Minimum pole diameter 1.5-inches. White","Pole mount adapter. Minimum pole diameter 1.5-inches. Mounting straps included. White",{"v":63.39,"d":"63"},{"v":63.39,"d":"63 "},"ZAM"]
[null,"Housings / Mounts","PA402","Pole adapter for LWM41; IWM; IWM24 wall mounts Spectra and DF5 pendant series","Pole adapter for LWM41 Legacy®; IWM; or IWM24 wall mounts for Legacy® and Intercept series or Spectra® and DF5 pendant series. Minimum pole diameter 3 in.",{"v":84.21,"d":"84"},{"v":84.21,"d":"84 "},"ZAM"]
[null,"Housings / Mounts","PA402-SW","Pole Mount Adaptor for IWM-SW for Spectra Enhanced 7 IP PTZ Cameras RAL 9003","Pole Mount Adaptor for IWM-SW for Spectra Enhanced 7 IP PTZ Cameras RAL 9003",{"v":84.21,"d":"84"},{"v":84.21,"d":"84 "},"ZAM"]
[null,"Housings / Mounts","PM2000","Heavy-duty; for pan/tilt's or enclosures. Ceiling/pedestal mount; 24-inch height","Heavy-duty; for pan/tilt's or enclosures. Ceiling/pedestal mount; 24-inch height. Can be used with AH2000 adjustable head. Supports up to 125 lbs. Use ST1 support strut for increased stability.",{"v":161.78,"d":"162"},{"v":161.78,"d":"162 "},"ZAM"]
[null,"Housings / Mounts","PM2010","Heavy-duty; for pan/tilt's or enclosures. Ceiling/pedestal mount; 10-inch height","Heavy-duty; for pan/tilt's or enclosures. Ceiling/pedestal mount; 10-inch height. Can be used with AH2000 adjustable head. Supports up to 125 lbs. Use ST1 support strut for increased stability.",{"v":108.8,"d":"109"},{"v":108.8,"d":"109 "},"ZAM"]
[null,"Housings / Mounts","TB1751","Mount;Light Duty;with Bar Clip","Mount;Light Duty;with Bar Clip",{"v":53.93,"d":"54"},{"v":53.93,"d":"54 "},"ZAM"]
[null,"","VB-400-ID-CUS-1000","Custom VB400 Front-button Sticker (1000)","1000 Custom front-button sticker for VB-400 camera",877,{"v":877,"d":"877 "},"ZAM"]
[null,"","VB-400-ID-CUS-5000","Custom VB400 Front-button Sticker (5000)","5000 Custom front-button sticker for the VB-400 camera",{"v":1158,"d":"1,158"},{"v":1158,"d":"1,158 "},"ZAM"]
[null,"Body-Worn Camera Accessories","AC-LANYARD-05","Lanyard for Body-worn cameras","Lanyard for Body-worn cameras",{"v":5.1,"d":"5"},{"v":5.1,"d":"5 "},"ZAM"]
[null,"Body-Worn Camera Accessories","AC-USB-DOCK-050","USB Cable for Body-worn cameras","USB Cable for Body-worn cameras",{"v":22.1,"d":"22"},{"v":22.1,"d":"22 "},"ZAM"]
[null,"Body-Worn Camera Accessories","AC-USB-DOCK-200","USB Cable for Body-worn cameras","USB Cable for Body-worn cameras",{"v":22.1,"d":"22"},{"v":22.1,"d":"22 "},"ZAM"]
[null,"Body-Worn Camera Accessories","DC-200/EU","DockController (EU)","DockController (EU)",{"v":624.75,"d":"625"},{"v":624.75,"d":"625 "},"ZAM"]
[null,"Body-Worn Camera Accessories","DC-200/ROW","DockController (ROW)","DockController (ROW)",{"v":624.75,"d":"625"},{"v":624.75,"d":"625 "},"ZAM"]
[null,"Body-Worn Camera Accessories","DC-200/UK","DockController (UK)","DockController DC-200; PSU; UK power & LAN cable. Available only for EU; EFTA; US; Australia; New Zealand and Canada. For use with body worn cameras.",{"v":624.75,"d":"625"},{"v":624.75,"d":"625 "},"ZAM"]
[null,"Body-Worn Camera Accessories","KF-DOCK05BVELCRO","KF-DOCK05BVELCRO","Klick Fast Belt Loop",{"v":16.07,"d":"16"},{"v":16.07,"d":"16 "},"ZAM"]
[null,"Body-Worn Camera Accessories","KF-DOCKBUTTONF","KF-DOCKBUTTONF","Klick Fast Button Dock Female",{"v":13.39,"d":"13"},{"v":13.39,"d":"13 "},"ZAM"]
[null,"Body-Worn Camera Accessories","KF-DOCKBUTTONM","KF-DOCKBUTTONM","Klick Fast Button Dock Male",{"v":13.39,"d":"13"},{"v":13.39,"d":"13 "},"ZAM"]
[null,"Body-Worn Camera Accessories","KF-DOCKCLAMP","Klick Fast Dock Clamp","Klick Fast Dock Clamp (pocket klick fast dock). For use with body worn cameras.",{"v":26.35,"d":"26"},{"v":26.35,"d":"26 "},"ZAM"]
[null,"Body-Worn Camera Accessories","KF-DOCKCROCCLAT","KF-DOCKCROCCLAT","Klick Fast Crocodile clip with Anti-Tilt Attachment",{"v":18.75,"d":"19"},{"v":18.75,"d":"19 "},"ZAM"]
[null,"Body-Worn Camera Accessories","KF-DOCKCROCCLIP","KF-DOCKCROCCLIP","Klick Fast crocodile clip",{"v":16.07,"d":"16"},{"v":16.07,"d":"16 "},"ZAM"]
[null,"Body-Worn Camera Accessories","KF-DOCKEP","Klick Fast Epaulette Dock","Klick Fast Dock Epaulette (epaullette klickfast dock)",{"v":22.1,"d":"22"},{"v":22.1,"d":"22 "},"ZAM"]
[null,"Body-Worn Camera Accessories","KF-DOCKRUCKSACK","KF-DOCKRUCKSACK","Klick Fast Rucksack Dock",{"v":13.39,"d":"13"},{"v":13.39,"d":"13 "},"ZAM"]
[null,"Body-Worn Camera Accessories","KF-HARN3","Klick Fast 3-Point Chest Harness","Klick Fast 3-point chest harness",{"v":52.7,"d":"53"},{"v":52.7,"d":"53 "},"ZAM"]
[null,"Body-Worn Camera Accessories","KF-HARN4","Klick Fast 4-Point Chest Harness","Klick Fast 4-point chest harness",{"v":52.7,"d":"53"},{"v":52.7,"d":"53 "},"ZAM"]
[null,"Body-Worn Camera Accessories","KF-HARN5","Klick Fast Shoulder Harness","Klick Fast shoulder harness. For use with body worn cameras.",{"v":52.7,"d":"53"},{"v":52.7,"d":"53 "},"ZAM"]
[null,"Body-Worn Camera Accessories","KF-LOOP","Klick Fast Radio Loop","Klick Fast radio loop dock. For use with body worn cameras.",{"v":17.85,"d":"18"},{"v":17.85,"d":"18 "},"ZAM"]
[null,"Body-Worn Camera Accessories","KF-MOLLEVEST","Klick Fast Dock for MOLLE vests","Klick Fast Dock for MOLLE vests. For use with body worn cameras.",{"v":17.85,"d":"18"},{"v":17.85,"d":"18 "},"ZAM"]
[null,"Body-Worn Camera Accessories","KF-SCREW","Klick Fast Screw-on Dock","Klick Fast uniform screw-on dock. For use with body worn cameras.",{"v":17.85,"d":"18"},{"v":17.85,"d":"18 "},"ZAM"]
[null,"Body-Worn Camera Accessories","RF-220","RF-220 RFID Reader","RFID RF-220 reader & base (MIFARE;MULTI-ISO; and LF). For use with body worn cameras.",629,{"v":629,"d":"629 "},"ZAM"]
[null,"Body-Worn Camera Accessories","RF-CARD-10","RFID Cards for Body-worn cameras","10x RFID plastic cards. For use with body worn cameras.",{"v":17.85,"d":"18"},{"v":17.85,"d":"18 "},"ZAM"]
[null,"Body-Worn Camera Accessories","RF-STICKER-10","RFID Stickers for Body-worn cameras","10x RFID sticker-style tags. For use with body worn cameras.",{"v":9.35,"d":"9"},{"v":9.35,"d":"9 "},"ZAM"]
[null,"Body-Worn Camera Accessories","VB-400-DOCK-SOLO","VB400 1-Port Dock","VB400 1-Port Dock",{"v":73.7,"d":"74"},{"v":73.7,"d":"74 "},"ZAM"]
[null,"Body-Worn Camera Accessories","VB-400-DOCK14/EU","VB400 14-Port Dock (EU)","VB400 14-Port Dock with EU power cable",{"v":693.6,"d":"694"},{"v":693.6,"d":"694 "},"ZAM"]
[null,"Body-Worn Camera Accessories","VB-400-QR-KFSTUD","Klick Fast Quick Release Stud","Klick Fast Quick Release Stud for VB-440-64-QR-N",{"v":22.1,"d":"22"},{"v":22.1,"d":"22 "},"ZAM"]
[null,"Body-Worn Camera Accessories","VB-400-QR-KFTILT","Klick Fast Quick Release Tilt Mount (for VB400)","VB-400 Tilting KlickFast for QR base",{"v":30.6,"d":"31"},{"v":30.6,"d":"31 "},"ZAM"]
[null,"Body-Worn Camera Accessories","VB-400-QR-KFTILT2","Klick Fast Quick Release Wide Tilt Mount","Klick Fast Quick Release Wide Tilt Mount  for VB-440-64-QR-N",{"v":52.7,"d":"53"},{"v":52.7,"d":"53 "},"ZAM"]
[null,"Body-Worn Camera Accessories","VB-400-QR-SPORT","Quick Release Sports Camera Pillar (VB400)","VB-400 Sports Camera fitting for QR base",{"v":22.1,"d":"22"},{"v":22.1,"d":"22 "},"ZAM"]
[null,"Body-Worn Camera Accessories","VB-400-VF-MAG","Close-Fit Magnetic Mount","Close-Fit Magnetic Mount for VB-440-64-VF-N",{"v":30.6,"d":"31"},{"v":30.6,"d":"31 "},"ZAM"]
[null,"Body-Worn Camera Accessories","VB-400-VF-MOL2","Close-Fit Double MOLLE Mount","Close-Fit Double MOLLE Mount for VB-440-64-VF-N",{"v":61.2,"d":"61"},{"v":61.2,"d":"61 "},"ZAM"]
[null,"VB400","VB-400-12MW-N","12 Month Additional Warranty for VB-400 Body-worn camera","12 Month Additional Warranty for VB-400 Body-worn camera",{"v":125.72,"d":"126"},{"v":125.72,"d":"126 "},"ZAM"]
[null,"VB400","VB-400-24MW-N","24 Month Additional Warranty for VB-400 Body-worn camera","24 Month Additional Warranty for VB-400 Body-worn camera",{"v":216.75,"d":"217"},{"v":216.75,"d":"217 "},"ZAM"]
[null,"VB400","VB-400-DOCK14/UK","VB400 14-Port Dock (UK)","VB400 14-Port Dock with UK power cable",{"v":693.6,"d":"694"},{"v":693.6,"d":"694 "},"ZAM"]
[null,"VB400","VB-400-EXT-CHARGE","USB Type-A to VB400 cable including VB400 adaptor","USB Type-A to VB400 cable including VB400 adaptor",{"v":60.35,"d":"60"},{"v":60.35,"d":"60 "},"ZAM"]
[null,"VB400","VB-440-64-ALIG","VB400 Alligator clip Body-worn camera","VB400 Alligator clip Body-worn camera",{"v":515.95,"d":"516"},{"v":515.95,"d":"516 "},"ZAM"]
[null,"VB400","VB-440-64-KF-N","VB400 Klick Fast Stud Body-worn camera","VB400 Klick Fast Stud Body-worn camera",{"v":515.87,"d":"516"},{"v":515.87,"d":"516 "},"ZAM"]
[null,"VB400","VB-440-64-QR-N","VB400 Quick Release Body-worn camera","VB400 Body-worn camera with QuickRelease Mount",{"v":515.95,"d":"516"},{"v":515.95,"d":"516 "},"ZAM"]
[null,"VB400","VB-440-64-VF-N","VB400 Close Fit Body-worn camera","VB400 Close Fit Body-worn camera",{"v":515.95,"d":"516"},{"v":515.95,"d":"516 "},"ZAM"]
[null,"Software","VM-EPL-HQ-BASE","VideoManager HQ Base License","VideoManager for Head-quarters - Base",{"v":3470,"d":"3,470"},{"v":3470,"d":"3,470 "},"ZAM"]
[null,"Software","VM-EPL-VB-CONNECT-1","CONNECT License for VB400","License: 1x VideoManager CONNECT license for VB400 body-worn camera",{"v":268.77,"d":"269"},{"v":268.77,"d":"269 "},"ZAM"]
[null,"Software","VM-EPL-VB-CONNECT-TO-PLUS-1","UPGRADE License for VB400","License: 1x VideoManager UPGRADE license for VB400 body-worn camera",{"v":104.04,"d":"104"},{"v":104.04,"d":"104 "},"ZAM"]
[null,"Software","VM-EPL-VB-PLUS-1","PLUS License for VB400","License: 1x VideoManager PLUS license for VB400 body-worn camera",{"v":342.47,"d":"342"},{"v":342.47,"d":"342 "},"ZAM"]
[null,"Software","VM-ESA-HQ-BASE-12M","VM-ESA-HQ-BASE-12M","12 m for VideoManager HQ Base",710,{"v":710,"d":"710 "},"ZAM"]
[null,"Software","VM-ESA-HQ-BASE-24M","VM-ESA-HQ-BASE-24M","24 m for VideoManager HQ Base",{"v":1241.47,"d":"1,241"},{"$f":"F712-(F712*G$6)","v":{"v":1241.47,"d":"1,241 "}},"ZAM"]
[null,"Software","VM-ESA-VB-12M-1","12 Month Additional S/W Assurance for VideoManager (VB400)","12 Month Additional S/W Assurance for VideoManager (VB400)",{"v":73.7,"d":"74"},{"v":73.7,"d":"74 "},"ZAM"]
[null,"Software","VM-ESA-VB-24M-1","24 Month S/W Assurance for VideoManager","Software Assurance: +24 Months for 1x VM-EPL-VB license",{"v":125.72,"d":"126"},{"v":125.72,"d":"126 "},"ZAM"]
[null,"Bullet","ESSE1-2X40-SBT-PA","ESPRIT AC ENH1 2MPx40 FIXED","Esprit Anti-Corrosion Enhanced 1 Series; 2MP 40x Zoom; Fixed Bullet; 24V/PoE+",{"v":3665.5,"d":"3,666"},{"v":3665.5,"d":"3,666 "},"ZAM"]
[null,"Bullet","NVX220P00A","NVX220P00A","NVX 30x 60fps 24Vac 24Vdc PoE+ polycarb",{"v":3188,"d":"3,188"},{"v":3188,"d":"3,188 "},"ZAM"]
[null,"Bullet","NVX220S00A","NVX220S00A","NVX 30x 60fps 24Vac 24Vdc PoE+",{"v":3188,"d":"3,188"},{"v":3188,"d":"3,188 "},"ZAM"]
[null,"Bullet","NVX220W00A","NVX220W00A","NVX 30x 60fps 24Vac 24Vdc PoE+ wiper",{"v":3443,"d":"3,443"},{"v":3443,"d":"3,443 "},"ZAM"]
[null,"Modular","IDL0-PU2","Sarix Modular Camera 2 Port Processor Unit","Sarix Modular Camera 2 Port Processor Unit",{"v":473.03,"d":"473"},{"v":473.03,"d":"473 "},"ZAM"]
[null,"Modular","IDL302-FXI","3MP Fixed Micro Bullet Imager for Sarix Modular Camera","3MP Fixed Micro Bullet Imager for Sarix Modular Camera",{"v":224.35,"d":"224"},{"v":224.35,"d":"224 "},"ZAM"]
[null,"Modular","IDL303-PHI","3MP Pin Hole Imager for Sarix Modular Camera","3MP Pin Hole Imager for Sarix Modular Camera",{"v":224.35,"d":"224"},{"v":224.35,"d":"224 "},"ZAM"]
[null,"Modular","IDL502-FXI","5MP Fixed Micro Bullet Imager for Sarix Modular Camera","5MP Fixed Micro Bullet Imager for Sarix Modular Camera",{"v":314.45,"d":"314"},{"v":314.45,"d":"314 "},"ZAM"]
[null,"Panoramic","EVO-05LID","Evolution Mini 360 Degree Compact Indoor Surface Mount 5MP IP Camera White","Evolution Mini 360 Degree Compact Indoor Surface Mount 5MP IP Camera White",{"v":481.55,"d":"482"},{"v":481.55,"d":"482 "},"ZAM"]
[null,"Panoramic","EVO-05LJD","Evolution Mini 360 Degree Compact Indoor Surface Mount 5MP IP Camera Black","Evolution Mini 360 Degree Compact Indoor Surface Mount 5MP IP Camera Black",{"v":481.55,"d":"482"},{"v":481.55,"d":"482 "},"ZAM"]
[null,"Panoramic","EVO-05LMD","Evolution Mini 360 5MP Environmental Surface Mount White","Evolution Mini 360 5MP Environmental Surface Mount White",{"v":576.15,"d":"576"},{"v":576.15,"d":"576 "},"ZAM"]
[null,"Panoramic","EVO-05NCD","Evolution 360 Degree Indoor Concealed 5MP IP Camera","Evolution 360 Degree Indoor Concealed 5MP IP Camera",{"v":833.47,"d":"833"},{"v":833.47,"d":"833 "},"ZAM"]
[null,"Panoramic","EVO-05NJD","Evolution 360 Degree Indoor Surface Mount 5MP IP Camera Black","Evolution 360 Degree Indoor Surface Mount 5MP IP Camera Black",{"v":833.47,"d":"833"},{"v":833.47,"d":"833 "},"ZAM"]
[null,"Panoramic","EVO-180-WED-P","Evolution 180 Degree Outdoor Surface Mount Wall Mount 12MP IP Camera White","Evolution 180 Degree Outdoor Surface Mount Wall Mount 12MP IP Camera White",{"v":1580,"d":"1,580"},{"v":1580,"d":"1,580 "},"ZAM"]
[null,"Panoramic","IMD12136","Sarix Multi IMD Series 12 MP 2.8mm 4 imager 360 degree multi-directional camera","Sarix Multi Pro 12 MP 4 imager 2.8mm 360 degree camera module",{"v":1494,"d":"1,494"},{"v":1494,"d":"1,494 "},"ZAM"]
[null,"Panoramic","IMD15118","Sarix Multi IMD Series 15 MP 4mm 3 imager 180 degree multi-directional camera","Sarix Multi Pro 15 MP 3 imager 4mm 180 degree camera module",{"v":1411,"d":"1,411"},{"v":1411,"d":"1,411 "},"ZAM"]
[null,"Panoramic","IMD15127","Sarix Multi IMD Series 15 MP 2.8mm 3 imager 270 degree multi-directional camera","Sarix Multi Pro 15 MP 3 imager 2.8mm 270 degree camera module",{"v":1411,"d":"1,411"},{"v":1411,"d":"1,411 "},"ZAM"]
[null,"Panoramic","IMD20136","Sarix Multi IMD Series 20 MP 2.8mm 4 imager 360 degree multi-directional camera","Sarix Multi Pro 20 MP 4 imager 2.8mm 360 degree camera module",{"v":1644,"d":"1,644"},{"v":1644,"d":"1,644 "},"ZAM"]
[null,"Panoramic","IMD24118","Sarix Multi IMD Series 24 MP 5.2mm 3 imager 180 degree multi-directional camera","Sarix Multi Pro 24 MP 3 imager 5.2mm 180 degree camera module",{"v":1644,"d":"1,644"},{"v":1644,"d":"1,644 "},"ZAM"]
[null,"Panoramic","IMD24127","Sarix Multi IMD Series 24 MP 4mm 3 imager 270 degree multi-directional camera","Sarix Multi Pro 24 MP 3 imager 4mm 270 degree camera module",{"v":1644,"d":"1,644"},{"v":1644,"d":"1,644 "},"ZAM"]
[null,"Panoramic","IMD32136","Sarix Multi IMD Series 32 MP 4mm 4 imager 360 degree camera multi-directional","Sarix Multi Pro 32 MP 4 imager 4mm 360 degree camera module",{"v":1876,"d":"1,876"},{"v":1876,"d":"1,876 "},"ZAM"]
[null,"Panoramic","IMD9118","Sarix Multi IMD Series 9 MP 4mm 3 imager 180 degree multi-directional camera","Sarix Multi Pro 9 MP 3 imager 4mm 180 degree camera module",{"v":1298,"d":"1,298"},{"v":1298,"d":"1,298 "},"ZAM"]
[null,"Panoramic","IMD9127","Sarix Multi IMD Series 9 MP 2.8mm 3 imager 270 degree multi-directional camera","Sarix Multi Pro 9 MP 3 imager 2.8mm 270 degree camera module",{"v":1298,"d":"1,298"},{"v":1298,"d":"1,298 "},"ZAM"]
[null,"Panoramic","IMF-INSTKT","Replacement Install Kit for Surface Mount IMF Pelco Fisheye Camera","Replacement Install Kit for Surface Mount IMF Pelco Fisheye Camera includes necessary tools fasteners grommets",{"v":17.98,"d":"18"},{"v":17.98,"d":"18 "},"ZAM"]
[null,"Panoramic","IMF-LD1","Replacement Lower Dome Clear 3 Pack for IMF Pelco Fisheye Cameras","Replacement Lower Dome Bubbles Clear 3 Pack For Environmental IMF Pelco Fisheye Cameras Upto 12MP Resolution",{"v":93.67,"d":"94"},{"v":93.67,"d":"94 "},"ZAM"]
[null,"Panoramic","IMF-PM","Pendant Mount Adapter for Pelco Fisheye Environmental Cameras","Pendant Mount Adapter for Pelco Fisheye Environmental Cameras",{"v":74.75,"d":"75"},{"v":74.75,"d":"75 "},"ZAM"]
[null,"Panoramic","IMF-PNL","Metal Ceiling Panel Mount Pelco Fisheye Tile 2 Ft X 2Ft Pantone 427C","Metal Ceiling Panel For Inceiling Mount Pelco Fisheye cameras replaces Existing Ceiling Tile 2 Ft X 2Ft Pantone 427C",{"v":141.91,"d":"142"},{"v":141.91,"d":"142 "},"ZAM"]
[null,"Panoramic","IMF122-1ERS","12MP Fisheye Environmental IR Surface Mount True WDR 30 FPS Smart Analytics","12MP Fisheye Environmental built In IR Illumination Surface Mount IP Camera Client Side Dewarping True WDR 30 FPS Smart Analytics",{"v":1228.93,"d":"1,229"},{"v":1228.93,"d":"1,229 "},"ZAM"]
[null,"Panoramic","IMF122-1ES","12MP Fisheye Environmental Surface Mount True WDR 30 FPS Smart Analytics","12MP Fisheye Environmental Surface Mount IP Camera Client Side Dewarping True WDR 30 FPS Smart Analytics",{"v":1172.16,"d":"1,172"},{"v":1172.16,"d":"1,172 "},"ZAM"]
[null,"Panoramic","IMF122-1I","12MP Fisheye Inceiling Mount Indoor True WDR 30 FPS Smart Analytics","12MP Fisheye Inceiling Mount Indoor IP Camera Client Side Dewarping True WDR 30 FPS Smart Analytics",{"v":1200.54,"d":"1,201"},{"v":1200.54,"d":"1,201 "},"ZAM"]
[null,"Panoramic","IMF82-1ERS","8MP Fisheye Environmental IR Surface Mount True WDR 30 FPS Smart Analytics","8MP Fisheye Environmental built In IR Illumination Surface Mount IP Camera Client Side Dewarping True WDR 30 FPS Smart Analytics",{"v":822.12,"d":"822"},{"v":822.12,"d":"822 "},"ZAM"]
[null,"Panoramic","IMF82-1ES","8MP Fisheye Environmental Surface Mount True WDR 30 FPS Smart Analytics","8MP Fisheye Environmental Surface Mount IP Camera Client Side Dewarping True WDR 30 FPS Smart Analytics",{"v":774.82,"d":"775"},{"v":774.82,"d":"775 "},"ZAM"]
[null,"Panoramic","IMF82-1I","8MP Fisheye Inceiling Mount Indoor True WDR 30 FPS Smart Analytics","8MP Fisheye Inceiling Mount Indoor IP Camera Client Side Dewarping True WDR 30 FPS Smart Analytics",{"v":803.2,"d":"803"},{"v":803.2,"d":"803 "},"ZAM"]
[null,"Panoramic","IMFI-INSTKT","Replacement Install Kit for inceiling Fisheye Camera includes tools fasteners","Replacement Install Kit for inceiling Pelco Fisheye Camera includes necessary tools fasteners grommets",{"v":17.12,"d":"17"},{"v":17.12,"d":"17 "},"ZAM"]
[null,"Panoramic","IMM12018-BASE","Optera Panomersive 12MP 180 degree Indoor Base camera module","Optera Panomersive 12MP 180 degree Indoor Base camera module",{"v":1958,"d":"1,958"},{"v":1958,"d":"1,958 "},"ZAM"]
[null,"Panoramic","IMM12018-E-BASE","Optera Panomersive 12MP 180 degree Environmental Base camera module","Optera Panomersive 12MP 180 degree Environmental Base camera module",{"v":2119,"d":"2,119"},{"v":2119,"d":"2,119 "},"ZAM"]
[null,"Panoramic","IMM12027-BASE","Optera Panomersive 12MP 270 degree Indoor Base camera module","Optera Panomersive 12MP 270 degree Indoor Base camera module",{"v":1958,"d":"1,958"},{"v":1958,"d":"1,958 "},"ZAM"]
[null,"Panoramic","IMM12027-E-BASE","Optera Panomersive 12MP 270 degree Environmental Base camera module","Optera Panomersive 12MP 270 degree Environmental Base camera module",{"v":2119,"d":"2,119"},{"v":2119,"d":"2,119 "},"ZAM"]
[null,"Panoramic","IMM12036-BASE","Optera Panomersive 12MP 360 degree Indoor Base camera module","Optera Panomersive 12MP 360 degree Indoor Base camera module",{"v":1958,"d":"1,958"},{"v":1958,"d":"1,958 "},"ZAM"]
[null,"Panoramic","IMM12036-E-BASE","Optera Panomersive 12MP 360 degree Environmental Base camera module","Optera Panomersive 12MP 360 degree Environmental Base camera module",{"v":2119,"d":"2,119"},{"v":2119,"d":"2,119 "},"ZAM"]
[null,"Panoramic","IMMBB0-BI","Backbox for Optera Indoor Vandal Inceiling Mount Black Plemun Rated","Backbox for Optera Indoor Vandal Inceiling Mount Black Plemun Rated",{"v":64.33,"d":"64"},{"v":64.33,"d":"64 "},"ZAM"]
[null,"Panoramic","IMMLD0-0","Lower Dome for Optera Indoor Vandal White Trim Smoked Bubble","Lower Dome for Optera Indoor Vandal White Trim Smoked Bubble",{"v":64.33,"d":"64"},{"v":64.33,"d":"64 "},"ZAM"]
[null,"Panoramic","IMMLD0-0E","Lower Dome for Optera Environmental Vandal Telegrey Trim Smoked Bubble","Lower Dome for Optera Environmental Vandal Telegrey Trim Smoked Bubble",{"v":64.33,"d":"64"},{"v":64.33,"d":"64 "},"ZAM"]
[null,"Panoramic","IMMLD0-1","Lower Dome for Optera Indoor Vandal White Trim Clear Bubble","Lower Dome for Optera Indoor Vandal White Trim Clear Bubble",{"v":64.33,"d":"64"},{"v":64.33,"d":"64 "},"ZAM"]
[null,"Panoramic","IMMLD0-1E","Lower Dome for Optera Environmental Vandal Telegrey Trim Clear Bubble","Lower Dome for Optera Environmental Vandal Telegrey Trim Clear Bubble",{"v":64.33,"d":"64"},{"v":64.33,"d":"64 "},"ZAM"]
[null,"Panoramic","IMMLD0-B0","Lower Dome for Optera Indoor Vandal Black Trim Smoked Bubble","Lower Dome for Optera Indoor Vandal Black Trim Smoked Bubble",{"v":64.33,"d":"64"},{"v":64.33,"d":"64 "},"ZAM"]
[null,"Panoramic","IMMLD0-B1","Lower Dome for Optera Indoor Vandal Black Trim Clear Bubble","Lower Dome for Optera Indoor Vandal Black Trim Clear Bubble",{"v":64.33,"d":"64"},{"v":64.33,"d":"64 "},"ZAM"]
[null,"Panoramic","OBE-01-OBA","Outdoor Pendant Black For Evolution 360 Degree 5MP Camera","Outdoor Pendant Black For Evolution 360 Degree 5MP Camera",{"v":76.63,"d":"77"},{"v":76.63,"d":"77 "},"ZAM"]
[null,"Panoramic","OBE-02-OBA","Outdoor Sunshield Black For Evolution 360 Degree Camera Pendant","Outdoor Sunshield Black For Evolution 360 Degree Camera Pendant",{"v":76.63,"d":"77"},{"v":76.63,"d":"77 "},"ZAM"]
[null,"Panoramic","OBE-05-OBA","Outdoor Corner mount Black for Evolution 360 Degree Camera Includes Wall Mount","Outdoor Corner mount Black for Evolution 360 Degree Camera Includes Wall Mount",{"v":165.57,"d":"166"},{"v":165.57,"d":"166 "},"ZAM"]
[null,"Panoramic","OBE-14-OBA","Outdoor Sunshield Black for 12 Mega Pixel Evolution 360 Degree Camera Pendant","Outdoor Sunshield Black for 12 Mega Pixel Evolution 360 Degree Camera Pendant",{"v":84.21,"d":"84"},{"v":84.21,"d":"84 "},"ZAM"]
[null,"Panoramic","OBE-16-OWA","Evo Mini Environmental Conduit Backbox White","Evo Mini Environmental Conduit Backbox White",{"v":70.96,"d":"71"},{"v":70.96,"d":"71 "},"ZAM"]
[null,"Panoramic","SMLE1-12V5-4H","Sarix Multi SMLE Series 12 MP 3.3-5.7mm 4 imager multi-directional camera","Sarix Multi Enhanced 12 MP 3.3-5.7mm 4 imager multi-directional camera",{"v":1809,"d":"1,809"},{"v":1809,"d":"1,809 "},"ZAM"]
[null,"Panoramic","SMLE1-15V5-3H","Sarix Multi SMLE Series 15 MP 3.3-5.7mm 3 imager multi-directional camera","Sarix Multi Enhanced 15 MP 3.3-5.7mm 3 imager multi-directional camera",{"v":1744,"d":"1,744"},{"v":1744,"d":"1,744 "},"ZAM"]
[null,"Panoramic","SMLE1-20V5-4H","Sarix Multi SMLE Series 20 MP 3.3-5.7mm 4 imager multi-directional camera","Sarix Multi Enhanced 20 MP 3.3-5.7mm 4 imager multi-directional camera",{"v":1961,"d":"1,961"},{"v":1961,"d":"1,961 "},"ZAM"]
[null,"Panoramic","SMLE1-24V5-3H","Sarix Multi SMLE Series 24 MP 3.3-5.7mm 3 imager multi-directional camera","Sarix Multi Enhanced 24 MP 3.3-5.7mm 3 imager multi-directional camera",{"v":1946,"d":"1,946"},{"v":1946,"d":"1,946 "},"ZAM"]
[null,"Panoramic","SMLE1-32V5-4H","Sarix Multi SMLE Series 32 MP 3.3-5.7mm 4 imager multi-directional camera","Sarix Multi Enhanced 32 MP 3.3-5.7mm 4 imager multi-directional camera",{"v":2348,"d":"2,348"},{"v":2348,"d":"2,348 "},"ZAM"]
[null,"Panoramic","SMLE1-9V5-3H","Sarix Multi SMLE Series 9 MP 3.3-5.7mm 3 imager multi-directional camera","Sarix Multi Enhanced 9 MP 3.3-5.7mm 3 imager multi-directional camera",{"v":1568,"d":"1,568"},{"v":1568,"d":"1,568 "},"ZAM"]
[null,"PTZ","B6-F","Spectra Enhanced 1080P BackBox Flush","Spectra Enhanced 1080P BackBox Flush",{"v":568.58,"d":"569"},{"v":568.58,"d":"569 "},"ZAM"]
[null,"PTZ","B6-PG","Spectra Enhanced 1080P BackBox Pendant Gray","Spectra Enhanced 1080P BackBox Pendant Gray",{"v":640.48,"d":"640"},{"v":640.48,"d":"640 "},"ZAM"]
[null,"PTZ","B6-PG-E","Spectra Enhanced 1080P BackBox Environmental Pendant Gray","Spectra Enhanced 1080P BackBox Environmental Pendant Gray",965,{"v":965,"d":"965 "},"ZAM"]
[null,"PTZ","B7-F","Back Box Spectra 7 Indoorin-ceiling White","Back Box Spectra 7 Indoorin-ceiling White",{"v":406.97,"d":"407"},{"$f":"F776-(F776*G$6)","v":{"v":406.97,"d":"407 "}},"ZAM"]
[null,"PTZ","B7-F-E","Back Box Spectra 7 Enviornmental in-ceiling White","Back Box Spectra 7 Enviornmental in-ceiling White",{"v":454.35,"d":"454"},{"v":454.35,"d":"454 "},"ZAM"]
[null,"PTZ","B7-PB-E","Back Box Spectra 7 Enviornmental Pendant Black","Back Box Spectra 7 Enviornmental Pendant Black",{"v":463.57,"d":"464"},{"v":463.57,"d":"464 "},"ZAM"]
[null,"PTZ","B7-PW-E","Back Box Spectra 7 Enviornmental Pendant White","Back Box Spectra 7 Enviornmental Pendant White",{"v":385.99,"d":"386"},{"v":385.99,"d":"386 "},"ZAM"]
[null,"PTZ","D7230L","Spectra Enhanced 7 Dome 1080p 30X Environmental dome drive","Spectra Enhanced 7 Dome 1080p 30X Environmental dome drive",{"v":2471,"d":"2,471"},{"v":2471,"d":"2,471 "},"ZAM"]
[null,"PTZ","D7818L","Spectra Enhanced 7 Dome 4K 20X Environmental dome drive","Spectra Enhanced 7 Dome 4K 20X Environmental dome drive",{"v":3397,"d":"3,397"},{"v":3397,"d":"3,397 "},"ZAM"]
[null,"PTZ","ECM101","Corner mount adapter for Esprit","Corner mount adapter for Esprit",{"v":104.73,"d":"105"},{"v":104.73,"d":"105 "},"ZAM"]
[null,"PTZ","EM20","Feedthrough mount for EH2000 Enclosures - MOUNT ONLY","Feedthrough mount for EH2000 Enclosures - MOUNT ONLY",{"v":44.47,"d":"44"},{"v":44.47,"d":"44 "},"ZAM"]
[null,"PTZ","EM20JB","Wall mount junction box for EM20","Wall mount junction box for EM20",{"v":126.77,"d":"127"},{"v":126.77,"d":"127 "},"ZAM"]
[null,"PTZ","EPM","Pole adapter for Esprit; adapts Esprit wall mounts for pole mounting","Pole adapter for Esprit systems. Adapts any wall mounted Esprit system (models which include the EWM wall mount) for pole mounting applications.",{"v":81.37,"d":"81"},{"v":81.37,"d":"81 "},"ZAM"]
[null,"PTZ","EPP2","Esprit Pedestal Plate","Esprit Pedestal Plate",{"v":53.93,"d":"54"},{"v":53.93,"d":"54 "},"ZAM"]
[null,"PTZ","ES-BLADE-10","Esprit replacement wiper blades; 10 pieces","Esprit replacement wiper blades; 10 pieces",{"v":44.47,"d":"44"},{"v":44.47,"d":"44 "},"ZAM"]
[null,"PTZ","ES-BLADE-2","Esprit replacement wiper blades; 2 pieces","Esprit replacement wiper blades; 2 pieces",{"v":24.6,"d":"25"},{"v":24.6,"d":"25 "},"ZAM"]
[null,"PTZ","ES6230-02","Esprit Enhanced 6 1080P POE/24V","Esprit Enhanced 6 1080P POE/24V",{"v":3635,"d":"3,635"},{"v":3635,"d":"3,635 "},"ZAM"]
[null,"PTZ","ES6230-05","Esprit Enhanced 6 1080P 85-265V","Esprit Enhanced 6 1080P 85-265V",{"v":3635,"d":"3,635"},{"v":3635,"d":"3,635 "},"ZAM"]
[null,"PTZ","ES6230-12","Esprit Enhanced 6 1080P Wiper POE/24V","Esprit Enhanced 6 1080P Wiper POE/24V",{"v":3791,"d":"3,791"},{"v":3791,"d":"3,791 "},"ZAM"]
[null,"PTZ","ES6230-12-R2","Esprit Enhanced 6 1080P Wiper 48VDC IR200m","Esprit Enhanced 6 1080P Wiper 48VDC IR200m",{"v":5522,"d":"5,522"},{"v":5522,"d":"5,522 "},"ZAM"]
[null,"PTZ","ES6230-12-RW","ES6230-12-RW","Esprit 6 1080P Surevision; wiper; 48VDC; IR and White Light",{"v":5534,"d":"5,534"},{"v":5534,"d":"5,534 "},"ZAM"]
[null,"PTZ","ES6230-12P","Esprit Enhanced 6 1080P Wiper Pressurized POE/24V","Esprit Enhanced 6 1080P Wiper Pressurized POE/24V",{"v":4719,"d":"4,719"},{"v":4719,"d":"4,719 "},"ZAM"]
[null,"PTZ","ES6230-12P-R2","Esprit Enhanced 6 1080P Wiper Pressurized 48VDC IR200m","Esprit Enhanced 6 1080P Wiper Pressurized 48VDC IR200m",{"v":6347,"d":"6,347"},{"v":6347,"d":"6,347 "},"ZAM"]
[null,"PTZ","ES6230-12P-RW","ES6230-12P-RW","Esprit 6 1080P Surevision; wiper; 48VDC; IR and White Light; Pressurized",{"v":6353,"d":"6,353"},{"v":6353,"d":"6,353 "},"ZAM"]
[null,"PTZ","ES6230-15","Esprit Enhanced 6 1080P Wiper 85-265V","Esprit Enhanced 6 1080P Wiper 85-265V",{"v":3791,"d":"3,791"},{"v":3791,"d":"3,791 "},"ZAM"]
[null,"PTZ","ES6230-15-R2","Esprit Enhanced 6 1080P Wiper 100-240V IR200m","Esprit Enhanced 6 1080P Wiper 100-240V IR200m",{"v":5522,"d":"5,522"},{"v":5522,"d":"5,522 "},"ZAM"]
[null,"PTZ","ES6230-15-RW","ES6230-15-RW","Esprit 6 1080P Surevision; wiper; mains; IR and White Light",{"v":5534,"d":"5,534"},{"v":5534,"d":"5,534 "},"ZAM"]
[null,"PTZ","ES6230-15P","Esprit Enhanced 6 1080P Wiper Pressurized 85-265V","Esprit Enhanced 6 1080P Wiper Pressurized 85-265V",{"v":4719,"d":"4,719"},{"v":4719,"d":"4,719 "},"ZAM"]
[null,"PTZ","ES6230-15P-R2","Esprit Enhanced 6 1080P Wiper Pressurized 100-240V IR200m","Esprit Enhanced 6 1080P Wiper Pressurized 100-240V IR200m",{"v":6347,"d":"6,347"},{"v":6347,"d":"6,347 "},"ZAM"]
[null,"PTZ","ES6230-15P-RW","ES6230-15P-RW","Esprit 6 1080P Surevision; wiper; mains; IR and White Light; Pressurized",{"v":6353,"d":"6,353"},{"v":6353,"d":"6,353 "},"ZAM"]
[null,"PTZ","ESCE1-2X40-RLU","Esprit Compact PTZ 2MP 40x-24Vac/dc","Esprit Compact Enhanced Series 1 ; 2MP 40x Zoom ; Ruggedized Lookup IR PTZ",{"v":5456.1,"d":"5,456"},{"v":5456.1,"d":"5,456 "},"ZAM"]
[null,"PTZ","ESCE1-4X36-RLU","Esprit Compact PTZ 4MP 36x-24Vac/dc","Esprit Compact Enhanced Series 1 ; 4MP 36x Zoom ; Ruggedized Lookup IR PTZ",{"v":6365.6,"d":"6,366"},{"v":6365.6,"d":"6,366 "},"ZAM"]
[null,"PTZ","ESCE1-8X36-RLU","Esprit Compact PTZ 8MP 36x-24Vac/dc","Esprit Compact Enhanced Series 1 ; 8MP 36x Zoom ; Ruggedized Lookup IR PTZ",{"v":6799.15,"d":"6,799"},{"v":6799.15,"d":"6,799 "},"ZAM"]
[null,"PTZ","ESTX-HD-5","Power Supply 120/230VAC Esprit5","Power Supply 120/230VAC Esprit5",{"v":219.49,"d":"219"},{"v":219.49,"d":"219 "},"ZAM"]
[null,"PTZ","EWM","Wall mount for Esprit; indoor and outdoor; optional adapter; EPM; for pole mount","Wall mount for Esprit systems. Provides indoor and outdoor wall mounting to any vertical load bearing surface. Use optional adapter; EPM; for pole mounting applications.",68,{"v":68,"d":"68 "},"ZAM"]
[null,"PTZ","IWM-GY","Wall mount with cable feedthrough for pendant Spectra cameras; Gray","Wall mount with cable feedthrough for pendant mounted Spectra cameras. Supports up to 75 pounds. Can also be used with PP4348 for parapet rooftop applications. Gray finish.",{"v":92.71,"d":"93"},{"v":92.71,"d":"93 "},"ZAM"]
[null,"PTZ","IWM-SR","Wall Mount Lt Gray for Sarix IE P Pnd Lg","Wall Mount Lt Gray for Sarix IE P Pnd Lg",{"v":89.88,"d":"90"},{"v":89.88,"d":"90 "},"ZAM"]
[null,"PTZ","IWM-SW","Environmental wall mount with cable feedthrough for Spectra Enhanced 7; RAL 9003","Environmental wall mount with cable feedthrough for Spectra Enhanced 7 IP PTZ cameras; RAL 9003",{"v":92.71,"d":"93"},{"v":92.71,"d":"93 "},"ZAM"]
[null,"PTZ","IWM24-GY","Wall mount with integrated power; for Intercept or Spectra and DF5 outdoor; Gray","Wall mount (IWM-GY) with integrated weatherproof transformer. Designed for use with Intercept or Spectra and DF5 outdoor dome series. Gray finish. 120 VAC input; 24 VAC output.",{"v":279.09,"d":"279"},{"v":279.09,"d":"279 "},"ZAM"]
[null,"PTZ","IWM24-SR","Wall Mount 24 VAC Light Gray for Sarix IE Pendant Long","Wall Mount 24 VAC Light Gray for Sarix IE Pendant Long",{"v":246.92,"d":"247"},{"v":246.92,"d":"247 "},"ZAM"]
[null,"PTZ","IWM24-SW","Environmental wall mount cable feedthrough and power for Spectra Enh 7; RAL 9003","Environmental wall mount with cable feedthrough built in 24 VAC 100 VA for Spectra Enhanced 7 IP PTZ cameras; RAL 9003",{"v":279.09,"d":"279"},{"v":279.09,"d":"279 "},"ZAM"]
[null,"PTZ","LD53PR-0","Spectra III Pressurized lower dome; pendant mount; smoke.","Spectra III Pressurized lower dome; pendant mount; smoke.",{"v":664.14,"d":"664"},{"v":664.14,"d":"664 "},"ZAM"]
[null,"PTZ","LD53PR-1","Spectra III Pressurized lower dome; pendant mount; clear.","Spectra III Pressurized lower dome; pendant mount; clear.",{"v":664.14,"d":"664"},{"v":664.14,"d":"664 "},"ZAM"]
[null,"PTZ","LD6F-0","Spectra Enhanced 1080p Lower Dome Flush Smoked IK10","Spectra Enhanced 1080p Lower Dome Flush Smoked IK10",{"v":165.57,"d":"166"},{"v":165.57,"d":"166 "},"ZAM"]
[null,"PTZ","LD6F-1","Spectra Enhanced 1080p Lower Dome Flush Clear IK10","Spectra Enhanced 1080p Lower Dome Flush Clear IK10",{"v":165.57,"d":"166"},{"v":165.57,"d":"166 "},"ZAM"]
[null,"PTZ","LD6PB-0","Spectra Enhanced 1080p Lower Dome Pendant Smoked IK10","Spectra Enhanced 1080p Lower Dome Pendant Smoked IK10",{"v":190.16,"d":"190"},{"v":190.16,"d":"190 "},"ZAM"]
[null,"PTZ","LD6PB-1","Spectra Enhanced 1080p Lower Dome Pendant Clear IK10","Spectra Enhanced 1080p Lower Dome Pendant Clear IK10",{"v":190.16,"d":"190"},{"v":190.16,"d":"190 "},"ZAM"]
[null,"PTZ","LD7AF-0","Lower bubble Spectra 7 4K Indoor White Smoked bubble","Lower bubble Spectra 7 4K Indoor White Smoked bubble",{"v":270.58,"d":"271"},{"v":270.58,"d":"271 "},"ZAM"]
[null,"PTZ","LD7AF-1","Lower bubble Spectra 7 4K Indoor White Clear bubble","Lower bubble Spectra 7 4K Indoor White Clear bubble",{"v":270.58,"d":"271"},{"v":270.58,"d":"271 "},"ZAM"]
[null,"PTZ","LD7APB-0","Lower bubble Spectra 7 4K Environmental Black Smoked bubble","Lower bubble Spectra 7 4K Environmental Black Smoked bubble",{"v":270.58,"d":"271"},{"v":270.58,"d":"271 "},"ZAM"]
[null,"PTZ","LD7APB-1","Lower bubble Spectra 7 4K Environmental Black Clear bubble","Lower bubble Spectra 7 4K Environmental Black Clear bubble",{"v":270.58,"d":"271"},{"v":270.58,"d":"271 "},"ZAM"]
[null,"PTZ","LD7F-0","Lower bubble Spectra 7 Indoor White Smoked bubble","Lower bubble Spectra 7 Indoor White Smoked bubble",193,{"v":193,"d":"193 "},"ZAM"]
[null,"PTZ","LD7F-1","Lower bubble Spectra 7 Indoor White Clear bubble","Lower bubble Spectra 7 Indoor White Clear bubble",193,{"v":193,"d":"193 "},"ZAM"]
[null,"PTZ","LD7PB-0","Lower bubble Spectra 7 Environmental Black Smoked bubble","Lower bubble Spectra 7 Environmental Black Smoked bubble",193,{"v":193,"d":"193 "},"ZAM"]
[null,"PTZ","LD7PB-1","Lower bubble Spectra 7 Environmental Black Clear bubble","Lower bubble Spectra 7 Environmental Black Clear bubble",193,{"v":193,"d":"193 "},"ZAM"]
[null,"PTZ","LDHDPB-1","Spectra HD Lower Dome Black Pendant Clear","Spectra HD Lower Dome Black Pendant Clear",{"v":180.7,"d":"181"},{"v":180.7,"d":"181 "},"ZAM"]
[null,"PTZ","LDP-FWH-1","Lower Dome Professional Flush White Clear","Lower Dome Professional Flush White Clear",{"v":104.07,"d":"104"},{"v":104.07,"d":"104 "},"ZAM"]
[null,"PTZ","LDP-PWH-0","Lower Dome Professional Pendant White Smoke","Lower Dome Professional Pendant White Smoke",{"v":104.07,"d":"104"},{"v":104.07,"d":"104 "},"ZAM"]
[null,"PTZ","NXPTZHD12VW0Z00C","NXPTZHD12VW0Z00C","NXPTZ2 230Vac Full HD 30x wiper cable 3m",{"v":10722,"d":"10,722"},{"v":10722,"d":"10,722 "},"ZAM"]
[null,"PTZ","NXPTZHD22VW0Z00C","NXPTZHD22VW0Z00C","NXPTZ2 24Vac HD 30x wiper cable 3m",{"v":10722,"d":"10,722"},{"v":10722,"d":"10,722 "},"ZAM"]
[null,"PTZ","NXPTZHD32VW0Z00C","NXPTZHD32VW0Z00C","NXPTZ2 120Vac Full HD 30x wiper cable 3m",{"v":10722,"d":"10,722"},{"v":10722,"d":"10,722 "},"ZAM"]
[null,"PTZ","P2230L-ESR","Spectra Pro2 series 2M Low Light 30X IR Lookup Environmental Pendant Gray","Spectra Professional 2 series 2M Low Light 30X IR Lookup Environmental Pendant Gray",{"v":1848,"d":"1,848"},{"v":1848,"d":"1,848 "},"ZAM"]
[null,"PTZ","P2230L-EW0","Spectra Pro2 series 2M Low Light 30X Environmental Pendant White; smoked bubble","Spectra Professional 2 series 2M Low Light 30X Environmental Pendant White; smoked bubble",{"v":1730,"d":"1,730"},{"v":1730,"d":"1,730 "},"ZAM"]
[null,"PTZ","P2230L-EW1","Spectra Pro2 series 2M Low Light 30X Environmental Pendant White; Clear bubble","Spectra Professional 2 series 2M Low Light 30X Environmental Pendant White; Clear bubble",{"v":1730,"d":"1,730"},{"v":1730,"d":"1,730 "},"ZAM"]
[null,"PTZ","P2230L-FW0","Spectra Pro2 series 2M Low Light 30X Indoor in-ceiling White; smoked bubble","Spectra Professional 2 series 2M Low Light 30X Indoor in-ceiling White; smoked bubble",{"v":1633,"d":"1,633"},{"v":1633,"d":"1,633 "},"ZAM"]
[null,"PTZ","P2230L-FW1","Spectra Pro2 series 2M Low Light 30X Indoor in-ceiling White; Clear bubble","Spectra Professional 2 series 2M Low Light 30X Indoor in-ceiling White; Clear bubble",{"v":1633,"d":"1,633"},{"v":1633,"d":"1,633 "},"ZAM"]
[null,"PTZ","PP350","Parapet wall mount for Spectra and DF5 outdoor pendant domes","Parapet wall mount for Spectra and DF5 outdoor pendant style domes. Mounts to inside or outside of parapet wall.",{"v":421.94,"d":"422"},{"v":421.94,"d":"422 "},"ZAM"]
[null,"PTZ","PP350-AW","Parapet Wall Mount for 1.5 Inch Pendant Swivels; Pantone 427C","Parapet Wall Mount for 1.5 Inch Small Pendants Swivels for Easy Install 45 lb Load Pantone 427C",{"v":421.94,"d":"422"},{"$f":"F840-(F840*G$6)","v":{"v":421.94,"d":"422 "}},"ZAM"]
[null,"PTZ","PP350-SW","Parapet wall mount for Spectra and DF5 outdoor pendant domes; White","Parapet wall mount for Spectra and DF5 outdoor pendant style domes. Mounts to inside or outside of parapet wall. White",{"v":421.94,"d":"422"},{"v":421.94,"d":"422 "},"ZAM"]
[null,"PTZ","PP351","Rooftop Parapet wall mount for Spectra and DF5 outdoor pendant domes","Rooftop Parapet wall mount for Spectra and DF5 outdoor pendant style domes. Mounts to rooftop or flat horizontal surface.",{"v":652.46,"d":"652"},{"v":652.46,"d":"652 "},"ZAM"]
[null,"PTZ","PP351-AW","Parapet Rooftop Mount for 1.5 Inch Pendant Swivels; Pantone 427C","Parapet Rooftop Mount for 1.5 Inch Small Pendants Swivels for Easy Install 45 lb Load Pantone 427C",{"v":501.41,"d":"501"},{"v":501.41,"d":"501 "},"ZAM"]
[null,"PTZ","PP351-SW","Rooftop Parapet wall mount for Spectra and DF5 outdoor pendant style; White","Rooftop Parapet wall mount for Spectra and DF5 outdoor pendant style domes. Mounts to rooftop or flat horizontal surface. White",{"v":501.41,"d":"501"},{"v":501.41,"d":"501 "},"ZAM"]
[null,"PTZ","PP450","Parapet adapter mount for Spectra and DF5 series pendant domes ; Gray","Parapet adapter mount for Spectra and DF5 series pendant domes utilizing 1.5-inch NPT threaded pipe for mounting. Mounts to inside or outside of parapet wall. Removable end cap. Gray",{"v":466.41,"d":"466"},{"v":466.41,"d":"466 "},"ZAM"]
[null,"PTZ","PP450-SW","Parapet adapter mount for Spectra and DF5 series pendant domes; White","Parapet adapter mount for Spectra and DF5 series pendant domes with 1.5 inch NPT mounting. Mounts to inside or outside of parapet wall. Removable end cap. White",{"v":466.41,"d":"466"},{"v":466.41,"d":"466 "},"ZAM"]
[null,"PTZ","PP451","Rooftop parapet adapter mount for Spectra and DF5 series pendant domes","Rooftop parapet adapter mount for Spectra and DF5 series pendant domes utilizing 1.5-inch NPT threaded pipe for mounting. Mounts to rooftop or flat horizontal surface. Removable end cap.",{"v":686.81,"d":"687"},{"v":686.81,"d":"687 "},"ZAM"]
[null,"PTZ","PP451-SW","Rooftop parapet adapter mount for Spectra and DF5 series pendant domes; White","Rooftop parapet adapter mount Intercept for Spectra and DF5 series pendant domes (any utilizing 1.5-inch NPT threaded pipe). Mounts to rooftop or flat horizontal surface. Removable end cap. White",{"v":540.2,"d":"540"},{"v":540.2,"d":"540 "},"ZAM"]
[null,"PTZ","S7230L-EB0","Spectra Enhanced 7 Dome 1080p 30X Environmental Pendant Black Smoked Bubble","Spectra Enhanced 7 Dome 1080p 30X Environmental Pendant Black Smoked Bubble",{"v":2901,"d":"2,901"},{"v":2901,"d":"2,901 "},"ZAM"]
[null,"PTZ","S7230L-EB1","Spectra Enhanced 7 Dome 1080p 30X Environmental Pendant Black Clear Bubble","Spectra Enhanced 7 Dome 1080p 30X Environmental Pendant Black Clear Bubble",{"v":2901,"d":"2,901"},{"v":2901,"d":"2,901 "},"ZAM"]
[null,"PTZ","S7230L-EW0","Spectra Enhanced 7 Dome 1080p 30X Environmental Pendant White Smoked Bubble","Spectra Enhanced 7 Dome 1080p 30X Environmental Pendant White Smoked Bubble",{"v":2823,"d":"2,823"},{"v":2823,"d":"2,823 "},"ZAM"]
[null,"PTZ","S7230L-EW1","Spectra Enhanced 7 Dome 1080p 30X Environmental Pendant White Clear Bubble","Spectra Enhanced 7 Dome 1080p 30X Environmental Pendant White Clear Bubble",{"v":2823,"d":"2,823"},{"v":2823,"d":"2,823 "},"ZAM"]
[null,"PTZ","S7230L-FW0","Spectra Enhanced 7 Dome 1080p 30X Indoor in-ceiling White Smoked Bubble","Spectra Enhanced 7 Dome 1080p 30X Indoor in-ceiling White Smoked Bubble",{"v":2588,"d":"2,588"},{"v":2588,"d":"2,588 "},"ZAM"]
[null,"PTZ","S7230L-FW1","Spectra Enhanced 7 Dome 1080p 30X Indoor in-ceiling White Clear Bubble","Spectra Enhanced 7 Dome 1080p 30X Indoor in-ceiling White Clear Bubble",{"v":2588,"d":"2,588"},{"v":2588,"d":"2,588 "},"ZAM"]
[null,"PTZ","S7230L-PW","Spectra Enhanced 7 IR Look-up 1080p 30X Environmental Pendant White","Spectra Enhanced 7 IR Look-up 1080p 30X Environmental Pendant White",{"v":3124,"d":"3,124"},{"v":3124,"d":"3,124 "},"ZAM"]
[null,"PTZ","S7230L-YB0","Spectra Enhanced 7 Dome 1080p 30X Environmental in-ceiling Black Smoked Bubble","Spectra Enhanced 7 Dome 1080p 30X Environmental in-ceiling Black Smoked Bubble",{"v":2666,"d":"2,666"},{"v":2666,"d":"2,666 "},"ZAM"]
[null,"PTZ","S7230L-YB1","Spectra Enhanced 7 Dome 1080p 30X Environmental in-ceiling Black Clear Bubble","Spectra Enhanced 7 Dome 1080p 30X Environmental in-ceiling Black Clear Bubble",{"v":2666,"d":"2,666"},{"v":2666,"d":"2,666 "},"ZAM"]
[null,"PTZ","S7240L-PW","Spectra Enh 7 IR lookup 1080p 40X OIS; Env; Wiper; Laser Focus Assist; White","Spectra Enhanced 7 IR lookup 1080p 40X Optical stabilization; Environmental; Wiper; Laser Focus Assist; White",{"v":3684,"d":"3,684"},{"v":3684,"d":"3,684 "},"ZAM"]
[null,"PTZ","S7818L-EB0","Spectra Enhanced 7 Dome 4K 20X Environmental Pendant Black Smoked bubble","Spectra Enhanced 7 Dome 4K 20X Environmental Pendant Black Smoked bubble",{"v":3924,"d":"3,924"},{"v":3924,"d":"3,924 "},"ZAM"]
[null,"PTZ","S7818L-EB1","Spectra Enhanced 7 Dome 4K 20X Environmental Pendant Black Clear bubble","Spectra Enhanced 7 Dome 4K 20X Environmental Pendant Black Clear bubble",{"v":3924,"d":"3,924"},{"v":3924,"d":"3,924 "},"ZAM"]
[null,"PTZ","S7818L-EW0","Spectra Enhanced 7 Dome 4K 20X Environmental Pendant White Smoked bubble","Spectra Enhanced 7 Dome 4K 20X Environmental Pendant White Smoked bubble",{"v":3847,"d":"3,847"},{"v":3847,"d":"3,847 "},"ZAM"]
[null,"PTZ","S7818L-EW1","Spectra Enhanced 7 Dome 4K 20X Environmental Pendant White Clear bubble","Spectra Enhanced 7 Dome 4K 20X Environmental Pendant White Clear bubble",{"v":3847,"d":"3,847"},{"v":3847,"d":"3,847 "},"ZAM"]
[null,"PTZ","S7818L-FW0","Spectra Enhanced 7 Dome 4K 20X Indoor in-ceiling White Smoked bubble","Spectra Enhanced 7 Dome 4K 20X Indoor in-ceiling White Smoked bubble",{"v":3462,"d":"3,462"},{"v":3462,"d":"3,462 "},"ZAM"]
[null,"PTZ","S7818L-FW1","Spectra Enhanced 7 Dome 4K 20X Indoor in-ceiling White Clear bubble","Spectra Enhanced 7 Dome 4K 20X Indoor in-ceiling White Clear bubble",{"v":3462,"d":"3,462"},{"v":3462,"d":"3,462 "},"ZAM"]
[null,"PTZ","S7818L-YB0","Spectra Enhanced 7 Dome 4K 20X Environmental in-ceiling Black Smoked bubble","Spectra Enhanced 7 Dome 4K 20X Environmental in-ceiling Black Smoked bubble",{"v":3540,"d":"3,540"},{"v":3540,"d":"3,540 "},"ZAM"]
[null,"PTZ","S7818L-YB1","Spectra Enhanced 7 Dome 4K 20X Environmental in-ceiling Black Clear bubble","Spectra Enhanced 7 Dome 4K 20X Environmental in-ceiling Black Clear bubble",{"v":3540,"d":"3,540"},{"v":3540,"d":"3,540 "},"ZAM"]
[null,"PTZ","S7820L-PW","Spectra Enh 7 IR lookup 4K 20x Env Pendant; Wiper; Laser Focus Assist; White","Spectra Enhanced 7 IR lookup 4K 20x Environmental Pendant; Wiper; Laser Focus Assist; White",{"v":4250,"d":"4,250"},{"v":4250,"d":"4,250 "},"ZAM"]
[null,"PTZ","SWM-GY","Wall mount with cable feedthrough for Spectra and DF5 pendant domes; Gray","Gray wall mount for Spectra and DF5 series pendant domes. Mounts directly to a vertical load-bearing surface. Supports up to 30 lbs. Cast aluminum and provides cable feedthrough.",{"v":53.93,"d":"54"},{"v":53.93,"d":"54 "},"ZAM"]
[null,"PTZ","SWM-PA-BK","Pole adapter; cable feedthrough with SWM-BK. For Spectra or DF5 pendant; Black","Black pole adapter for the SWM-BK. Mounts Spectra or DF5 pendant domes using two stainless steel straps and an attachment plate. Provides cable feedthrough.",{"v":38.79,"d":"39"},{"v":38.79,"d":"39 "},"ZAM"]
[null,"PTZ","SWM-PA-GY","Pole adapter; cable feedthrough with SWM-BK. For Spectra or DF5 pendant; Gray","Gray pole adapter for the SWM-GY. Mounts Spectra or DF5 pendant domes using two stainless steel straps and an attachment plate. Provides cable feedthrough.",{"v":32.17,"d":"32"},{"v":32.17,"d":"32 "},"ZAM"]
[null,"PTZ","SWM-SR","Compact Environmental wall mount RAL 7047","Compact Environmental wall mount for Spectra PTZ cameras.   RAL 7047 (light gray) color match with Spectra Pro IR series 2 look up and Spectra Pro series 1 domes",{"v":53.93,"d":"54"},{"v":53.93,"d":"54 "},"ZAM"]
[null,"PTZ","SWM-SW","Compact Environmental wall mount RAL 9003","Compact Environmental wall mount for Spectra PTZ cameras.   RAL 9003 (white) color match with all Spectra Enhanced series 7 and Spectra Pro series 2 domes",{"v":73.83,"d":"74"},{"v":73.83,"d":"74 "},"ZAM"]
[null,"PTZ","UPK2PEJAN00B","UPK2PEJAN00B","UPK PTZ 24Vac Full HD 60fps 33x wip bkt",{"v":28800,"d":"28,800"},{"v":28800,"d":"28,800 "},"ZAM"]
[null,"PTZ","UPK3PEWAN00B","UPK3PEWAN00B","UPK PTZ 120Vac Full HD 60fps 33x wiper",{"v":28800,"d":"28,800"},{"v":28800,"d":"28,800 "},"ZAM"]
[null,"PTZ","UPKT1AFSA000A","UPKT1AFSA000A","UPKT thermal PTZ 230Vac 3x VGA 7.5Hz",{"v":30794,"d":"30,794"},{"v":30794,"d":"30,794 "},"ZAM"]
[null,"Thermal","H4A-ETD-KIT","Elevated Temperature Detection Solution Kit","H4 Thermal Elevated Temperature Detection Solution; 640x512 Thermal Bullet Camera; Black Body; Tripod x 2",{"v":5517,"d":"5,517"},{"v":5517,"d":"5,517 "},"ZAM"]
[null,"Thermal","MPXR1AA000C","MPXR1AA000C","MPXR2 SS IP RM 35mm QVGA 7.5Hz 230Vac",{"v":24520,"d":"24,520"},{"v":24520,"d":"24,520 "},"ZAM"]
[null,"Thermal","MPXR1AA000CH","MPXR1AA000CH","MPXR2 SS IP RM 35mm QVGA 30Hz 230Vac",{"v":24716,"d":"24,716"},{"v":24716,"d":"24,716 "},"ZAM"]
[null,"Thermal","MPXR1BA000C","MPXR1BA000C","MPXR2 SS IP RM 25mm QVGA 7.5Hz 230Vac",{"v":24520,"d":"24,520"},{"v":24520,"d":"24,520 "},"ZAM"]
[null,"Thermal","MPXR1BA000CH","MPXR1BA000CH","MPXR2 SS IP RM 25mm QVGA 30Hz 230Vac",{"v":24716,"d":"24,716"},{"v":24716,"d":"24,716 "},"ZAM"]
[null,"Thermal","MPXR1DA000C","MPXR1DA000C","MPXR2 SS IP RM 35mm VGA 7.5Hz 230Vac",{"v":30405,"d":"30,405"},{"v":30405,"d":"30,405 "},"ZAM"]
[null,"Thermal","MPXR1DA000CH","MPXR1DA000CH","MPXR2 SS IP RM 35mm VGA 30Hz 230Vac",{"v":30796,"d":"30,796"},{"v":30796,"d":"30,796 "},"ZAM"]
[null,"Thermal","MPXR1EA000C","MPXR1EA000C","MPXR2 SS IP RM 25mm VGA 7.5Hz 230Vac",{"v":30405,"d":"30,405"},{"v":30405,"d":"30,405 "},"ZAM"]
[null,"Thermal","MPXR1EA000CH","MPXR1EA000CH","MPXR2 SS IP RM 25mm VGA 30Hz 230Vac",{"v":30796,"d":"30,796"},{"v":30796,"d":"30,796 "},"ZAM"]
[null,"Thermal","MPXR2AA000C","MPXR2AA000C","MPXR2 SS IP RM 35mm QVGA 7.5Hz 24Vac",{"v":24520,"d":"24,520"},{"v":24520,"d":"24,520 "},"ZAM"]
[null,"Thermal","MPXR2AA000CH","MPXR2AA000CH","MPXR2 SS IP RM 35mm QVGA 30Hz 24Vac",{"v":24716,"d":"24,716"},{"v":24716,"d":"24,716 "},"ZAM"]
[null,"Thermal","MPXR2BA000C","MPXR2BA000C","MPXR2 SS IP RM 25mm QVGA 7.5Hz 24Vac",{"v":24520,"d":"24,520"},{"v":24520,"d":"24,520 "},"ZAM"]
[null,"Thermal","MPXR2BA000CH","MPXR2BA000CH","MPXR2 SS IP RM 25mm QVGA 30Hz 24Vac",{"v":24716,"d":"24,716"},{"v":24716,"d":"24,716 "},"ZAM"]
[null,"Thermal","MPXR2DA000C","MPXR2DA000C","MPXR2 SS IP RM 35mm VGA 7.5Hz 24Vac",{"v":30405,"d":"30,405"},{"v":30405,"d":"30,405 "},"ZAM"]
[null,"Thermal","MPXR2DA000CH","MPXR2DA000CH","MPXR2 SS IP RM 35mm VGA 30Hz 24Vac",{"v":30796,"d":"30,796"},{"v":30796,"d":"30,796 "},"ZAM"]
[null,"Thermal","MPXR2EA000C","MPXR2EA000C","MPXR2 SS IP RM 25mm VGA 7.5Hz 24Vac",{"v":30405,"d":"30,405"},{"v":30405,"d":"30,405 "},"ZAM"]
[null,"Thermal","MPXR2EA000CH","MPXR2EA000CH","MPXR2 SS IP RM 25mm VGA 30Hz 24Vac",{"v":30796,"d":"30,796"},{"v":30796,"d":"30,796 "},"ZAM"]
[null,"Thermal","MPXR3AA000C","MPXR3AA000C","MPXR2 SS IP RM 35mm QVGA 7.5Hz 120Vac",{"v":24520,"d":"24,520"},{"v":24520,"d":"24,520 "},"ZAM"]
[null,"Thermal","MPXR3AA000CH","MPXR3AA000CH","MPXR2 SS IP RM 35mm QVGA 30Hz 120Vac",{"v":24716,"d":"24,716"},{"v":24716,"d":"24,716 "},"ZAM"]
[null,"Thermal","MPXR3BA000C","MPXR3BA000C","MPXR2 SS IP RM 25mm QVGA 7.5Hz 120Vac",{"v":24520,"d":"24,520"},{"v":24520,"d":"24,520 "},"ZAM"]
[null,"Thermal","MPXR3BA000CH","MPXR3BA000CH","MPXR2 SS IP RM 25mm QVGA 30Hz 120Vac",{"v":24716,"d":"24,716"},{"v":24716,"d":"24,716 "},"ZAM"]
[null,"Thermal","MPXR3DA000C","MPXR3DA000C","MPXR2 SS IP RM 35mm VGA 7.5Hz 120Vac",{"v":30405,"d":"30,405"},{"v":30405,"d":"30,405 "},"ZAM"]
[null,"Thermal","MPXR3DA000CH","MPXR3DA000CH","MPXR2 SS IP RM 35mm VGA 30Hz 120Vac",{"v":30796,"d":"30,796"},{"v":30796,"d":"30,796 "},"ZAM"]
[null,"Thermal","MPXR3EA000C","MPXR3EA000C","MPXR2 SS IP RM 25mm VGA 7.5Hz 120Vac",{"v":30405,"d":"30,405"},{"v":30405,"d":"30,405 "},"ZAM"]
[null,"Thermal","MPXR3EA000CH","MPXR3EA000CH","MPXR2 SS IP RM 25mm VGA 30Hz 120Vac",{"v":30796,"d":"30,796"},{"v":30796,"d":"30,796 "},"ZAM"]
[null,"Thermal","MPXT12AA000C","MPXT12AA000C","MPXT2 SS 2MPx30 35mm QVGA 7.5Hz 230Vac",{"v":32367,"d":"32,367"},{"v":32367,"d":"32,367 "},"ZAM"]
[null,"Thermal","MPXT12AA000CH","MPXT12AA000CH","MPXT2 SS 2MPx30 35mm QVGA 30Hz 230Vac",{"v":32638,"d":"32,638"},{"v":32638,"d":"32,638 "},"ZAM"]
[null,"Thermal","MPXT12BA000C","MPXT12BA000C","MPXT2 SS 2MPx30 25mm QVGA 7.5Hz 230Vac",{"v":32367,"d":"32,367"},{"v":32367,"d":"32,367 "},"ZAM"]
[null,"Thermal","MPXT12BA000CH","MPXT12BA000CH","MPXT2 SS 2MPx30 25mm QVGA 30Hz 230Vac",{"v":32638,"d":"32,638"},{"$f":"F904-(F904*G$6)","v":{"v":32638,"d":"32,638 "}},"ZAM"]
[null,"Thermal","MPXT12DA000C","MPXT12DA000C","MPXT2 SS 2MPx30 35mm VGA 7.5Hz 230Vac",{"v":36044,"d":"36,044"},{"v":36044,"d":"36,044 "},"ZAM"]
[null,"Thermal","MPXT12DA000CH","MPXT12DA000CH","MPXT2 SS 2MPx30 35mm VGA 30Hz 230Vac",{"v":36780,"d":"36,780"},{"v":36780,"d":"36,780 "},"ZAM"]
[null,"Thermal","MPXT12EA000C","MPXT12EA000C","MPXT2 SS 2MPx30 25mm VGA 7.5Hz 230Vac",{"v":36044,"d":"36,044"},{"v":36044,"d":"36,044 "},"ZAM"]
[null,"Thermal","MPXT12EA000CH","MPXT12EA000CH","MPXT2 SS 2MPx30 25mm VGA 30Hz 230Vac",{"v":36780,"d":"36,780"},{"v":36780,"d":"36,780 "},"ZAM"]
[null,"Thermal","MPXT22AA000C","MPXT22AA000C","MPXT2 SS 2MPx30 35mm QVGA 7.5Hz 24Vac",{"v":32367,"d":"32,367"},{"v":32367,"d":"32,367 "},"ZAM"]
[null,"Thermal","MPXT22AA000CH","MPXT22AA000CH","MPXT2 SS 2MPx30 35mm QVGA 30Hz 24Vac",{"v":32638,"d":"32,638"},{"v":32638,"d":"32,638 "},"ZAM"]
[null,"Thermal","MPXT22BA000C","MPXT22BA000C","MPXT2 SS 2MPx30 25mm QVGA 7.5Hz 24Vac",{"v":32367,"d":"32,367"},{"v":32367,"d":"32,367 "},"ZAM"]
[null,"Thermal","MPXT22BA000CH","MPXT22BA000CH","MPXT2 SS 2MPx30 25mm QVGA 30Hz 24Vac",{"v":32638,"d":"32,638"},{"v":32638,"d":"32,638 "},"ZAM"]
[null,"Thermal","MPXT22DA000C","MPXT22DA000C","MPXT2 SS 2MPx30 35mm VGA 7.5Hz 24Vac",{"v":36044,"d":"36,044"},{"v":36044,"d":"36,044 "},"ZAM"]
[null,"Thermal","MPXT22DA000CH","MPXT22DA000CH","MPXT2 SS 2MPx30 35mm VGA 30Hz 24Vac",{"v":36780,"d":"36,780"},{"v":36780,"d":"36,780 "},"ZAM"]
[null,"Thermal","MPXT22EA000C","MPXT22EA000C","MPXT2 SS 2MPx30 25mm VGA 7.5Hz 24Vac",{"v":36044,"d":"36,044"},{"v":36044,"d":"36,044 "},"ZAM"]
[null,"Thermal","MPXT22EA000CH","MPXT22EA000CH","MPXT2 SS 2MPx30 25mm VGA 30Hz 24Vac",{"v":36780,"d":"36,780"},{"v":36780,"d":"36,780 "},"ZAM"]
[null,"Thermal","MPXT32AA000C","MPXT32AA000C","MPXT2 SS 2MPx30 35mm QVGA 7.5Hz 120Vac",{"v":32367,"d":"32,367"},{"v":32367,"d":"32,367 "},"ZAM"]
[null,"Thermal","MPXT32AA000CH","MPXT32AA000CH","MPXT2 SS 2MPx30 35mm QVGA 30Hz 120Vac",{"v":32638,"d":"32,638"},{"v":32638,"d":"32,638 "},"ZAM"]
[null,"Thermal","MPXT32BA000C","MPXT32BA000C","MPXT2 SS 2MPx30 25mm QVGA 7.5Hz 120Vac",{"v":32367,"d":"32,367"},{"v":32367,"d":"32,367 "},"ZAM"]
[null,"Thermal","MPXT32BA000CH","MPXT32BA000CH","MPXT2 SS 2MPx30 25mm QVGA 30Hz 120Vac",{"v":32638,"d":"32,638"},{"v":32638,"d":"32,638 "},"ZAM"]
[null,"Thermal","MPXT32DA000C","MPXT32DA000C","MPXT2 SS 2MPx30 35mm VGA 7.5Hz 120Vac",{"v":36044,"d":"36,044"},{"v":36044,"d":"36,044 "},"ZAM"]
[null,"Thermal","MPXT32DA000CH","MPXT32DA000CH","MPXT2 SS 2MPx30 35mm VGA 30Hz 120Vac",{"v":36780,"d":"36,780"},{"v":36780,"d":"36,780 "},"ZAM"]
[null,"Thermal","MPXT32EA000C","MPXT32EA000C","MPXT2 SS 2MPx30 25mm VGA 7.5Hz 120Vac",{"v":36044,"d":"36,044"},{"v":36044,"d":"36,044 "},"ZAM"]
[null,"Thermal","MPXT32EA000CH","MPXT32EA000CH","MPXT2 SS 2MPx30 25mm VGA 30Hz 120Vac",{"v":36780,"d":"36,780"},{"v":36780,"d":"36,780 "},"ZAM"]
[null,"Thermal","MVXT2D0SAZ00B","MVXT2D0SAZ00B","MVXT 12-24Vdc 24Vac 35mm VGA 7.5Hz 4mAC",{"v":17409,"d":"17,409"},{"v":17409,"d":"17,409 "},"ZAM"]
[null,"Thermal","MVXT2D0SAZ00BH","MVXT2D0SAZ00BH","MVXT 12-24Vdc 24Vac 35mm VGA 30Hz 4mAC",{"v":17838,"d":"17,838"},{"v":17838,"d":"17,838 "},"ZAM"]
[null,"Thermal","MVXT2D0SFZ01B","MVXT2D0SFZ01B","MVXT 12-24Vdc 24Vac 35mm VGA 7.5Hz 4mCT",{"v":17188,"d":"17,188"},{"v":17188,"d":"17,188 "},"ZAM"]
[null,"Thermal","MVXT2D0SFZ01BH","MVXT2D0SFZ01BH","MVXT 12-24Vdc 24Vac 35mm VGA 30Hz 4mCT",{"v":17617,"d":"17,617"},{"v":17617,"d":"17,617 "},"ZAM"]
[null,"Thermal","MVXT2H0SAZ00B","MVXT2H0SAZ00B","MVXT 12-24Vdc 24Vac 9mm VGA 7.5Hz 4mAC",{"v":16551,"d":"16,551"},{"v":16551,"d":"16,551 "},"ZAM"]
[null,"Thermal","MVXT2H0SAZ00BH","MVXT2H0SAZ00BH","MVXT 12-24Vdc 24Vac 9mm VGA 30Hz 4mAC",{"v":16981,"d":"16,981"},{"v":16981,"d":"16,981 "},"ZAM"]
[null,"Thermal","MVXT2H0SFZ01B","MVXT2H0SFZ01B","MVXT 12-24Vdc 24Vac 9mm VGA 7.5Hz 4mCT",{"v":16330,"d":"16,330"},{"v":16330,"d":"16,330 "},"ZAM"]
[null,"Thermal","MVXT2H0SFZ01BH","MVXT2H0SFZ01BH","MVXT 12-24Vdc 24Vac 9mm VGA 30Hz 4mCT",{"v":16760,"d":"16,760"},{"v":16760,"d":"16,760 "},"ZAM"]
[null,"Thermal","MVXT2I0SAZ00B","MVXT2I0SAZ00B","MVXT 12-24Vdc 24Vac 35mm QVGA 7.5Hz 4mAC",{"v":11524,"d":"11,524"},{"v":11524,"d":"11,524 "},"ZAM"]
[null,"Thermal","MVXT2I0SAZ00BH","MVXT2I0SAZ00BH","MVXT 12-24Vdc 24Vac 35mm QVGA 30Hz 4mAC",{"v":11598,"d":"11,598"},{"v":11598,"d":"11,598 "},"ZAM"]
[null,"Thermal","MVXT2I0SFZ01B","MVXT2I0SFZ01B","MVXT 12-24Vdc 24Vac 35mm QVGA 7.5Hz 4mCT",{"v":11303,"d":"11,303"},{"v":11303,"d":"11,303 "},"ZAM"]
[null,"Thermal","MVXT2I0SFZ01BH","MVXT2I0SFZ01BH","MVXT 12-24Vdc 24Vac 35mm QVGA 30Hz 4mCT",{"v":11378,"d":"11,378"},{"v":11378,"d":"11,378 "},"ZAM"]
[null,"Thermal","MVXT2Q0SAZ00B","MVXT2Q0SAZ00B","MVXT 12-24Vdc 24Vac 9mm QVGA 7.5Hz 4mAC",{"v":10655,"d":"10,655"},{"v":10655,"d":"10,655 "},"ZAM"]
[null,"Thermal","MVXT2Q0SAZ00BH","MVXT2Q0SAZ00BH","MVXT 12-24Vdc 24Vac 9mm QVGA 30Hz 4mAC",{"v":10728,"d":"10,728"},{"v":10728,"d":"10,728 "},"ZAM"]
[null,"Thermal","MVXT2Q0SFZ01B","MVXT2Q0SFZ01B","MVXT 12-24Vdc 24Vac 9mm QVGA 7.5Hz 4mCT",{"v":10434,"d":"10,434"},{"v":10434,"d":"10,434 "},"ZAM"]
[null,"Thermal","MVXT2Q0SFZ01BH","MVXT2Q0SFZ01BH","MVXT 12-24Vdc 24Vac 9mm QVGA 30Hz 4mCT",{"v":10506,"d":"10,506"},{"v":10506,"d":"10,506 "},"ZAM"]
[null,"Thermal","MVXT2U0SAZ00B","MVXT2U0SAZ00B","MVXT 12-24Vdc 24Vac 19mm VGA 7.5Hz 4mAC",{"v":16551,"d":"16,551"},{"v":16551,"d":"16,551 "},"ZAM"]
[null,"Thermal","MVXT2U0SAZ00BH","MVXT2U0SAZ00BH","MVXT 12-24Vdc 24Vac 19mm VGA 30Hz 4mAC",{"v":16981,"d":"16,981"},{"v":16981,"d":"16,981 "},"ZAM"]
[null,"Thermal","MVXT2U0SFZ01B","MVXT2U0SFZ01B","MVXT 12-24Vdc 24Vac 19mm VGA 7.5Hz 4mCT",{"v":16330,"d":"16,330"},{"v":16330,"d":"16,330 "},"ZAM"]
[null,"Thermal","MVXT2U0SFZ01BH","MVXT2U0SFZ01BH","MVXT 12-24Vdc 24Vac 19mm VGA 30Hz 4mCT",{"v":16760,"d":"16,760"},{"v":16760,"d":"16,760 "},"ZAM"]
[null,"Thermal","MVXT2Z0SAZ00B","MVXT2Z0SAZ00B","MVXT 12-24Vdc 24Vac 19mm QVGA 7.5Hz 4mAC",{"v":10655,"d":"10,655"},{"v":10655,"d":"10,655 "},"ZAM"]
[null,"Thermal","MVXT2Z0SAZ00BH","MVXT2Z0SAZ00BH","MVXT 12-24Vdc 24Vac 19mm QVGA 30Hz 4mAC",{"v":10728,"d":"10,728"},{"v":10728,"d":"10,728 "},"ZAM"]
[null,"Thermal","MVXT2Z0SFZ01B","MVXT2Z0SFZ01B","MVXT 12-24Vdc 24Vac 19mm QVGA 7.5Hz 4mCT",{"v":10434,"d":"10,434"},{"v":10434,"d":"10,434 "},"ZAM"]
[null,"Thermal","MVXT2Z0SFZ01BH","MVXT2Z0SFZ01BH","MVXT 12-24Vdc 24Vac 19mm QVGA 30Hz 4mCT",{"v":10506,"d":"10,506"},{"v":10506,"d":"10,506 "},"ZAM"]
[null,"Thermal","NTX2D0R00A","NTX2D0R00A","NTX 35mm VGA 7.5Hz IN 24Vac 24Vdc PoE+",{"v":15325,"d":"15,325"},{"v":15325,"d":"15,325 "},"ZAM"]
[null,"Thermal","NTX2D0R00AH","NTX2D0R00AH","NTX 35mm VGA 30Hz IN 24Vac 24Vdc PoE+",{"v":15693,"d":"15,693"},{"v":15693,"d":"15,693 "},"ZAM"]
[null,"Thermal","NTX2H0R00A","NTX2H0R00A","NTX 9mm VGA 7.5Hz IN 24Vac 24Vdc PoE+",{"v":14222,"d":"14,222"},{"v":14222,"d":"14,222 "},"ZAM"]
[null,"Thermal","NTX2H0R00AH","NTX2H0R00AH","NTX 9mm VGA 30Hz IN 24Vac 24Vdc PoE+",{"v":14589,"d":"14,589"},{"v":14589,"d":"14,589 "},"ZAM"]
[null,"Thermal","NTX2I0R00A","NTX2I0R00A","NTX 35mm QVGA 7.5Hz IN 24Vac 24Vdc PoE+",{"v":10054,"d":"10,054"},{"v":10054,"d":"10,054 "},"ZAM"]
[null,"Thermal","NTX2I0R00AH","NTX2I0R00AH","NTX 35mm QVGA 30Hz IN 24Vac 24Vdc PoE+",{"v":10421,"d":"10,421"},{"v":10421,"d":"10,421 "},"ZAM"]
[null,"Thermal","NTX2Q0R00A","NTX2Q0R00A","NTX 9mm QVGA 7.5Hz IN 24Vac 24Vdc PoE+",{"v":8950,"d":"8,950"},{"v":8950,"d":"8,950 "},"ZAM"]
[null,"Thermal","NTX2Q0R00AH","NTX2Q0R00AH","NTX 9mm QVGA 30Hz IN 24Vac 24Vdc PoE+",{"v":9318,"d":"9,318"},{"v":9318,"d":"9,318 "},"ZAM"]
[null,"Thermal","NTX2U0R00A","NTX2U0R00A","NTX 19mm VGA 7.5Hz IN 24Vac 24Vdc PoE+",{"v":14222,"d":"14,222"},{"v":14222,"d":"14,222 "},"ZAM"]
[null,"Thermal","NTX2U0R00AH","NTX2U0R00AH","NTX 19mm VGA 30Hz IN 24Vac 24Vdc PoE+",{"v":14589,"d":"14,589"},{"v":14589,"d":"14,589 "},"ZAM"]
[null,"Thermal","NTX2Z0R00A","NTX2Z0R00A","NTX 19mm QVGA 7.5Hz IN 24Vac 24Vdc PoE+",{"v":8950,"d":"8,950"},{"v":8950,"d":"8,950 "},"ZAM"]
[null,"Thermal","NTX2Z0R00AH","NTX2Z0R00AH","NTX 19mm QVGA 30Hz IN 24Vac 24Vdc PoE+",{"v":9318,"d":"9,318"},{"v":9318,"d":"9,318 "},"ZAM"]
[null,"Thermal","NXPTZR1A00Z00C","NXPTZR1A00Z00C","NXPTZR2 230Vac  35mm QVGA 7.5Hz cable 3m",{"v":16551,"d":"16,551"},{"v":16551,"d":"16,551 "},"ZAM"]
[null,"Thermal","NXPTZR1A00Z00CH","NXPTZR1A00Z00CH","NXPTZR2 230Vac 35mm QVGA 30Hz cable 3m",{"v":16919,"d":"16,919"},{"v":16919,"d":"16,919 "},"ZAM"]
[null,"Thermal","NXPTZR1B00Z00C","NXPTZR1B00Z00C","NXPTZR2 230Vac 25mm QVGA 7.5Hz cable 3m",{"v":16551,"d":"16,551"},{"v":16551,"d":"16,551 "},"ZAM"]
[null,"Thermal","NXPTZR1B00Z00CH","NXPTZR1B00Z00CH","NXPTZR2 230Vac 25mm QVGA 30Hz cable 3m",{"v":16919,"d":"16,919"},{"v":16919,"d":"16,919 "},"ZAM"]
[null,"Thermal","NXPTZR1D00Z00C","NXPTZR1D00Z00C","NXPTZR2 230Vac 35mm VGA 7.5Hz cable 3m",{"v":22681,"d":"22,681"},{"v":22681,"d":"22,681 "},"ZAM"]
[null,"Thermal","NXPTZR1D00Z00CH","NXPTZR1D00Z00CH","NXPTZR2 230Vac 35mm VGA 30Hz cable 3m",{"v":23049,"d":"23,049"},{"v":23049,"d":"23,049 "},"ZAM"]
[null,"Thermal","NXPTZR1E00Z00C","NXPTZR1E00Z00C","NXPTZR2 230Vac 25mm VGA 7.5Hz cable 3m",{"v":22681,"d":"22,681"},{"v":22681,"d":"22,681 "},"ZAM"]
[null,"Thermal","NXPTZR1E00Z00CH","NXPTZR1E00Z00CH","NXPTZR2 230Vac 25mm VGA 30Hz cable 3m",{"v":23049,"d":"23,049"},{"$f":"F968-(F968*G$6)","v":{"v":23049,"d":"23,049 "}},"ZAM"]
[null,"Thermal","NXPTZR2A00Z00C","NXPTZR2A00Z00C","NXPTZR2 24Vac 35mm QVGA 7.5Hz cable 3m",{"v":16551,"d":"16,551"},{"v":16551,"d":"16,551 "},"ZAM"]
[null,"Thermal","NXPTZR2A00Z00CH","NXPTZR2A00Z00CH","NXPTZR2 24Vac 35mm QVGA 30Hz cable 3m",{"v":16919,"d":"16,919"},{"v":16919,"d":"16,919 "},"ZAM"]
[null,"Thermal","NXPTZR2B00Z00C","NXPTZR2B00Z00C","NXPTZR2 24Vac 25mm QVGA 7.5Hz cable 3m",{"v":16551,"d":"16,551"},{"v":16551,"d":"16,551 "},"ZAM"]
[null,"Thermal","NXPTZR2B00Z00CH","NXPTZR2B00Z00CH","NXPTZR2 24Vac 25mm QVGA 30Hz cable 3m",{"v":16919,"d":"16,919"},{"v":16919,"d":"16,919 "},"ZAM"]
[null,"Thermal","NXPTZR2D00Z00C","NXPTZR2D00Z00C","NXPTZR2 24Vac 35mm VGA 7.5Hz cable 3m",{"v":22681,"d":"22,681"},{"v":22681,"d":"22,681 "},"ZAM"]
[null,"Thermal","NXPTZR2D00Z00CH","NXPTZR2D00Z00CH","NXPTZR2 24Vac 35mm VGA 30Hz cable 3m",{"v":23049,"d":"23,049"},{"v":23049,"d":"23,049 "},"ZAM"]
[null,"Thermal","NXPTZR2E00Z00C","NXPTZR2E00Z00C","NXPTZR2 24Vac 25mm VGA 7.5Hz cable 3m",{"v":22681,"d":"22,681"},{"v":22681,"d":"22,681 "},"ZAM"]
[null,"Thermal","NXPTZR2E00Z00CH","NXPTZR2E00Z00CH","NXPTZR2 24Vac 25mm VGA 30Hz cable 3m",{"v":23049,"d":"23,049"},{"v":23049,"d":"23,049 "},"ZAM"]
[null,"Thermal","NXPTZR3A00Z00C","NXPTZR3A00Z00C","NXPTZR2 120Vac 35mm QVGA 7.5Hz cable 3m",{"v":16551,"d":"16,551"},{"v":16551,"d":"16,551 "},"ZAM"]
[null,"Thermal","NXPTZR3A00Z00CH","NXPTZR3A00Z00CH","NXPTZR2 120Vac 35mm QVGA 30Hz cable 3m",{"v":16919,"d":"16,919"},{"v":16919,"d":"16,919 "},"ZAM"]
[null,"Thermal","NXPTZR3B00Z00C","NXPTZR3B00Z00C","NXPTZR2 120Vac 25mm QVGA 7.5Hz cable 3m",{"v":16551,"d":"16,551"},{"v":16551,"d":"16,551 "},"ZAM"]
[null,"Thermal","NXPTZR3B00Z00CH","NXPTZR3B00Z00CH","NXPTZR2 120Vac 25mm QVGA 30Hz cable 3m",{"v":16919,"d":"16,919"},{"v":16919,"d":"16,919 "},"ZAM"]
[null,"Thermal","NXPTZR3D00Z00C","NXPTZR3D00Z00C","NXPTZR2 120Vac 35mm VGA 7.5Hz cable 3m",{"v":22681,"d":"22,681"},{"v":22681,"d":"22,681 "},"ZAM"]
[null,"Thermal","NXPTZR3D00Z00CH","NXPTZR3D00Z00CH","NXPTZR2 120Vac 35mm VGA 30Hz cable 3m",{"v":23049,"d":"23,049"},{"v":23049,"d":"23,049 "},"ZAM"]
[null,"Thermal","NXPTZR3E00Z00C","NXPTZR3E00Z00C","NXPTZR2 120Vac 25mm VGA 7.5Hz cable 3m",{"v":22681,"d":"22,681"},{"v":22681,"d":"22,681 "},"ZAM"]
[null,"Thermal","NXPTZR3E00Z00CH","NXPTZR3E00Z00CH","NXPTZR2 120Vac 25mm VGA 30Hz cable 3m",{"v":23049,"d":"23,049"},{"v":23049,"d":"23,049 "},"ZAM"]
[null,"Thermal","NXPTZT12AW0Z00C","NXPTZT12AW0Z00C","NXPTZT2 230Vac HD30x 35mm QVGA 7.5Hz W3m",{"v":19470,"d":"19,470"},{"v":19470,"d":"19,470 "},"ZAM"]
[null,"Thermal","NXPTZT12AW0Z00CH","NXPTZT12AW0Z00CH","NXPTZT2 230Vac HD30x 35mm QVGA 30Hz W 3m",{"v":19837,"d":"19,837"},{"v":19837,"d":"19,837 "},"ZAM"]
[null,"Thermal","NXPTZT12BW0Z00C","NXPTZT12BW0Z00C","NXPTZT2 230Vac HD30x 25mm QVGA 7.5Hz W3m",{"v":19470,"d":"19,470"},{"v":19470,"d":"19,470 "},"ZAM"]
[null,"Thermal","NXPTZT12BW0Z00CH","NXPTZT12BW0Z00CH","NXPTZT2 230Vac HD30x 25mm QVGA 30Hz W 3m",{"v":19837,"d":"19,837"},{"v":19837,"d":"19,837 "},"ZAM"]
[null,"Thermal","NXPTZT12DW0Z00C","NXPTZT12DW0Z00C","NXPTZT2 230Vac HD30x 35mm VGA 7.5Hz W 3m",{"v":27039,"d":"27,039"},{"v":27039,"d":"27,039 "},"ZAM"]
[null,"Thermal","NXPTZT12DW0Z00CH","NXPTZT12DW0Z00CH","NXPTZT2 230Vac HD30x 35mm VGA 30Hz W 3m",{"v":27407,"d":"27,407"},{"v":27407,"d":"27,407 "},"ZAM"]
[null,"Thermal","NXPTZT12EW0Z00C","NXPTZT12EW0Z00C","NXPTZT2 230Vac HD30x 25mm VGA 7.5Hz W 3m",{"v":27039,"d":"27,039"},{"v":27039,"d":"27,039 "},"ZAM"]
[null,"Thermal","NXPTZT12EW0Z00CH","NXPTZT12EW0Z00CH","NXPTZT2 230Vac HD30x 25mm VGA 30Hz W 3m",{"v":27407,"d":"27,407"},{"v":27407,"d":"27,407 "},"ZAM"]
[null,"Thermal","NXPTZT22AW0Z00C","NXPTZT22AW0Z00C","NXPTZT2 24Vac HD30x 35mm QVGA 7.5Hz W 3m",{"v":19470,"d":"19,470"},{"v":19470,"d":"19,470 "},"ZAM"]
[null,"Thermal","NXPTZT22AW0Z00CH","NXPTZT22AW0Z00CH","NXPTZT2 24Vac HD30x 35mm QVGA 30Hz W 3m",{"v":19837,"d":"19,837"},{"v":19837,"d":"19,837 "},"ZAM"]
[null,"Thermal","NXPTZT22BW0Z00C","NXPTZT22BW0Z00C","NXPTZT2 24Vac HD30x 25mm QVGA 7.5Hz W 3m",{"v":19470,"d":"19,470"},{"v":19470,"d":"19,470 "},"ZAM"]
[null,"Thermal","NXPTZT22BW0Z00CH","NXPTZT22BW0Z00CH","NXPTZT2 24Vac HD30x 25mm QVGA 30Hz W 3m",{"v":19837,"d":"19,837"},{"v":19837,"d":"19,837 "},"ZAM"]
[null,"Thermal","NXPTZT22DW0Z00C","NXPTZT22DW0Z00C","NXPTZT2 24Vac HD30x 35mm VGA 7.5Hz W 3m",{"v":27039,"d":"27,039"},{"v":27039,"d":"27,039 "},"ZAM"]
[null,"Thermal","NXPTZT22DW0Z00CH","NXPTZT22DW0Z00CH","NXPTZT2 24Vac HD30x 35mm VGA 30Hz W 3m",{"v":27407,"d":"27,407"},{"v":27407,"d":"27,407 "},"ZAM"]
[null,"Thermal","NXPTZT22EW0Z00C","NXPTZT22EW0Z00C","NXPTZT2 24Vac HD30x 25mm VGA 7.5Hz W 3m",{"v":27039,"d":"27,039"},{"v":27039,"d":"27,039 "},"ZAM"]
[null,"Thermal","NXPTZT22EW0Z00CH","NXPTZT22EW0Z00CH","NXPTZT2 24Vac HD30x 25mm VGA 30Hz W 3m",{"v":27407,"d":"27,407"},{"v":27407,"d":"27,407 "},"ZAM"]
[null,"Thermal","NXPTZT32AW0Z00C","NXPTZT32AW0Z00C","NXPTZT2 120Vac HD30x 35mm QVGA 7.5Hz W3m",{"v":19470,"d":"19,470"},{"v":19470,"d":"19,470 "},"ZAM"]
[null,"Thermal","NXPTZT32AW0Z00CH","NXPTZT32AW0Z00CH","NXPTZT2 120Vac HD30x 35mm QVGA 30Hz W3m",{"v":19837,"d":"19,837"},{"v":19837,"d":"19,837 "},"ZAM"]
[null,"Thermal","NXPTZT32BW0Z00C","NXPTZT32BW0Z00C","NXPTZT2 120Vac HD30x 25mm QVGA 7.5Hz W3m",{"v":19470,"d":"19,470"},{"v":19470,"d":"19,470 "},"ZAM"]
[null,"Thermal","NXPTZT32BW0Z00CH","NXPTZT32BW0Z00CH","NXPTZT2 120Vac HD30x 25mm QVGA 30Hz W3m",{"v":19837,"d":"19,837"},{"v":19837,"d":"19,837 "},"ZAM"]
[null,"Thermal","NXPTZT32DW0Z00C","NXPTZT32DW0Z00C","NXPTZT2 120Vac HD30x 35mm VGA 7.5Hz W3m",{"v":27039,"d":"27,039"},{"v":27039,"d":"27,039 "},"ZAM"]
[null,"Thermal","NXPTZT32DW0Z00CH","NXPTZT32DW0Z00CH","NXPTZT2 120Vac HD30x 35mm VGA 30Hz W3m",{"v":27407,"d":"27,407"},{"v":27407,"d":"27,407 "},"ZAM"]
[null,"Thermal","NXPTZT32EW0Z00C","NXPTZT32EW0Z00C","NXPTZT2 120Vac HD30x 25mm VGA 7.5Hz W3m",{"v":27039,"d":"27,039"},{"v":27039,"d":"27,039 "},"ZAM"]
[null,"Thermal","NXPTZT32EW0Z00CH","NXPTZT32EW0Z00CH","NXPTZT2 120Vac HD30x 25mm VGA 30Hz W3m",{"v":27407,"d":"27,407"},{"v":27407,"d":"27,407 "},"ZAM"]
[null,"Thermal","UED22CA000A","UED22CA000A","EVO DUAL PTZ 30x thermal 6.3mm 34d HFOV",{"v":12505,"d":"12,505"},{"v":12505,"d":"12,505 "},"ZAM"]
[null,"Thermal","UED22CA000AH","UED22CA000AH","EVO DUAL PTZ 30x thermal 6.3mm 34d HFOV",{"v":12505,"d":"12,505"},{"v":12505,"d":"12,505 "},"ZAM"]
[null,"Thermal","UED22DA000A","UED22DA000A","EVO DUAL PTZ 30x thermal 9.1mm 24d HFOV",{"v":12505,"d":"12,505"},{"v":12505,"d":"12,505 "},"ZAM"]
[null,"Thermal","UED22DA000AH","UED22DA000AH","EVO DUAL PTZ 30x thermal 9.1mm 24d HFOV",{"v":12505,"d":"12,505"},{"v":12505,"d":"12,505 "},"ZAM"]
[null,"Thermal","UED22FA000A","UED22FA000A","EVO DUAL PTZ 30x thermal 18mm 12d HFOV",{"v":15570,"d":"15,570"},{"v":15570,"d":"15,570 "},"ZAM"]
[null,"Thermal","UED22FA000AH","UED22FA000AH","EVO DUAL PTZ 30x thermal 18mm 12d HFOV",{"v":15570,"d":"15,570"},{"v":15570,"d":"15,570 "},"ZAM"]
[null,"Thermal","UED22IA000A","UED22IA000A","EVO DUAL PTZ 30x thermal 8.7mm 50d HFOV",{"v":21333,"d":"21,333"},{"v":21333,"d":"21,333 "},"ZAM"]
[null,"Thermal","UED22IA000AH","UED22IA000AH","EVO DUAL PTZ 30x thermal 8.7mm 50d HFOV",{"v":21333,"d":"21,333"},{"v":21333,"d":"21,333 "},"ZAM"]
[null,"Thermal","UED22LA000A","UED22LA000A","EVO DUAL PTZ 30x thermal 14mm 32d HFOV",{"v":22068,"d":"22,068"},{"v":22068,"d":"22,068 "},"ZAM"]
[null,"Thermal","UED22LA000AH","UED22LA000AH","EVO DUAL PTZ 30x thermal 14mm 32d HFOV",{"v":22068,"d":"22,068"},{"v":22068,"d":"22,068 "},"ZAM"]
[null,"Thermal","UED22NA000A","UED22NA000A","EVO DUAL PTZ 30x thermal 24.4mm 18d HFOV",{"v":22558,"d":"22,558"},{"v":22558,"d":"22,558 "},"ZAM"]
[null,"Thermal","UED22NA000AH","UED22NA000AH","EVO DUAL PTZ 30x thermal 24.4mm 18d HFOV",{"v":22558,"d":"22,558"},{"v":22558,"d":"22,558 "},"ZAM"]
[null,"Thermal","UET2DA000A","UET2DA000A","EVO THRM VGA PTZ RadM 35mm 7.5Hz RAL9002",{"v":17409,"d":"17,409"},{"v":17409,"d":"17,409 "},"ZAM"]
[null,"Thermal","UET2DA000AH","UET2DA000AH","EVO THRM VGA PTZ RadM 35mm 30Hz RAL9002",{"v":17802,"d":"17,802"},{"v":17802,"d":"17,802 "},"ZAM"]
[null,"Thermal","UET2DF000A","UET2DF000A","EVO THRM VGA PTZ RadM 35mm 7.5Hz RAL9005",{"v":17409,"d":"17,409"},{"v":17409,"d":"17,409 "},"ZAM"]
[null,"Thermal","UET2DF000AH","UET2DF000AH","EVO THRM VGA PTZ RadM 35mm 30Hz RAL9005",{"v":17802,"d":"17,802"},{"v":17802,"d":"17,802 "},"ZAM"]
[null,"Thermal","UET2EA000A","UET2EA000A","EVO THRM VGA PTZ RadM 25mm 7.5Hz RAL9002",{"v":17409,"d":"17,409"},{"v":17409,"d":"17,409 "},"ZAM"]
[null,"Thermal","UET2EA000AH","UET2EA000AH","EVO THRM VGA PTZ RadM 25mm 30Hz RAL9002",{"v":17802,"d":"17,802"},{"v":17802,"d":"17,802 "},"ZAM"]
[null,"Thermal","UET2EF000A","UET2EF000A","EVO THRM VGA PTZ RadM 25mm 7.5Hz RAL9005",{"v":17409,"d":"17,409"},{"v":17409,"d":"17,409 "},"ZAM"]
[null,"Thermal","UET2EF000AH","UET2EF000AH","EVO THRM VGA PTZ RadM 25mm 30Hz RAL9005",{"v":17802,"d":"17,802"},{"v":17802,"d":"17,802 "},"ZAM"]
[null,"Thermal","UET2GA000A","UET2GA000A","EVO THRM VGA PTZ RadM 13mm 7.5Hz RAL9002",{"v":16306,"d":"16,306"},{"v":16306,"d":"16,306 "},"ZAM"]
[null,"Thermal","UET2GA000AH","UET2GA000AH","EVO THRM VGA PTZ RadM 13mm 30Hz RAL9002",{"v":16698,"d":"16,698"},{"v":16698,"d":"16,698 "},"ZAM"]
[null,"Thermal","UET2GF000A","UET2GF000A","EVO THRM VGA PTZ RadM 13mm 7.5Hz RAL9005",{"v":16306,"d":"16,306"},{"v":16306,"d":"16,306 "},"ZAM"]
[null,"Thermal","UET2GF000AH","UET2GF000AH","EVO THRM VGA PTZ RadM 13mm 30Hz RAL9005",{"v":16698,"d":"16,698"},{"$f":"F1032-(F1032*G$6)","v":{"v":16698,"d":"16,698 "}},"ZAM"]
[null,"Thermal","UET2IA000A","UET2IA000A","EVO THRM QVGA PTZ RadM 35mm7.5Hz RAL9002",{"v":11524,"d":"11,524"},{"v":11524,"d":"11,524 "},"ZAM"]
[null,"Thermal","UET2IA000AH","UET2IA000AH","EVO THRM QVGA PTZ RadM 35mm 30Hz RAL9002",{"v":11720,"d":"11,720"},{"v":11720,"d":"11,720 "},"ZAM"]
[null,"Thermal","UET2IF000A","UET2IF000A","EVO THRM QVGA PTZ RadM 35mm7.5Hz RAL9005",{"v":11524,"d":"11,524"},{"v":11524,"d":"11,524 "},"ZAM"]
[null,"Thermal","UET2IF000AH","UET2IF000AH","EVO THRM QVGA PTZ RadM 35mm 30Hz RAL9005",{"v":11720,"d":"11,720"},{"v":11720,"d":"11,720 "},"ZAM"]
[null,"Thermal","UET2LA000A","UET2LA000A","EVO THRM QVGA PTZ RadM 25mm 7.5HzRAL9002",{"v":11524,"d":"11,524"},{"v":11524,"d":"11,524 "},"ZAM"]
[null,"Thermal","UET2LA000AH","UET2LA000AH","EVO THRM QVGA PTZ RadM 25mm 30Hz RAL9002",{"v":11720,"d":"11,720"},{"v":11720,"d":"11,720 "},"ZAM"]
[null,"Thermal","UET2LF000A","UET2LF000A","EVO THRM QVGA PTZ RadM 25mm 7.5HzRAL9005",{"v":11524,"d":"11,524"},{"v":11524,"d":"11,524 "},"ZAM"]
[null,"Thermal","UET2LF000AH","UET2LF000AH","EVO THRM QVGA PTZ RadM 25mm 30Hz RAL9005",{"v":11720,"d":"11,720"},{"v":11720,"d":"11,720 "},"ZAM"]
[null,"Thermal","UET2MA000A","UET2MA000A","EVO THRM QVGA PTZ RadM 13mm 7.5HzRAL9002",{"v":10421,"d":"10,421"},{"v":10421,"d":"10,421 "},"ZAM"]
[null,"Thermal","UET2MA000AH","UET2MA000AH","EVO THRM QVGA PTZ RadM 13mm 30Hz RAL9002",{"v":10617,"d":"10,617"},{"v":10617,"d":"10,617 "},"ZAM"]
[null,"Thermal","UET2MF000A","UET2MF000A","EVO THRM QVGA PTZ RadM 13mm 7.5HzRAL9005",{"v":10421,"d":"10,421"},{"v":10421,"d":"10,421 "},"ZAM"]
[null,"Thermal","UET2MF000AH","UET2MF000AH","EVO THRM QVGA PTZ RadM 13mm 30Hz RAL9005",{"v":10617,"d":"10,617"},{"v":10617,"d":"10,617 "},"ZAM"]
[null,"Thermal","UET2UA000A","UET2UA000A","EVO THRM VGA PTZ RadM 19mm 7.5Hz RAL9002",{"v":16306,"d":"16,306"},{"v":16306,"d":"16,306 "},"ZAM"]
[null,"Thermal","UET2UA000AH","UET2UA000AH","EVO THRM VGA PTZ RadM 19mm 30Hz RAL9002",{"v":16698,"d":"16,698"},{"v":16698,"d":"16,698 "},"ZAM"]
[null,"Thermal","UET2UF000A","UET2UF000A","EVO THRM VGA PTZ RadM 19mm 7.5Hz RAL9005",{"v":16306,"d":"16,306"},{"v":16306,"d":"16,306 "},"ZAM"]
[null,"Thermal","UET2UF000AH","UET2UF000AH","EVO THRM VGA PTZ RadM 19mm 30Hz RAL9005",{"v":16698,"d":"16,698"},{"v":16698,"d":"16,698 "},"ZAM"]
[null,"Thermal","UET2ZA000A","UET2ZA000A","EVO THRM QVGA PTZ RadM 19mm 7.5HzRAL9002",{"v":10421,"d":"10,421"},{"v":10421,"d":"10,421 "},"ZAM"]
[null,"Thermal","UET2ZA000AH","UET2ZA000AH","EVO THRM QVGA PTZ RadM 19mm 30Hz RAL9002",{"v":10617,"d":"10,617"},{"v":10617,"d":"10,617 "},"ZAM"]
[null,"Thermal","UET2ZF000A","UET2ZF000A","EVO THRM QVGA PTZ RadM 19mm 7.5HzRAL9005",{"v":10421,"d":"10,421"},{"v":10421,"d":"10,421 "},"ZAM"]
[null,"Thermal","UET2ZF000AH","UET2ZF000AH","EVO THRM QVGA PTZ RadM 19mm 30Hz RAL9005",{"v":10617,"d":"10,617"},{"v":10617,"d":"10,617 "},"ZAM"]
[null,"Thermal","UPK1PEWAN00B","UPK1PEWAN00B","UPK PTZ 230Vac Full HD 60fps 33x wiper",{"v":28800,"d":"28,800"},{"v":28800,"d":"28,800 "},"ZAM"]
[null,"Thermal","UPKT1AFSA000AH","UPKT1AFSA000AH","UPKT thermal PTZ 230Vac 3x VGA 30Hz",{"v":30794,"d":"30,794"},{"v":30794,"d":"30,794 "},"ZAM"]
[null,"Thermal","UPKT1AFSAN00A","UPKT1AFSAN00A","UPKT thermal PTZ 230Vac 3x VGA 7.5Hz",{"v":31551,"d":"31,551"},{"v":31551,"d":"31,551 "},"ZAM"]
[null,"Thermal","UPKT1AFSAN00AH","UPKT1AFSAN00AH","UPKT thermal PTZ 230Vac 3x VGA 30Hz",{"v":31551,"d":"31,551"},{"v":31551,"d":"31,551 "},"ZAM"]
[null,"Thermal","UPKT1BFSA000A","UPKT1BFSA000A","UPKT thermal PTZ 230Vac 3x QVGA 7.5Hz",{"v":24988,"d":"24,988"},{"v":24988,"d":"24,988 "},"ZAM"]
[null,"Thermal","UPKT1BFSA000AH","UPKT1BFSA000AH","UPKT thermal PTZ 230Vac 3x QVGA 30Hz",{"v":24988,"d":"24,988"},{"v":24988,"d":"24,988 "},"ZAM"]
[null,"Thermal","UPKT1BFSAN00A","UPKT1BFSAN00A","UPKT thermal PTZ 230Vac 3x QVGA 7.5Hz",{"v":25746,"d":"25,746"},{"v":25746,"d":"25,746 "},"ZAM"]
[null,"Thermal","UPKT1BFSAN00AH","UPKT1BFSAN00AH","UPKT thermal PTZ 230Vac 3x QVGA 30Hz",{"v":25746,"d":"25,746"},{"v":25746,"d":"25,746 "},"ZAM"]
[null,"Thermal","UPKT2AFSA000A","UPKT2AFSA000A","UPKT thermal PTZ 24Vac 3x VGA 7.5Hz",{"v":30794,"d":"30,794"},{"v":30794,"d":"30,794 "},"ZAM"]
[null,"Thermal","UPKT2AFSA000AH","UPKT2AFSA000AH","UPKT thermal PTZ 24Vac 3x VGA 30Hz",{"v":30794,"d":"30,794"},{"v":30794,"d":"30,794 "},"ZAM"]
[null,"Thermal","UPKT2AFSAN00A","UPKT2AFSAN00A","UPKT thermal PTZ 24Vac 3x VGA 7.5Hz",{"v":31551,"d":"31,551"},{"v":31551,"d":"31,551 "},"ZAM"]
[null,"Thermal","UPKT2AFSAN00AH","UPKT2AFSAN00AH","UPKT thermal PTZ 24Vac 3x VGA 30Hz",{"v":31551,"d":"31,551"},{"v":31551,"d":"31,551 "},"ZAM"]
[null,"Thermal","UPKT2BFSA000A","UPKT2BFSA000A","UPKT thermal PTZ 24Vac 3x QVGA 7.5Hz",{"v":24988,"d":"24,988"},{"v":24988,"d":"24,988 "},"ZAM"]
[null,"Thermal","UPKT2BFSA000AH","UPKT2BFSA000AH","UPKT thermal PTZ 24Vac 3x QVGA 30Hz",{"v":24988,"d":"24,988"},{"v":24988,"d":"24,988 "},"ZAM"]
[null,"Thermal","UPKT2BFSAN00A","UPKT2BFSAN00A","UPKT thermal PTZ 24Vac 3x QVGA 7.5Hz",{"v":25746,"d":"25,746"},{"v":25746,"d":"25,746 "},"ZAM"]
[null,"Thermal","UPKT2BFSAN00AH","UPKT2BFSAN00AH","UPKT thermal PTZ 24Vac 3x QVGA 30Hz",{"v":25746,"d":"25,746"},{"v":25746,"d":"25,746 "},"ZAM"]
[null,"Thermal","UPKT3AFSA000A","UPKT3AFSA000A","UPKT thermal PTZ 120Vac 3x VGA 7.5Hz",{"v":30794,"d":"30,794"},{"v":30794,"d":"30,794 "},"ZAM"]
[null,"Thermal","UPKT3AFSA000AH","UPKT3AFSA000AH","UPKT thermal PTZ 120Vac 3x VGA 30Hz",{"v":30794,"d":"30,794"},{"v":30794,"d":"30,794 "},"ZAM"]
[null,"Thermal","UPKT3AFSAN00A","UPKT3AFSAN00A","UPKT thermal PTZ 120Vac 3x VGA 7.5Hz",{"v":31551,"d":"31,551"},{"v":31551,"d":"31,551 "},"ZAM"]
[null,"Thermal","UPKT3AFSAN00AH","UPKT3AFSAN00AH","UPKT thermal PTZ 120Vac 3x VGA 30Hz",{"v":31551,"d":"31,551"},{"v":31551,"d":"31,551 "},"ZAM"]
[null,"Thermal","UPKT3BFSA000A","UPKT3BFSA000A","UPKT thermal PTZ 120Vac 3x QVGA 7.5Hz",{"v":24988,"d":"24,988"},{"v":24988,"d":"24,988 "},"ZAM"]
[null,"Thermal","UPKT3BFSA000AH","UPKT3BFSA000AH","UPKT thermal PTZ 120Vac 3x QVGA 30Hz",{"v":24988,"d":"24,988"},{"v":24988,"d":"24,988 "},"ZAM"]
[null,"Thermal","UPKT3BFSAN00A","UPKT3BFSAN00A","UPKT thermal PTZ 120Vac 3x QVGA 7.5Hz",{"v":25746,"d":"25,746"},{"v":25746,"d":"25,746 "},"ZAM"]
[null,"Thermal","UPKT3BFSAN00AH","UPKT3BFSAN00AH","UPKT thermal PTZ 120Vac 3x QVGA 30Hz",{"v":25746,"d":"25,746"},{"v":25746,"d":"25,746 "},"ZAM"]
[null,"EX IP Cameras","EXPE2-2X30-SPT-IRACF","EXPE2 2MP 30X SS IR PTZ 24VAC","ExSite Enhanced Series 2; 2MP 30x Zoom; Stainless Steel PTZ with IR illuminator 850nm; SPOT and WIDE lenses 24Vac; Camera ATEX IECEX -  T6…T5…T4 -40°C/+50°Cor +60°C or +70°C  cULus - T5…T4 -40°C/+ 40°C or +60°C",{"v":20315,"d":"20,315"},{"v":20315,"d":"20,315 "},"ZAM"]
[null,"EX IP Cameras","EXPE2-2X30-SPT-IRACFG","EXPE2 2MP 30X SS IR PTZ 24VAC T6 70 SD","ExSite Enhanced Series 2; 2MP 30x Zoom; Stainless Steel PTZ with IR illuminator 850nm; SPOT and WIDE lenses Mains Camera ATEX IECEX -  T6…T5…T4 -40°C/+50°Cor +60°C or +70°C  cULus - T5…T4 -40°C/+ 40°C or +60°C with preinstalled SD for ONVIF G",{"v":20761.25,"d":"20,761"},{"v":20761.25,"d":"20,761 "},"ZAM"]
[null,"EX IP Cameras","EXPE2-2X30-SPT-IRM1F","EXPE2 2MP 30X SS IR PTZ 120VAC","ExSite Enhanced Series 2; 2MP 30x Zoom; Stainless Steel PTZ with IR illuminator 850nm; SPOT and WIDE lenses Mains 120Vac; Camera ATEX IECEX -  T6…T5…T4 -40°C/+50°Cor +60°C or +70°C  cULus - T5…T4 -40°C/+ 40°C or +60°C",{"v":20315,"d":"20,315"},{"v":20315,"d":"20,315 "},"ZAM"]
[null,"EX IP Cameras","EXPE2-2X30-SPT-IRM1FG","EXPE2 2MP 30X SS IR PTZ 120VAC T6 70 SD","ExSite Enhanced Series 2; 2MP 30x Zoom; Stainless Steel PTZ with IR illuminator 850nm; SPOT and WIDE lenses Mains Camera ATEX IECEX -  T6…T5…T4 -40°C/+50°Cor +60°C or +70°C  cULus - T5…T4 -40°C/+ 40°C or +60°C with preinstalled SD for ONVIF G",{"v":20761.25,"d":"20,761"},{"v":20761.25,"d":"20,761 "},"ZAM"]
[null,"EX IP Cameras","EXPE2-2X30-SPT-IRM2F","EXPE2 2MP 30X SS IR PTZ 230VAC","ExSite Enhanced Series 2; 2MP 30x Zoom; Stainless Steel PTZ with IR illuminator 850nm; SPOT and WIDE lenses Mains 220-230Vac; Camera ATEX IECEX -  T6…T5…T4 -40°C/+50°Cor +60°C or +70°C  cULus - T5…T4 -40°C/+ 40°C or +60°C",{"v":20315,"d":"20,315"},{"v":20315,"d":"20,315 "},"ZAM"]
[null,"EX IP Cameras","EXPE2-2X30-SPT-IRM2FG","EXPE2 2MP 30X SS IR PTZ; 230VAC SD","ExSite Enhanced Series 2; 2MP 30x Zoom; Stainless Steel PTZ with IR illuminator 850nm; SPOT and WIDE lenses Mains 220-230Vac; Camera ATEX IECEX -  T6…T5…T4 -40°C/+50°Cor +60°C or +70°C  cULus - T5…T4 -40°C/+ 40°C or +60°C with preinstalled SD for ONVIF G",{"v":20761.25,"d":"20,761"},{"v":20761.25,"d":"20,761 "},"ZAM"]
[null,"Fixed IP Cameras","ACMICR-1001","Internal microphone accessory for Sarix Pro 4 Dome Cameras","Internal microphone accessory for Sarix Pro 4 Dome Cameras",{"v":8.5,"d":"9"},{"v":8.5,"d":"9 "},"ZAM"]
[null,"Fixed IP Cameras","AVIO-3500","3.5 mm audio I/O jack with 1.8 m fly wire","3.5 mm audio I/O jack with 1.8 m fly wire",{"v":15.74,"d":"16"},{"v":15.74,"d":"16 "},"ZAM"]
[null,"Fixed IP Cameras","CNCVR-1001","Adapter 3/4 inch conduit for Sarix Pro 4 dome camera 5-pack","Adapter 3/4 inch conduit for Sarix Pro 4 dome camera 5-pack",{"v":29.75,"d":"30"},{"v":29.75,"d":"30 "},"ZAM"]
[null,"Fixed IP Cameras","DCLPNL-1001","Metal ceiling panel for dome camera installations in suspended ceilings","Metal ceiling panel for dome camera installations in suspended ceilings",{"v":95.3,"d":"95"},{"v":95.3,"d":"95 "},"ZAM"]
[null,"Fixed IP Cameras","IBD332-1","IBD3 Sarix High Security Corner Camera 3MP Smart Analytics Pantone 427C","IBD Series 3 Sarix High Security Corner Camera 3MP Smart Analytics Rolled Steel Pantone 427C",{"v":1126,"d":"1,126"},{"v":1126,"d":"1,126 "},"ZAM"]
[null,"Fixed IP Cameras","IBD332-1SS","IBD3 Sarix High Security Corner Camera 3MP Smart Analytics Stainless Steel","IBD Series 3 Sarix High Security Corner Camera 3MP Smart Analytics Stainless Steel",{"v":1351,"d":"1,351"},{"v":1351,"d":"1,351 "},"ZAM"]
[null,"Fixed IP Cameras","IBD532-1","IBD3 Sarix High Security Corner Camera 5MP Smart Analytics Pantone 427C","IBD Series 3 Sarix High Security Corner Camera 5MP Smart Analytics Rolled Steel Pantone 427C",{"v":1504,"d":"1,504"},{"v":1504,"d":"1,504 "},"ZAM"]
[null,"Fixed IP Cameras","IBD532-1SS","IBD3 Sarix High Security Corner Camera 5MP Smart Analytics Stainless Steel","IBD Series 3 Sarix High Security Corner Camera 5MP Smart Analytics Stainless Steel",{"v":1739,"d":"1,739"},{"v":1739,"d":"1,739 "},"ZAM"]
[null,"Fixed IP Cameras","SLSPCIL-1001","In-ceiling mount for Sarix Pro 4 Dome camera","In-ceiling mount for Sarix Pro 4 Dome camera",{"v":28.05,"d":"28"},{"v":28.05,"d":"28 "},"ZAM"]
[null,"Fixed IP Cameras","SRXP4-2V10-EBT-IR","2MP Sarix Pro 4 Environmental IR Bullet Camera with 3.4-10.5mm Lens","2MP Sarix Pro 4 Environmental IR Bullet ; 3.4-10.5mm P-iris lens; Surface Mount; True WDR; SureVision; Pelco Smart Analytics",{"v":584.8,"d":"585"},{"v":584.8,"d":"585 "},"ZAM"]
[null,"Fixed IP Cameras","SRXP4-2V10-EMD","2MP Sarix Pro 4 Environmental Dome Camera with 3.4-10.5mm Lens","2MP Sarix Pro 4 Environmental Dome; 3.4-10.5mm P-iris lens; Surface Mount; True WDR; SureVision; Pelco Smart Analytics",{"v":461.55,"d":"462"},{"v":461.55,"d":"462 "},"ZAM"]
[null,"Fixed IP Cameras","SRXP4-2V10-EMD-IR","2MP Sarix Pro 4 Environmental IR Dome Camera with 3.4-10.5mm Lens","2MP Sarix Pro 4 Environmental Dome; IR; 3.4-10.5mm P-iris lens; Surface Mount; True WDR; SureVision; Pelco Smart Analytics",{"v":494.7,"d":"495"},{"v":494.7,"d":"495 "},"ZAM"]
[null,"Fixed IP Cameras","SRXP4-2V10-IMD","2MP Sarix Pro 4 Indoor Dome Camera with 3.4-10.5mm Lens","2MP Sarix Pro 4 Indoor Dome; 3.4-10.5mm P-iris lens; Surface Mount; True WDR; SureVision; Pelco Smart Analytics",{"v":390.15,"d":"390"},{"v":390.15,"d":"390 "},"ZAM"]
[null,"Fixed IP Cameras","SRXP4-2V10-IMD-IR","2MP Sarix Pro 4 Indoor IR Dome Camera with 3.4-10.5mm Lens","2MP Sarix Pro 4 Indoor Dome; IR; 3.4-10.5mm P-iris lens; Surface Mount; True WDR; SureVision; Pelco Smart Analytics",{"v":423.3,"d":"423"},{"$f":"F1096-(F1096*G$6)","v":{"v":423.3,"d":"423 "}},"ZAM"]
[null,"Fixed IP Cameras","SRXP4-3V10-EBT-IR","3MP Sarix Pro 4 Environmental IR Bullet Camera with 3.4-10.5mm Lens","3MP Sarix Pro 4 Environmental IR Bullet ; 3.4-10.5mm P-iris lens; Surface Mount; True WDR; SureVision; Pelco Smart Analytics",{"v":648.55,"d":"649"},{"v":648.55,"d":"649 "},"ZAM"]
[null,"Fixed IP Cameras","SRXP4-3V10-EMD","3MP Sarix Pro 4 Environmental Dome Camera with 3.4-10.5mm Lens","3MP Sarix Pro 4 Environmental Dome; 3.4-10.5mm P-iris lens; Surface Mount; True WDR; SureVision; Pelco Smart Analytics",{"v":525.3,"d":"525"},{"v":525.3,"d":"525 "},"ZAM"]
[null,"Fixed IP Cameras","SRXP4-3V10-EMD-IR","3MP Sarix Pro 4 Environmental IR Dome Camera with 3.4-10.5mm Lens","3MP Sarix Pro 4 Environmental Dome; IR; 3.4-10.5mm P-iris lens; Surface Mount; True WDR; SureVision; Pelco Smart Analytics",{"v":558.45,"d":"558"},{"v":558.45,"d":"558 "},"ZAM"]
[null,"Fixed IP Cameras","SRXP4-3V10-IMD","3MP Sarix Pro 4 Indoor Dome Camera with 3.4-10.5mm Lens","3MP Sarix Pro 4 Indoor Dome; 3.4-10.5mm P-iris lens; Surface Mount; True WDR; SureVision; Pelco Smart Analytics",{"v":450.5,"d":"451"},{"v":450.5,"d":"451 "},"ZAM"]
[null,"Fixed IP Cameras","SRXP4-3V10-IMD-IR","3MP Sarix Pro 4 Indoor IR Dome Camera with 3.4-10.5mm Lens","3MP Sarix Pro 4 Indoor Dome; IR; 3.4-10.5mm P-iris lens; Surface Mount; True WDR; SureVision; Pelco Smart Analytics",{"v":484.5,"d":"485"},{"v":484.5,"d":"485 "},"ZAM"]
[null,"Fixed IP Cameras","SRXP4-3V29-EBT-IR","3MP Sarix Pro 4 Environmental IR Bullet Camera with 10.9-29mm Lens","3MP Sarix Pro 4 Environmental IR Bullet ; 10.9-29mm P-iris lens; Surface Mount; True WDR; SureVision; Pelco Smart Analytics",697,{"v":697,"d":"697 "},"ZAM"]
[null,"Fixed IP Cameras","SRXP4-3V40-EBT-IR","3MP Sarix Pro 4 Environmental IR Bullet Camera with 4.8-40.8mm Lens","3MP Sarix Pro 4 Environmental IR Bullet ; 4.8-40.8mm P-iris lens; Surface Mount; True WDR; SureVision; Pelco Smart Analytics",{"v":801.55,"d":"802"},{"v":801.55,"d":"802 "},"ZAM"]
[null,"Fixed IP Cameras","SRXP4-5V10-EBT-IR","5MP Sarix Pro 4 Environmental IR Bullet Camera with 3.4-10.5mm Lens","5MP Sarix Pro 4 Environmental IR Bullet ; 3.4-10.5mm P-iris lens; Surface Mount; True WDR; SureVision; Pelco Smart Analytics",{"v":759.05,"d":"759"},{"v":759.05,"d":"759 "},"ZAM"]
[null,"Fixed IP Cameras","SRXP4-5V10-EMD","5MP Sarix Pro 4 Environmental Dome Camera with 3.4-10.5mm Lens","5MP Sarix Pro 4 Environmental Dome; 3.4-10.5mm P-iris lens; Surface Mount; True WDR; SureVision; Pelco Smart Analytics",{"v":635.8,"d":"636"},{"v":635.8,"d":"636 "},"ZAM"]
[null,"Fixed IP Cameras","SRXP4-5V10-EMD-IR","5MP Sarix Pro 4 Environmental IR Dome Camera with 3.4-10.5mm Lens","5MP Sarix Pro 4 Environmental Dome; IR; 3.4-10.5mm P-iris lens; Surface Mount; True WDR; SureVision; Pelco Smart Analytics",{"v":668.95,"d":"669"},{"v":668.95,"d":"669 "},"ZAM"]
[null,"Fixed IP Cameras","SRXP4-5V10-IMD","5MP Sarix Pro 4 Indoor Dome Camera with 3.4-10.5mm Lens","5MP Sarix Pro 4 Indoor Dome; 3.4-10.5mm P-iris lens; Surface Mount; True WDR; SureVision; Pelco Smart Analytics",{"v":559.3,"d":"559"},{"v":559.3,"d":"559 "},"ZAM"]
[null,"Fixed IP Cameras","SRXP4-5V10-IMD-IR","5MP Sarix Pro 4 Indoor IR Dome Camera with 3.4-10.5mm Lens","5MP Sarix Pro 4 Indoor Dome; IR; 3.4-10.5mm P-iris lens; Surface Mount; True WDR; SureVision; Pelco Smart Analytics",{"v":594.15,"d":"594"},{"v":594.15,"d":"594 "},"ZAM"]
[null,"Fixed IP Cameras","SRXP4-5V29-EBT-IR","5MP Sarix Pro 4 Environmental IR Bullet Camera with 10.9-29mm Lens","5MP Sarix Pro 4 Environmental IR Bullet ; 10.9-29mm P-iris lens; Surface Mount; True WDR; SureVision; Pelco Smart Analytics",{"v":808.35,"d":"808"},{"v":808.35,"d":"808 "},"ZAM"]
[null,"Fixed IP Cameras","SRXP4-5V40-EBT-IR","5MP Sarix Pro 4 Environmental IR Bullet Camera with 4.8-40.8mm Lens","5MP Sarix Pro 4 Environmental IR Bullet ; 4.8-40.8mm P-iris lens; Surface Mount; True WDR; SureVision; Pelco Smart Analytics",913,{"v":913,"d":"913 "},"ZAM"]
[null,"Fixed IP Cameras","SRXP4-DMSLD","Weathershield for Sarix Pro 4 Environmental Dome cameras","Weathershield for Sarix Pro 4 Environmental Dome cameras",{"v":17.85,"d":"18"},{"v":17.85,"d":"18 "},"ZAM"]
[null,"Fixed IP Cameras","SRXP4-EBT-DEMO1","Demo Port Cover for Sarix Pro 4 Bullet camera","Demo Port Cover for Sarix Pro 4 Bullet camera",{"v":21.25,"d":"21"},{"v":21.25,"d":"21 "},"ZAM"]
[null,"Fixed IP Cameras","SRXP4-LD-0E","Clear lower dome for Sarix Pro 4 Environmental Dome camera","Clear lower dome for Sarix Pro 4 Environmental Dome camera",{"v":29.75,"d":"30"},{"v":29.75,"d":"30 "},"ZAM"]
[null,"Fixed IP Cameras","SRXP4-LD-0I","Smoked lower dome for Sarix Pro 4 indoor dome camera","Smoked lower dome for Sarix Pro 4 indoor dome camera",{"v":29.75,"d":"30"},{"v":29.75,"d":"30 "},"ZAM"]
[null,"Fixed IP Cameras","SRXP4-LD-1E","Smoked lower dome for Sarix Pro 4 Environmental Dome camera","Smoked lower dome for Sarix Pro 4 Environmental Dome camera",{"v":29.75,"d":"30"},{"v":29.75,"d":"30 "},"ZAM"]
[null,"Fixed IP Cameras","SRXP4-LD-1I","Clear lower dome for Sarix Pro 4 indoor dome camera","Clear lower dome for Sarix Pro 4 indoor dome camera",{"v":29.75,"d":"30"},{"v":29.75,"d":"30 "},"ZAM"]
[null,"Fixed IP Cameras","SRXP4-PM-1E","Pendant mount for Sarix Pro 4 Dome camera","Pendant mount for Sarix Pro 4 Dome camera",{"v":36.55,"d":"37"},{"v":36.55,"d":"37 "},"ZAM"]
[null,"Analog","BB4-F","Spectra IV SE Back Box; indoor. For suspended or in-ceiling; Built-in memory","Spectra IV SE Back Box; indoor. For suspended or in-ceiling applications. Built-in memory to store camera and location settings. Requires 5.25 inches above ceiling and 3.25-inches below.",{"v":279.09,"d":"279"},{"v":279.09,"d":"279 "},"ZAM"]
[null,"Analog","BB4-PG","Spectra IV SE Back Box; standard pendant mount; gray. Built-in memory","Spectra IV SE Back Box; standard pendant mount; gray. Built-in memory to store camera and location specific dome settings. Pendant 10.6-inch overall Length (including dome).",421,{"v":421,"d":"421 "},"ZAM"]
[null,"Analog","BB4-PG-E","Spectra IV SE Back Box; environmental pendant mount; gray. Built-in memory","Spectra IV SE Back Box; environmental pendant; gray. Built-in memory to store camera and location specific dome settings. Pendant 10.6-inch overall Length (including dome).",{"v":508.98,"d":"509"},{"v":508.98,"d":"509 "},"ZAM"]
[null,"Analog","BB4-PR-E","Spectra IV SE Press Back Box; environmental pendant; gray. Built-in memory","Spectra IV SE Press Back Box; environmental pendant; gray. Built-in memory to store camera and location specific dome settings.",{"v":1974,"d":"1,974"},{"v":1974,"d":"1,974 "},"ZAM"]
[null,"Analog","BB4-PSG-E","Spectra IV SE Back Box; stainless steel; environmental pendant. Built-in memory","Spectra IV SE Back Box; stainless steel; environmental pendant; gray. Built-in memory to store camera and location specific dome settings. Pendant 10.6-inch overall Length (including dome).",{"v":1227,"d":"1,227"},{"v":1227,"d":"1,227 "},"ZAM"]
[null,"Analog","BB4DOORASSY","Field replacement door assembly for all Spectra IV SE backboxes","Field replacement door assembly for all Spectra IV SE backboxes. This assembly includes backbox memory.",{"v":151.37,"d":"151"},{"v":151.37,"d":"151 "},"ZAM"]
[null,"Analog","BB5-PCA-GY","Spectra II pendant conduit adapter kit; gray; for DF5 with BB5A-PG or BB5T-PG.","Spectra II pendant mount conduit adapter kit; gray; for Spectra and DF5 domes. Use in pendant mount when conduit is being used for electrical connections. Must be used with BB5A-PG or BB5T-PG.",{"v":102.17,"d":"102"},{"v":102.17,"d":"102 "},"ZAM"]
[null,"Analog","DD530","Spectra Analog V SE Dome Drive C/BW 30X zoom NTSC/PAL","Spectra Analog V SE Dome Drive C/BW 30X zoom NTSC/PAL",{"v":2316,"d":"2,316"},{"v":2316,"d":"2,316 "},"ZAM"]
[null,"Analog","DD53KIT","Spectra III Fan/Pwr Sup Repair Kit","Spectra III Fan/Pwr Sup Repair Kit",{"v":331.12,"d":"331"},{"v":331.12,"d":"331 "},"ZAM"]
[null,"Analog","ES-REPLBLADE-10","Esprit 10-piece wiper blade replacement.","Esprit 10-piece wiper blade replacement.",{"v":44.47,"d":"44"},{"v":44.47,"d":"44 "},"ZAM"]
[null,"Analog","ESTX-5","Esprit 120/240 VAC power module.","Esprit 120/240 VAC power module.",{"v":190.16,"d":"190"},{"v":190.16,"d":"190 "},"ZAM"]
[null,"Analog","FD5-P","FD5 Outdoor Dome Pendant Adapter","FD5 Outdoor Dome Pendant Adapter",{"v":89.88,"d":"90"},{"v":89.88,"d":"90 "},"ZAM"]
[null,"Analog","LD4W-0","Spectra Mini lower dome. Smoked bubble.","Spectra Mini lower dome. Smoked bubble.",{"v":60.55,"d":"61"},{"v":60.55,"d":"61 "},"ZAM"]
[null,"Analog","LD4W-1","Spectra Mini lower dome. Clear bubble.","Spectra Mini lower dome. Clear bubble.",{"v":54.87,"d":"55"},{"v":54.87,"d":"55 "},"ZAM"]
[null,"Analog","LD53PSB-1","Spectra III and SE stainless steel lower dome; Pendant mount; black. Clear dome.","Spectra III and SE stainless steel lower dome; Pendant mount; black. Clear dome.",{"v":655.62,"d":"656"},{"v":655.62,"d":"656 "},"ZAM"]
[null,"Analog","LD5B-0","Spectra Mini Smoked Black Lower Dome","Spectra Mini Smoked Black Lower Dome",{"v":72.85,"d":"73"},{"v":72.85,"d":"73 "},"ZAM"]
[null,"Analog","LD5B-1","Spectra Mini Clear Black Lower Dome","Spectra Mini Clear Black Lower Dome",{"v":72.85,"d":"73"},{"v":72.85,"d":"73 "},"ZAM"]
[null,"Analog","LD5W-0","Spectra Mini Smoked White Lower Dome","Spectra Mini Smoked White Lower Dome",{"v":72.85,"d":"73"},{"v":72.85,"d":"73 "},"ZAM"]
[null,"Analog","LD5W-1","Spectra Mini Clear White Lower Dome","Spectra Mini Clear White Lower Dome",{"v":72.85,"d":"73"},{"v":72.85,"d":"73 "},"ZAM"]
[null,"Analog","LDHQF-0","Spectra Quality lower dome/bubble; smoked; for standard in-ceiling/flush","Spectra High Quality lower dome/bubble; smoked; for use with all standard in-ceiling/flush-mounted Spectras (NOT FOR USE WITH IN-CEILING/FLUSH ENVIRONMENTA",{"v":201.51,"d":"202"},{"v":201.51,"d":"202 "},"ZAM"]
[null,"Analog","LDHQPB-0","Spectra Quality lower dome/bubble; smoked; for pendant; and env in-ceiling/flush","Spectra High Quality lower dome/bubble; smoked; for use with all standard pendant; environmental pendant; and environmental in-ceiling/flush-mounted Spectras",{"v":238.41,"d":"238"},{"v":238.41,"d":"238 "},"ZAM"]
[null,"Analog","LDHQPB-1","Spectra Quality lower dome/bubble; clear; for pendant; and env in-ceiling/flush","Spectra High Quality lower dome/bubble; clear; for use with all standard pendant; environmental pendant; and environmental in-ceiling/flush-mounted Spectras",{"v":238.41,"d":"238"},{"v":238.41,"d":"238 "},"ZAM"]
[null,"Analog","SD5-W0-X","Spectra Mini Smoked White Dome PAL","Spectra Mini Smoked White Dome PAL",{"v":1398,"d":"1,398"},{"v":1398,"d":"1,398 "},"ZAM"]
[null,"Analog","SD5-W1","Spectra Mini Clear White Dome NTSC","Spectra Mini Clear White Dome NTSC",{"v":1398,"d":"1,398"},{"v":1398,"d":"1,398 "},"ZAM"]
[null,"Analog","SD530-F0","Spectra Analog V SE 30X Flush mount White Smoked Dome NTSC/PAL","Spectra Analog V SE 30X Flush mount White Smoked Dome NTSC/PAL",{"v":2491,"d":"2,491"},{"v":2491,"d":"2,491 "},"ZAM"]
[null,"Analog","SD530-PG-0","Spectra Analog V SE 30X zoom PENDANT Grey Smoked Dome NTSC/PAL","Spectra Analog V SE 30X zoom PENDANT Grey Smoked Dome NTSC/PAL",{"v":3088,"d":"3,088"},{"v":3088,"d":"3,088 "},"ZAM"]
[null,"Analog","SD530-PG-1","Spectra Analog V SE 30X zoom Pendant Grey Clear Dome NTSC/PAL","Spectra Analog V SE 30X zoom Pendant Grey Clear Dome NTSC/PAL",{"v":3088,"d":"3,088"},{"v":3088,"d":"3,088 "},"ZAM"]
[null,"Analog","SD530-PG-E0","Spectra Analog V SE 30X zoom Environmental Pendant Grey Smoked Dome NTSC/PAL","Spectra Analog V SE 30X zoom Environmental Pendant Grey Smoked Dome NTSC/PAL",{"v":3166,"d":"3,166"},{"v":3166,"d":"3,166 "},"ZAM"]
[null,"Analog","SD530-PG-E1","Spectra Analog V SE 30X zoom Environmental Pendant Grey Clear Dome NTSC/PAL","Spectra Analog V SE 30X zoom Environmental Pendant Grey Clear Dome NTSC/PAL",{"v":3166,"d":"3,166"},{"v":3166,"d":"3,166 "},"ZAM"]
[null,"Analog","SD530-PRE0","Spectra Analog V SE 30X zoom Pressurized Grey Smoked Dome NTSC/PAL","Spectra Analog V SE 30X zoom Pressurized Grey Smoked Dome NTSC/PAL",{"v":4324,"d":"4,324"},{"v":4324,"d":"4,324 "},"ZAM"]
[null,"Analog","SD530-PRE1","Spectra Analog V SE 30X zoom Pressurized Grey Clear Dome NTSC/PAL","Spectra Analog V SE 30X zoom Pressurized Grey Clear Dome NTSC/PAL",{"v":4324,"d":"4,324"},{"v":4324,"d":"4,324 "},"ZAM"]
[null,"Analog","SD530-PSGE1","Spectra Analog V SE 30X zoom Stainless Steel Env Pendant Clear Dome NTSC/PAL","Spectra Analog V SE 30X zoom Stainless Steel Environmental Pendant Clear Dome NTSC/PAL",{"v":4517,"d":"4,517"},{"v":4517,"d":"4,517 "},"ZAM"]
[null,"Analog","SPM5-W","Spectra Mini White Pendant Mount","Spectra Mini White Pendant Mount",{"v":32.13,"d":"32"},{"v":32.13,"d":"32 "},"ZAM"]
[null,"Analog","SWM5-W","Spectra Mini White Wall Mount","Spectra Mini White Wall Mount",{"v":87.3,"d":"87"},{"v":87.3,"d":"87 "},"ZAM"]
[null,"Fixed","BU-ADAPTER","Adapter plate for conduit box for IR bullet surface mounting","Adapter plate for conduit box for IR bullet surface mounting",{"v":39.74,"d":"40"},{"v":39.74,"d":"40 "},"ZAM"]
[null,"Fixed","IBE129-1I","Sarix Enhanced 2 Indoor IR Bullet camera 1.3MP 3-9mm PoE; 12VDC; 24VAC","Sarix Enhanced 2 Indoor IR Bullet camera 1.3MP 3-9mm PoE; 12VDC; 24VAC",{"v":720.9,"d":"721"},{"v":720.9,"d":"721 "},"ZAM"]
[null,"Fixed","IBE129-1R","Sarix Enhanced 2 Environmental IR Bullet camera 1.3MP 3-9mm PoE; 12VDC; 24VAC","Sarix Enhanced 2 Environmental IR Bullet camera 1.3MP 3-9mm PoE; 12VDC; 24VAC",{"v":765.36,"d":"765"},{"v":765.36,"d":"765 "},"ZAM"]
[null,"Fixed","IBE222-1I","Sarix Enhanced 2 Indoor IR Bullet camera 2MP 9-22mm PoE; 12VDC; 24VAC","Sarix Enhanced 2 Indoor IR Bullet camera 2MP 9-22mm PoE; 12VDC; 24VAC",{"v":846.72,"d":"847"},{"v":846.72,"d":"847 "},"ZAM"]
[null,"Fixed","IBE229-1I","Sarix Enhanced 2 Indoor IR Bullet camera 2MP 3-9mm PoE; 12VDC; 24VAC","Sarix Enhanced 2 Indoor IR Bullet camera 2MP 3-9mm PoE; 12VDC; 24VAC",{"v":765.36,"d":"765"},{"v":765.36,"d":"765 "},"ZAM"]
[null,"Fixed","IBE229-1R","Sarix Enhanced 2 Environmental IR Bullet camera 2MP 3-9mm PoE; 12VDC; 24VAC","Sarix Enhanced 2 Environmental IR Bullet camera 2MP 3-9mm PoE; 12VDC; 24VAC",{"v":846.72,"d":"847"},{"v":846.72,"d":"847 "},"ZAM"]
[null,"Fixed","IBE238-1ER","Sarix Enhanced 3 Outoor Bullet 2MP 2.8-8mm Lens IR True WDR Advanced Analytics","Sarix Enhanced 3 Outoor Bullet 2MP 2.8-8mm Lens IR True WDR Advanced Analytics",{"v":866.59,"d":"867"},{"v":866.59,"d":"867 "},"ZAM"]
[null,"Fixed","IBE322-1I","Sarix Enhanced 2 Indoor IR Bullet camera 3MP 9-22mm PoE; 12VDC; 24VAC","Sarix Enhanced 2 Indoor IR Bullet camera 3MP 9-22mm PoE; 12VDC; 24VAC",{"v":940.38,"d":"940"},{"v":940.38,"d":"940 "},"ZAM"]
[null,"Fixed","IBE332-1ER","Sarix Enhanced 3 Outoor Bullet 3MP 8-20mm Lens IR True WDR Advanced Analytics","Sarix Enhanced 3 Outoor Bullet 3MP 8-20mm Lens IR True WDR Advanced Analytics",{"v":1094,"d":"1,094"},{"$f":"F1160-(F1160*G$6)","v":{"v":1094,"d":"1,094 "}},"ZAM"]
[null,"Fixed","IBE338-1ER","Sarix Enhanced 3 Outoor Bullet 3MP 2.8-8mm Lens IR True WDR Advanced Analytics","Sarix Enhanced 3 Outoor Bullet 3MP 2.8-8mm Lens IR True WDR Advanced Analytics",995,{"v":995,"d":"995 "},"ZAM"]
[null,"Fixed","IBE539-1ER","Sarix Enhanced 3 Outoor Bullet 5MP 4-9mm Lens IR True WDR Advanced Analytics","Sarix Enhanced 3 Outoor Bullet 5MP 4-9mm Lens IR True WDR Advanced Analytics",{"v":1058,"d":"1,058"},{"v":1058,"d":"1,058 "},"ZAM"]
[null,"Fixed","IBE832-1ER","Sarix Enhanced 3 Outoor Bullet 4K 8MP 9-20mm Lens IR True WDR Advanced Analytics","Sarix Enhanced 3 Outoor Bullet 4K 8MP 9-20mm Lens IR True WDR Advanced Analytics",{"v":1341,"d":"1,341"},{"v":1341,"d":"1,341 "},"ZAM"]
[null,"Fixed","IBE839-1ER","Sarix Enhanced 3 Outoor Bullet 4K 8MP 4-9mm Lens IR True WDR Advanced Analytics","Sarix Enhanced 3 Outoor Bullet 4K 8MP 4-9mm Lens IR True WDR Advanced Analytics",{"v":1176,"d":"1,176"},{"v":1176,"d":"1,176 "},"ZAM"]
[null,"Fixed","IBEPLMT-E","Pole Mount for Sarix Enhanced 2 Environmental Bullet camera","Pole Mount for Sarix Enhanced 2 Environmental Bullet camera",{"v":86.09,"d":"86"},{"v":86.09,"d":"86 "},"ZAM"]
[null,"Fixed","IBEWLMT-E","Wall Mount for Sarix Enhanced 2 Environmental Bullet camera","Wall Mount for Sarix Enhanced 2 Environmental Bullet camera",{"v":86.09,"d":"86"},{"v":86.09,"d":"86 "},"ZAM"]
[null,"Fixed","IBEWLMT-I","Wall Mount for Sarix Enhanced 2 Indoor Bullet camera","Wall Mount for Sarix Enhanced 2 Indoor Bullet camera",{"v":86.09,"d":"86"},{"v":86.09,"d":"86 "},"ZAM"]
[null,"Fixed","IBP124-1R","Sarix Professional 2 Environmental IR Bullet 1MP 12-40mm lens","Sarix Professional 2 Environmental IR Bullet 1MP 12-40mm lens",{"v":560.07,"d":"560"},{"v":560.07,"d":"560 "},"ZAM"]
[null,"Fixed","IBP131-1ER","Sarix Professional 3 Environmental IR Bullet 1MP 2.8-12mm nominal lens","Sarix Professional 3 Environmental IR Bullet 1MP 2.8-12mm nominal lens",{"v":425.73,"d":"426"},{"v":425.73,"d":"426 "},"ZAM"]
[null,"Fixed","IBP221-1I","Sarix Professional 2 Indoor IR Bullet 2MP 3-10mm lens","Sarix Professional 2 Indoor IR Bullet 2MP 3-10mm lens",{"v":534.53,"d":"535"},{"v":534.53,"d":"535 "},"ZAM"]
[null,"Fixed","IBP222-1R","Sarix Professional 2 Environmental IR Bullet 2MP 9-22mm lens","Sarix Professional 2 Environmental IR Bullet 2MP 9-22mm lens",{"v":643.32,"d":"643"},{"v":643.32,"d":"643 "},"ZAM"]
[null,"Fixed","IBP231-1ER","Sarix Professional 3 Environmental IR Bullet 2MP 2.8-12mm nominal lens","Sarix Professional 3 Environmental IR Bullet 2MP 2.8-12mm nominal lens",{"v":458.84,"d":"459"},{"v":458.84,"d":"459 "},"ZAM"]
[null,"Fixed","IBP232-1ER","Sarix Professional 3 Environmental IR Bullet 2MP 9-22mm lens","Sarix Professional 3 Environmental IR Bullet 2MP 9-22mm lens",{"v":545.87,"d":"546"},{"v":545.87,"d":"546 "},"ZAM"]
[null,"Fixed","IBP235-1ER","Sarix Professional 3 Environmental IR Bullet 2MP 5-50mm lens","Sarix Professional 3 Environmental IR Bullet 2MP 5-50mm lens",{"v":572.37,"d":"572"},{"v":572.37,"d":"572 "},"ZAM"]
[null,"Fixed","IBP2BBAP-EI","In-ceiling Mount for Sarix Professional 2 Environmental Bullet camera","In-ceiling Mount for Sarix Professional 2 Environmental Bullet camera",{"v":51.09,"d":"51"},{"v":51.09,"d":"51 "},"ZAM"]
[null,"Fixed","IBP3-PLMT","Pole Mount for Sarix Enhanced 3 and Sarix Professional 3 Bullet cameras","Pole Mount for Sarix Enhanced 3 and Sarix Professional 3 Bullet cameras",{"v":65.28,"d":"65"},{"v":65.28,"d":"65 "},"ZAM"]
[null,"Fixed","IBP321-1I","Sarix Professional 2 Indoor IR Bullet 3MP 3-10mm lens","Sarix Professional 2 Indoor IR Bullet 3MP 3-10mm lens",{"v":627.24,"d":"627"},{"v":627.24,"d":"627 "},"ZAM"]
[null,"Fixed","IBP322-1I","Sarix Professional 2 Indoor IR Bullet 3MP 9-22mm lens","Sarix Professional 2 Indoor IR Bullet 3MP 9-22mm lens",{"v":658.46,"d":"658"},{"v":658.46,"d":"658 "},"ZAM"]
[null,"Fixed","IBP322-1R","Sarix Professional 2 Environmental IR Bullet 3MP 9-22mm lens","Sarix Professional 2 Environmental IR Bullet 3MP 9-22mm lens",{"v":736.03,"d":"736"},{"v":736.03,"d":"736 "},"ZAM"]
[null,"Fixed","IBP331-1ER","Sarix Professional 3 Environmental IR Bullet 3MP 2.8-12mm nominal lens","Sarix Professional 3 Environmental IR Bullet 3MP 2.8-12mm nominal lens",{"v":545.87,"d":"546"},{"v":545.87,"d":"546 "},"ZAM"]
[null,"Fixed","IBP335-1ER","Sarix Professional 3 Environmental IR Bullet 3MP 5-50mm lens","Sarix Professional 3 Environmental IR Bullet 3MP 5-50mm lens",{"v":650.88,"d":"651"},{"v":650.88,"d":"651 "},"ZAM"]
[null,"Fixed","IBP3BBAP-EI","In-ceiling Mount for Sarix Pro 3 and Sarix Enh 3 Environmental Bullet cameras","In-ceiling Mount for Sarix Professional 3 and Sarix Ehanced 3 Environmental Bullet cameras",{"v":96.51,"d":"97"},{"v":96.51,"d":"97 "},"ZAM"]
[null,"Fixed","IBP3BBAP-ES","Surface Mount for Sarix Pro 3 and Sarix Enh 3 Environmental Bullet cameras","Surface Mount for Sarix Professional 3 and Sarix Ehanced 3 Environmental Bullet cameras",{"v":100.29,"d":"100"},{"v":100.29,"d":"100 "},"ZAM"]
[null,"Fixed","IBP531-1ER","Sarix Professional 3 Environmental IR Bullet 5MP 2.8-12mm nominal lens","Sarix Professional 3 Environmental IR Bullet 5MP 2.8-12mm nominal lens",{"v":664.14,"d":"664"},{"v":664.14,"d":"664 "},"ZAM"]
[null,"Fixed","IBP532-1ER","Sarix Professional 3 Environmental IR Bullet 5MP 9-22mm lens","Sarix Professional 3 Environmental IR Bullet 5MP 9-22mm lens",{"v":786.17,"d":"786"},{"v":786.17,"d":"786 "},"ZAM"]
[null,"Fixed","IBV-A4S","4S Adapter Plate for IBV Series Varifocal Lens Sarix Value Bullets","4S Adapter Plate for IBV Series Varifocal Lens Sarix Value Bullets",{"v":46.36,"d":"46"},{"v":46.36,"d":"46 "},"ZAM"]
[null,"Fixed","IBV229-1ER","Sarix Value 2 Megapixel Varifocal 3.4-9.4 mm Environmental IR Bullet IP Camera","Sarix Value 2 Megapixel Varifocal 3.4-9.4 mm Environmental IR Bullet IP Camera",{"v":280.04,"d":"280"},{"v":280.04,"d":"280 "},"ZAM"]
[null,"Fixed","IBV529-1ER","Sarix Value 5 Megapixel Varifocal 3.4-9.4 mm Environmental IR Bullet IP Camera","Sarix Value 5 Megapixel Varifocal 3.4-9.4 mm Environmental IR Bullet IP Camera",{"v":363.29,"d":"363"},{"v":363.29,"d":"363 "},"ZAM"]
[null,"Fixed","IFBV-JB","Junction Box for Sarix Value IFV Fixed Lens Turrets and IBV Bullets","Junction Box for IFV Series Sarix Value Environmental Fixed Lens Turrets and IBV Series Environmental Bullets",{"v":81.37,"d":"81"},{"v":81.37,"d":"81 "},"ZAM"]
[null,"Fixed","IFV222-1ERS","Sarix Value 2 Megapixel Fixed Focal 2.8 mm Environmental IR Turret IP Camera","Sarix Value 2 Megapixel Fixed Focal 2.8 mm Environmental IR Turret IP Camera",{"v":186.38,"d":"186"},{"v":186.38,"d":"186 "},"ZAM"]
[null,"Fixed","IFV523-1ERS","Sarix Value 5 Megapixel Fixed Focal 3.6 mm Environmental IR Turret IP Camera","Sarix Value 5 Megapixel Fixed Focal 3.6 mm Environmental IR Turret IP Camera",{"v":267.74,"d":"268"},{"v":267.74,"d":"268 "},"ZAM"]
[null,"Fixed","IJTFV-PA","Pendant Adapter Plate for Sarix Value IJV; ITV; IFV Series","Pendant Adapter Plate for IJV Fixed Focal Dome ITV Varifocal Turret IFV Fixed Focal Turret Sarix Value IP Cameras",{"v":38.79,"d":"39"},{"v":38.79,"d":"39 "},"ZAM"]
[null,"Fixed","IJTV-AP","Adapter Plate for IJV Fixed Focal Dome ITV Varifocal Turret Sarix Value","Adapter Plate for IJV Fixed Focal Dome ITV Varifocal Turret Sarix Value IP Cameras",{"v":28.39,"d":"28"},{"v":28.39,"d":"28 "},"ZAM"]
[null,"Fixed","IJV223-1ERS","Sarix Value 2Mp Fixed Focal 3.6mm Environmental IR Minidome Surface Mount","Sarix Value 2 Megapixel Fixed Focal 3.6mm Environmental IR Minidome Surface Mount IP Camera",{"v":208.14,"d":"208"},{"v":208.14,"d":"208 "},"ZAM"]
[null,"Fixed","IJV522-1ERS","Sarix Value 5Mp Fixed Focal 2.8mm Environmental IR Minidome Surface Mount","Sarix Value 5 Megapixel Fixed Focal 2.8mm Environmental IR Minidome Surface Mount IP Camera",{"v":291.38,"d":"291"},{"v":291.38,"d":"291 "},"ZAM"]
[null,"Fixed","IME11-BASE","Base Module Sarix Enhanced Range Indoor 1.2 Megapixel IP Camera Mini Dome Lens 3","Base Module Sarix Enhanced Range Indoor 1.2 Megapixel IP Camera Mini Dome Lens 3 TO 9 MM with SureVision 2 Wide Dynamic Range and Low Light",{"v":934.7,"d":"935"},{"v":934.7,"d":"935 "},"ZAM"]
[null,"Fixed","IME222-1ES","SarixEnh2 Environmental dome camera 2MP 9-22mm Clear Surface mount","Sarix Enhanced 2 Environmental dome camera 2MP 9-22mm lens Clear bubble Surface mount",{"v":906.32,"d":"906"},{"v":906.32,"d":"906 "},"ZAM"]
[null,"Fixed","IME222-1IS","Sarix Enhanced 2 Indoor dome camera 2MP 9-22mm lens Clear bubble Surface mount","Sarix Enhanced 2 Indoor dome camera 2MP 9-22mm lens Clear bubble Surface mount",{"v":871.31,"d":"871"},{"v":871.31,"d":"871 "},"ZAM"]
[null,"Fixed","IME222-1RS","SarixEnh2 Environmental IR dome camera 2MP 9-22mm Clear Surface mount","Sarix Enhanced 2 Environmental IR dome camera 2MP 9-22mm lens Clear bubble Surface mount",999,{"v":999,"d":"999 "},"ZAM"]
[null,"Fixed","IME238-1ERS","SarixEnh3 Outdoor Dome 2MP 2.8-8mm lens IR Clear SurfaceMt True WDR Adv Ana","Sarix Enhanced Outdoor Dome 2MP 2.8-8mm lens IR Clear Bubble Surface Mount True WDR Advanced Analytics",{"v":862.81,"d":"863"},{"v":862.81,"d":"863 "},"ZAM"]
[null,"Fixed","IME238-1IRS","SarixEnh3 Indoor Dome 2MP 2.8-8mm lens IR Clear SurfaceMt True WDR Adv Ana","Sarix Enhanced Indoor Dome 2MP 2.8-8mm lens IR Clear Bubble Surface Mount True WDR Advanced Analytics",{"v":758.74,"d":"759"},{"v":758.74,"d":"759 "},"ZAM"]
[null,"Fixed","IME332-1ERS","SarixEnh3 Outdoor Dome 3MP 8-20mm lens IR Clear SurfaceMt True WDR Adv Ana","Sarix Enhanced Outdoor Dome 3MP 8-20mm lens IR Clear Bubble Surface Mount True WDR Advanced Analytics",{"v":1079,"d":"1,079"},{"v":1079,"d":"1,079 "},"ZAM"]
[null,"Fixed","IME332-1IRS","SarixEnh3 Indoor Dome 3MP 8-20mm lens IR Clear SurfaceMt True WDR Adv Ana","Sarix Enhanced Indoor Dome 3MP 8-20mm lens IR Clear Bubble Surface Mount True WDR Advanced Analytics",949,{"v":949,"d":"949 "},"ZAM"]
[null,"Fixed","IME338-1ERS","SarixEnh3 Outdoor Dome 3MP 2.8-8mm lens IR Clear SurfaceMt True WDR Adv Ana","Sarix Enhanced Outdoor Dome 3MP 2.8-8mm lens IR Clear Bubble Surface Mount True WDR Advanced Analytics",993,{"v":993,"d":"993 "},"ZAM"]
[null,"Fixed","IME338-1IRS","SarixEnh3 Indoor Dome 3MP 2.8-8mm lens IR Clear SurfaceMt True WDR Adv Ana","Sarix Enhanced Indoor Dome 3MP 2.8-8mm lens IR Clear Bubble Surface Mount True WDR Advanced Analytics",{"v":862.81,"d":"863"},{"v":862.81,"d":"863 "},"ZAM"]
[null,"Fixed","IME3EBAP-E","Adaptor plate for Electrical box for Sarix Enhanced 3 dome cameras","Adaptor plate for Electrical box for Sarix Enhanced 3 dome cameras",{"v":39.74,"d":"40"},{"v":39.74,"d":"40 "},"ZAM"]
[null,"Fixed","IME3ICM-E","Inceiling Mount For Sarix Enhanced 3 Dome Cameras Environmental And Indoor","Inceiling Mount For Sarix Enhanced 3 Dome Cameras Environmental And Indoor",{"v":89.88,"d":"90"},{"v":89.88,"d":"90 "},"ZAM"]
[null,"Fixed","IME3LD-0","Smoked Bubble Lower Dome For Sarix Enhanced 3 Indoor Dome Cameras Indoor","Smoked Bubble Lower Dome For Sarix Enhanced 3 Indoor Dome Cameras Indoor",{"v":94.61,"d":"95"},{"v":94.61,"d":"95 "},"ZAM"]
[null,"Fixed","IME3LD-0E","Smoked Bubble Lower Dome For Sarix Enhanced 3 Environmental Dome Cameras","Smoked Bubble Lower Dome For Sarix Enhanced 3 Environmental Dome Cameras",{"v":94.61,"d":"95"},{"v":94.61,"d":"95 "},"ZAM"]
[null,"Fixed","IME3LD-1","Clear Bubble Lower Dome For Sarix Enhanced 3 Indoor Dome Cameras Indoor","Clear Bubble Lower Dome For Sarix Enhanced 3 Indoor Dome Cameras Indoor",{"v":89.88,"d":"90"},{"v":89.88,"d":"90 "},"ZAM"]
[null,"Fixed","IME3LD-1E","Clear Bubble Lower Dome For Sarix Enhanced 3 Environmental Dome Cameras","Clear Bubble Lower Dome For Sarix Enhanced 3 Environmental Dome Cameras",{"v":89.88,"d":"90"},{"v":89.88,"d":"90 "},"ZAM"]
[null,"Fixed","IME3PM-E","Pendant Mount For Sarix Enhanced 3 Dome Cameras Environmental And Indoor","Pendant Mount For Sarix Enhanced 3 Dome Cameras Environmental And Indoor",{"v":89.88,"d":"90"},{"v":89.88,"d":"90 "},"ZAM"]
[null,"Fixed","IME539-1ERS","SarixEnh3 Outdoor Dome 5MP 4-9mm lens IR Clear SurfaceMt True WDR Adv Ana","Sarix Enhanced Outdoor Dome 5MP 4-9mm lens IR Clear Bubble Surface Mount True WDR Advanced Analytics",{"v":1070,"d":"1,070"},{"v":1070,"d":"1,070 "},"ZAM"]
[null,"Fixed","IME539-1IRS","SarixEnh3 Indoor Dome 5MP 4-9mm lens IR Clear SurfaceMt True WDR Adv Ana","Sarix Enhanced Indoor Dome 5MP 4-9mm lens IR Clear Bubble Surface Mount True WDR Advanced Analytics",949,{"v":949,"d":"949 "},"ZAM"]
[null,"Fixed","IME832-1ERS","SarixEnh3 Outdoor Dome 4K 8MP 9-20mm lens IR Clear SurfaceMt True WDR Adv Ana","Sarix Enhanced Outdoor Dome 4K 8MP 9-20mm lens IR Clear Bubble Surface Mount True WDR Advanced Analytics",{"v":1295,"d":"1,295"},{"v":1295,"d":"1,295 "},"ZAM"]
[null,"Fixed","IME832-1IRS","SarixEnh3 Indoor Dome 4K 8MP 9-20mm lens IR Clear SurfaceMt True WDR Adv Ana","Sarix Enhanced Indoor Dome 4K 8MP 9-20mm lens IR Clear Bubble Surface Mount True WDR Advanced Analytics",{"v":1174,"d":"1,174"},{"v":1174,"d":"1,174 "},"ZAM"]
[null,"Fixed","IME839-1ERS","SarixEnh3 Outdoor Dome 4K 8MP 4-9mm lens IR Clear SurfaceMt True WDR Adv Ana","Sarix Enhanced Outdoor Dome 4K 8MP 4-9mm lens IR Clear Bubble Surface Mount True WDR Advanced Analytics",{"v":1183,"d":"1,183"},{"v":1183,"d":"1,183 "},"ZAM"]
[null,"Fixed","IME839-1IRS","SarixEnh3 Indoor Dome 4K 8MP 4-9mm lens IR Clear SurfaceMt True WDR Adv Ana","Sarix Enhanced Indoor Dome 4K 8MP 4-9mm lens IR Clear Bubble Surface Mount True WDR Advanced Analytics",{"v":1062,"d":"1,062"},{"v":1062,"d":"1,062 "},"ZAM"]
[null,"Fixed","IMEBB-S","Backbox Surface Mount White for IP Sarix Enhanced Range Indoor Mini Dome","Backbox Surface Mount White for IP Sarix Enhanced Range Indoor Mini Dome",{"v":20.82,"d":"21"},{"v":20.82,"d":"21 "},"ZAM"]
[null,"Fixed","IMEBB-VI","Backbox InCeiling Mount for IP Sarix Enh Vandal and Environmental Mini Dome","Backbox InCeiling Mount for IP Sarix Enhanced Range Vandal and Environmental Mini Dome",{"v":65.28,"d":"65"},{"v":65.28,"d":"65 "},"ZAM"]
[null,"Fixed","IMEBB-VP","Backbox Pendant Mount for IP Sarix Enh Vandal and Environmental Mini Dome","Backbox Pendant Mount for IP Sarix Enhanced Range Vandal and Environmental Mini Dome",{"v":75.69,"d":"76"},{"v":75.69,"d":"76 "},"ZAM"]
[null,"Fixed","IMEBB-VS","Backbox Surfacet Mount for IP Sarix Enh Vandal and Environmental Mini Dome","Backbox Surfacet Mount for IP Sarix Enhanced Range Vandal and Environmental Mini Dome",{"v":65.28,"d":"65"},{"v":65.28,"d":"65 "},"ZAM"]
[null,"Fixed","IMEICM-E","In-ceiling Mount for Sarix Enhanced 2 Environmental Dome cameras","In-ceiling Mount for Sarix Enhanced 2 Environmental Dome cameras",{"v":93.67,"d":"94"},{"v":93.67,"d":"94 "},"ZAM"]
[null,"Fixed","IMEICM-I","In-ceiling Mount for Sarix Enhanced 2 Indoor Dome cameras","In-ceiling Mount for Sarix Enhanced 2 Indoor Dome cameras",{"v":93.67,"d":"94"},{"$f":"F1224-(F1224*G$6)","v":{"v":93.67,"d":"94 "}},"ZAM"]
[null,"Fixed","IMELBB-I","Backbox InCeiling Mount White for IP Sarix Enhanced Range Indoor Mini Dome","Backbox InCeiling Mount White for IP Sarix Enhanced Range Indoor Mini Dome",{"v":44.47,"d":"44"},{"v":44.47,"d":"44 "},"ZAM"]
[null,"Fixed","IMELD1-1EI","Clear Dome for IP Sarix Enh Range Environmental Inceiling mounted Mini Dome","Clear Lower Dome for IP Sarix Enhanced Range Environmental Inceiling mounted Mini Dome",{"v":75.69,"d":"76"},{"v":75.69,"d":"76 "},"ZAM"]
[null,"Fixed","IMELD1-1ES","Clear Dome for IP Sarix Enh Range Environmental Surface and Pendant Mini Dome","Clear Lower Dome for IP Sarix Enhanced Range Environmental Surface and Pendant mounted Mini Dome",{"v":154.21,"d":"154"},{"v":154.21,"d":"154 "},"ZAM"]
[null,"Fixed","IMELD1-1S","Clear Dome for IP Sarix Enh Range Indoorl White Surface mounted Mini Dome","Clear Lower Dome for IP Sarix Enhanced Range Indoorl White Surface mounted Mini Dome",{"v":65.28,"d":"65"},{"v":65.28,"d":"65 "},"ZAM"]
[null,"Fixed","IMELD1-1VS","Clear Dome for IP Sarix Enh Range Vandal Surface and Pendant mounted Mini Dome","CLear Lower Dome for IP Sarix Enhanced Range Vandal Surface and Pendant mounted Mini Dome",{"v":75.69,"d":"76"},{"v":75.69,"d":"76 "},"ZAM"]
[null,"Fixed","IMELD2-0E","Smoked Lower dome for Sarix Enhanced 2 Environmental Dome cameras","Smoked Lower dome for Sarix Enhanced 2 Environmental Dome cameras",{"v":93.67,"d":"94"},{"v":93.67,"d":"94 "},"ZAM"]
[null,"Fixed","IMELD2-0I","Smoked Lower dome for Sarix Enhanced 2 Indoor Dome cameras","Smoked Lower dome for Sarix Enhanced 2 Indoor Dome cameras",{"v":70.01,"d":"70"},{"v":70.01,"d":"70 "},"ZAM"]
[null,"Fixed","IMEPM-E","Pendant Mount for Sarix Enhanced 2 Environmental Dome cameras","Pendant Mount for Sarix Enhanced 2 Environmental Dome cameras",{"v":93.67,"d":"94"},{"v":93.67,"d":"94 "},"ZAM"]
[null,"Fixed","IMEPM-I","Pendant Mount for Sarix Enhanced 2 Indoor Dome cameras","Pendant Mount for Sarix Enhanced 2 Indoor Dome cameras",{"v":93.67,"d":"94"},{"v":93.67,"d":"94 "},"ZAM"]
[null,"Fixed","IMEPMB-I","Wall Mount for Sarix Enhanced 2 Indoor Dome cameras","Wall Mount for Sarix Enhanced 2 Indoor Dome cameras",{"v":54.87,"d":"55"},{"v":54.87,"d":"55 "},"ZAM"]
[null,"Fixed","IMJTV-JB","Junction Box for Sarix Value IMV; IJV; ITV Series","Junction Box for Sarix Value Environmental IMV Series Varifocal Domes And IJV Series Fixed Focal And ITV Series Varifocal Turrets",{"v":88.93,"d":"89"},{"v":88.93,"d":"89 "},"ZAM"]
[null,"Fixed","IMP121A-1IS","Sarix Pro 2 Indoor Dome Camera 1MP 3-10mm lens clear bubble surface mount","Sarix Professional 2 Indoor Dome Camera 1MP 3-10mm lens clear bubble surface mount",{"v":415.32,"d":"415"},{"v":415.32,"d":"415 "},"ZAM"]
[null,"Fixed","IMP131-1ERS","Sarix Pro 3 Environmental IR Dome Camera 1MP 2.8-12mm nominal clear surface mnt","Sarix Professional 3 Environmental IR Dome Camera 1MP 2.8-12mm nominal clear bubble surface mount",421,{"v":421,"d":"421 "},"ZAM"]
[null,"Fixed","IMP131-1IRS","Sarix Pro 3 Indoor IR Dome Camera 1MP 2.8-12mm nominal clear surface mount","Sarix Professional 3 Indoor IR Dome Camera 1MP2.8-12mm nominal lens clear bubble surface mount",{"v":362.34,"d":"362"},{"v":362.34,"d":"362 "},"ZAM"]
[null,"Fixed","IMP231-1ERS","Sarix Pro 3 Environmental IR Dome Cam 2MP 2.8-12mm nominal clear surface mount","Sarix Professional 3 Environmental IR Dome Camera 2MP 2.8-12mm nominal lens clear bubble surface mount",{"v":448.43,"d":"448"},{"v":448.43,"d":"448 "},"ZAM"]
[null,"Fixed","IMP231-1ES","Sarix Pro 3 Environmental Dome Camera 2MP 2.8-12mm nominal clear surface mount","Sarix Professional 3 Environmental Dome Camera 2MP  2.8-12mm nominal lens clear bubble surface mount",{"v":413.43,"d":"413"},{"v":413.43,"d":"413 "},"ZAM"]
[null,"Fixed","IMP231-1IRS","Sarix Pro 3 Indoor IR Dome Camera 2MP 2.8-12mm nominal clear surface mount","Sarix Professional 3 Indoor IR Dome Camera 2MP 2.8-12mm nominal lens clear bubble surface mount",{"v":406.81,"d":"407"},{"v":406.81,"d":"407 "},"ZAM"]
[null,"Fixed","IMP231-1IS","Sarix Pro 3 Indoor Dome Camera 2MP 2.8-12mm nominal clear surface mount","Sarix Professional 3 Indoor Dome Camera 2MP 2.8-12mm nominal lens clear bubble surface mount",{"v":376.53,"d":"377"},{"v":376.53,"d":"377 "},"ZAM"]
[null,"Fixed","IMP331-1ERS","Sarix Pro 3 Environmental IR Dome Cam 3MP 2.8-12mm nominal clear surface mount","Sarix Professional 3 Environmental IR Dome Camera 3MP 2.8-12mm nominal lens clear bubble surface mount",{"v":520.33,"d":"520"},{"v":520.33,"d":"520 "},"ZAM"]
[null,"Fixed","IMP331-1ES","Sarix Pro 3 Environmental Dome Camera 3MP 2.8-12mm nominal clear surface mount","Sarix Professional 3 Environmental Dome Camera 3MP 2.8-12mm nominal lens clear bubble surface mount",{"v":484.39,"d":"484"},{"v":484.39,"d":"484 "},"ZAM"]
[null,"Fixed","IMP331-1IRS","Sarix Pro 3 Indoor IR Dome Camera 3MP 2.8-12mm nominal clear surface mount","Sarix Professional 3 Indoor IR Dome Camera 3MP 2.8-12mm nominal lens clear bubble surface mount",{"v":478.71,"d":"479"},{"v":478.71,"d":"479 "},"ZAM"]
[null,"Fixed","IMP331-1IS","Sarix Pro 3 Indoor Dome Camera 3MP 2.8-12mm nominal clear  surface mount","Sarix Professional 3 Indoor Dome Camera 3MP 2.8-12mm nominal lens clear bubble surface mount",{"v":448.43,"d":"448"},{"v":448.43,"d":"448 "},"ZAM"]
[null,"Fixed","IMP3EBAP","Adapter Plate for Electrical Box for Sarix Professional 3 Dome camera","Adapter Plate for Electrical Box for Sarix Professional 3 Dome camera",{"v":17.98,"d":"18"},{"v":17.98,"d":"18 "},"ZAM"]
[null,"Fixed","IMP3ICM-1E","In-ceiling mount for Sarix Professional 3 Dome camera","In-ceiling mount for Sarix Professional 3 Dome camera",{"v":69.07,"d":"69"},{"v":69.07,"d":"69 "},"ZAM"]
[null,"Fixed","IMP3LD-0E","Smoked lower dome for Sarix Professional 3 Environmental Dome camera","Smoked lower dome for Sarix Professional 3 Environmental Dome camera",{"v":62.45,"d":"62"},{"v":62.45,"d":"62 "},"ZAM"]
[null,"Fixed","IMP3LD-0I","Smoked lower dome for Sarix Professional 3 Indoor Dome camera","Smoked lower dome for Sarix Professional 3 Indoor Dome camera",{"v":57.71,"d":"58"},{"v":57.71,"d":"58 "},"ZAM"]
[null,"Fixed","IMP3LD-1E","Clear lower dome for Sarix Professional 3 Environmental Dome camera","Clear lower dome for Sarix Professional 3 Environmental Dome camera",{"v":62.45,"d":"62"},{"v":62.45,"d":"62 "},"ZAM"]
[null,"Fixed","IMP3LD-1I","Clear lower dome for Sarix Professional 3 Indoor Dome camera","Clear lower dome for Sarix Professional 3 Indoor Dome camera",{"v":73.79,"d":"74"},{"v":73.79,"d":"74 "},"ZAM"]
[null,"Fixed","IMP3PM-1E","Pendant mount for Sarix Professional 3 Dome camera","Pendant mount for Sarix Professional 3 Dome camera",{"v":92.71,"d":"93"},{"v":92.71,"d":"93 "},"ZAM"]
[null,"Fixed","IMP3PMB-1I","Wall mount for Sarix Professional 3 Dome camera","Wall mount for Sarix Professional 3 Dome camera",{"v":42.58,"d":"43"},{"v":42.58,"d":"43 "},"ZAM"]
[null,"Fixed","IMP531-1ERS","Sarix Pro 3 Environmental IR Dome Cam 5MP 2.8-12mm nominal clear surface mount","Sarix Professional 3 Environmental IR Dome Camera 5MP 2.8-12mm nominal lens clear bubble surface mount",{"v":616.83,"d":"617"},{"v":616.83,"d":"617 "},"ZAM"]
[null,"Fixed","IMP531-1ES","Sarix Pro 3 Environmental Dome Camera 5MP 2.8-12mm nominal clear surface mount","Sarix Professional 3 Environmental Dome Camera 5MP 2.8-12mm nominal lens clear bubble surface mount",{"v":556.28,"d":"556"},{"v":556.28,"d":"556 "},"ZAM"]
[null,"Fixed","IMP531-1IRS","Sarix Pro 3 Indoor IR Dome Camera 5MP 2.8-12mm nominal clear surface mount","Sarix Professional 3 Indoor IR Dome Camera 5MP 2.8-12mm nominallens clear bubble surface mount",{"v":591.29,"d":"591"},{"v":591.29,"d":"591 "},"ZAM"]
[null,"Fixed","IMP531-1IS","Sarix Pro 3 Indoor Dome Camera 5MP 2.8-12mm nominal clear surface mount","Sarix Professional 3 Indoor Dome Camera 5MP 2.8-12mm nominal lens clear bubble surface mount",{"v":521.28,"d":"521"},{"v":521.28,"d":"521 "},"ZAM"]
[null,"Fixed","IMPICM-1ER","In-ceiling mount for Sarix Professional 2 Environmental Dome cameras","In-ceiling mount for Sarix Professional 2 Environmental Dome cameras",{"v":62.45,"d":"62"},{"v":62.45,"d":"62 "},"ZAM"]
[null,"Fixed","IMPLD2-0I","Smoked lower dome for Sarix Professional 2 Indoor Dome camera","Smoked lower dome for Sarix Professional 2 Indoor Dome camera",{"v":48.25,"d":"48"},{"v":48.25,"d":"48 "},"ZAM"]
[null,"Fixed","IMV-AP","Adapter Plate for IMV Series Varifocal Lens Sarix Value Minidomes","Adapter Plate for IMV Series Varifocal Lens Sarix Value Minidomes",{"v":26.49,"d":"26"},{"v":26.49,"d":"26 "},"ZAM"]
[null,"Fixed","IMV-PA","Pendant Mount Adapter for IMV Series Varifocal Lens Sarix Value Minidomes","Pendant Mount Adapter for IMV Series Varifocal Lens Sarix Value Minidomes",{"v":34.06,"d":"34"},{"v":34.06,"d":"34 "},"ZAM"]
[null,"Fixed","IMV-WMJB","Junction Box for SRXV-WMP Sarix Value Wall Mount","Junction Box for SRXV-WMP Sarix Value Wall Mount",{"v":52.99,"d":"53"},{"v":52.99,"d":"53 "},"ZAM"]
[null,"Fixed","IMV229-1ERS","Sarix Value 2Mp Varifocal 3.4-9.4 mm Environmental IR Minidome Surface Mount","Sarix Value 2 Megapixel Varifocal 3.4-9.4 mm Environmental IR Minidome Surface Mount IP Camera",{"v":280.04,"d":"280"},{"v":280.04,"d":"280 "},"ZAM"]
[null,"Fixed","IMV529-1ERS","Sarix Value 5Mp Varifocal 3.4-9.4 mm Environmental IR Minidome Surface Mount","Sarix Value 5 Megapixel Varifocal 3.4-9.4 mm Environmental IR Minidome Surface Mount IP Camera",{"v":363.29,"d":"363"},{"v":363.29,"d":"363 "},"ZAM"]
[null,"Fixed","ITV529-1ERS","Sarix Value 5 Megapixel Varifocal 3.4-9.4 mm Environmental IR Turret IP Camera","Sarix Value 5 Megapixel Varifocal 3.4-9.4 mm Environmental IR Turret IP Camera",{"v":350.99,"d":"351"},{"v":350.99,"d":"351 "},"ZAM"]
[null,"Fixed","IWP133-1ERS","Sarix Professional 3 Environmental Wedge camera 1MP 2.8mm lens","Sarix Professional 3 Environmental Wedge camera 1MP 2.8mm lens",{"v":306.52,"d":"307"},{"v":306.52,"d":"307 "},"ZAM"]
[null,"Fixed","IWP232-1ERS","Sarix Professional 3 Environmental Wedge camera 2MP 2.4mm lens","Sarix Professional 3 Environmental Wedge camera 2MP 2.4mm lens",{"v":374.64,"d":"375"},{"v":374.64,"d":"375 "},"ZAM"]
[null,"Fixed","IWP233-1ERS","Sarix Professional 3 Environmental Wedge camera 2MP 2.8mm lens","Sarix Professional 3 Environmental Wedge camera 2MP 2.8mm lens",{"v":344.37,"d":"344"},{"v":344.37,"d":"344 "},"ZAM"]
[null,"Fixed","IWP234-1ERS","Sarix Professional 3 Environmental Wedge camera 2MP 4mm lens","Sarix Professional 3 Environmental Wedge camera 2MP 4mm lens",{"v":344.37,"d":"344"},{"v":344.37,"d":"344 "},"ZAM"]
[null,"Fixed","IWP236-1ERS","Sarix Professional 3 Environmental Wedge camera 2MP 6mm lens","Sarix Professional 3 Environmental Wedge camera 2MP 6mm lens",{"v":344.37,"d":"344"},{"v":344.37,"d":"344 "},"ZAM"]
[null,"Fixed","IWP333-1ERS","Sarix Professional 3 Environmental Wedge camera 3MP 2.8mm lens","Sarix Professional 3 Environmental Wedge camera 3MP 2.8mm lens",{"v":404.91,"d":"405"},{"v":404.91,"d":"405 "},"ZAM"]
[null,"Fixed","IWP532-1ERS","Sarix Professional 3 Environmental Wedge camera 5MP 2.4mm lens","Sarix Professional 3 Environmental Wedge camera 5MP 2.4mm lens",{"v":499.52,"d":"500"},{"v":499.52,"d":"500 "},"ZAM"]
[null,"Fixed","IWP533-1ERS","Sarix Professional 3 Environmental Wedge camera 5MP 2.8mm lens","Sarix Professional 3 Environmental Wedge camera 5MP 2.8mm lens",{"v":469.25,"d":"469"},{"v":469.25,"d":"469 "},"ZAM"]
[null,"Fixed","IWPWPC","Waterproof RJ45 connector cover Sarix IWP","Waterproof RJ45 connector cover Sarix IWP",{"v":8.52,"d":"9"},{"v":8.52,"d":"9 "},"ZAM"]
[null,"Fixed","IXE23","Sarix Enhanced 3 Box IP Camera 2MP accepts I-CS lens True WDR Advanced Analytics","Sarix Enhanced 3 Box IP Camera 2MP accepts I-CS lens True WDR Advanced Analytics",{"v":705.76,"d":"706"},{"v":705.76,"d":"706 "},"ZAM"]
[null,"Fixed","IXE33","Sarix Enhanced 3 Box IP Camera 3MP accepts I-CS lens True WDR Advanced Analytics","Sarix Enhanced 3 Box IP Camera 3MP accepts I-CS lens True WDR Advanced Analytics",{"v":818.34,"d":"818"},{"v":818.34,"d":"818 "},"ZAM"]
[null,"Fixed","IXE53","Sarix Enhanced 3 Box IP Camera 5MP accepts I-CS lens True WDR Advanced Analytics","Sarix Enhanced 3 Box IP Camera 5MP accepts I-CS lens True WDR Advanced Analytics",947,{"v":947,"d":"947 "},"ZAM"]
[null,"Fixed","IXE83","SarixEnh3 Box IP Camera 4K 8MP accepts I-CS lens True WDR Adv Ana","Sarix Enhanced 3 Box IP Camera 4K 8MP accepts I-CS lens True WDR Advanced Analytics",{"v":1041,"d":"1,041"},{"v":1041,"d":"1,041 "},"ZAM"]
[null,"Fixed","IXP13","Sarix Professional 3 Box Camera; 1MP","Sarix Professional 3 Box Camera; 1MP",{"v":417.21,"d":"417"},{"v":417.21,"d":"417 "},"ZAM"]
[null,"Fixed","IXP23","Sarix Professional 3 Box Camera; 2MP","Sarix Professional 3 Box Camera; 2MP",{"v":438.97,"d":"439"},{"v":438.97,"d":"439 "},"ZAM"]
[null,"Fixed","IXP33","Sarix Professional 3 Box Camera; 3MP","Sarix Professional 3 Box Camera; 3MP",{"v":508.03,"d":"508"},{"v":508.03,"d":"508 "},"ZAM"]
[null,"Fixed","IXP53","Sarix Professional 3 Box Camera; 5MP","Sarix Professional 3 Box Camera; 5MP",{"v":607.37,"d":"607"},{"v":607.37,"d":"607 "},"ZAM"]
[null,"Fixed","LDIMVE-0","Lower Dome Smoked For Sarix IM-V IM-E","Lower Dome Smoked For Sarix IM-V IM-E",{"v":44.47,"d":"44"},{"v":44.47,"d":"44 "},"ZAM"]
[null,"Fixed","SRXV-CM","Corner Mount for Wall Mounted Sarix Value IP Cameras and Bullets","Corner Mount for Wall Mounted Sarix Value IP Cameras and Bullets",{"v":167.45,"d":"167"},{"v":167.45,"d":"167 "},"ZAM"]
[null,"Fixed","SRXV-PCF","Ceiling Flange for Pendant Adapter and Pipe Extension for Sarix Value Cameras","Ceiling Flange for Pendant Adapter and Pipe Extension for Sarix Value Cameras",{"v":174.08,"d":"174"},{"v":174.08,"d":"174 "},"ZAM"]
[null,"Fixed","SRXV-PLM","Pole Mount for Wall Mounted Sarix Value IP Cameras and Bullets","Pole Mount for Wall Mounted Sarix Value IP Cameras and Bullets",{"v":113.53,"d":"114"},{"v":113.53,"d":"114 "},"ZAM"]
[null,"Fixed","SRXV-PP","Pipe Extenstion for Pendant Adapter for Sarix Value Cameras","Pipe Extenstion for Pendant Adapter for Sarix Value Cameras",{"v":78.53,"d":"79"},{"$f":"F1288-(F1288*G$6)","v":{"v":78.53,"d":"79 "}},"ZAM"]
[null,"Fixed","SRXV-WMP","Wall Mount for Sarix Value IP Cameras using Pendant Adapter Plate","Wall Mount for Sarix Value IP Cameras using Pendant Adapter Plate",{"v":52.99,"d":"53"},{"v":52.99,"d":"53 "},"ZAM"]
[null,"Fixed","SRXV-WMS","Wall Mount for Sarix Value IMV; IJV; ITV; IJV Series","Wall Mount for Sarix Value Surface Mount Environmental IMV Series Varifocal Domes IJV Series Fixed Focal Domes ITV Series Varifocal Turrets And IJV Series Fixed Focal Domes",{"v":50.15,"d":"50"},{"v":50.15,"d":"50 "},"ZAM"]
[null,"Fixed","WMVE-AW","Wall Mount Vandal Resistant Environmental For 1.5 Inch NPT Pendant Pantone 427C","Wall Mount Vandal Resistant Environmental For 1.5 Inch NPT Pendant Pantone 427C",{"v":52.99,"d":"53"},{"v":52.99,"d":"53 "},"ZAM"]
[null,"Fixed","WMVE-SR","Wall Mount 1.5 Inch NPT Cool Light Gray For Sarix IE; IM-V; IM-E; Others","Wall Mount Vandal Resistant 1.5 Inch NPT Cool Light Gray For Sarix Series IE; IM-V; IM-E; Others",{"v":52.99,"d":"53"},{"v":52.99,"d":"53 "},"ZAM"]
[null,"Fixed","WMVE-SW","Wall Mount 1.5 inch NPT with 0.75 inch NPT adapter RAL 9003","Wall Mount Vandal 1.5 inch NPT with Indoor 0.75 inch NPT adapter For Sarix Professional and Enhanced Range pendants; RAL 9003",{"v":52.99,"d":"53"},{"v":52.99,"d":"53 "},"ZAM"]
[null,"Specialty IP","AXM200","Adjustable pan/tilt mount for ExSite 1 Fixed models; 316L stainless steel","Adjustable pan/tilt mount for ExSite Enhanced Fixed models made of 316L stainless steel.",{"v":754.95,"d":"755"},{"v":754.95,"d":"755 "},"ZAM"]
[null,"Specialty IP","CMXM200","Corner mount adapter for ExSite Enhanced made of 316L stainless steel.","Corner mount adapter for ExSite Enhanced made of 316L stainless steel.",{"v":729.41,"d":"729"},{"v":729.41,"d":"729 "},"ZAM"]
[null,"Specialty IP","ESTI3100-2N-X","Sarix Thermal Imaging Esprit Positioning System 384x288 with 100mm Lens IP or PA","Sarix Thermal Imaging Esprit Positioning System 384x288 with 100mm Lens IP or PAL 24VAC Pedestal Mount",{"v":23021,"d":"23,021"},{"v":23021,"d":"23,021 "},"ZAM"]
[null,"Specialty IP","ESTI3100-5N-X","Sarix Thermal Imaging Esprit Positioning System 384x288 with 100mm Lens IP or PA","Sarix Thermal Imaging Esprit Positioning System 384x288 with 100mm Lens IP or PAL 110-230VAC Pedestal Mount",{"v":23021,"d":"23,021"},{"v":23021,"d":"23,021 "},"ZAM"]
[null,"Specialty IP","ESTI335-5W-X","Sarix Thermal Imaging Esprit Positioning System 384x288 with 35mm Lens IP or PAL","Sarix Thermal Imaging Esprit Positioning System 384x288 with 35mm Lens IP or PAL 110-230VAC Wall Mount",{"v":16772,"d":"16,772"},{"v":16772,"d":"16,772 "},"ZAM"]
[null,"Specialty IP","EXC2602-62","ExSite 2 ExP compact camera; 6MP 4.9-8mm; 24VAC 24VDC POE+; no cable","ExSite 2 series Explosion Proof compact camera; 6MP 4.9-8mm; 24VAC 24VDC POE+; no cable",{"v":5007,"d":"5,007"},{"v":5007,"d":"5,007 "},"ZAM"]
[null,"Specialty IP","EXC2602-62-A0","ExSite 2 ExP compact camera; 6MP 4.9-8mm; 24VAC 24VDC POE+; 10m armored cable","ExSite 2 series Explosion Proof compact camera; 6MP 4.9-8mm; 24VAC 24VDC POE+; 10m armored cable",{"v":6134,"d":"6,134"},{"v":6134,"d":"6,134 "},"ZAM"]
[null,"Specialty IP","EXC2602-62-A4","ExSite 2 ExP compact camera; 6MP 4.9-8mm; 24VAC 24VDC POE+; 4m armored cable","ExSite 2 series Explosion Proof compact camera; 6MP 4.9-8mm; 24VAC 24VDC POE+; 4m armored cable",{"v":5666,"d":"5,666"},{"v":5666,"d":"5,666 "},"ZAM"]
[null,"Specialty IP","EXF2230-52-A0","ExSite 2 ExP fixed camera; 2MPx30; T5; 24VAC; 10m armored Cable w/ gland","ExSite 2 series Explosion Proof fixed camera; 2MPx30; T5; 24VAC; 10m armored Cable w/ gland",{"v":8285,"d":"8,285"},{"v":8285,"d":"8,285 "},"ZAM"]
[null,"Specialty IP","EXF2230-52-A4","ExSite 2 ExP fixed camera; 2MPx30; T5; 24VAC; 4m armored Cable w/ gland","ExSite 2 series Explosion Proof fixed camera; 2MPx30; T5; 24VAC; 4m armored Cable w/ gland",{"v":7688,"d":"7,688"},{"v":7688,"d":"7,688 "},"ZAM"]
[null,"Specialty IP","EXF2230-52-C0","ExSite 2 series Explosion Proof fixed camera; 2MPx30; T5; 24VAC; 10m Cable tail","ExSite 2 series Explosion Proof fixed camera; 2MPx30; T5; 24VAC; 10m Cable tail",{"v":7903,"d":"7,903"},{"v":7903,"d":"7,903 "},"ZAM"]
[null,"Specialty IP","EXF2230-52-C4","ExSite 2 series Explosion Proof fixed camera; 2MPx30; T5; 24VAC; 4m Cable tail","ExSite 2 series Explosion Proof fixed camera; 2MPx30; T5; 24VAC; 4m Cable tail",{"v":7364,"d":"7,364"},{"v":7364,"d":"7,364 "},"ZAM"]
[null,"Specialty IP","EXF2230-62-A0","ExSite 2 ExP fixed camera; 2MPx30; T6; 24VAC; 10m armored Cable w/ gland","ExSite 2 series Explosion Proof fixed camera; 2MPx30; T6; 24VAC; 10m armored Cable w/ gland",{"v":8285,"d":"8,285"},{"v":8285,"d":"8,285 "},"ZAM"]
[null,"Specialty IP","EXF2230-62-A4","ExSite 2 ExP fixed camera; 2MPx30; T6; 24VAC; 4m armored Cable w/ gland","ExSite 2 series Explosion Proof fixed camera; 2MPx30; T6; 24VAC; 4m armored Cable w/ gland",{"v":7688,"d":"7,688"},{"v":7688,"d":"7,688 "},"ZAM"]
[null,"Specialty IP","EXF2230-62-C0","ExSite 2 series Explosion Proof fixed camera; 2MPx30; T6; 24VAC; 10m Cable tail","ExSite 2 series Explosion Proof fixed camera; 2MPx30; T6; 24VAC; 10m Cable tail",{"v":7903,"d":"7,903"},{"v":7903,"d":"7,903 "},"ZAM"]
[null,"Specialty IP","EXF2230-62-C4","ExSite 2 series Explosion Proof fixed camera; 2MPx30; T6; 24VAC; 4m Cable tail","ExSite 2 series Explosion Proof fixed camera; 2MPx30; T6; 24VAC; 4m Cable tail",{"v":7364,"d":"7,364"},{"v":7364,"d":"7,364 "},"ZAM"]
[null,"Specialty IP","EXP2230-62","ExSite 2 series Explosion Proof PTZ camera; 2MPx30; T6; 24VAC","ExSite 2 series Explosion Proof PTZ camera; 2MPx30; T6; 24VAC",{"v":16065,"d":"16,065"},{"v":16065,"d":"16,065 "},"ZAM"]
[null,"Specialty IP","EXP2230-62-G","ExSite 2 ExP PTZ camera; 2MPx30; T6; 24VAC; with ONVIF G remote storage","ExSite 2 series Explosion Proof PTZ camera; 2MPx30; T6; 24VAC; with ONVIF G remote storage",{"v":16512,"d":"16,512"},{"v":16512,"d":"16,512 "},"ZAM"]
[null,"Specialty IP","EXP2230-65","ExSite 2 series Explosion Proof PTZ camera; 2MPx30; T6; 120VAC","ExSite 2 series Explosion Proof PTZ camera; 2MPx30; T6; 120VAC",{"v":16065,"d":"16,065"},{"v":16065,"d":"16,065 "},"ZAM"]
[null,"Specialty IP","EXP2230-65-G","ExSite 2 ExP PTZ camera; 2MPx30; T6; 120VAC; with ONVIF G remote storage","ExSite 2 series Explosion Proof PTZ camera; 2MPx30; T6; 120VAC; with ONVIF G remote storage",{"v":16512,"d":"16,512"},{"v":16512,"d":"16,512 "},"ZAM"]
[null,"Specialty IP","EXP2230-67","ExSite 2 series Explosion Proof PTZ camera; 2MPx30; T6; 230VAC","ExSite 2 series Explosion Proof PTZ camera; 2MPx30; T6; 230VAC",{"v":16065,"d":"16,065"},{"v":16065,"d":"16,065 "},"ZAM"]
[null,"Specialty IP","EXP2230-67-G","ExSite 2 ExP PTZ camera; 2MPx30; T6; 230VAC; with ONVIF G remote storage","ExSite 2 series Explosion Proof PTZ camera; 2MPx30; T6; 230VAC; with ONVIF G remote storage",{"v":16512,"d":"16,512"},{"v":16512,"d":"16,512 "},"ZAM"]
[null,"Specialty IP","PAXM200","Pole mount adapter for ExSite Enhanced made of 316L stainless steel.","Pole mount adapter for ExSite Enhanced made of 316L stainless steel.",{"v":729.41,"d":"729"},{"v":729.41,"d":"729 "},"ZAM"]
[null,"Specialty IP","PEX-MBA1S5A","PEX communication box Aluminum housing; 230 VAC input (VTPN: MBA1S5A)","PEX communication box Aluminum housing; 230 VAC input (VTPN: MBA1S5A)",{"v":1817,"d":"1,817"},{"v":1817,"d":"1,817 "},"ZAM"]
[null,"Specialty IP","PEX-MBA2S5A","PEX communication box Aluminum housing; 24 VAC input (VTPN: MBA2S5A)","PEX communication box Aluminum housing; 24 VAC input (VTPN: MBA2S5A)",{"v":1817,"d":"1,817"},{"v":1817,"d":"1,817 "},"ZAM"]
[null,"Specialty IP","PEX-MBA3S5A","PEX communication box Aluminum housing; 120 VAC input (VTPN: MBA3S5A)","PEX communication box Aluminum housing; 120 VAC input (VTPN: MBA3S5A)",{"v":1817,"d":"1,817"},{"v":1817,"d":"1,817 "},"ZAM"]
[null,"Specialty IP","PEX-MBX1MAA","PEX communication box AISI 316L SS; 230 VAC input (VTPN: MBX1MAA)","PEX communication box AISI 316L SS; 230 VAC input (VTPN: MBX1MAA)",{"v":2155,"d":"2,155"},{"v":2155,"d":"2,155 "},"ZAM"]
[null,"Specialty IP","PEX-MBX2MAA","PEX communication box AISI 316L SS; 24 VAC input (VTPN: MBX2MAA)","PEX communication box AISI 316L SS; 24 VAC input (VTPN: MBX2MAA)",{"v":2155,"d":"2,155"},{"v":2155,"d":"2,155 "},"ZAM"]
[null,"Specialty IP","PEX-MBX3MAA","PEX communication box AISI 316L SS; 120 VAC input (VTPN: MBX3MAA)","PEX communication box AISI 316L SS; 120 VAC input (VTPN: MBX3MAA)",{"v":2155,"d":"2,155"},{"v":2155,"d":"2,155 "},"ZAM"]
[null,"Specialty IP","PEX-MBXMP","Adapter plate for communication box to PEX-MPXCOL or PEX MPXCW mounts. AISI 316L","Adapter plate for communication box to PEX-MPXCOL or PEX MPXCW mounts. AISI 316L SS (VTPN: MBXMP)",{"v":340.05,"d":"340"},{"v":340.05,"d":"340 "},"ZAM"]
[null,"Specialty IP","PEX-MBXWRE","Wrench for opening communication boxes; PEX-MBX (VTPN: MBXWRE)","Wrench for opening communication boxes; PEX-MBX (VTPN: MBXWRE)",{"v":65.16,"d":"65"},{"v":65.16,"d":"65 "},"ZAM"]
[null,"Specialty IP","PEX-MHXWFWCA","Parapet mounting bracket for use with EXF2230 cameras. AIS 316L stainless steel","Parapet mounting bracket for use with EXF2230 cameras. AIS 316L stainless steel (VTPN: MHXWFWCA)",{"v":255.26,"d":"255"},{"v":255.26,"d":"255 "},"ZAM"]
[null,"Specialty IP","PEX-MMXCABARM10","Replacement 10m armored cable for EXC2602 Compact camera (VTPN: MMXCABLARM10)","Replacement 10m armored cable for EXC2602 Compact camera (VTPN: MMXCABLARM10)",{"v":600.84,"d":"601"},{"v":600.84,"d":"601 "},"ZAM"]
[null,"Specialty IP","PEX-MMXCABLARM4","Replacement 4m armored cable for EXC2602 Compact camera (VTPN: MMXCABLARM4)","Replacement 4m armored cable for EXC2602 Compact camera (VTPN: MMXCABLARM4)",{"v":350.49,"d":"350"},{"v":350.49,"d":"350 "},"ZAM"]
[null,"Specialty IP","PEX-MMXCWCOL","Stainless steel AISI 316L corner and pole mount adaptor for EXC2602 compact cam","Stainless steel AISI 316L corner and pole mount adaptor for EXC2602 compact camera (VTPN: MMXCWCOL)",{"v":90.13,"d":"90"},{"v":90.13,"d":"90 "},"ZAM"]
[null,"Specialty IP","PEX-MPX2CAARM10","Cabling; 10m (32.8 ft); armored cable; barrier cable gland (VTPN: MPX2CABLARM10)","Cabling; 10m (32.8 ft); armored cable; barrier cable gland (VTPN: MPX2CABLARM10)",{"v":1002,"d":"1,002"},{"v":1002,"d":"1,002 "},"ZAM"]
[null,"Specialty IP","PEX-MPX2CABARM4","Cabling; 4m (13.1 ft); armored cable; barrier cable gland (VTPN: MPX2CABLARM4)","Cabling; 4m (13.1 ft); armored cable; barrier cable gland (VTPN: MPX2CABLARM4)",{"v":668.49,"d":"668"},{"v":668.49,"d":"668 "},"ZAM"]
[null,"Specialty IP","PEX-MPX2CABL10","Cabling; 10m (32.8 ft); unarmored cable; barrier cable gland (VTPN: MPX2CABL10)","Cabling; 10m (32.8 ft); unarmored cable; barrier cable gland (VTPN: MPX2CABL10)",{"v":1002,"d":"1,002"},{"v":1002,"d":"1,002 "},"ZAM"]
[null,"Specialty IP","PEX-MPX2CABL4","Cabling; 4m (13.1 ft); unarmored cable; barrier cable gland (VTPN: MPX2CABL4)","Cabling; 4m (13.1 ft); unarmored cable; barrier cable gland (VTPN: MPX2CABL4)",{"v":668.49,"d":"668"},{"v":668.49,"d":"668 "},"ZAM"]
[null,"Specialty IP","PEX-MPXCOL","Pole mount adapter for use with PEX-MBXMP or EXP2230 cameras; AISI 316L SS","Pole mount adapter for use with PEX-MBXMP or EXP2230 cameras. For pole diameters from 110 mm (4.3”) to 150 mm (5.9”). Max load 50 kg (110 lb.). AISI 316L stainless steel (VTPN: MPXCOL)",{"v":329.34,"d":"329"},{"v":329.34,"d":"329 "},"ZAM"]
[null,"Specialty IP","PEX-MPXCW","Corner mount adapter for use with PEX-MBXMP or EXP2230 cameras; AISI 316L SS","Corner mount adapter for use with PEX-MBXMP or EXP2230 cameras. Max load 50 kg (110 lb.). AISI 316L stainless steel (VTPN: MPXCW)",{"v":240.09,"d":"240"},{"v":240.09,"d":"240 "},"ZAM"]
[null,"Specialty IP","PEX-MPXWBA","Wall bracket for use with EXP2230 cameras. AISI 316L stainless steel","Wall bracket for use with EXP2230 cameras. AISI 316L stainless steel (VTPN: MPXWBA)",{"v":446.25,"d":"446"},{"v":446.25,"d":"446 "},"ZAM"]
[null,"Specialty IP","PEX-MPXWBTA","Parapet or ceiling mount bracket for use with EXP2230 cameras. AISI 316L SS","Parapet or ceiling mount bracket for use with EXP2230 cameras. AISI 316L stainless steel (VTPN: MPXWBTA)",{"v":192.78,"d":"193"},{"v":192.78,"d":"193 "},"ZAM"]
[null,"Specialty IP","PEX-NXCOL","Pole mount adapter for use with EXF2230 cameras or ExP washers; AISI 316L SS","Pole mount adapter for use with EXF2230 cameras or explosion protected washers. For pole diameters from 110 mm (4.3”) to 150 mm (5.9”). Max load 50 kg (110 lb.). AISI 316L SS (VTPN: NXCOL)",{"v":240.09,"d":"240"},{"v":240.09,"d":"240 "},"ZAM"]
[null,"Specialty IP","PEX-NXCW","Corner mount adapter for EXF2230 cameras or ExP washers; AISI 316L SS","Corner mount adapter for use with EXF2230 cameras or explosion protected washers. Max load 50 kg (110 lb.). AISI 316L stainless steel (VTPN: NXCW)",{"v":120.49,"d":"120"},{"v":120.49,"d":"120 "},"ZAM"]
[null,"Specialty IP","PEX-NXFWBT","Vertical riser; 124 mm (4.9”); for EXF2230 cameras. AISI 316L stainless steel","Vertical riser; 124 mm (4.9”); for use with EXF2230 cameras. AISI 316L stainless steel (VTPN: NXFWBT)",{"v":186.54,"d":"187"},{"v":186.54,"d":"187 "},"ZAM"]
[null,"Specialty IP","PEX-NXWBS1","Wall bracket for EXF2230 cameras. AISI 316L stainless steel","Wall bracket for use with EXF2230 cameras. AISI 316L stainless steel (VTPN: NXWBS1)",{"v":230.27,"d":"230"},{"v":230.27,"d":"230 "},"ZAM"]
[null,"Specialty IP","PEX-NXWTU","Wall adapter module; for PEX-NXWBS1. AISI 316L stainless steel","Wall adapter module; for use with PEX-NXWBS1. AISI 316L stainless steel (VTPN: NXWTU)",{"v":380.21,"d":"380"},{"v":380.21,"d":"380 "},"ZAM"]
[null,"Specialty IP","PEX-OCEX1/2-3/4","Cable gland reduction in nickel-plated brass 3/4\" - 1/2\" NPT -100°C/+400°C","Cable gland reduction in nickel-plated brass 3/4\" - 1/2\" NPT -100°C/+400°C (VTPN: OCTEX1/2-3/4P)",{"v":34.81,"d":"35"},{"v":34.81,"d":"35 "},"ZAM"]
[null,"Specialty IP","PEX-OCTEX3/4C","Cable gland in nickel-plated brass with gasket EX 3/4\" NPT; unarmoured cable","Cable gland in nickel-plated brass with gasket EX 3/4\" NPT; unarmoured cable IECEX-ATEX-EAC Ex. (VTPN: OCTEX3/4C)",{"v":57.45,"d":"57"},{"v":57.45,"d":"57 "},"ZAM"]
[null,"Specialty IP","PEX-OCTEXA3/4C","Cable gland in nickel-plated brass with gasket EX 3/4\" NPT; armored cable","Cable gland in nickel-plated brass with gasket EX 3/4\" NPT; armored cable IECEX-ATEX-EAC Ex. (VTPN: OCTEXA3/4C)",{"v":119.46,"d":"119"},{"v":119.46,"d":"119 "},"ZAM"]
[null,"Specialty IP","PEX-OCTEXB1/2P","Barrier cable gland 1/2\" NPT unarmoured cable IECEX-ATEX -60/+135°C","Barrier cable gland 1/2\" NPT unarmoured cable IECEX-ATEX -60/+135°C (VTPN: OCTEXB1/2P)",{"v":73.19,"d":"73"},{"v":73.19,"d":"73 "},"ZAM"]
[null,"Specialty IP","PEX-OCTEXB3/4P","Barrier Cable Gland w/ unarmored cable (VTPN: OCTEXB3/4P)","Barrier Cable Gland w/ unarmored cable (VTPN: OCTEXB3/4P)",{"v":183.86,"d":"184"},{"v":183.86,"d":"184 "},"ZAM"]
[null,"Specialty IP","PEX-OCTEXBA1/2P","Barrier cable gland 1/2\" NPT armored cable -60/+135°C (VTPN: OCTEXBA1/2P)","Barrier cable gland 1/2\" NPT armored cable -60/+135°C (VTPN: OCTEXBA1/2P)",{"v":116.92,"d":"117"},{"v":116.92,"d":"117 "},"ZAM"]
[null,"Specialty IP","PEX-OCTEXBA3/4P","Barrier Cable Gland w/ armored cable (VTPN: OCTEXBA3/4P)","Barrier Cable Gland w/ armored cable (VTPN: OCTEXBA3/4P)",{"v":218.67,"d":"219"},{"v":218.67,"d":"219 "},"ZAM"]
[null,"Specialty IP","PEX-OEXPLUG1/2P","EX 1/2\" NPT IECEX-ATEX plug -100/+400°C (VTPN: OEXPLUG1/2P)","EX 1/2\" NPT IECEX-ATEX plug -100/+400°C (VTPN: OEXPLUG1/2P)",{"v":14.28,"d":"14"},{"v":14.28,"d":"14 "},"ZAM"]
[null,"Specialty IP","PEX-OEXPLUG3/4P","Plug EX 3/4” NPT (VTPN: OEXPLUG3/4P)","Plug EX 3/4” NPT (VTPN: OEXPLUG3/4P)",{"v":9.82,"d":"10"},{"v":9.82,"d":"10 "},"ZAM"]
[null,"Specialty IP","PEX-WASEX2T4AT","PEX washer ATEX certified solenoid valve (VTPN: WASEX2T4AT)","PEX washer ATEX certified solenoid valve (VTPN: WASEX2T4AT)",{"v":2176,"d":"2,176"},{"v":2176,"d":"2,176 "},"ZAM"]
[null,"Specialty IP","PEX-WASEX2T4GOR","PEX washer GOS certified solenoid valve (VTPN: WASEX2T4GOR)","PEX washer GOS certified solenoid valve (VTPN: WASEX2T4GOR)",{"v":2176,"d":"2,176"},{"$f":"F1352-(F1352*G$6)","v":{"v":2176,"d":"2,176 "}},"ZAM"]
[null,"Specialty IP","PEX-WASEX2T4IN","PEX washer INMETRO certified solenoid valve (VTPN: WASEX2T4IN)","PEX washer INMETRO certified solenoid valve (VTPN: WASEX2T4IN)",{"v":2176,"d":"2,176"},{"v":2176,"d":"2,176 "},"ZAM"]
[null,"Specialty IP","PEX-WASEX2T4KC","PEX washer KCS certified solenoid valve (VTPN: WASEX2T4KC)","PEX washer KCS certified solenoid valve (VTPN: WASEX2T4KC)",{"v":2618,"d":"2,618"},{"v":2618,"d":"2,618 "},"ZAM"]
[null,"Specialty IP","PXM100","Pedestal mount designed to mount an ExSite Series system directly to a horizonta","Pedestal mount designed to mount an ExSite Series system directly to a horizontal surface in either an upright or inverted position.",{"v":137.19,"d":"137"},{"v":137.19,"d":"137 "},"ZAM"]
[null,"Specialty IP","PXM200","Pedestal mount for ExSite Enhanced made of 316L stainless steel.","Pedestal mount for ExSite Enhanced made of 316L stainless steel.",{"v":143.81,"d":"144"},{"v":143.81,"d":"144 "},"ZAM"]
[null,"Specialty IP","TI2314","Sarix Thermal 2 camera QVGA 14mm wide lens option 25HZ; 720p dual; POE; Env","Sarix Thermal Imaging camera 2 series QVGA 14mm wide lens option 25HZ; 720p dual; POE; Environmental Bullet",{"v":4983,"d":"4,983"},{"v":4983,"d":"4,983 "},"ZAM"]
[null,"Specialty IP","TI2350","Sarix Thermal 2 camera QVGA 50mm tele lens option 25HZ; 720p dual; POE; Env","Sarix Thermal Imaging camera 2 series QVGA 50mm tele lens option 25HZ; 720p dual; POE; Environmental Bullet",{"v":6722,"d":"6,722"},{"v":6722,"d":"6,722 "},"ZAM"]
[null,"Specialty IP","TIWM","Sarix Thermal Imaging camera 2 series Wall mount","Sarix Thermal Imaging camera 2 series Wall mount",{"v":154.21,"d":"154"},{"v":154.21,"d":"154 "},"ZAM"]
[null,"Specialty IP","WXM200","Wall mount for ExSite Enhanced made of 316L stainless steel.","Wall mount for ExSite Enhanced made of 316L stainless steel.",{"v":1070,"d":"1,070"},{"v":1070,"d":"1,070 "},"ZAM"]
[null,"Switches","CBS350-24FP-4G-EU","28-port Gigabit Managed Switch (24 PoE+ budget 370W; 4 Gigabit SFP) - EU","28-port Gigabit Managed Switch (24 PoE+ budget 370W; 4 Gigabit SFP) - EU",{"v":1991,"d":"1,991"},{"v":1991,"d":"1,991 "},"ZAM"]
[null,"Switches","CBS350-8FP-E-2G-EU","10-port Gigabit Managed Switch (8 PoE+ budget 120W; 2 copper/SFP combo) - EU","10-port Gigabit Managed Switch (8 PoE+ budget 120W; 2 copper/SFP combo) - EU",{"v":780.9,"d":"781"},{"v":780.9,"d":"781 "},"ZAM"]
[null,"Switches","SM24TAT2SA-EU","24-Port Gigabit Managed Switch (24) PoE+ budget 370W; (2) SFP - EU","24-Port Gigabit Managed Switch (24) PoE+ budget 370W; (2) SFP - EU",{"v":1366,"d":"1,366"},{"v":1366,"d":"1,366 "},"ZAM"]
[null,"Switches","SM8TAT2SA-EU","8-Port Gigabit Managed Switch (8) PoE+ budget 130W; (2) SFP - EU","8-Port Gigabit Managed Switch (8) PoE+ budget 130W; (2) SFP - EU",{"v":689.27,"d":"689"},{"v":689.27,"d":"689 "},"ZAM"]
[null,"Expert Services","FLDSUP-AUDIT","One Day Onsite (8Hrs) System Audit","One Day Onsite (8Hrs) System Audit",{"v":1276.28,"d":"1,276"},{"v":1276.28,"d":"1,276 "},"ZAM"]
[null,"Expert Services","FLDSUP-CONFIG","One Day Onsite (8Hrs) System Configuration","One Day Onsite (8Hrs) System Configuration",{"v":1276.28,"d":"1,276"},{"v":1276.28,"d":"1,276 "},"ZAM"]
[null,"Expert Services","FLDSUP-NETWORK","One Day Onsite (8Hrs) Network Configuration","One Day Onsite (8Hrs) Network Configuration",{"v":1914.63,"d":"1,915"},{"v":1914.63,"d":"1,915 "},"ZAM"]
[null,"Expert Services","FLDSUP-TSHOOT","One Day Onsite (8Hrs) Troubleshoot","One Day Onsite (8Hrs) Troubleshoot",{"v":1276.28,"d":"1,276"},{"v":1276.28,"d":"1,276 "},"ZAM"]
[null,"Expert Services","FTRVL-ADDTLDAY","One Additional Day Of Travel","One Additional Day Of Travel",{"v":212.61,"d":"213"},{"v":212.61,"d":"213 "},"ZAM"]
[null,"Expert Services","FTRVL-FRSTAIR","First Day Of Travel By Air","First Day Of Travel By Air",{"v":994.84,"d":"995"},{"v":994.84,"d":"995 "},"ZAM"]
[null,"Expert Services","RMTSUP-AUDIT","One Day Remote (8Hrs) System Audit","One Day Remote (8Hrs) System Audit",{"v":1698.72,"d":"1,699"},{"v":1698.72,"d":"1,699 "},"ZAM"]
[null,"Expert Services","RMTSUP-CONFIG","One Day Remote (8Hrs) System Configuration","One Day Remote (8Hrs) System Configuration",{"v":1276.28,"d":"1,276"},{"v":1276.28,"d":"1,276 "},"ZAM"]
[null,"Expert Services","RMTSUP-NETWORK","One Day Remote (8Hrs) Network Design/Configuration/Troubleshoot","One Day Remote (8Hrs) Network Design/Configuration/Troubleshoot",{"v":1914.63,"d":"1,915"},{"v":1914.63,"d":"1,915 "},"ZAM"]
[null,"Expert Services","RMTSUP-TSHOOT","One Day Remote (8Hrs) Troubleshoot","One Day Remote (8Hrs) Troubleshoot",{"v":1276.28,"d":"1,276"},{"v":1276.28,"d":"1,276 "},"ZAM"]
[null,"All","CVA-BAP1-10C1Y","Calipsa Basic Plus;10ch;1yr","Calipsa Basic Plus;10ch;1yr",{"v":1530,"d":"1,530"},{"v":1530,"d":"1,530 "},"ZAM"]
[null,"All","CVA-BAS1-10C1Y","Calipsa Basic;10ch;1yr","Calipsa Basic;10ch;1yr",{"v":1275,"d":"1,275"},{"v":1275,"d":"1,275 "},"ZAM"]
[null,"All","CVA-HLT1-10C1Y","Calipsa Camera Health;10ch;1yr","Calipsa Camera Health;10ch;1yr",255,{"v":255,"d":"255 "},"ZAM"]
[null,"Videoxpert®","FLDSUP-VXSTIG","One Day Onsite VX System Hardening","One Day Onsite VX System Hardening",{"v":3278,"d":"3,278"},{"v":3278,"d":"3,278 "},"ZAM"]
[null,"Videoxpert®","FTRVL-FRSTLOCAL","First Day Of Travel By Car","First Day Of Travel By Car",{"v":467.49,"d":"467"},{"v":467.49,"d":"467 "},"ZAM"]
[null,"Videoxpert®","HDDKIT-12TB-R550","MHX3CW000A","12TB SATA 7200 RPM storage drive with carrier for VXS R-series and Power 3 series recorders",{"v":1608.2,"d":"1,608"},{"v":1608.2,"d":"1,608 "},"ZAM"]
[null,"Videoxpert®","HDDKIT-18TB-R550","MHXT1C000B","18TB SATA 7200 RPM storage drive with carrier for VXS R-series recorders",{"v":2543.2,"d":"2,543"},{"v":2543.2,"d":"2,543 "},"ZAM"]
[null,"Videoxpert®","INT-A2TEKNOLOJI","VX integration of A2 Based On A2-Vca And A2-Anpr Offers Advanced Plug-In","The Integration Of Videoxpert And A2 Based On A2-Vca And A2-Anpr Offers Advanced Plug-In. Read More Here Https://Www.Pelco.Com/Partners/Technical-Partners/Videoxpert-Integrations/A2-Technology/",0,{"v":0,"d":"0 "},"ZAM"]
[null,"Videoxpert®","INT-ACCESSXPERT","Videoxpert Integration To Access Expert (Previously Known As Accessxpert)","Videoxpert Integration To Access Expert (Previously Known As Accessxpert)",0,{"v":0,"d":"0 "},"ZAM"]
[null,"Videoxpert®","INT-ACIC","Acic Analytic Integration","Acic Analytic Integration",0,{"v":0,"d":"0 "},"ZAM"]
[null,"Videoxpert®","INT-ACM","Videoxpert And Acm Integration","Videoxpert And Acm Integration",0,{"v":0,"d":"0 "},"ZAM"]
[null,"Videoxpert®","INT-ACSPLUGIN","Access Control System Viewer for VX Opscenter","The Access Control System Viewer Is An Opscenter Plug-In That Enables The Communication And Data Exchange From Various Access Control Systems To The Videoxpert System.",0,{"v":0,"d":"0 "},"ZAM"]
[null,"Videoxpert®","INT-ADVGUARD","VX integration of Navtech Advanceguard","The Combination Of Advanceguardplugins And Advanceguardmiddleware Software Packages Creates A Seamless Integration With Advanceguard For The Videoxpert End User.",{"v":3824,"d":"3,824"},{"v":3824,"d":"3,824 "},"ZAM"]
[null,"Videoxpert®","INT-AGENTVIDATA","VX integration of AgentVI Savvi","Savvi Is An On-Premise Video Analytics Software Solution That Offers A Wide Variety Of Analytics Functionalities Through A Single; Easy To Use Platform That Integrate Into Videoxpert.",0,{"v":0,"d":"0 "},"ZAM"]
[null,"Videoxpert®","INT-AGENTVIPLUG","VX integration of Agentvi Plugin for VX OPS Center","Videoxpert Agentvi Plugin For Analytics. This Integration Enables Communication Between Saavi And Videoxpert And Enables The Use Of The Agentvi Plugin.",{"v":3824,"d":"3,824"},{"v":3824,"d":"3,824 "},"ZAM"]
[null,"Videoxpert®","INT-AMAG","Videoxpert V3.X Amag Integration","Videoxpert V3.X Amag Integration (Opscenter Plugin & Events Into Vx) (License Cost Are Per Year)",{"v":3824,"d":"3,824"},{"v":3824,"d":"3,824 "},"ZAM"]
[null,"Videoxpert®","INT-AUDIOPLUGIN","Videoxpert Audio Out Plugin (License Cost Are Per Year)","Videoxpert Audio Out Plugin (License Cost Are Per Year)",{"v":182.07,"d":"182"},{"v":182.07,"d":"182 "},"ZAM"]
[null,"Videoxpert®","INT-BRIEFCAM","Videoxpert Integration With Briefcams Review And Respond Modules.","Videoxpert Integration With Briefcams Review And Respond Modules.",{"v":3824,"d":"3,824"},{"v":3824,"d":"3,824 "},"ZAM"]
[null,"Videoxpert®","INT-CCURE","VX integration of the Software House C-Cure 9000","Pelco Is An Active Member Of The Software House Connected Platform Integration Program. This Integration Solution Is Developed And Maintained By Pelco Using The Software House C-Cure 9000 Sdk.",{"v":3824,"d":"3,824"},{"v":3824,"d":"3,824 "},"ZAM"]
[null,"Videoxpert®","INT-COMPASS","VideoXpert Compass integration license","VideoXpert Compass integration license",0,{"v":0,"d":"0 "},"ZAM"]
[null,"Videoxpert®","INT-CONTINUUM","VX integration of Andover Continuum","Andover Continuum; Integrating Access Control; Video Surveillance; Hvac; And Lighting Control Into One System Reduces The Amount Of Wiring And Hardware Needed.",0,{"v":0,"d":"0 "},"ZAM"]
[null,"Videoxpert®","INT-CORTECH","Cortech Integration License (Permanent License)","Cortech Integration License (Permanent License)",0,{"v":0,"d":"0 "},"ZAM"]
[null,"Videoxpert®","INT-CTGSE","Hmi Touchscreen Integration","Hmi Touchscreen Integration",0,{"v":0,"d":"0 "},"ZAM"]
[null,"Videoxpert®","INT-CYBERSECURE","Cybersecure Ips Integration (Permanent License)","Cybersecure Ips Integration (Permanent License)",0,{"v":0,"d":"0 "},"ZAM"]
[null,"Videoxpert®","INT-ECONNECT","VX integration of Econnect","Econnect Casinoconnect Is A Suite Of Comprehensive Casino Management And Surveillance Products For Table Game Optimization; Gaming Analytics; And Cheating Detection.",0,{"v":0,"d":"0 "},"ZAM"]
[null,"Videoxpert®","INT-ENGIE","Videoxpert Integration - By Engie Of Citect Scada Access Control (Perm License)","Videoxpert Integration - By Engie Of Citect Scada Access Control (Permanent License)",0,{"v":0,"d":"0 "},"ZAM"]
[null,"Videoxpert®","INT-FIBERSENSYS","VX integration of Fiber Sensys Alarm Processing Units (Apus)","Fiber Sensys Alarm Processing Units (Apus) Offer Standard Relay Outputs With Many Models Offering A Tcp/Ip Interface Either As A Standard Interface Or As An Option.",{"v":3824,"d":"3,824"},{"v":3824,"d":"3,824 "},"ZAM"]
[null,"Videoxpert®","INT-GALLAGHER","VX integration of Gallaghers Command Centre Integrated Security Solutions","Integration Of Pelco Videoxpert And Gallaghers Command Centre Integrated Security Solutions; A Centralized Software Platform.",{"v":3824,"d":"3,824"},{"v":3824,"d":"3,824 "},"ZAM"]
[null,"Videoxpert®","INT-GEMOS","Integration Of Videoxpert Gemos Psim Platform","Integration Of Videoxpert Gemos Psim Platform",0,{"v":0,"d":"0 "},"ZAM"]
[null,"Videoxpert®","INT-HIRSCHVEL","Videoxpert Hirsch Velocity Integration (License Cost Are Per Year)","Videoxpert Hirsch Velocity Integration (License Cost Are Per Year)",{"v":3824,"d":"3,824"},{"v":3824,"d":"3,824 "},"ZAM"]
[null,"Videoxpert®","INT-INNERRANGE","Innerrange Integriti Integration License (Permanent License)","Innerrange Integriti Integration License (Permanent License)",0,{"v":0,"d":"0 "},"ZAM"]
[null,"Videoxpert®","INT-INSIDEOUT","Videoxpert Inside Out Group Integration (Permanent License)","Videoxpert Inside Out Group Integration (Permanent License)",0,{"v":0,"d":"0 "},"ZAM"]
[null,"Videoxpert®","INT-IPSOTEKVI","Int Ipsotek Visuite","Int Ipsotek Visuite",0,{"v":0,"d":"0 "},"ZAM"]
[null,"Videoxpert®","INT-ISSD","Issd Tunnel Incident Analytics Solution (Permanent License)","Issd Tunnel Incident Analytics Solution (Permanent License)",0,{"v":0,"d":"0 "},"ZAM"]
[null,"Videoxpert®","INT-JACQUESCOM","Videoxpert Jacques Integration (License Cost Are Per Year)","Videoxpert Jacques Integration (License Cost Are Per Year)",{"v":3824,"d":"3,824"},{"v":3824,"d":"3,824 "},"ZAM"]
[null,"Videoxpert®","INT-JCI","VX integration of Johnson Controls P2000 Security Management System","The Johnson Controls P2000 Security Management System Is An Innovative Security Integration Platform That?S Adaptable To Small And Large Applications.",{"v":3824,"d":"3,824"},{"v":3824,"d":"3,824 "},"ZAM"]
[null,"Videoxpert®","INT-JENSON","Videoxpert And Jensen Integration","Videoxpert And Jensen Integration",0,{"v":0,"d":"0 "},"ZAM"]
[null,"Videoxpert®","INT-KANTECH","Videoxpert Integration For Kantech Entrapass Security Management System.","Videoxpert Integration For Kantech Entrapass Security Management System.",{"v":3824,"d":"3,824"},{"v":3824,"d":"3,824 "},"ZAM"]
[null,"Videoxpert®","RMTSUP-VXSTIG","One Day Remote VX System Hardening","One Day Remote VX System Hardening",{"v":2185,"d":"2,185"},{"v":2185,"d":"2,185 "},"ZAM"]
[null,"Videoxpert®","TRNF-CUSTOM","Custom Training Field Class 1 Person Including Travel","Custom Training Field Class 1 Person Including Travel (All quotes for custom training are preliminary and subject to change until the project has been scoped and approved)",{"v":8925,"d":"8,925"},{"v":8925,"d":"8,925 "},"ZAM"]
[null,"Videoxpert®","TRNF-VXCSS","VxEnterprise Advanced Installer Certification; Level 3E Field; 1 Person w/Travel","VxEnterprise Advanced Installer Certification; Level 3E Field 1 Person Including Travel",{"v":758.63,"d":"759"},{"v":758.63,"d":"759 "},"ZAM"]
[null,"Videoxpert®","TRNF-VXOPR","VX Operator & Administrator Certification; Level 2AO Field; 1 Person w/Travel","VX Operator & Administrator Certification; Level 2AO Field 1 Person Including Travel",{"v":758.63,"d":"759"},{"$f":"F1416-(F1416*G$6)","v":{"v":758.63,"d":"759 "}},"ZAM"]
[null,"Videoxpert®","TRNF-VXPRO","VxPro Installation and Support Certification; Level 2P Field; 1 Person w/Travel","VxPro Installation and Support Certification; Level 2P Field 1 Person Including Travel",{"v":758.63,"d":"759"},{"v":758.63,"d":"759 "},"ZAM"]
[null,"Videoxpert®","VX-CONNECT","Ability To Export Video Streams From Videoxpert Systems To 3rd Party Clients","Ability To Export Video Streams From Videoxpert Enterprise And/Or Pro Systems To 3Rd Party Clients. Offers Customizable Rtsp Endpoints Or Onvif That Allow A Client Application Connect To A Stream.",{"v":1309,"d":"1,309"},{"v":1309,"d":"1,309 "},"ZAM"]
[null,"Videoxpert® Enterprise","E1-1C","VideoXpert Enterprise; one (1) camera channel license and one (1) year SUP","VideoXpert Enterprise; one (1) camera channel license and one (1) year SUP",{"v":132.09,"d":"132"},{"v":132.09,"d":"132 "},"ZAM"]
[null,"Videoxpert® Enterprise","E1-1C-SUP1","VideoXpert Enterprise; one year software upgrade entitlement for one channel","VideoXpert Enterprise; one (1) year software upgrade entitlement for one (1) channel.",{"v":38.38,"d":"38"},{"v":38.38,"d":"38 "},"ZAM"]
[null,"Videoxpert® Enterprise","E1-1C-SUP3","VideoXpert Enterprise; three year software upgrade entitlement for one channel","VideoXpert Enterprise; three (3) year software upgrade entitlement for one (1) channel.",{"v":95.5,"d":"96"},{"v":95.5,"d":"96 "},"ZAM"]
[null,"Videoxpert® Enterprise","E1-1C3Y","VideoXpert Enterprise; one (1) camera channel license and three (3) year SUP","VideoXpert Enterprise; one (1) camera channel license and three (3) year SUP",{"v":253.47,"d":"253"},{"v":253.47,"d":"253 "},"ZAM"]
[null,"Videoxpert® Enterprise","E1-4COR-SW","VideoXpert Enterprise; one (1) software license for four or more VxCore servers","VideoXpert Enterprise; one (1) software license for four (4) or more VxCore servers.",{"v":72828,"d":"72,828"},{"v":72828,"d":"72,828 "},"ZAM"]
[null,"Videoxpert® Enterprise","E1-COR-SW","VideoXpert Enterprise; one (1) software license for a single VxCore server.","VideoXpert Enterprise; one (1) software license for a single VxCore server.",{"v":3413,"d":"3,413"},{"v":3413,"d":"3,413 "},"ZAM"]
[null,"Videoxpert® Enterprise","E1-MGW-SW","VideoXpert Enterprise; one (1) software license; single Media Gateway server","VideoXpert Enterprise; one (1) software license for a single Media Gateway server.",{"v":2731,"d":"2,731"},{"v":2731,"d":"2,731 "},"ZAM"]
[null,"Videoxpert® Enterprise","E1-NSM-1UP","VideoXpert Enterprise NSM5200/NSM5300 Upgrade; 100 channels; 1 year SUP","VideoXpert Enterprise NSM5200/NSM5300 Upgrade; 100 channels; 1 year SUP",{"v":5845,"d":"5,845"},{"v":5845,"d":"5,845 "},"ZAM"]
[null,"Videoxpert® Enterprise","E1-NSM-1UP25","VideoXpert Enterprise NSM5200/NSM5300 Upgrade; 25 channels; 1 year SUP","VideoXpert Enterprise NSM5200/NSM5300 Upgrade; 25 channels; 1 year SUP",{"v":1462,"d":"1,462"},{"v":1462,"d":"1,462 "},"ZAM"]
[null,"Videoxpert® Enterprise","E1-NSM-1UP50","VideoXpert Enterprise NSM5200/NSM5300 Upgrade; 50 channels; 1 year SUP","VideoXpert Enterprise NSM5200/NSM5300 Upgrade; 50 channels; 1 year SUP",{"v":2923,"d":"2,923"},{"v":2923,"d":"2,923 "},"ZAM"]
[null,"Videoxpert® Enterprise","E1-VXS-SW","VideoXpert Enterprise; one (1) license for a single VxStorage software instance.","VideoXpert Enterprise; one (1) license for a single VxStorage software instance.",{"v":803.25,"d":"803"},{"v":803.25,"d":"803 "},"ZAM"]
[null,"Videoxpert® Enterprise","INT-KAPLOGIC","Vx Kaplogic Aegis Integration (Permanent License)","Vx Kaplogic Aegis Integration (Permanent License)",0,{"v":0,"d":"0 "},"ZAM"]
[null,"Videoxpert® Enterprise","INT-KARADAG","Videoxpert Karadag Elektronik Integration (Permanent License)","Videoxpert Karadag Elektronik Integration (Permanent License)",0,{"v":0,"d":"0 "},"ZAM"]
[null,"Videoxpert® Enterprise","INT-LENEL","Videoxpert V3.X Lenel Onguard Integration (License Cost Are Per Year)","Videoxpert V3.X Lenel Onguard Integration (License Cost Are Per Year)",{"v":3806,"d":"3,806"},{"v":3806,"d":"3,806 "},"ZAM"]
[null,"Videoxpert® Enterprise","INT-LENEL-OG-73","Videoxpert V3.X Lenel Onguard 7.3 Integration (Vx to Onguard) (Per year License)","Videoxpert V3.X Lenel Onguard 7.3 Integration (Vx Video Into Onguard) (License Cost Are Per Year)",{"v":3824,"d":"3,824"},{"v":3824,"d":"3,824 "},"ZAM"]
[null,"Videoxpert® Enterprise","INT-LENEL-OG-74","Videoxpert V3.X Lenel Onguard 7.4 Integration (Vx to Onguard) (Per year License)","Videoxpert V3.X Lenel Onguard 7.4 Integration (Vx Video Into Onguard) (License Cost Are Per Year)",{"v":3824,"d":"3,824"},{"v":3824,"d":"3,824 "},"ZAM"]
[null,"Videoxpert® Enterprise","INT-LENEL-OG-75","Videoxpert V3.X Lenel Onguard 7.5 Integration (Vx to Onguard) (Per year License)","Videoxpert V3.X Lenel Onguard 7.5 Integration (Vx Video Into Onguard) (License Cost Are Per Year)",{"v":3824,"d":"3,824"},{"v":3824,"d":"3,824 "},"ZAM"]
[null,"Videoxpert® Enterprise","INT-LENEL-OG-76","Videoxpert V3.X Lenel Onguard 7.6 Integration (Vx to Onguard) (Per year License)","Videoxpert V3.X Lenel Onguard 7.6 Integration (Vx Video Into Onguard) (License Cost Are Per Year)",{"v":3824,"d":"3,824"},{"v":3824,"d":"3,824 "},"ZAM"]
[null,"Videoxpert® Enterprise","INT-LENELDATA7X","Videoxpert V3.X Lenel Data Plugin Integration (Events From Onguard Into Vx)","Videoxpert V3.X Lenel Data Plugin Integration (Events From Onguard Into Vx) (License Cost Are Per Year)",{"v":3824,"d":"3,824"},{"v":3824,"d":"3,824 "},"ZAM"]
[null,"Videoxpert® Enterprise","INT-LNLOG74W-AU","Videoxpert V3.X Audio Addition To Lenel Onguard 7.4 (License Cost Are Per Year)","Videoxpert V3.X Audio Addition To Lenel Onguard 7.4 (License Cost Are Per Year)",{"v":5281,"d":"5,281"},{"v":5281,"d":"5,281 "},"ZAM"]
[null,"Videoxpert® Enterprise","INT-MAGOSMASS","VX integration of MAGO Radar system","Middleware Passing Mass Events And Also An Opscenter Plugin For Displaying The Mass Web Application Within A Cell. Events Include An Object Entering Or Leaving Radar Monitored Zones. Onvif Ptz Support",{"v":3824,"d":"3,824"},{"v":3824,"d":"3,824 "},"ZAM"]
[null,"Videoxpert® Enterprise","INT-MAVILI","Integration License For Mavili Fire Alarm Detection System. Perm","Integration License For Mavili Fire Alarm Detection System. Perm",0,{"v":0,"d":"0 "},"ZAM"]
[null,"Videoxpert® Enterprise","INT-MAXPROGRES","Videoxpert C4 Integration By Maxprogres (License Cost Are Per Year)","Videoxpert C4 Integration By Maxprogres (License Cost Are Per Year)",0,{"v":0,"d":"0 "},"ZAM"]
[null,"Videoxpert® Enterprise","INT-NETE2ASIA","Videoxpert Nete2 Integration (Permanent License)","Videoxpert Nete2 Integration (Permanent License)",0,{"v":0,"d":"0 "},"ZAM"]
[null,"Videoxpert® Enterprise","INT-NEURALLAB","Neural Labs Lpr Integration (Permanent License)","Neural Labs Lpr Integration (Permanent License)",0,{"v":0,"d":"0 "},"ZAM"]
[null,"Videoxpert® Enterprise","INT-NGARO","VX integration of Ngaro Analytics","Integration Of Videoxpert And Ngaro Analytics Combines Two High Quality Products And Offers Users An Ideal System For Automatic And Supervised Video Surveillance.",0,{"v":0,"d":"0 "},"ZAM"]
[null,"Videoxpert® Enterprise","INT-NSCHEDULE","Vx Scheduling Middleware; Vx Event Notification To User By Schedule And Holiday","Vx Scheduling Middleware; Vx Event Notification To User By Schedule And Holiday. E.G Only Notify Users From 6Pm Friday To Monday 6Am And Holiday.",{"v":1457,"d":"1,457"},{"v":1457,"d":"1,457 "},"ZAM"]
[null,"Videoxpert® Enterprise","INT-OCCUPANCY","Occupancy Solution For VXAutomate Counting And Monitoring Facility Occupancy","Occupancy Solution For Videoxpert Automate Counting And Monitoring Facility Occupancy Rates; Reduce Staffing Costs Associated With Manually Counting People. Needs Pelco Advanced Analytic Suite To Work",{"v":728.28,"d":"728"},{"v":728.28,"d":"728 "},"ZAM"]
[null,"Videoxpert® Enterprise","INT-PAXTONVID","VX integration of Paxton Net2 Integration","Paxton Net2 Integration Continuously Monitors The Net2 Access Control System And Passes Events To Videoxpert. The Net2 Doors To Be Monitored And Events Injected Into Videoxpert Are Both Configurable",{"v":3824,"d":"3,824"},{"v":3824,"d":"3,824 "},"ZAM"]
[null,"Videoxpert® Enterprise","INT-PERIDECT","Videoxpert Integration To Peridect+","Videoxpert Integration To Peridect+",0,{"v":0,"d":"0 "},"ZAM"]
[null,"Videoxpert® Enterprise","INT-PLATESMART","Platesmart Ptnr Integration (Permanent License)","Platesmart Ptnr Integration (Permanent License)",0,{"v":0,"d":"0 "},"ZAM"]
[null,"Videoxpert® Enterprise","INT-PREMISYS","Videoxpert Integration For Identicard Premisys Access Control Event Integration","Videoxpert Integration For Identicard Premisys Access Control Event Integration",{"v":3806,"d":"3,806"},{"v":3806,"d":"3,806 "},"ZAM"]
[null,"Videoxpert® Enterprise","INT-RBHACCESS","Videoxpert RBH Access integration","Videoxpert RBH Access integration",0,{"v":0,"d":"0 "},"ZAM"]
[null,"Videoxpert® Enterprise","INT-RECFACES","VX integration of Recfaces","Recfaces Id-Me Stores And Processes Various Biometric Features Of A Person; Photo Of A Face; A Three-Dimensional Image Of A Face; Palm Vein Pattern; A Fingerprint; In A Universal Biometric Profile",0,{"v":0,"d":"0 "},"ZAM"]
[null,"Videoxpert® Enterprise","NSM53-VXS-UPG","Upgrade NSM5300 Linux OS recorder to a VideoXpert Windows Server 2019 recorder","Upgrade NSM5300 Linux OS recorder to a VideoXpert Windows Server 2019 recorder.Includes USB flash drive w/image;Windows Server 2019 Standard license;and VxStorage license.Channels sold separately.",{"v":1481,"d":"1,481"},{"v":1481,"d":"1,481 "},"ZAM"]
[null,"Videoxpert® Enterprise","U1-AGG-1C","VideoXpert Enterprise; one aggregated channel","VideoXpert Enterprise; one aggregated chan from a remote system to be added to the head-end system. One license per aggregated chan is required. License must be applied to the head-end system.",{"v":79.44,"d":"79"},{"v":79.44,"d":"79 "},"ZAM"]
[null,"Videoxpert® Enterprise","VXCMG2-NSVR","Enhanced CMG; Server 2019 Standard; dual 550W pwr; Xeon Silver; 64GB ECC RAM","Enhanced Core Media Gateway (CMG); Windows Server 2019 Standard; dual 550W pwr supplies; Intel Xeon Silver processor; 64GB ECC RAM; two 1GbE NIC's; two 10GbE SFP+ ports; iDRAC. 3 year warranty",{"v":10176,"d":"10,176"},{"v":10176,"d":"10,176 "},"ZAM"]
[null,"Videoxpert® Enterprise","VXCMG3-10GKIT","VXCMG3-10GKIT","10Gb; SFP+; PCIe Adapter Kit for CMG3",{"v":701.25,"d":"701"},{"v":701.25,"d":"701 "},"ZAM"]
[null,"Videoxpert® Enterprise","VXCMG3-NSVR","VXCMG3-NSVR","CMG3; Server 2019 Standard; single 550W pwr; Xeon E; 64GB ECC RAM; 3yr wty",{"v":6758,"d":"6,758"},{"v":6758,"d":"6,758 "},"ZAM"]
[null,"Videoxpert® Enterprise","VXS2B-E168-N12S","E-Series VxStorage; Server 2019; 32GB RAM; Xeon Silver (x2); RAID 6;168TB","E-Series VxStorage;Windows Server 2019; 32GB RAM;Intel Xeon Silver (x2);1GbE NIC (x4);10GbE SFP+ (x2);iDRAC;redundant power;RAID 6;168TB raw;128.29TB effective;5 Yr Wty;100 CH LIC;100 1YR SUP",{"v":54570,"d":"54,570"},{"v":54570,"d":"54,570 "},"ZAM"]
[null,"Videoxpert® Enterprise","VXS2B-E216-N12S","E-Series VxStorage; Server 2019; 32GB RAM; Xeon Silver (x2); RAID 6;216TB","E-Series VxStorage;Windows Server 2019;32GB RAM;Intel Xeon Silver (x2);1GbE NIC (x4);10GbE SFP+ (x2);iDRAC;redundant power;RAID 6;216TB raw;171.06TB effective;5 Yr Wty;100 CH LIC;100 1YR SUP",{"v":60842,"d":"60,842"},{"v":60842,"d":"60,842 "},"ZAM"]
[null,"Videoxpert® Enterprise","VXS2B-E288-N16S","E-Series VxStorage; Server 2019; 32GB RAM; Xeon Silver (x2); RAID 6;288TB","E-Series VxStorage;Windows Server 2019;32GB RAM;Intel Xeon Silver (x2);1GbE NIC (x4);10GbE SFP+ (x2);iDRAC;redundant power; RAID 6;288TB raw;232.83TB effective;5 Yr Wty;100 CH LIC;100 1YR SUP",{"v":78270,"d":"78,270"},{"v":78270,"d":"78,270 "},"ZAM"]
[null,"Videoxpert® Enterprise","VXS2B-R0-N","VXS2B-R0-N","VXS RAID STORAGE; Windows Server 2019; 00TB (No Storage Drives); 100 CH LIC; 100 1YR SUP",{"v":34846,"d":"34,846"},{"v":34846,"d":"34,846 "},"ZAM"]
[null,"Videoxpert® Enterprise","VXS2B-R144-N18","VXS2B-R144-N18","R-Series VxStorage; Windows Server 2019; 32GB RAM; Intel Xeon Silver (x1);1GbE NIC (x2);10GbE SFP+ (x2);iDRAC;redundant power;RAID 6;144TB raw;98.22TB effective;5 Yr Wty;100 CH LIC;100 1YR SUP",{"v":49679,"d":"49,679"},{"v":49679,"d":"49,679 "},"ZAM"]
[null,"Videoxpert® Enterprise","VXS2B-R96-N12","VXS2B-R96-N12","R-Series VxStorage; Windows Server 2019; 32GB RAM; Intel Xeon Silver (x1); 1GbE NIC (x2); 10GbE SFP+ (x2); iDRAC;redundant power;RAID 6;96TB raw;65.46TB effective;5 Yr Wty;100 CH LIC;100 1YR SUP",{"v":41995,"d":"41,995"},{"v":41995,"d":"41,995 "},"ZAM"]
[null,"Videoxpert® Enterprise","VXS2B-T0-N","VXS RAID STORAGE; Server 2019; 00TB (No Storage Drives); 100 CH LIC; 100 1YR SUP","VXS RAID STORAGE; Windows Server 2019; 00TB (No Storage Drives); 100 CH LIC; 100 1YR SUP",{"v":34846,"d":"34,846"},{"v":34846,"d":"34,846 "},"ZAM"]
[null,"Videoxpert® Enterprise","VXS2B-T96-N8","T-Series VxStorage; Server 2019; 32GB RAM; Xeon Silver (x1); RAID 6;96TB","T-Series VxStorage; Windows Server 2019; 32GB RAM; Intel Xeon Silver (x1); 1GbE NIC (x2); 10GbE SFP+ (x2); iDRAC;redundant power;RAID 6;96TB raw;72.76TB effective;5 Yr Wty;100 CH LIC;100 1YR SUP",{"v":41995,"d":"41,995"},{"v":41995,"d":"41,995 "},"ZAM"]
[null,"Videoxpert® Professional","DS-VXP-1C","VideoXpert Professional; 1 channel upgrade license from Digital Sentry.","VideoXpert Professional; 1 channel upgrade license from Digital Sentry.",{"v":91.04,"d":"91"},{"v":91.04,"d":"91 "},"ZAM"]
[null,"Videoxpert® Professional","E1-OPS-WKSP","VideoXpert Ent Ult Workstation; w/Ops Center SW; UP TO 2 Monitors","VideoXpert Ent Ult Workstation; w/Ops Center SW; UP TO 2 Monitors; EU UK US Power Cords",{"v":3832,"d":"3,832"},{"v":3832,"d":"3,832 "},"ZAM"]
[null,"Videoxpert® Professional","ECO3-HDKIT-12TB","VxProEco 3 Series; Spare 12TB 7200 RPM SATA; Hot-plug Drive with Carrier.","VideoXpert Professional Eco 3 Series; Spare 12TB 7200 RPM SATA; Hot-plug Drive with Carrier.",{"v":1123,"d":"1,123"},{"v":1123,"d":"1,123 "},"ZAM"]
[null,"Videoxpert® Professional","ECO3-HDKIT-16TB","VxProEco 3 Series; Spare 16TB 7200 RPM SATA; Hot-plug Drive with Carrier.","VideoXpert Professional Eco 3 Series; Spare 16TB 7200 RPM SATA; Hot-plug Drive with Carrier.",{"v":1452,"d":"1,452"},{"v":1452,"d":"1,452 "},"ZAM"]
[null,"Videoxpert® Professional","ECO3-HDKIT-4TB","VxProEco 3 Series; Spare 4TB 7200 RPM SATA; Hot-plug Drive with Carrier.","VideoXpert Professional Eco 3 Series; Spare 4TB 7200 RPM SATA; Hot-plug Drive with Carrier.",{"v":325.44,"d":"325"},{"v":325.44,"d":"325 "},"ZAM"]
[null,"Videoxpert® Professional","ECO3-HDKIT-8TB","VxProEco 3 Series; Spare 8TB 7200 RPM SATA; Hot-plug Drive with Carrier.","VideoXpert Professional Eco 3 Series; Spare 8TB 7200 RPM SATA; Hot-plug Drive with Carrier.",{"v":653.72,"d":"654"},{"v":653.72,"d":"654 "},"ZAM"]
[null,"Videoxpert® Professional","HDDKIT-12TB","VideoXpert 12TB SATA HDD Kit","VideoXpert 12TB SATA HDD Kit",{"v":1609,"d":"1,609"},{"v":1609,"d":"1,609 "},"ZAM"]
[null,"Videoxpert® Professional","HDDKIT-12TB-SAS","VideoXpert 12TB SAS HDD Kit","VideoXpert 12TB SAS HDD Kit",{"v":1788,"d":"1,788"},{"v":1788,"d":"1,788 "},"ZAM"]
[null,"Videoxpert® Professional","HDDKIT-16TB-SAS","VideoXpert 16TB SAS HDD Kit","VideoXpert 16TB SAS HDD Kit",{"v":2555,"d":"2,555"},{"v":2555,"d":"2,555 "},"ZAM"]
[null,"Videoxpert® Professional","INT-SALTO","VX integration of Salto","Proaccess Software Platform For Centralized Access Control Including Management Of Saltos Broad Range Of Electronic Door Components And Peripherals.",{"v":3824,"d":"3,824"},{"v":3824,"d":"3,824 "},"ZAM"]
[null,"Videoxpert® Professional","INT-SECONTINUUM","Videoxpert Continuum Integration By Schneider Electric (Permanent License)","Videoxpert Continuum Integration By Schneider Electric (Permanent License)",0,{"v":0,"d":"0 "},"ZAM"]
[null,"Videoxpert® Professional","INT-SECUREXPERT","VX integration of Security Expert","The Integration Of Pelco Videoxpert With Security Expert Offers End Users The Combined Solution Of Pelco Video Security And The Security Expert Access Control System.",0,{"v":0,"d":"0 "},"ZAM"]
[null,"Videoxpert® Professional","INT-SENTINEL","Sentinel Alarm System (Permanent License)","Sentinel Alarm System (Permanent License)",0,{"v":0,"d":"0 "},"ZAM"]
[null,"Videoxpert® Professional","INT-SHOTPOINT","VX integration of Databouy Gunshot Detection","The Shotpoint Reporting Application Called The Know-When-It-Counta (Kwica) Application Can Be Launched Inside The Videoxpert Opscenter User Interface When A Gunshot Occurs.",0,{"v":0,"d":"0 "},"ZAM"]
[null,"Videoxpert® Professional","INT-SIPASS","Vx Sipass Integration 1Yr Lic","Vx Sipass Integration 1Yr Lic",{"v":3824,"d":"3,824"},{"$f":"F1480-(F1480*G$6)","v":{"v":3824,"d":"3,824 "}},"ZAM"]
[null,"Videoxpert® Professional","INT-SISTEMGROUP","Videoxpert Sig.Security Integration (Permanent License)","Videoxpert Sig.Security Integration (Permanent License)",0,{"v":0,"d":"0 "},"ZAM"]
[null,"Videoxpert® Professional","INT-SSKLPR","Ssk Lpr Integration And Occ Plugin (Permanent License)","Ssk Lpr Integration And Occ Plugin (Permanent License)",0,{"v":0,"d":"0 "},"ZAM"]
[null,"Videoxpert® Professional","INT-STENTOFON","Stentofon Manager Plugin Integration 1Yr Lic","Stentofon Manager Plugin Integration 1Yr Lic",{"v":3824,"d":"3,824"},{"v":3824,"d":"3,824 "},"ZAM"]
[null,"Videoxpert® Professional","INT-TAILCOUNT","VX integration of Tailgating Access Control","Middleware Service That Allows A Third Party Access Control System To Trigger The Count On A Camera And Produces An Alarm When More Than One Person Enters Through A Door Upon A Single Access.",{"v":3824,"d":"3,824"},{"v":3824,"d":"3,824 "},"ZAM"]
[null,"Videoxpert® Professional","INT-UTIANYVISIO","Uti Anyvision Local Facial Recognition Solution Integration","Uti Anyvision Local Facial Recognition Solution Integration",0,{"v":0,"d":"0 "},"ZAM"]
[null,"Videoxpert® Professional","INT-VAXTOR","VideoXpert integration license","VideoXpert integration license",0,{"v":0,"d":"0 "},"ZAM"]
[null,"Videoxpert® Professional","INT-VIDEOGRDSDK","VX integration of Videoguard; Allows Videoguard Psim To Get Video From Vx","Videoxpert Integration - Videoguard Sdk - Allows Videoguard Psim To Get Video From Vx",0,{"v":0,"d":"0 "},"ZAM"]
[null,"Videoxpert® Professional","INT-VIDEOGUARD","VX integration of Videoguard Middleware; Sends Events To Videoguard Event Server","Videoxpert Integration - Videoguard Middleware - Sends Events To Videoguard Event Server",0,{"v":0,"d":"0 "},"ZAM"]
[null,"Videoxpert® Professional","INT-YALTES","Videoxpert Integration - Yaltes Control System","Videoxpert Integration - Yaltes Control System",0,{"v":0,"d":"0 "},"ZAM"]
[null,"Videoxpert® Professional","U1-AGG-1P","VideoXpert Professional; one aggregated chan from a remote system","VideoXpert Professional; one aggregated chan from a remote system to be added to the head-end system. One license per aggregated chan is required. License must be applied to the head-end system.",{"v":182.07,"d":"182"},{"v":182.07,"d":"182 "},"ZAM"]
[null,"Videoxpert® Professional","VAX-1C","Vaxtor Camera License","Lpr Software Suitable For All Settings; Including Roads And Highways Where There Is No Speed Limit. Plate Detection And Recognition Is Carried Out In One Lane Or Two Contiguous Lanes. Price Per Camera",977,{"v":977,"d":"977 "},"ZAM"]
[null,"Videoxpert® Professional","VAX-ADR","Vaxtor Adr Per Camera","Vaxalpr On Pc Extension Provides Adr Component Used For The Recognition Of Dangerous Goods According To The European Adr Standard. Only Available In Europe. Price Per Camera.",{"v":246.33,"d":"246"},{"v":246.33,"d":"246 "},"ZAM"]
[null,"Videoxpert® Professional","VAX-AVGSPED-BAS","Vaxtor Avrage Speed Basic","Average Speed Plugin That Calculates The Average Speed In A Section Between 2 Cameras. Price Per Basic Helix System",{"v":616.72,"d":"617"},{"v":616.72,"d":"617 "},"ZAM"]
[null,"Videoxpert® Professional","VAX-AVGSPED-PRO","Vaxtor Avrage Speed Pro","Average Speed Plugin That Calculates The Average Speed In A Section Between 2 Cameras. Price Per Pro Helix System",{"v":3084,"d":"3,084"},{"v":3084,"d":"3,084 "},"ZAM"]
[null,"Videoxpert® Professional","VAX-AVGSPED-STD","Vaxtor Avrage Speed Standard","Average Speed Plugin That Calculates The Average Speed In A Section Between 2 Cameras. Price Per Standard Helix System",{"v":1542,"d":"1,542"},{"v":1542,"d":"1,542 "},"ZAM"]
[null,"Videoxpert® Professional","VAX-BASIC","Vaxtor Helix Back Office Database Software - 1-10 Cameras","Vaxtor Helix Back Office Database Software - 1-10 Cameras",{"v":2455,"d":"2,455"},{"v":2455,"d":"2,455 "},"ZAM"]
[null,"Videoxpert® Professional","VAX-GRAFANA-BAS","Vaxtor Grafana Basic","Grafana is an open-source analytics and monitoring solution for databases and allows users to query; visualise and alert on their site metrics. Price per Basic Helix system",{"v":616.72,"d":"617"},{"v":616.72,"d":"617 "},"ZAM"]
[null,"Videoxpert® Professional","VAX-GRAFANA-PRO","Vaxtor Grafana Pro","Grafana Is An Open-Source Analytics And Monitoring Solution For Databases And Allows Users To Query; Visualise And Alert On Their Site Metrics. Price Per Pro Helix System",{"v":3084,"d":"3,084"},{"v":3084,"d":"3,084 "},"ZAM"]
[null,"Videoxpert® Professional","VAX-GRAFANA-STD","Vaxtor Grafana Standard","Grafana Is An Open-Source Analytics And Monitoring Solution For Databases And Allows Users To Query; Visualise And Alert On Their Site Metrics. Price Per Standard Helix System",{"v":1542,"d":"1,542"},{"v":1542,"d":"1,542 "},"ZAM"]
[null,"Videoxpert® Professional","VAX-HELP-CAM","Vaxtor Remote Help Per Cam","Remote Vaxtor Configuration Assistance To Setup And Configure Vaxalpr Products. Price Per Camera",{"v":184.75,"d":"185"},{"v":184.75,"d":"185 "},"ZAM"]
[null,"Videoxpert® Professional","VAX-HELP-HOUR","Vaxtor Remote Help Per Hour","Remote Vaxtor Configuration Assistance To Setup And Configure Helix. Price Per Hour",{"v":184.75,"d":"185"},{"v":184.75,"d":"185 "},"ZAM"]
[null,"Videoxpert® Professional","VAX-INSTSPEED","Vaxtor Instant Speed Per Camera","Vaxalpr On Pc Extension Provides Instant Speed Component. Global Coverage.Price Per Camera. Requires Remote Configuration Support",{"v":863.05,"d":"863"},{"v":863.05,"d":"863 "},"ZAM"]
[null,"Videoxpert® Professional","VAX-MMC","Vaxtor Mmc Per Camera","Vaxalpr On Pc Extension Provides Make; Model & Colour (Mmc) Component. Software Runs On Pc. Global Coverage. Price Per Camera.",{"v":481.06,"d":"481"},{"v":481.06,"d":"481 "},"ZAM"]
[null,"Videoxpert® Professional","VAX-MMC+VCLASS","Vaxtor Mmc+Vclass Per Camera","Vaxalpr On Pc Extension Provides Make; Model; Colour (Mmc) & Classification Component. Software Runs On Pc. Global Coverage. Price Per Camera.",{"v":629.22,"d":"629"},{"v":629.22,"d":"629 "},"ZAM"]
[null,"Videoxpert® Professional","VAX-PRO","Vaxtor Helix Back Office Database Software - 26-50 Cameras","Vaxtor Helix Back Office Database Software - 26-50 Cameras",{"v":7388,"d":"7,388"},{"v":7388,"d":"7,388 "},"ZAM"]
[null,"Videoxpert® Professional","VAX-REDLIGHT","Vaxtor Red Light Per System","Vaxtor Helix 6 Component Used For Traffic Fine Management. It Allows The User To Validate Red Light Violations Detected With The Vaxalpr Red Light Software.",{"v":1851,"d":"1,851"},{"v":1851,"d":"1,851 "},"ZAM"]
[null,"Videoxpert® Professional","VAX-STANDARD","Vaxtor Helix Back Office Database Software - 11-25 Cameras","Vaxtor Helix Back Office Database Software - 11-25 Cameras",{"v":4921,"d":"4,921"},{"v":4921,"d":"4,921 "},"ZAM"]
[null,"Videoxpert® Professional","VAX-TIME-BAS","Vaxtor Time-Cross Basic","Cross-Time Is The Calculation Of Duration Spent Inside A Zone Ie For Parking. Price Per Basic Helix System",{"v":616.72,"d":"617"},{"v":616.72,"d":"617 "},"ZAM"]
[null,"Videoxpert® Professional","VAX-TIME-PRO","Vaxtor Time-Cross Pro","Cross-Time Is The Calculation Of Duration Spent Inside A Zone Ie For Parking. Price Per Pro Helix System",{"v":3084,"d":"3,084"},{"v":3084,"d":"3,084 "},"ZAM"]
[null,"Videoxpert® Professional","VAX-TIME-STD","Vaxtor Time-Cross Standard","Cross-Time Is The Calculation Of Duration Spent Inside A Zone Ie For Parking. Price Per Standard Helix System",{"v":1542,"d":"1,542"},{"v":1542,"d":"1,542 "},"ZAM"]
[null,"Videoxpert® Professional","VAX-VCLASS","Vaxtor Vclass Per Camera","Vaxalpr On Pc Extension Provides Vehicle Classification Component. Software Runs On Pc. Global Coverage. Price Per Camera.",{"v":481.06,"d":"481"},{"v":481.06,"d":"481 "},"ZAM"]
[null,"Videoxpert® Professional","VX-A4-DEC","VideoXpert Enhanced Decoder with Linux; 8GB RAM; VESA mount","VideoXpert Enhanced Decoder with Linux; 8GB RAM; VESA mount; and EU; UK; US power cords included. Three (3) year warranty included.",{"v":2192,"d":"2,192"},{"v":2192,"d":"2,192 "},"ZAM"]
[null,"Videoxpert® Professional","VX-A5-SDD","VideoXpert Shared Display Decoder with Windows 10 IoT 2019; 16GB memory","VideoXpert Shared Display Decoder with Windows 10 IoT 2019; 16GB memory; VESA mount; and EU; UK; US power cords included. Three (3) year warranty included.",{"v":2719,"d":"2,719"},{"v":2719,"d":"2,719 "},"ZAM"]
[null,"Videoxpert® Professional","VX-ASCII","VX Integration of Ascii; Commands Are Translated From Ascii Into Vx","The Ascii Integration Is Capable Of Listening For Ascii Commands On A Serial Port Or Ethernet Port Or Optionally Both Simultaneously. Commands Are Translated From Ascii Into The Protocol Used By Vx.",0,{"v":0,"d":"0 "},"ZAM"]
[null,"Videoxpert® Professional","VX-E-HDTRAY","Empty HD carrier tray for VideoXpert Professional Eco Series 1 or Series 2","Empty hard drive carrier tray for VideoXpert Professional Eco Series 1 or Series 2",{"v":27.44,"d":"27"},{"v":27.44,"d":"27 "},"ZAM"]
[null,"Videoxpert® Professional","VX-EVENT-MON","VX Integration of Event Monitor Service; I/O support in VX","The Videoxpert Event Monitor Service Is Capable Of Being Configured To Poll For Alarms From Various Devices; Taking The Alarm Data It Gathers And Performing Various Actions When An Alarm State Changes",0,{"v":0,"d":"0 "},"ZAM"]
[null,"Videoxpert® Professional","VX-F-HDTRAY","Empty HD carrier tray for VideoXpert Professional Flex Series 1 or Series 2","Empty hard drive carrier tray for VideoXpert Professional Flex Series 1 or Series 2",{"v":27.44,"d":"27"},{"v":27.44,"d":"27 "},"ZAM"]
[null,"Videoxpert® Professional","VX-P1-HDTRAY","Empty hard drive carrier tray for VideoXpert Professional Power Series 1","Empty hard drive carrier tray for VideoXpert Professional Power Series 1",{"v":26.49,"d":"26"},{"v":26.49,"d":"26 "},"ZAM"]
[null,"Videoxpert® Professional","VX-P2-HDTRAY","Empty hard drive carrier tray for VideoXpert Professional Power Series 2","Empty hard drive carrier tray for VideoXpert Professional Power Series 2",{"v":40.55,"d":"41"},{"v":40.55,"d":"41 "},"ZAM"]
[null,"Videoxpert® Professional","VX-RKWKS8T","VideoXpert Workstation; Windows 10 IoT 2019; 16GB RAM; two NVIDIA Quadro P620","VideoXpert Workstation (1RU) with VxOpsCenter; Windows 10 IoT 2019; 16GB RAM; two NVIDIA Quadro P620 2GB GPU's; supports 4 mons direct or 8 mons with 2 direct and 6 Enc Decoders. 3 year warranty",{"v":5417,"d":"5,417"},{"v":5417,"d":"5,417 "},"ZAM"]
[null,"Videoxpert® Professional","VX-RKWKST","VideoXpert Workstation; Windows 10 IoT 2019; 16GB RAM; one NVIDIA Quadro P620","VideoXpert (1RU) Workstation with VxOpsCenter; Windows 10 IoT 2019; 16GB RAM; one NVIDIA Quadro P620 2GB video card; supports up to 4 monitors directly connected. 3 year warranty",{"v":4627,"d":"4,627"},{"v":4627,"d":"4,627 "},"ZAM"]
[null,"Videoxpert® Professional","VX-S2-HDTRAY","Empty HD carrier tray for VideoXpert Enterprise and Professional Recorders","Empty hard drive carrier tray for VideoXpert Enterprise VxStorage Series 2; E; T or R and VideoXpert Professional Power 2 or Power 3 Series",{"v":40.55,"d":"41"},{"v":40.55,"d":"41 "},"ZAM"]
[null,"Videoxpert® Professional","VX-SNMP","VX license enables Simple Network Management Protocol (Snmp)","Simple Network Management Protocol (Snmp). Check On Vms And Camera Health. Read More Here Https://Www.Pelco.Com/Partners/Technical-Partners/Videoxpert-Utilities-And-Add-Ons/ (Permanent License)",0,{"v":0,"d":"0 "},"ZAM"]
[null,"Videoxpert® Professional","VX-WKST","VX Desktop Workstation; Win 10 IoT 2019; 16GB DDR4 memory; NVIDIA Quadro P620","VideoXpert Desktop Workstation (Small Form Factor) with VxOpsCenter; Windows 10 IoT 2019; 16GB DDR4 memory; NVIDIA Quadro P620 (2GB) video card; and EU; UK; US power cords. 3 year warranty",{"v":3625,"d":"3,625"},{"v":3625,"d":"3,625 "},"ZAM"]
[null,"Videoxpert® Professional","VX3930-PS","Single 550W hot pluggable power supply; for Eco 3; Rackmount Wks; or CMG3","Single 550W hot pluggable power supply unit with cable. Universal for VideoXpert Eco 3 Series Server; Rackmount Workstations; or Core Media Gateway 3 Series",{"v":394.51,"d":"395"},{"v":394.51,"d":"395 "},"ZAM"]
[null,"Videoxpert® Professional","VXP-1C","VideoXpert Professional; one (1) camera channel license.","VideoXpert Professional; one (1) camera channel license.",{"v":77.65,"d":"78"},{"v":77.65,"d":"78 "},"ZAM"]
[null,"Videoxpert® Professional","VXP-1C-3Y","VxPro; one camera channel license and three year upgrade for one channel","VideoXpert Professional; one (1) camera channel license and three (3) year software upgrade for one (1) channel.",{"v":127.63,"d":"128"},{"v":127.63,"d":"128 "},"ZAM"]
[null,"Videoxpert® Professional","VXP-E2-0-J-S","VideoXpert Professional; Eco 2 Series Tower Server; Windows 10 IoT; 16GB RAM; In","VideoXpert Professional; Eco 2 Series Tower Server; Windows 10 IoT; 16GB RAM; Intel Xeon E; 1GbE Network Ports (x2); iDRAC; JBOD; 0TB storage; NVIDIA Quadro P620 (2GB) video card. 3 year warranty",{"v":2949,"d":"2,949"},{"v":2949,"d":"2,949 "},"ZAM"]
[null,"Videoxpert® Professional","VXP-E2-8-J-S","VxPro; Eco 2; Win 10 IoT; 16GB RAM; Xeon E; 2x1Gb NIC; JBOD; 8TB; Quadro P620","VideoXpert Professional; Eco 2 Tower Server; Windows 10 IoT; 16GB RAM; Intel Xeon E; 1GbE NIC (x2); iDRAC; JBOD; 8TB raw; 7.3TB effective; NVIDIA Quadro P620 (2GB) video card. 3 year warranty",{"v":3753,"d":"3,753"},{"v":3753,"d":"3,753 "},"ZAM"]
[null,"Videoxpert® Professional","VXP-E3-0-J-S","VxPro; Eco 3 Rack; Win 10 IoT; 16GB RAM; i5; 1GbE NIC; No Drives; Quadro P620","VideoXpert Professional; Eco 3 Rack Server; Windows 10 IoT; 16GB RAM; Intel i5; 1GbE NIC; No Storage Drives; NVIDIA Quadro P620 (2GB) video card. 3 year warranty",{"v":3404,"d":"3,404"},{"v":3404,"d":"3,404 "},"ZAM"]
[null,"Videoxpert® Professional","VXP-E3-12-J-S","VxPro; Eco 3 Rack; Win 10 IoT; 16GB RAM; i5; 1GbE NIC; JBOD; 12TB; Quadro P620","VideoXpert Professional; Eco 3 Rack Server; Windows 10 IoT; 16GB RAM; Intel i5; 1GbE NIC; JBOD; 12TB raw; NVIDIA Quadro P620 (2GB) video card. 3 year warranty",{"v":4556,"d":"4,556"},{"v":4556,"d":"4,556 "},"ZAM"]
[null,"Videoxpert® Professional","VXP-E3-24-J-S","VxPro; Eco 3 Rack; Win 10 IoT; 16GB RAM; i5; 1GbE NIC; JBOD; 24TB; Quadro P620","VideoXpert Professional; Eco 3 Rack Server; Windows 10 IoT; 16GB RAM; Intel i5; 1GbE NIC; JBOD; 24TB raw; NVIDIA Quadro P620 (2GB) video card. 3 year warranty",{"v":5398,"d":"5,398"},{"v":5398,"d":"5,398 "},"ZAM"]
[null,"Videoxpert® Professional","VXP-E3-32-J-S","VxPro; Eco 3 Rack; Win 10 IoT; 16GB RAM; i5; 1GbE NIC; JBOD; 32TB; Quadro P620","VideoXpert Professional; Eco 3 Rack Server; Windows 10 IoT; 16GB RAM; Intel i5; 1GbE NIC; JBOD; 32TB raw; NVIDIA Quadro P620 (2GB) video card. 3 year warranty",{"v":6241,"d":"6,241"},{"v":6241,"d":"6,241 "},"ZAM"]
[null,"Videoxpert® Professional","VXP-E3-4-J-S","VxPro; Eco 3 Rack; Win 10 IoT; 16GB RAM; i5; 1GbE NIC; JBOD; 4TB; Quadro P620","VideoXpert Professional; Eco 3 Rack Server; Windows 10 IoT; 16GB RAM; Intel i5; 1GbE NIC; JBOD; 4TB raw; NVIDIA Quadro P620 (2GB) video card. 3 year warranty",{"v":3711,"d":"3,711"},{"v":3711,"d":"3,711 "},"ZAM"]
[null,"Videoxpert® Professional","VXP-E3-8-J-S","VxPro; Eco 3 Rack; Win 10 IoT; 16GB RAM; i5; 1GbE NIC; JBOD; 8TB; Quadro P620","VideoXpert Professional; Eco 3 Rack Server; Windows 10 IoT; 16GB RAM; Intel i5; 1GbE NIC; JBOD; 8TB raw; NVIDIA Quadro P620 (2GB) video card. 3 year warranty",{"v":4134,"d":"4,134"},{"v":4134,"d":"4,134 "},"ZAM"]
[null,"Videoxpert® Professional","VXP-KIT-4TB","VideoXpert Professional; Eco 2 & Flex 2 Series; 4TB hard drive and tray kit.","VideoXpert Professional; Eco 2 & Flex 2 Series; 4TB hard drive and tray kit.",{"v":705.67,"d":"706"},{"v":705.67,"d":"706 "},"ZAM"]
[null,"Videoxpert® Professional","VXP-KIT-8TB","VideoXpert Professional; Power Series; 8TB hard drive and tray kit.","VideoXpert Professional; Power Series; 8TB hard drive and tray kit.",{"v":1004,"d":"1,004"},{"v":1004,"d":"1,004 "},"ZAM"]
[null,"Videoxpert® Professional","VXP-KIT-P2-PSU","VideoXpert Professional; Power Series 2; 750W hot swappable power supply unit.","VideoXpert Professional; Power Series 2; 750W hot swappable power supply unit.",{"v":463.57,"d":"464"},{"v":463.57,"d":"464 "},"ZAM"]
[null,"Videoxpert® Professional","VXP-P2-0-XT","VxPro Power 2; Win 10 IoT 2019; 16GB RAM; Xeon Silver; 2x1Gb NIC; 0TB","VideoXpert Professional; Power 2 Server (2RU); Windows 10 IoT 2019 (mirrored RAID 1); 16GB RAM; Intel Xeon Silver; 1GbE NIC (x2); iDRAC ; unconfigured storage; 0TB raw capacity. 3 year warranty",{"v":8026,"d":"8,026"},{"v":8026,"d":"8,026 "},"ZAM"]
[null,"Videoxpert® Professional","VXP-P2-24-JT","VxPro Power 2; Win 10 IoT 2019; 16GB RAM; Xeon Silver; 2x1Gb NIC; JBOD; 24TB","VideoXpert Professional; Power 2 Server (2RU); Windows 10 IoT 2019 (mirrored RAID 1); 16GB RAM; Intel Xeon Silver; 1GbE NIC (x2); iDRAC ; JBOD; 24TB raw; 21.8TB effective. 3 year warranty",{"v":10509,"d":"10,509"},{"v":10509,"d":"10,509 "},"ZAM"]
[null,"Videoxpert® Professional","VXP-P2-48-6T","VxPro Power 2; Win 10 IoT 2019; 16GB RAM; Xeon Silver; 2x1Gb NIC; RAID 6; 48TB","VideoXpert Professional; Power 2 Server (2RU); Windows 10 IoT 2019 (mirrored RAID 1); 16GB RAM; Intel Xeon Silver; 1GbE NIC (x2); iDRAC; RAID 6; 48TB raw; 29TB effective. 3 year warranty",{"v":13297,"d":"13,297"},{"v":13297,"d":"13,297 "},"ZAM"]
[null,"Videoxpert® Professional","VXP-P2-48-JN","VxPro Power 2; Win 2019; 16GB RAM; Xeon Silver; 2x1Gb NIC; JBOD; 48TB","VideoXpert Professional; Power 2 Server (2RU); Windows Server 2019 (mirrored RAID 1); 16GB RAM; Intel Xeon Silver; 1GbE NIC (x2); iDRAC; JBOD; 48TB raw; 43.6TB effective. 3 year warranty",{"v":14093,"d":"14,093"},{"v":14093,"d":"14,093 "},"ZAM"]
[null,"Videoxpert® Professional","VXP-P2-48-JT","VxPro Power 2; Win 10 IoT 2019; 16GB RAM; Xeon Silver; 2x1Gb NIC; JBOD; 48TB","VideoXpert Professional; Power 2 Server (2RU); Windows 10 IoT 2019 (mirrored RAID 1); 16GB RAM; Intel Xeon Silver; 1GbE NIC (x2); iDRAC; JBOD; 48TB raw; 43.6TB effective. 3 year warranty",{"v":13297,"d":"13,297"},{"v":13297,"d":"13,297 "},"ZAM"]
[null,"Videoxpert® Professional","VXP-P2-72-5N","VxPro Power 2; Win 10 2019; 16GB RAM; Xeon Silver; 2x1Gb NIC; RAID 5; 72TB","VideoXpert Professional; Power 2 Server (2RU); Windows 10 Server 2019 (mirrored RAID 1); 16GB RAM; Intel Xeon Silver; 1GbE NIC (x2); iDRAC; RAID 5; 72TB raw; 58.2TB effective. 3 year warranty",{"v":16481,"d":"16,481"},{"$f":"F1544-(F1544*G$6)","v":{"v":16481,"d":"16,481 "}},"ZAM"]
[null,"Videoxpert® Professional","VXP-P2-72-5T","VxPro Power 2; Win 10 IoT 2019; 16GB RAM; Xeon Silver; 2x1Gb NIC; RAID 5; 72TB","VideoXpert Professional; Power 2 Server (2RU); Windows 10 IoT 2019 (mirrored RAID 1); 16GB RAM; Intel Xeon Silver; 1GbE NIC (x2); iDRAC; RAID 5; 72TB raw; 58.2TB effective. 3 year warranty",{"v":15685,"d":"15,685"},{"v":15685,"d":"15,685 "},"ZAM"]
[null,"Videoxpert® Professional","VXP-P2-72-6T","VxPro Power 2; Win 10 IoT 2019; 16GB RAM; Xeon Silver; 2x1Gb NIC; RAID 6; 72TB","VideoXpert Professional; Power 2 Server (2RU); Windows 10 IoT 2019 (mirrored RAID 1); 16GB RAM; Intel Xeon Silver; 1GbE NIC (x2); iDRAC; RAID 6; 72TB raw; 50.9TB effective. 3 year warranty",{"v":15685,"d":"15,685"},{"v":15685,"d":"15,685 "},"ZAM"]
[null,"Videoxpert® Professional","VXP-P2-72-JN","VxPro Power 2; Win 2019; 16GB RAM; Xeon Silver; 2x1Gb NIC; JBOD; 72TB","VideoXpert Professional; Power 2 Server (2RU); Windows Server 2019 (mirrored RAID 1); 16GB RAM; Intel Xeon Silver; 1GbE NIC (x2); iDRAC; JBOD; 72TB raw; 65.4TB effective. 3 year warranty",{"v":16481,"d":"16,481"},{"v":16481,"d":"16,481 "},"ZAM"]
[null,"Videoxpert® Professional","VXP-P2-72-JT","VxPro Power 2; Win 10 IoT 2019; 16GB RAM; Xeon Silver; 2x1Gb NIC; JBOD; 72TB","VideoXpert Professional; Power 2 Server (2RU); Windows 10 IoT 2019 (mirrored RAID 1); 16GB RAM; Intel Xeon Silver; 1GbE NIC (x2); iDRAC; JBOD; 72TB raw; 65.4TB effective. 3 year warranty",{"v":15685,"d":"15,685"},{"v":15685,"d":"15,685 "},"ZAM"]
[null,"Videoxpert® Professional","VXP-P2-96-5T","VxPro Power 2; Win 10 IoT 2019; 16GB RAM; Xeon Silver; 2x1Gb NIC; RAID 5; 96TB","VideoXpert Professional; Power 2 Server (2RU); Windows 10 IoT 2019 (mirrored RAID 1); 16GB RAM; Intel Xeon Silver; 1GbE NIC (x2); iDRAC; RAID 5; 96TB raw; 80TB effective. 3 year warranty",{"v":18074,"d":"18,074"},{"v":18074,"d":"18,074 "},"ZAM"]
[null,"Videoxpert® Professional","VXP-P2-96-6N","VxPro Power 2; Win 10 2019; 16GB RAM; Xeon Silver; 2x1Gb NIC; RAID 6; 96TB","VideoXpert Professional; Power 2 Server (2RU); Windows 10 Server 2019 (mirrored RAID 1); 16GB RAM; Intel Xeon Silver; 1GbE NIC (x2); iDRAC; RAID 6; 96TB raw; 72.7TB effective. 3 year warranty included",{"v":18869,"d":"18,869"},{"v":18869,"d":"18,869 "},"ZAM"]
[null,"Videoxpert® Professional","VXP-P2-96-6T","VxPro Power 2; Win 10 IoT 2019; 16GB RAM; Xeon Silver; 2x1Gb NIC; RAID 6; 96TB","VideoXpert Professional; Power 2 Server (2RU); Windows 10 IoT 2019 (mirrored RAID 1); 16GB RAM; Intel Xeon Silver; 1GbE NIC (x2); iDRAC; RAID 6; 96TB raw; 72.7TB effective. 3 year warranty included",{"v":18074,"d":"18,074"},{"v":18074,"d":"18,074 "},"ZAM"]
[null,"Videoxpert® Professional","VXP-P2-96-JT","VxPro Power 2; Win 10 IoT 2019; 16GB RAM; Xeon Silver; 2x1Gb NIC; JBOD; 96TB","VideoXpert Professional; Power 2 Server (2RU); Windows 10 IoT 2019 (mirrored RAID 1); 16GB RAM; Intel Xeon Silver; 1GbE NIC (x2); iDRAC; JBOD; 96TB raw; 87.2TB effective. 3 year warranty",{"v":18074,"d":"18,074"},{"v":18074,"d":"18,074 "},"ZAM"]
[null,"Videoxpert® Professional","VXP-P3-0-XN","VXP-P3-0-XN","VideoXpert Professional; Power 3 Server (2RU); Windows Server 2019 (mirrored RAID 1); 16GB RAM; Intel Xeon Silver; 1GbE NIC (x2); iDRAC ; unconfigured storage; 0TB raw capacity. 3 year warranty",{"v":9587,"d":"9,587"},{"v":9587,"d":"9,587 "},"ZAM"]
[null,"Videoxpert® Professional","VXP-P3-0-XT","VXP-P3-0-XT","VideoXpert Professional; Power 3 Server (2RU); Windows 10 IoT 2019 (mirrored RAID 1); 16GB RAM; Intel Xeon Silver; 1GbE NIC (x2); iDRAC ; unconfigured storage; 0TB raw capacity. 3 year warranty",{"v":8707,"d":"8,707"},{"v":8707,"d":"8,707 "},"ZAM"]
[null,"Videoxpert® Professional","VXP-P3-36-5N","VXP-P3-36-5N","VideoXpert Professional; Power 3 Server (2RU); Windows Server 2019 (mirrored RAID 1); 16GB RAM; Intel Xeon Silver; 1GbE NIC (x2); iDRAC; RAID 5; 36TB raw; 21.82TB effective. 3 year warranty",{"v":13107,"d":"13,107"},{"v":13107,"d":"13,107 "},"ZAM"]
[null,"Videoxpert® Professional","VXP-P3-36-5T","VXP-P3-36-5T","VideoXpert Professional; Power 3 Server (2RU); Windows 10 IoT 2019 (mirrored RAID 1); 16GB RAM; Intel Xeon Silver; 1GbE NIC (x2); iDRAC; RAID 5; 36TB raw; 21.82TB effective. 3 year warranty",{"v":12311,"d":"12,311"},{"v":12311,"d":"12,311 "},"ZAM"]
[null,"Videoxpert® Professional","VXP-P3-36-JN","VXP-P3-36-JN","VideoXpert Professional; Power 3 Server (2RU); Windows Server 2019 (mirrored RAID 1); 16GB RAM; Intel Xeon Silver; 1GbE NIC (x2); iDRAC ; JBOD; 36TB raw; 32.73TB effective. 3 year warranty",{"v":13107,"d":"13,107"},{"v":13107,"d":"13,107 "},"ZAM"]
[null,"Videoxpert® Professional","VXP-P3-36-JT","VXP-P3-36-JT","VideoXpert Professional; Power 3 Server (2RU); Windows 10 IoT 2019 (mirrored RAID 1); 16GB RAM; Intel Xeon Silver; 1GbE NIC (x2); iDRAC ; JBOD; 36TB raw; 32.73TB effective. 3 year warranty",{"v":12311,"d":"12,311"},{"v":12311,"d":"12,311 "},"ZAM"]
[null,"Videoxpert® Professional","VXP-P3-48-5N","VXP-P3-48-5N","VideoXpert Professional; Power 3 Server (2RU); Windows Server 2019 (mirrored RAID 1); 16GB RAM; Intel Xeon Silver; 1GbE NIC (x2); iDRAC; RAID 5; 48TB raw; 32.73TB effective. 3 year warranty",{"v":14093,"d":"14,093"},{"v":14093,"d":"14,093 "},"ZAM"]
[null,"Videoxpert® Professional","VXP-P3-48-5T","VXP-P3-48-5T","VideoXpert Professional; Power 3 Server (2RU); Windows 10 IoT 2019 (mirrored RAID 1); 16GB RAM; Intel Xeon Silver; 1GbE NIC (x2); iDRAC; RAID 5; 48TB raw; 32.73TB effective. 3 year warranty",{"v":13296,"d":"13,296"},{"v":13296,"d":"13,296 "},"ZAM"]
[null,"Videoxpert® Professional","VXP-P3-48-6N","VXP-P3-48-6N","VideoXpert Professional; Power 3 Server (2RU); Windows Server 2019 (mirrored RAID 1); 16GB RAM; Intel Xeon Silver; 1GbE NIC (x2); iDRAC; RAID 6; 48TB raw; 21.82TB effective. 3 year warranty",{"v":14093,"d":"14,093"},{"v":14093,"d":"14,093 "},"ZAM"]
[null,"Videoxpert® Professional","VXP-P3-48-6T","VXP-P3-48-6T","VideoXpert Professional; Power 3 Server (2RU); Windows 10 IoT 2019 (mirrored RAID 1); 16GB RAM; Intel Xeon Silver; 1GbE NIC (x2); iDRAC; RAID 6; 48TB raw; 21.82TB effective. 3 year warranty",{"v":13296,"d":"13,296"},{"v":13296,"d":"13,296 "},"ZAM"]
[null,"Videoxpert® Professional","VXP-P3-48-JN","VXP-P3-48-JN","VideoXpert Professional; Power 3 Server (2RU); Windows Server 2019 (mirrored RAID 1); 16GB RAM; Intel Xeon Silver; 1GbE NIC (x2); iDRAC; JBOD; 48TB raw; 43.64TB effective. 3 year warranty",{"v":14093,"d":"14,093"},{"v":14093,"d":"14,093 "},"ZAM"]
[null,"Videoxpert® Professional","VXP-P3-48-JT","VXP-P3-48-JT","VideoXpert Professional; Power 3 Server (2RU); Windows 10 IoT 2019 (mirrored RAID 1); 16GB RAM; Intel Xeon Silver; 1GbE NIC (x2); iDRAC; JBOD; 48TB raw; 43.64TB effective. 3 year warranty",{"v":13296,"d":"13,296"},{"v":13296,"d":"13,296 "},"ZAM"]
[null,"Videoxpert® Professional","VXP-P3-72-5N","VXP-P3-72-5N","VideoXpert Professional; Power 3 Server (2RU); Windows 10 Server 2019 (mirrored RAID 1); 16GB RAM; Intel Xeon Silver; 1GbE NIC (x2); iDRAC; RAID 5; 72TB raw; 54.55TB effective. 3 year warranty",{"v":16480,"d":"16,480"},{"v":16480,"d":"16,480 "},"ZAM"]
[null,"Videoxpert® Professional","VXP-P3-72-5T","VXP-P3-72-5T","VideoXpert Professional; Power 3 Server (2RU); Windows 10 IoT 2019 (mirrored RAID 1); 16GB RAM; Intel Xeon Silver; 1GbE NIC (x2); iDRAC; RAID 5; 72TB raw; 54.55TB effective. 3 year warranty",{"v":15685,"d":"15,685"},{"v":15685,"d":"15,685 "},"ZAM"]
[null,"Videoxpert® Professional","VXP-P3-72-6N","VXP-P3-72-6N","VideoXpert Professional; Power 3 Server (2RU); Windows Server 2019 (mirrored RAID 1); 16GB RAM; Intel Xeon Silver; 1GbE NIC (x2); iDRAC; RAID 6; 72TB raw; 43.64TB effective. 3 year warranty",{"v":16480,"d":"16,480"},{"v":16480,"d":"16,480 "},"ZAM"]
[null,"Videoxpert® Professional","VXP-P3-72-6T","VXP-P3-72-6T","VideoXpert Professional; Power 3 Server (2RU); Windows 10 IoT 2019 (mirrored RAID 1); 16GB RAM; Intel Xeon Silver; 1GbE NIC (x2); iDRAC; RAID 6; 72TB raw; 43.64TB effective. 3 year warranty",{"v":15685,"d":"15,685"},{"v":15685,"d":"15,685 "},"ZAM"]
[null,"Videoxpert® Professional","VXP-P3-72-JN","VXP-P3-72-JN","VideoXpert Professional; Power 3 Server (2RU); Windows Server 2019 (mirrored RAID 1); 16GB RAM; Intel Xeon Silver; 1GbE NIC (x2); iDRAC; JBOD; 72TB raw; 65.46TB effective. 3 year warranty",{"v":16480,"d":"16,480"},{"v":16480,"d":"16,480 "},"ZAM"]
[null,"Videoxpert® Professional","VXP-P3-72-JT","VXP-P3-72-JT","VideoXpert Professional; Power 3 Server (2RU); Windows 10 IoT 2019 (mirrored RAID 1); 16GB RAM; Intel Xeon Silver; 1GbE NIC (x2); iDRAC; JBOD; 72TB raw; 65.46TB effective. 3 year warranty",{"v":15685,"d":"15,685"},{"v":15685,"d":"15,685 "},"ZAM"]
[null,"Videoxpert® Professional","VXP-P3-96-5N","VXP-P3-96-5N","VideoXpert Professional; Power 3 Server (2RU); Windows 10 Server 2019 (mirrored RAID 1); 16GB RAM; Intel Xeon Silver; 1GbE NIC (x2); iDRAC; RAID 5; 96TB raw; 76.37TB effective. 3 year warranty",{"v":18869,"d":"18,869"},{"v":18869,"d":"18,869 "},"ZAM"]
[null,"Videoxpert® Professional","VXP-P3-96-5T","VXP-P3-96-5T","VideoXpert Professional; Power 3 Server (2RU); Windows 10 IoT 2019 (mirrored RAID 1); 16GB RAM; Intel Xeon Silver; 1GbE NIC (x2); iDRAC; RAID 5; 96TB raw; 76.37TB effective. 3 year warranty",{"v":18073,"d":"18,073"},{"v":18073,"d":"18,073 "},"ZAM"]
[null,"Videoxpert® Professional","VXP-P3-96-6N","VXP-P3-96-6N","VideoXpert Professional; Power 3 Server (2RU); Windows 10 Server 2019 (mirrored RAID 1); 16GB RAM; Intel Xeon Silver; 1GbE NIC (x2); iDRAC; RAID 6; 96TB raw; 65.46TB effective. 3 year warranty included",{"v":18869,"d":"18,869"},{"v":18869,"d":"18,869 "},"ZAM"]
[null,"Videoxpert® Professional","VXP-P3-96-6T","VXP-P3-96-6T","VideoXpert Professional; Power 3 Server (2RU); Windows 10 IoT 2019 (mirrored RAID 1); 16GB RAM; Intel Xeon Silver; 1GbE NIC (x2); iDRAC; RAID 6; 96TB raw;65.46TB effective. 3 year warranty included",{"v":18073,"d":"18,073"},{"v":18073,"d":"18,073 "},"ZAM"]
[null,"Videoxpert® Professional","VXP-P3-96-JN","VXP-P3-96-JN","VideoXpert Professional; Power 3 Server (2RU); Windows 10 Server 2019 (mirrored RAID 1); 16GB RAM; Intel Xeon Silver; 1GbE NIC (x2); iDRAC; JBOD; 96TB raw; 87.28TB effective. 3 year warranty",{"v":18869,"d":"18,869"},{"v":18869,"d":"18,869 "},"ZAM"]
[null,"Videoxpert® Professional","VXP-P3-96-JT","VXP-P3-96-JT","VideoXpert Professional; Power 3 Server (2RU); Windows 10 IoT 2019 (mirrored RAID 1); 16GB RAM; Intel Xeon Silver; 1GbE NIC (x2); iDRAC; JBOD; 96TB raw; 87.28TB effective. 3 year warranty",{"v":18073,"d":"18,073"},{"v":18073,"d":"18,073 "},"ZAM"]
[null,"Videoxpert® Professional","VXP-RK-FLEX","VideoXpert Professional; Flex Series Tower to Rack Conversion Kit","VideoXpert Professional; Flex Series Tower to Rack Conversion Kit",{"v":224.22,"d":"224"},{"v":224.22,"d":"224 "},"ZAM"]
[null,"Videoxpert® Professional","VXP-SUP-1Y","VideoXpert Professional; one (1) year software upgrade for one (1) channel.","VideoXpert Professional; one (1) year software upgrade for one (1) channel.",{"v":22.32,"d":"22"},{"v":22.32,"d":"22 "},"ZAM"]
[null,"Videoxpert® Professional","VXP-SUP-3Y","VideoXpert Professional; three (3) year software upgrade for one (1) channel.","VideoXpert Professional; three (3) year software upgrade for one (1) channel.",{"v":54.45,"d":"54"},{"v":54.45,"d":"54 "},"ZAM"]

{"sheet":"Usługi Techniczne","index":7,"n_rows":24,"n_cols":10,"rows_kept":24,"merged":[[21,1,21,3],[22,1,22,2]]}
[]
[]
[null,{"$error":"#VALUE!"},"CENNIK PRODUKTÓW CCTV"]
[null,null,"USŁUGI TECHNICZNE  |  SERWIS  |  WSPARCIE"]
[]
[]
[]
[null," USŁUGI SERWISOWE",null,"Cena w PLN"]
[null,"EKSPERTYZA TECHNICZNA","Ekspertyza techniczna urządzenia dostarczonego do serwisu CBC Poland\n(dotyczy urządzeń po okresie gwarancji lub usterki wykluczonej z warunków gwarancji)",100]
[null,"WSTĘPNA EKSPERTYZA URZĄDZENIA","Ekspertyza techniczna urządzenia dostarczonego do serwisu CBC Poland bez dołączonego zgłoszenia naprawy serwisowej z opisem usterki.",100]
[null,"RESET HASŁA","Reset hasła w rejestratorze do wartości fabrycznej",100]
[null,"CZYSZCZENIE","Czyszczenie obudowy urządzenia po zwrocie z wypożyczenia\n(po uprzednim poinformowaniu klienta)",100,{"$nulls":5}," "]
[null,"KURIER","Odesłanie sprzętu do klienta po serwisie (kurier)",20]
[]
[]
[null," Uruchomienie systemu\n GANZ CORTROL (Zdalne)","Usługa uruchomienia i konfiguracji systemu bazującego na aplikacji GANZ CORTROL Premier/Global. Usługa zawiera pakiet 6 godzin połączenia zdalnego w danym dniu + 4 godziny do wykorzystania na modyfikacje konfiguracji w okresie następnych 30 dni. Dalsze wsparcie naliczane będzie według cennika. Nie dotyczy modułów analityki VCA, AI, LPR, FR. Usługa realizowana poprzez dedykowane narzędzie pulpitu zdalnego TeamViewer w wersji CBC. Dla realizacji usługi wymagane jest wypełnienie oraz podpisanie przez zamawiającego oświadczenia o akceptacji zakresu oraz warunków asysty technicznej.",{"v":2800,"d":"2,800"}]
[null," Uruchomienie systemu\n GANZ CORTROL (Lokalne)","Usługa uruchomienia i konfiguracji systemu bazującego na aplikacji GANZ CORTROL Premier/Global. Usługa zawiera pakiet 8 godzin wsparcia lokalnego na obiekcie danego dnia (dojazd wliczony w cenę) + 4 godziny do wykorzystania na modyfikacje konfiguracji w okresie następnych 30 dni (zdalny pulpit). Dalsze wsparcie naliczane będzie według cennika. Nie dotyczy modułów analityki VCA, AI, LPR, FR. Usługa realizowana poprzez dedykowane narzędzie pulpitu zdalnego TeamViewer w wersji CBC. Dla realizacji usługi wymagane jest wypełnienie oraz podpisanie przez zamawiającego oświadczenia o akceptacji zakresu oraz warunków asysty technicznej.",{"v":3800,"d":"3,800"}]
[null," Zdalne wsparcie techniczne\n (opłata za każdą rozpoczętą godzinę)","Usługa zdalnego wsparcia dla produktów: CORTROL oraz VCA - opłata za każdą rozpoczętą godzinę dla klientów",300]
[null," Wsparcie techniczne na obiekcie \n (opłata za każdą rozpoczętą godzinę)","Usługa lokalnego wsparcia na obiekcie dla produktów: CORTROL oraz VCA - opłata za każdą rozpoczętą godzinę dla klientów. \nWymagane podpisanie oświadczenia o spełnieniu warunków przygotowania systemu dla asysty lokalnej.",300]
[null," Dojazd do obiektu","Dojazd specjalisty technicznego na obiekt",350]
[]
[null,"* Klientom, którzy odbyli szkolenie z zakresu rozwiązań CORTROL i/lub VCA przysługuje pakiet 5h zdalnego wsparcia technicznego."]
[null,"Zarejestruj się na bezpłatne szkolenie: szkolenia@cbcpoland.pl"]
[null,"Ceny są cenami detalicznymi PLN netto, do których należy doliczyć 23% VAT. UWAGA:  stawki usług nie podlegają rabatom!"]

{"sheet":"WARUNKI HANDLOWE","index":8,"n_rows":63,"n_cols":4,"rows_kept":63,"merged":[[2,1,2,2]]}
[{"$nulls":3}," "]
[]
[null," OGÓLNE WARUNKI HANDLOWE"]
[]
[null,"1.","Postanowienia Ogólne"]
[null,"a)","Poniższe Ogólne Warunki Handlowe mają zastosowanie do wszystkich umów kupna/sprzedaży zawieranych pomiędzy firmą CBC (Poland) Sp. z o.o. (zwaną dalej jako CBC) z siedzibą w: 01-793 Warszawa, ul. Rydygiera 8, bud.17, a klientem (zwanym dalej Nabywcą). CBC dostarcza produkty/usługi wyłącznie w oparciu o niniejsze warunki. Jakiekolwiek odstępstwa od niniejszych warunków wymagają uzgodnienia z CBC."]
[null,"b)","W przypadku rozbieżności pomiędzy poniższymi warunkami a innymi postanowieniami, niniejsze Ogólne Warunki Handlowe mają znaczenie nadrzędne, chyba że odmienne warunki zostaną potwierdzone i zaakceptowane pisemnie przez CBC."]
[]
[null,"2.","Ceny i warunki płatności"]
[null,"a)","Ceny cennikowe nie zawierają podatku VAT. CBC sprzedaje towar Nabywcy po cenach wg aktualnego cennika. Ewentualne rabaty dotyczą akcji promocyjnych lub indywidualnych ustaleń z Nabywcą. CBC zastrzega sobie prawo do zmian cen bez uprzedniego powiadamiania klientów, o ile nie zostało to wcześniej ustalone indywidualnie."]
[null,"b)","Termin i warunki płatności wynikają z faktury (oraz faktury pro forma, jeśli dotyczy). O terminowości zapłaty decyduje data wpływu płatności na konto bankowe CBC. W przypadku zaległości płatniczej ze strony Nabywcy powyżej 14 dni, CBC wstrzymuje realizację zamówień i dostawy towaru do Nabywcy do czasu uregulowania wszystkich płatności."]
[null,"c)","CBC zastrzega sobie prawo do naliczania odsetek za przeterminowane płatności według aktualnie obowiązujących wysokości odsetek ustawowych."]
[]
[null,"3.","Dostawy"]
[null,"a)","Terminy dostaw podawane przez CBC w potwierdzeniach zamówień lub gdziekolwiek indziej są określane w przybliżeniu, a ich ewentualne przekroczenie nie niesie za sobą żadnych konsekwencji."]
[null,"b)","Jeśli nie zostanie to wyraźnie uzgodnione w inny sposób, CBC nie będzie ponosić odpowiedzialności w stosunku do Nabywcy w związku z ewentualnym defektem produktu, uszkodzeniem bądź brakiem elementów, które zaistnieją podczas transportu. Dlatego też zaleca się Nabywcy uprzednie ubezpieczanie przesyłek kurierskich zawierających zakupiony towar."]
[null,"c)","Nabywca ma prawo zgłosić roszczenia odnośnie widocznych uszkodzeń opakowania, w którym znajdowały się produkty podczas transportu. W przypadku, gdy opakowanie jest uszkodzone, roszczenie musi zostać skierowane bezpośrednio do przewoźnika w formie pisemnej. Procedura reklamacyjna postępuje pomiędzy Nabywcą a przewoźnikiem."]
[null,"d)","Koszty przesyłki towaru ponosi Nabywca i są one doliczane do faktury, chyba że Nabywca wskaże określonego przewoźnika, z którym współpracuje lub też zostały ustalone indywidualne warunki pomiędzy CBC i Nabywcą. "]
[]
[null,"4.","Reklamacje"]
[null,null,"Nabywca jest zobowiązany sprawdzić towar przy odbiorze. Jakiekolwiek usterki zakupionego towaru, niezgodność towaru z zamówieniem lub niekompletne wyposażenie produktu muszą być niezwłocznie zgłoszone na piśmie w terminie nie dłuższym niż 7 dni roboczych od daty otrzymania towaru. W przypadku braku zgłoszenia reklamacji, realizacja zamówienia będzie uznana jako zgodna z umową, a dostarczony towar jako zaakceptowany przez Nabywcę. Miejscem wykonania zobowiązań wynikających z odpowiedzialności za wady towaru jest siedziba CBC."]
[]
[null,"5.","Gwarancja oraz odpowiedzialność za wady towaru"]
[null,"a)","Produkty oferowane przez CBC są objęte gwarancją na okres 3 lat począwszy od daty wystawienia faktury sprzedaży, jeśli użytkowane są we właściwy sposób.  Pozostałe inne marki oferowane przez CBC (Videotec, Alnet, Vigilant Vision i inne ), są objęte gwarancją producenta tych marek."]
[null,"b)","Okres gwarancji na części po naprawie pogwarancyjnej wynosi 6 miesięcy (GANZ i Computar) "]
[null,"c)","Prawo do gwarancji udzielanej przez CBC ma jedynie pierwszy bezpośredni klient CBC na podstawie faktury sprzedaży."]
[null,"d)","Nabywca bezwzględnie traci prawo do bezpłatnej naprawy gwarancyjnej w przypadku:"]
[null,"d.1)","Uszkodzeń towaru powstałych w wyniku wypadków losowych, przypadków niewłaściwego bądź niezgodnego z instrukcją obsługi przechowywania, instalacji oraz eksploatowania, zaniedbania z winy użytkownika bądź uszkodzenia powstałego podczas transportu"]
[null,"d.2)","Uszkodzeń spowodowanych zużyciem eksploatacyjnym, lub uszkodzeń spowodowanych niewłaściwą współpracą z innymi, niekompatybilnymi urządzeniami."]
[null,"d.3)","Stwierdzenia modyfikacji, napraw lub jakichkolwiek manipulacji w reklamowanym urządzeniu, dokonanych poza autoryzowanym punktem serwisowym CBC."]
[null,"d.4)","Stwierdzenia usunięcia lub modyfikacji etykiety znamionowej zawierającej model oraz numer seryjny urządzenia, uniemożliwiając identyfikację urządzenia."]
[null,"e)","Nabywca oprócz roszczeń wynikających z wad towaru, nie ma prawa do odszkodowania, między innymi z tytułu straconego zysku w rezultacie nabycia towaru z wadami."]
[null,"f)","Miejscem wykonania zobowiązań wynikających z gwarancji na nabyty towar jest siedziba CBC. Towar reklamowany w ramach gwarancji musi być dostarczony do CBC na koszt Nabywcy. CBC pokrywa koszt dostarczenia/przesyłki naprawionego lub wymienionego w ramach gwarancji towaru do Nabywcy."]
[null,"g)","Aktywacje Token'a dla licencji na analitykę VCA można wykonać tylko raz dla danego unikalnego identyfikatora sprzętowego co skutkuje rozszerzeniem funkcjonalności danego urządzenia zgodnie z opisem danej licencji. Token można aktywować ponownie dowolną ilość razy na urządzeniu o identyfikatorze sprzętowym tożsamym z tym na którym została wykonana pierwotna aktywacja."]
[null,"h)","Aktywowane Token'y licencyjne na analitykę VCA dla kamer oraz enkoderów (analogowych oraz IP) są przypisane do unikalnego identyfikatora sprzętowego dla urządzenia, na którym dokonano ich pierwotnej aktywacji. W przypadku usterki urządzenia wymagającej jego wymiany w okresie gwarancyjnym, Token z funkcjonalnością tożsamą do zainstalowanej na uszkodzonym urządzeniu są generowane oraz aktywowane w urządzeniu zamiennym. W przypadku pogwarancyjnych napraw urządzenia, przysługuje prawo odpłatnego transferu lub generowania zastępczego Token'a dla licencji na analitykę VCA co wymaga uprzedniej konsultacji z serwisem CBC."]
[null,"i)","Aktywowane Token'y licencyjne na analitykę VCA dla oprogramowania CORTROL VMS są przypisane do unikalnego identyfikatora sprzętowego dla urządzenia, na którym dokonano ich pierwotnej aktywacji. W przypadku usterki jednostki serwerowej, która w znacznym stopniu wpływa na zmianę konfiguracji a tym samym wygenerowaniu nowego identyfikatora sprzętowego dla urządzenia, istnieje możliwość wygenerowania Token'a zastępczego w okresie do 12 miesięcy od daty aktywacji pierwotnego Token'a. Po tym okresie przysługuje prawo odpłatnego transferu lub generowania zastępczego Token'a dla licencji na analitykę VCA co wymaga uprzedniej konsultacji z serwisem CBC."]
[null,"j)","Aktywacje zakupionej licencji na oprogramowanie CORTROL VMS można wykonać automatycznie tylko jeden raz za pomocą dostarczonego klucza produktu w formie cyfrowej, w systemie spełniającym wymagania techniczne pod kątem programowym oraz sprzętowym opisane w dokumentacji dla oprogramowania CORTROL VMS. Aktywacja jest przypisana do systemu o unikalnym identyfikatorze sprzętowym generowanym na podstawie aktualnej konfiguracji sprzętowej."]
[null,"k)","Zakupione licencje oprogramowania CORTROL VMS umożliwiają bezterminowe użytkowanie aplikacji zgodnie z jej specyfikacją oraz zawierają w pakiecie podstawowym subskrypcję na okres 24 miesięcy od daty pierwszej aktywacji w systemie o unikalnym identyfikatorze sprzętowym. Subskrypcja umożliwia instalacje aktualizacji wersji oprogramowania CORTROL VMS. Po zakończeniu okresu subskrypcji dla danego klucza produktu nie ma możliwości instalacji aktualizacji oprogramowania CORTROL VMS a wersja aplikacji zostaje zablokowana na aktualnie użytkowanej w dniu zakończenia rzeczonego okresu."]
[null,"l)","Zakupione licencje oprogramowania CORTROL VMS są objęte gwarancją w okresie subskrypcji, która domyślnie wynosi 24 miesiące z możliwością przedłużenia zgodnie z informacjami zawartymi w cenniku. W przypadku usterki urządzenia na którym została aktywowana rzeczona licencja, wymagającej jego wymiany lub naprawy poprzez znaczną wymianę elementów bazowych, może ona zostać ponownie aktywowana na urządzeniu zamiennym po uprzedniej konsultacji z działem technicznym CBC."]
[null,"m)","Zakupione licencje modułów dodatkowych oprogramowania CORTROL VMS (ZNS-LPR oraz ZNS-FR) są objęte gwarancją w okresie 24 miesięcy. W przypadku usterki urządzenia na którym zostały aktywowane rzeczone licencje, wymagającej jego wymiany lub naprawy poprzez znaczną wymianę elementów bazowych, może ona zostać ponownie aktywowana na urządzeniu zamiennym po uprzedniej konsultacji z działem technicznym CBC. Po okresie gwarancyjnym taka migracja nie przysługuje."]
[null,"n)","Gwarancja na rejestratory CORTROL-NVR oraz preinstalowaną na nich licencje na oprogramowanie CORTROL VMS, wynosi równowartość okresu, którą objęta jest konfiguracja sprzętowa tj. 36 miesięcy (domyślnie)."]
[null,"o)","Aktywacje zakupionych licencji programowych na zawansowane funkcjonalności AI dla urządzeń ZN-AIBOX oraz kamer serii PixelPRO (ZNP oraz ZNU) można dokonać tylko raz na urzadzeniu o unikatowym adresie MAC karty sieciowej co skutkuje rozszerzeniem funkcjonalności danego urządzenia zgodnie z opisem danej licencji."]
[null,"p)","Aktywowane licencje programowe na funkcje AI dla urządzeń ZN-AIBOX oraz kamer serii PixelPRO (ZNP oraz ZNU) są przypisane do unikalnego adresu MAC karty sieciowej dla urządzenia, na którym dokonano ich pierwotnej aktywacji. W przypadku usterki urządzenia wymagającej jego wymiany w okresie gwarancyjnym, licencje z funkcjonalnością tożsamą do zainstalowanej na uszkodzonym urządzeniu są generowane oraz aktywowane w urządzeniu zamiennym. W przypadku pogwarancyjnych napraw urządzenia, nie przysługuje prawo transferu lub generowania zastępczej licencji na funkcje AI."]
[null,"q)","Licencje ZN-AIBOX-FR na funkcjonalność AI FR (rozpoznawanie twarzy) dla urządzeń ZN-AIBOX są dostarczane w formie klucza sprzętowego instalowanego wewnątrz urządzenia co skutkuje rozszerzeniem funkcjonalności danego urządzenia zgodnie z opisem danej licencji. Możliwe jest fizyczne migrowanie rzeczonego klucza sprzętowego między urządzeniami ZN-AIBOX w ramach specyfikacji danego urządzenia."]
[null,"r)","Kamery GANZ zawierające w swojej konstrukcji moduły termowizyjne, objęte są standardową gwarancją w okresie 36 miesięcy na wszystkie elementy z wyłączeniem modułu przetwornika obrazu termowizyjnego którego okres gwarancji wynosi 24 miesiące (obowiązuje dla urzadzeń zakupionych po dniu 1 Stycznia 2020r.)"]
[null,"s)","Przeniesienie licencji dodatkowych lub pakietu Advanced w urządzeniu AI BOX 2.0 jest możliwe tylko w przypadku uszkodzenia produktu podlegającego gwarancji. Uszkodzone urządzenie musi zostać odesłane do serwisu firmy CBC Poland Sp. z o.o.\n"]
[null,null,"Firma CBC Poland Sp. z o.o. zastrzega sobie możliwość zmiany zapotrzebowania na moc obliczeniową poszczególnych aplikacji analitycznych po wydaniu nowych aktualizacji oprogramowania układowego"]
[null,"t)","W urządzeniach z kategorii \"Kamery\" oraz \"Akcesoria do kamer\" dopuszcza się ingerencje w powłokę lakierniczą danego urządzenia przy zachowaniu jego fizycznych właściwości oraz szczelności korpusu obudowy. Ingerencja w powłokę lakierniczą nie uprawnia do wymiany urządzenia na inny egzemplarz a uszkodzenia wynikające z takowej ingerencji nie podlegają naprawie gwarancyjnej."]
[null,"u)","Obiektywy marki Computar objęte są gwarancją której standardowy okres wynosi 36 miesięcy na elementy optyczne i mechaniczne oraz 12 miesięcy na części elektroniczne (silniki krokowe oraz sterownaie przysłony). Obowiązuje dla urzadzeń zakupionych po dniu 1 Stycznia 2021r."]
[null,"w)","Zasilacze zewnętrzne dostarczane wraz z urządzeniami marki GANZ objęte są gwarancją której standardowy okres wynosi 12 miesięcy. Obowiązuje dla urządzeń zakupionych po dniu 1 Stycznia 2022r."]
[]
[null,"6.","Siła wyższa"]
[null,null,"CBC nie ponosi odpowiedzialności za niespełnienie zobowiązań spowodowanych przyczynami, na które nie CBC miało wpływu, w tym: sił wyższych (pożarów, powodzi, uderzeń pioruna), działań zbrojnych, utrudnień w logistyce, działaniem organów rządowych lub innych władz, uznania ważnych licencji lub zezwoleń."]
[]
[null,"7.","Zwroty i Serwis"]
[null,"a)","Klient może zrezygnować z zakupionego towaru w terminie 10 dni od zawarcia umowy zakupu towaru. Towar powinien zostać zwrócony w stanie, w jakim został zakupiony, w oryginalnym opakowaniu wraz z fakturą sprzedaży, z kserokopią dowodu zapłaty (w przypadku przesyłki płatnej przy odbiorze), instrukcją obsługi (Dz.U. z dnia 31 marca 2000 r.)."]
[null,"b)","Zwrot towaru musi być uprzednio uzgodniony i zaakceptowany przez CBC, w przeciwnym wypadku przyjęcie zwróconego towaru będzie dokonywane przez wystawienie faktury korygującej. Rozpatrywane będą tylko sprawy do 3 miesięcy wstecz od daty wystawienia faktury."]
[null,"c)","Koszty transportu/dostarczenia zwracanego towaru do CBC ponosi Nabywca."]
[null,"d)","CBC zastrzega sobie prawo do nieprzyjęcia towaru w formie zwrotu, jeśli okaże stwierdzone zostaną uszkodzenia lub ślady używania. CBC zastrzega sobie również prawo do nieprzyjęcia zwrotu produktów niestandardowych, czyli nieobjętych podstawowym cennikiem."]
[]
[null,"8.","Postanowienia końcowe"]
[null,"a)","Powyższe warunki handlowe obowiązują w przypadku każdej umowy kupna zawieranej pomiędzy CBC a Nabywcą."]
[null,"b)","CBC zastrzega sobie prawo do zmiany warunków handlowych, o czym poinformuje w stosowny sposób na swojej stronie www.cbcpoland.pl."]